Workbook

Sheet Area Profile
B2: Young Person’s Local Authority Labour Market Dashboard | H2: =Processing!E159 -> 565,500
H3: =Processing!E160 -> 16 to 24 year olds in Scotland
E4: 2021-12-01 | H4: =Processing!E161 -> FT Education | I4: =Processing!F161 -> PT Education | K4: =Processing!G161 -> Not in Education
H5: =Processing!E162 -> 254,900 | I5: =Processing!F162 -> 19,700 | K5: =Processing!G162 -> 287,400
B6: Data for Local Authorities has been collated and can be viewed by selecting | H6: =Processing!E163 -> (45.1 per cent) | I6: =Processing!F163 -> (3.5 per cent) | K6: =Processing!G163 -> (50.8 per cent)
B7: from the drop down box: | D7: Scotland | H7: =Processing!E164 -> 83,500 | I7: =Processing!F164 -> 15,200 | K7: =Processing!G164 -> 215,900
B8: Summary Trends in the labour market for young people are of importance given the long-term impact unemployment at a young age can have on individuals and the economy. | H8: =Processing!E165 -> in employment | I8: =Processing!F165 -> in employment | K8: =Processing!G165 -> in employment
H9: =Processing!E166 -> (14.8 per cent) | I9: =Processing!F166 -> (2.7 per cent) | K9: =Processing!G166 -> (38.2 per cent)
H10: =Processing!E167 -> 162,000 | I10: =Processing!F167 -> 3,800 | K10: =Processing!G167 -> 50,700
B11: A key policy priority is to ensure young people are provided with the opportunities to become an active part of the labour force and to maximise the benefits to them and their contribution to economic growth. | H11: =Processing!E168 -> inactive | I11: =Processing!F168 -> inactive | K11: =Processing!G168 -> inactive
H12: =Processing!E169 -> (28.7 per cent) | I12: =Processing!F169 -> (0.7 per cent) | K12: =Processing!G169 -> (9.0 per cent)
H13: =Processing!E170 -> 9,400 | I13: =Processing!F170 -> 700* | K13: =Processing!G170 -> 20,800
B14: =Processing!E343 -> Data for the period Jul 2020 - Jun 2021 shows that the employment rate for 16 to 24 year olds in Scotland was 51.8 per cent. | H14: =Processing!E171 -> unemployed | I14: =Processing!F171 -> unemployed | K14: =Processing!G171 -> unemployed
H15: =Processing!E172 -> (1.7 per cent) | I15: =Processing!F172 -> (0.1* per cent) | K15: =Processing!G172 -> (3.7 per cent)
H16: Source: Annual Population Survey, 3-Year Pooled Data, January 2018 to December 2020, ONS Note: All proportions based on total 16 to 24 cohort Education status breakdowns do not include "courses not stated", "enrolled but not attending" or "enrolled and not stated whether attending" responses. However, the total estimates include all 16 to 24 year olds regardless of education status.
B19: Sample Size and Volatility
B20: Many young people are students but are also looking for work. As a result, young person's labour market data can be volatile over short time periods, and can display a wider degree of variation than other core economic and labour market indicators. Annual Population Survey data pooled across 3-year periods has been used to reduce this volatility however small sample size means that in many cases data is still not reliable for practical purposes. Note: * Indicates estimates should be used with some caution and are based on a smaller sample sizes. Where it is not possible to provide estimates for very small groups, data are not shown or are marked by ***.
B24: =Processing!E235 -> Scotland employment, inactivity, and unemployment rates | H24: =Processing!K236 -> Scotland employment, inactivity, and unemployment rates
B26: (16 to 24 year olds including those in full-time education) | H26: (16 to 24 year olds not in full-time education)
B27: Area | D27: Employment (per cent) | E27: Inactivity (per cent) | F27: Unemployment (per cent) | H27: Area | J27: Employment (per cent) | K27: Inactivity (per cent) | L27: Unemployment (per cent)
B28: =Processing!E216 -> Scotland | D28: =Processing!G216 -> 55.9 | E28: =Processing!H216 -> 38.7 | F28: =Processing!I216 -> 8.9 | H28: =Processing!K216 -> Scotland | J28: =Processing!M216 -> 75.2 | K28: =Processing!N216 -> 17.9 | L28: =Processing!O216 -> 8.5
B29: =Processing!E217 ->  | D29: =Processing!G217 ->  | E29: =Processing!H217 ->  | F29: =Processing!I217 ->  | H29: =Processing!K217 ->  | J29: =Processing!M217 ->  | K29: =Processing!N217 ->  | L29: =Processing!O217 -> 
B30: Source: Annual Population Survey, 3-Year Pooled Data, January 2018 to December 2020, ONS
B32: =Processing!F104 -> 1. Young person's employment rate by qualification, Scotland, Jan 2018 to Dec 2020 | H32: =Processing!F80 -> 2. Level and proportion of young person's employment within broad Sectors, Scotland, Jan 2018 to Dec 2020
A55: =Processing!F321 -> 3. Employment Rate for Scotland compared with Local Authority areas, Jul 2020 - Jun 2021 | E55: =Processing!F322 -> 4. Employment Rate, Scotland, Jul 2004 - Jun 2005 to Jul 2020 - Jun 2021 | H55: =Processing!F15 -> 5. Claimant Count levels and rates, Scotland, Oct 2019 to Oct 2021
E79: =Processing!F249 -> 6. Proportion of 16 to 19 year olds participating in employment, education, or training in Scotland, 2021 | I79: =Processing!E42 -> 7. Median Gross Weekly Earnings for full-time employees, Scotland, 2021
B96: Note:
B97: With the exception of Charts 4 and 7:
B98: * Estimates are considered reasonably precise but should be used with caution
B99: *** Estimates are considered unreliable for practical purposes | G99: In Chart 7:
G100: * Estimates are considered reasonably precise but should be used with caution
B101: In Chart 4, years with a * indicate Local Authority area estimates for that year are considered reasonably precise; all Scottish estimates are considered precise.
G102: ** Estimates are considered acceptable but should be used with caution
B104: Data within the tables and in Charts 1 and 2 cover some of the period when government policies related to COVID-19 were implemented (March 2020 onward). | G104: *** Estimates are considered unreliable for practical purposes

Sheet Underlying Data
B2: Young Person’s Local Authority Labour Market Dashboard
E4: 2021-12-01
B6: Data for Local Authorities has been collated and can be viewed by selecting
B7: from the drop down box: | C7: Scotland
B9: Summary Trends in the labour market for young people are of importance given the long-term impact unemployment at a young age can have on individuals and the economy.
B10: A key policy priority is to ensure young people are provided with the opportunities to become an active part of the labour force and to maximise the benefits to them and their contribution to economic growth.
B12: Sample Size and Volatility
B13: Many young people are students but are also looking for work. As a result, young person's labour market data can be volatile over short time periods, and can display a wider degree of variation than other core economic and labour market indicators. Annual Population Survey data pooled across 3-year periods has been used to reduce this volatility however small sample size means that in many cases data is still not reliable for practical purposes. Note: Shaded cells indicate estimates should be used with some caution and are based on a smaller sample sizes. Where it is not possible to provide estimates for very small groups, data are not shown or are marked by ***.
B21: =Processing!E186 -> A. Levels and proportions of economic activity for young people by education status, Scotland, Jan 2018 to Dec 2020
C22: All | F22: Employed | I22: Unemployed | L22: Inactive | O22: Unemployed & Inactive
C23: Level | D23: Proportion (per cent) | F23: Level | G23: Proportion (per cent) | I23: Level | J23: Proportion (per cent) | L23: Level | M23: Proportion (per cent) | O23: Level | P23: Proportion (per cent)
B24: =C7 -> Scotland
B25: In Education | C25: =IF(Processing!K175="***","",Processing!K161) ->  | D25: =IF(Processing!L175="***","",Processing!L161) ->  | E25: =IF(Processing!M175="***","",Processing!M161) ->  | F25: =IF(Processing!N175="***","",Processing!N161) ->  | G25: =IF(Processing!O175="***","",Processing!O161) ->  | H25: =IF(Processing!P175="***","",Processing!P161) ->  | I25: =IF(Processing!Q175="***","",Processing!Q161) ->  | J25: =IF(Processing!R175="***","",Processing!R161) ->  | K25: =IF(Processing!S175="***","",Processing!S161) ->  | L25: =IF(Processing!T175="***","",Processing!T161) ->  | M25: =IF(Processing!U175="***","",Processing!U161) ->  | N25: =IF(Processing!V175="***","",Processing!V161) ->  | O25: =IF(Processing!W175="***","",Processing!W161) ->  | P25: =IF(Processing!X175="***","",Processing!X161) ->  | Q25: =IF(Processing!Y175="***","",Processing!Y161) -> 
B26: Full-Time Education | C26: =IF(Processing!K176="***","",Processing!K162) -> 254,900 | D26: =IF(Processing!L176="***","",Processing!L162) -> 45.1 | E26: =IF(Processing!M176="***","",Processing!M162) -> ± 1.5 | F26: =IF(Processing!N176="***","",Processing!N162) -> 83,500 | G26: =IF(Processing!O176="***","",Processing!O162) -> 14.8 | H26: =IF(Processing!P176="***","",Processing!P162) -> ± 1.1 | I26: =IF(Processing!Q176="***","",Processing!Q162) -> 9,400 | J26: =IF(Processing!R176="***","",Processing!R162) -> 1.7 | K26: =IF(Processing!S176="***","",Processing!S162) -> ± 0.4 | L26: =IF(Processing!T176="***","",Processing!T162) -> 162,000 | M26: =IF(Processing!U176="***","",Processing!U162) -> 28.7 | N26: =IF(Processing!V176="***","",Processing!V162) -> ± 1.4 | O26: =IF(Processing!W176="***","",Processing!W162) ->  | P26: =IF(Processing!X176="***","",Processing!X162) ->  | Q26: =IF(Processing!Y176="***","",Processing!Y162) -> 
B27: Part-Time Education | C27: =IF(Processing!K177="***","",Processing!K163) -> 19,700 | D27: =IF(Processing!L177="***","",Processing!L163) -> 3.5 | E27: =IF(Processing!M177="***","",Processing!M163) -> ± 0.6 | F27: =IF(Processing!N177="***","",Processing!N163) -> 15,200 | G27: =IF(Processing!O177="***","",Processing!O163) -> 2.7 | H27: =IF(Processing!P177="***","",Processing!P163) -> ± 0.5 | I27: =IF(Processing!Q177="***","",Processing!Q163) -> 700 | J27: =IF(Processing!R177="***","",Processing!R163) -> 0.1 | K27: =IF(Processing!S177="***","",Processing!S163) -> # | L27: =IF(Processing!T177="***","",Processing!T163) -> 3,800 | M27: =IF(Processing!U177="***","",Processing!U163) -> 0.7 | N27: =IF(Processing!V177="***","",Processing!V163) -> ± 0.2 | O27: =IF(Processing!W177="***","",Processing!W163) ->  | P27: =IF(Processing!X177="***","",Processing!X163) ->  | Q27: =IF(Processing!Y177="***","",Processing!Y163) -> 
B28: Not in Education | C28: =IF(Processing!K178="***","",Processing!K164) -> 287,400 | D28: =IF(Processing!L178="***","",Processing!L164) -> 50.8 | E28: =IF(Processing!M178="***","",Processing!M164) -> ± 1.5 | F28: =IF(Processing!N178="***","",Processing!N164) -> 215,900 | G28: =IF(Processing!O178="***","",Processing!O164) -> 38.2 | H28: =IF(Processing!P178="***","",Processing!P164) -> ± 1.5 | I28: =IF(Processing!Q178="***","",Processing!Q164) -> 20,800 | J28: =IF(Processing!R178="***","",Processing!R164) -> 3.7 | K28: =IF(Processing!S178="***","",Processing!S164) -> ± 0.6 | L28: =IF(Processing!T178="***","",Processing!T164) -> 50,700 | M28: =IF(Processing!U178="***","",Processing!U164) -> 9.0 | N28: =IF(Processing!V178="***","",Processing!V164) -> ± 0.9 | O28: =IF(Processing!W178="***","",Processing!W164) ->  | P28: =IF(Processing!X178="***","",Processing!X164) ->  | Q28: =IF(Processing!Y178="***","",Processing!Y164) -> 
B29: All | C29: =IF(Processing!K179="***","",Processing!K165) -> 565,500
B30: =IF(C7="Scotland","","Scotland") -> 
B31: =IF(B30="","","In Education") ->  | C31: =IF(B30="","",IF(Processing!K181="***","",Processing!K167)) ->  | D31: =IF(B30="","",IF(Processing!L181="***","",Processing!L167)) ->  | E31: =IF(B30="","",IF(Processing!M181="***","",Processing!M167)) ->  | F31: =IF(B30="","",IF(Processing!N181="***","",Processing!N167)) ->  | G31: =IF(B30="","",IF(Processing!O181="***","",Processing!O167)) ->  | H31: =IF(B30="","",IF(Processing!P181="***","",Processing!P167)) ->  | I31: =IF(B30="","",IF(Processing!Q181="***","",Processing!Q167)) ->  | J31: =IF(B30="","",IF(Processing!R181="***","",Processing!R167)) ->  | K31: =IF(B30="","",IF(Processing!S181="***","",Processing!S167)) ->  | L31: =IF(B30="","",IF(Processing!T181="***","",Processing!T167)) ->  | M31: =IF(B30="","",IF(Processing!U181="***","",Processing!U167)) ->  | N31: =IF(B30="","",IF(Processing!V181="***","",Processing!V167)) ->  | O31: =IF(B30="","",IF(Processing!W181="***","",Processing!W167)) ->  | P31: =IF(B30="","",IF(Processing!X181="***","",Processing!X167)) ->  | Q31: =IF(B30="","",IF(Processing!Y181="***","",Processing!Y167)) -> 
B32: =IF(B30="","","Full-Time Education") ->  | C32: =IF(B30="","",IF(Processing!K182="***","",Processing!K168)) ->  | D32: =IF(B30="","",IF(Processing!L182="***","",Processing!L168)) ->  | E32: =IF(B30="","",IF(Processing!M182="***","",Processing!M168)) ->  | F32: =IF(B30="","",IF(Processing!N182="***","",Processing!N168)) ->  | G32: =IF(B30="","",IF(Processing!O182="***","",Processing!O168)) ->  | H32: =IF(B30="","",IF(Processing!P182="***","",Processing!P168)) ->  | I32: =IF(B30="","",IF(Processing!Q182="***","",Processing!Q168)) ->  | J32: =IF(B30="","",IF(Processing!R182="***","",Processing!R168)) ->  | K32: =IF(B30="","",IF(Processing!S182="***","",Processing!S168)) ->  | L32: =IF(B30="","",IF(Processing!T182="***","",Processing!T168)) ->  | M32: =IF(B30="","",IF(Processing!U182="***","",Processing!U168)) ->  | N32: =IF(B30="","",IF(Processing!V182="***","",Processing!V168)) ->  | O32: =IF(B30="","",IF(Processing!W182="***","",Processing!W168)) ->  | P32: =IF(B30="","",IF(Processing!X182="***","",Processing!X168)) ->  | Q32: =IF(B30="","",IF(Processing!Y182="***","",Processing!Y168)) -> 
B33: =IF(B30="","","Part-Time Education") ->  | C33: =IF(B30="","",IF(Processing!K183="***","",Processing!K169)) ->  | D33: =IF(B30="","",IF(Processing!L183="***","",Processing!L169)) ->  | E33: =IF(B30="","",IF(Processing!M183="***","",Processing!M169)) ->  | F33: =IF(B30="","",IF(Processing!N183="***","",Processing!N169)) ->  | G33: =IF(B30="","",IF(Processing!O183="***","",Processing!O169)) ->  | H33: =IF(B30="","",IF(Processing!P183="***","",Processing!P169)) ->  | I33: =IF(B30="","",IF(Processing!Q183="***","",Processing!Q169)) ->  | J33: =IF(B30="","",IF(Processing!R183="***","",Processing!R169)) ->  | K33: =IF(B30="","",IF(Processing!S183="***","",Processing!S169)) ->  | L33: =IF(B30="","",IF(Processing!T183="***","",Processing!T169)) ->  | M33: =IF(B30="","",IF(Processing!U183="***","",Processing!U169)) ->  | N33: =IF(B30="","",IF(Processing!V183="***","",Processing!V169)) ->  | O33: =IF(B30="","",IF(Processing!W183="***","",Processing!W169)) ->  | P33: =IF(B30="","",IF(Processing!X183="***","",Processing!X169)) ->  | Q33: =IF(B30="","",IF(Processing!Y183="***","",Processing!Y169)) -> 
B34: =IF(B30="","","Not in Education") ->  | C34: =IF(B30="","",IF(Processing!K184="***","",Processing!K170)) ->  | D34: =IF(B30="","",IF(Processing!L184="***","",Processing!L170)) ->  | E34: =IF(B30="","",IF(Processing!M184="***","",Processing!M170)) ->  | F34: =IF(B30="","",IF(Processing!N184="***","",Processing!N170)) ->  | G34: =IF(B30="","",IF(Processing!O184="***","",Processing!O170)) ->  | H34: =IF(B30="","",IF(Processing!P184="***","",Processing!P170)) ->  | I34: =IF(B30="","",IF(Processing!Q184="***","",Processing!Q170)) ->  | J34: =IF(B30="","",IF(Processing!R184="***","",Processing!R170)) ->  | K34: =IF(B30="","",IF(Processing!S184="***","",Processing!S170)) ->  | L34: =IF(B30="","",IF(Processing!T184="***","",Processing!T170)) ->  | M34: =IF(B30="","",IF(Processing!U184="***","",Processing!U170)) ->  | N34: =IF(B30="","",IF(Processing!V184="***","",Processing!V170)) ->  | O34: =IF(B30="","",IF(Processing!W184="***","",Processing!W170)) ->  | P34: =IF(B30="","",IF(Processing!X184="***","",Processing!X170)) ->  | Q34: =IF(B30="","",IF(Processing!Y184="***","",Processing!Y170)) -> 
B35: =IF(B30="","","All") ->  | C35: =IF(B30="","",IF(Processing!K185="***","",Processing!K171)) -> 
B36: Source: Annual Population Survey, 3-Year Pooled Data, January 2018 to December 2020, ONS
B37: Note: All proportions based on total 16 to 24 cohort
B38: Education status breakdowns do not include "courses not stated", "enrolled but not attending" or "enrolled and not stated whether attending" responses. However, the total estimates include all 16 to 24 year olds regardless of education status.
B40: Shaded estimates are considered reasonably precise but should be used with caution.
B41: # Estimates have been suppressed.
B42: Data cover some of the period when government policies related to COVID-19 were implemented (March 2020 onward).
B45: =Processing!E238 -> B1. Levels and proportions of economic activity for young people including those in full-time education, Scotland, Jan 2018 to Dec 2020
C47: Employed | F47: Unemployed | I47: Inactive
C48: Level | D48: Rate (per cent) | F48: Level | G48: Rate (per cent) | I48: Level | J48: Rate (per cent)
B49: =C7 -> Scotland | C49: =IF(Processing!G211="***","***",Processing!G196) -> 315,900 | D49: =IF(Processing!G211="***","***",Processing!G201) -> 55.9 | E49: =IF(Processing!G211="***","***",Processing!G206) -> ± 1.5 | F49: =IF(Processing!I211="***","***",Processing!I196) -> 30,900 | G49: =IF(Processing!I211="***","***",Processing!I201) -> 8.9 | H49: =IF(Processing!I211="***","***",Processing!I206) -> ± 1.1 | I49: =IF(Processing!H211="***","***",Processing!H196) -> 218,800 | J49: =IF(Processing!H211="***","***",Processing!H201) -> 38.7 | K49: =IF(Processing!H211="***","***",Processing!H206) -> ± 1.5
B50: =IF(C7="Scotland","","Scotland") ->  | C50: =IF(B50="","",IF(Processing!G212="***","***",Processing!G197)) ->  | D50: =IF(B50="","",IF(Processing!G212="***","***",Processing!G202)) ->  | E50: =IF(B50="","",IF(Processing!G212="***","***",Processing!G207)) ->  | F50: =IF(B50="","",IF(Processing!I212="***","***",Processing!I197)) ->  | G50: =IF(B50="","",IF(Processing!I212="***","***",Processing!I202)) ->  | H50: =IF(B50="","",IF(Processing!I212="***","***",Processing!I207)) ->  | I50: =IF(B50="","",IF(Processing!H212="***","***",Processing!H197)) ->  | J50: =IF(B50="","",IF(Processing!H212="***","***",Processing!H202)) ->  | K50: =IF(B50="","",IF(Processing!H212="***","***",Processing!H207)) -> 
B51: Source: Annual Population Survey, 3-Year Pooled Data, January 2018 to December 2020, ONS
B52: Shaded estimates are considered reasonably precise but should be used with caution.
B53: # Estimates have been suppressed.
B54: *** Estimates are considered unreliable for practical purposes
B55: Data cover some of the period when government policies related to COVID-19 were implemented (March 2020 onward).
B57: =Processing!K239 -> B2. Levels and proportions of economic activity for young people excluding those in full-time education, Scotland, Jan 2018 to Dec 2020
C59: Employed | F59: Unemployed | I59: Inactive
C60: Level | D60: Rate (per cent) | F60: Level | G60: Rate (per cent) | I60: Level | J60: Rate (per cent)
B61: =C7 -> Scotland | C61: =IF(Processing!M211="***","***",Processing!M196) -> 232,400 | D61: =IF(Processing!M211="***","***",Processing!M201) -> 75.2 | E61: =IF(Processing!M211="***","***",Processing!M206) -> ± 1.8 | F61: =IF(Processing!O211="***","***",Processing!O196) -> 21,500 | G61: =IF(Processing!O211="***","***",Processing!O201) -> 8.5 | H61: =IF(Processing!O211="***","***",Processing!O206) -> ± 1.3 | I61: =IF(Processing!N211="***","***",Processing!N196) -> 55,300 | J61: =IF(Processing!N211="***","***",Processing!N201) -> 17.9 | K61: =IF(Processing!N211="***","***",Processing!N206) -> ± 1.6
B62: =IF(C7="Scotland","","Scotland") ->  | C62: =IF(B62="","",IF(Processing!M212="***","***",Processing!M197)) ->  | D62: =IF(B62="","",IF(Processing!M212="***","***",Processing!M202)) ->  | E62: =IF(B62="","",IF(Processing!M212="***","***",Processing!M207)) ->  | F62: =IF(B62="","",IF(Processing!O212="***","***",Processing!O197)) ->  | G62: =IF(B62="","",IF(Processing!O212="***","***",Processing!O202)) ->  | H62: =IF(B62="","",IF(Processing!O212="***","***",Processing!O207)) ->  | I62: =IF(B62="","",IF(Processing!N212="***","***",Processing!N197)) ->  | J62: =IF(B62="","",IF(Processing!N212="***","***",Processing!N202)) ->  | K62: =IF(B62="","",IF(Processing!N212="***","***",Processing!N207)) -> 
B63: Source: Annual Population Survey, 3-Year Pooled Data, January 2018 to December 2020, ONS
B64: Shaded estimates are considered reasonably precise but should be used with caution.
B65: # Estimates have been suppressed.
B66: *** Estimates are considered unreliable for practical purposes
B67: Data cover some of the period when government policies related to COVID-19 were implemented (March 2020 onward).
B70: =Processing!F105 -> C. Young person's employment rate by qualification, Scotland, Jan 2018 to Dec 2020
C71: Degree, Professional Qualification, HNC/HND or equivalent | F71: Higher, A-Level or equivalent and National 5 grade or equivalent | I71: National 4 grade or equivalent and below¹
C72: Level | D72: Rate (per cent) | F72: Level | G72: Rate (per cent) | I72: Level | J72: Rate (per cent)
B73: =C7 -> Scotland | C73: =IF(Processing!K99="***","***",Processing!H99) -> 109500 | D73: =IF(Processing!K99="***","***",IF(Processing!I99="#","#",100*Processing!I99)) -> 75.6 | E73: =IF(Processing!K99="***","***",IF(ISNA(Processing!J99)=TRUE,"#",100*Processing!J99)) -> 2.7 | F73: =IF(Processing!K100="***","***",Processing!H100) -> 170700 | G73: =IF(Processing!K100="***","***",IF(Processing!I100="#","#",100*Processing!I100)) -> 51.6 | H73: =IF(Processing!K100="***","***",IF(ISNA(Processing!J100)=TRUE,"#",100*Processing!J100)) -> 1.9 | I73: =IF(Processing!K101="***","***",Processing!H101) -> 18700 | J73: =IF(Processing!K101="***","***",IF(Processing!I101="#","#",100*Processing!I101)) -> 32.7 | K73: =IF(Processing!K101="***","***",IF(ISNA(Processing!J101)=TRUE,"#",100*Processing!J101)) -> 4.2
B74: =IF(C7="Scotland","","Scotland") ->  | C74: =IF(B74="","",IF(Processing!T99="***","***",Processing!Q99)) ->  | D74: =IF(B74="","",IF(Processing!T99="***","***",IF(Processing!R99="#","#",100*Processing!R99))) ->  | E74: =IF(B74="","",IF(Processing!T99="***","***",IF(ISNA(Processing!S99)=TRUE,"#",100*Processing!S99))) ->  | F74: =IF(B74="","",IF(Processing!T100="***","***",Processing!Q100)) ->  | G74: =IF(B74="","",IF(Processing!T100="***","***",IF(Processing!R100="#","#",100*Processing!R100))) ->  | H74: =IF(B74="","",IF(Processing!T100="***","***",IF(ISNA(Processing!S100)=TRUE,"#",100*Processing!S100))) ->  | I74: =IF(B74="","",IF(Processing!T101="***","***",Processing!Q101)) ->  | J74: =IF(B74="","",IF(Processing!T101="***","***",IF(Processing!R101="#","#",100*Processing!R101))) ->  | K74: =IF(B74="","",IF(Processing!T101="***","***",IF(ISNA(Processing!S101)=TRUE,"#",100*Processing!S101))) -> 
B75: Source: Annual Population Survey, 3-Year Pooled Data, January 2018 to December 2020, ONS
B76: Shaded estimates are considered reasonably precise but should be used with caution.
B77: # Estimates have been suppressed.
B78: *** Estimates are considered unreliable for practical purposes
B79: Data cover some of the period when government policies related to COVID-19 were implemented (March 2020 onward).
B82: =Processing!F81 -> D. Level and proportions of young person's employment within broad Sectors, Scotland, Jan 2018 to Dec 2020
C83: =VLOOKUP(1,Processing!$E$67:$M$70,9,FALSE) -> Distribution, Hotels, and Restaurants | F83: =VLOOKUP(2,Processing!$E$67:$M$70,9,FALSE) -> Production, Agriculture, and Construction | I83: =VLOOKUP(3,Processing!$E$67:$M$70,9,FALSE) -> Other Services | L83: =VLOOKUP(4,Processing!$E$67:$M$70,9,FALSE) -> Public Admin, Education, and Health
C84: Level | D84: Rate (per cent) | F84: Level | G84: Rate (per cent) | I84: Level | J84: Rate (per cent) | L84: Level | M84: Rate (per cent)
B85: =C7 -> Scotland | C85: =IF(Processing!J74="***","***",Processing!G74) -> 133900 | D85: =IF(Processing!J74="***","***",100*Processing!H74) -> 27.8 | E85: =IF(Processing!J74="***","***",IF(ISNA(Processing!I74)=TRUE,"#",100*Processing!I74)) -> 1.3 | F85: =IF(Processing!J75="***","***",Processing!G75) -> 53900 | G85: =IF(Processing!J75="***","***",100*Processing!H75) -> 10 | H85: =IF(Processing!J75="***","***",IF(ISNA(Processing!I75)=TRUE,"#",100*Processing!I75)) -> 0.8 | I85: =IF(Processing!J76="***","***",Processing!G76) -> 71300 | J85: =IF(Processing!J76="***","***",100*Processing!H76) -> 9.5 | K85: =IF(Processing!J76="***","***",IF(ISNA(Processing!I76)=TRUE,"#",100*Processing!I76)) -> 0.7 | L85: =IF(Processing!J77="***","***",Processing!G77) -> 54900 | M85: =IF(Processing!J77="***","***",100*Processing!H77) -> 6.4 | N85: =IF(Processing!J77="***","***",100*IF(ISNA(Processing!I77)=TRUE,"#",Processing!I77)) -> 0.5
B86: =IF(C7="Scotland","","Scotland") ->  | C86: =IF(B86="","",IF(Processing!R74="***","***",Processing!O74)) ->  | D86: =IF(B86="","",IF(Processing!R74="***","***",100*Processing!P74)) ->  | E86: =IF(B86="","",IF(Processing!R74="***","***",IF(ISNA(Processing!Q74)=TRUE,"#",100*Processing!Q74))) ->  | F86: =IF(B86="","",IF(Processing!R75="***","***",Processing!O75)) ->  | G86: =IF(B86="","",IF(Processing!R75="***","***",100*Processing!P75)) ->  | H86: =IF(B86="","",IF(Processing!R75="***","***",IF(ISNA(Processing!Q75)=TRUE,"#",100*Processing!Q75))) ->  | I86: =IF(B86="","",IF(Processing!R76="***","***",Processing!O76)) ->  | J86: =IF(B86="","",IF(Processing!R76="***","***",100*Processing!P76)) ->  | K86: =IF(B86="","",IF(Processing!R76="***","***",IF(ISNA(Processing!Q76)=TRUE,"#",100*Processing!Q76))) ->  | L86: =IF(B86="","",IF(Processing!R77="***","***",Processing!O77)) ->  | M86: =IF(B86="","",IF(Processing!R77="***","***",100*Processing!P77)) ->  | N86: =IF(B86="","",IF(Processing!R77="***","***",IF(ISNA(Processing!Q77)=TRUE,"#",100*Processing!Q77))) -> 
B87: Source: Annual Population Survey, 3-Year Pooled Data, January 2018 to December 2020, ONS
B88: Shaded estimates are considered reasonably precise but should be used with caution.
B89: # Estimates have been suppressed.
B90: *** Estimates are considered unreliable for practical purposes
B91: Data cover some of the period when government policies related to COVID-19 were implemented (March 2020 onward).
B94: =Processing!F323 -> E. Employment Rate for Scotland compared with Local Authority areas, Jul 2020 - Jun 2021 | G94: =Processing!F324 -> F. Employment Rate, Scotland, Jul 2004 - Jun 2005 to Jul 2020 - Jun 2021
C96: Employment | I96: =C7 -> Scotland | L96: =IF(C7="Scotland","","Scotland") -> 
C97: Level | D97: Rate (per cent) | I97: Level | J97: Rate (per cent) | L97: =IF(L96="","","Level") ->  | M97: =IF(L96="","","Rate (per cent)") -> 
B98: =Processing!Y265 -> Highland | C98: =Processing!Z265 -> 14100 | D98: =Processing!AA265 -> 66.5 | E98: =Processing!AB265 -> 15.4 | G98: 2004/05 | I98: =IF(ISNA(Processing!H302)=TRUE,"***",Processing!H302) -> 373400 | J98: =IF(ISNA(Processing!I302)=TRUE,"***",Processing!I302) -> 63.7 | K98: =IF(ISNA(Processing!I302)=TRUE,"***",Processing!J302) -> 1.3 | L98: =IF($L$96="","",IF(ISNA(Processing!R302)=TRUE,"***",Processing!R302)) ->  | M98: =IF($L$96="","",IF(ISNA(Processing!S302)=TRUE,"***",Processing!S302)) ->  | N98: =IF($L$96="","",IF(ISNA(Processing!S302)=TRUE,"***",Processing!T302)) -> 
B99: =Processing!Y266 -> South Lanarkshire | C99: =Processing!Z266 -> 20600 | D99: =Processing!AA266 -> 66.5 | E99: =Processing!AB266 -> 13.2 | G99: 2005/06 | I99: =IF(ISNA(Processing!H303)=TRUE,"***",Processing!H303) -> 371500 | J99: =IF(ISNA(Processing!I303)=TRUE,"***",Processing!I303) -> 62.9 | K99: =IF(ISNA(Processing!I303)=TRUE,"***",Processing!J303) -> 1.4 | L99: =IF($L$96="","",IF(ISNA(Processing!R303)=TRUE,"***",Processing!R303)) ->  | M99: =IF($L$96="","",IF(ISNA(Processing!S303)=TRUE,"***",Processing!S303)) ->  | N99: =IF($L$96="","",IF(ISNA(Processing!S303)=TRUE,"***",Processing!T303)) -> 
B100: =Processing!Y267 -> Moray | C100: =Processing!Z267 -> 6400 | D100: =Processing!AA267 -> 64.1 | E100: =Processing!AB267 -> 14.2 | G100: 2006/07 | I100: =IF(ISNA(Processing!H304)=TRUE,"***",Processing!H304) -> 377600 | J100: =IF(ISNA(Processing!I304)=TRUE,"***",Processing!I304) -> 63.4 | K100: =IF(ISNA(Processing!I304)=TRUE,"***",Processing!J304) -> 1.4 | L100: =IF($L$96="","",IF(ISNA(Processing!R304)=TRUE,"***",Processing!R304)) ->  | M100: =IF($L$96="","",IF(ISNA(Processing!S304)=TRUE,"***",Processing!S304)) ->  | N100: =IF($L$96="","",IF(ISNA(Processing!S304)=TRUE,"***",Processing!T304)) -> 
B101: =Processing!Y268 -> North Lanarkshire | C101: =Processing!Z268 -> 23700 | D101: =Processing!AA268 -> 63.3 | E101: =Processing!AB268 -> 13.1 | G101: 2007/08 | I101: =IF(ISNA(Processing!H305)=TRUE,"***",Processing!H305) -> 375300 | J101: =IF(ISNA(Processing!I305)=TRUE,"***",Processing!I305) -> 62.3 | K101: =IF(ISNA(Processing!I305)=TRUE,"***",Processing!J305) -> 1.4 | L101: =IF($L$96="","",IF(ISNA(Processing!R305)=TRUE,"***",Processing!R305)) ->  | M101: =IF($L$96="","",IF(ISNA(Processing!S305)=TRUE,"***",Processing!S305)) ->  | N101: =IF($L$96="","",IF(ISNA(Processing!S305)=TRUE,"***",Processing!T305)) -> 
B102: =Processing!Y269 -> East Dunbartonshire | C102: =Processing!Z269 -> 6600 | D102: =Processing!AA269 -> 61.9 | E102: =Processing!AB269 -> 11.8 | G102: 2008/09 | I102: =IF(ISNA(Processing!H306)=TRUE,"***",Processing!H306) -> 364500 | J102: =IF(ISNA(Processing!I306)=TRUE,"***",Processing!I306) -> 59.8 | K102: =IF(ISNA(Processing!I306)=TRUE,"***",Processing!J306) -> 1.5 | L102: =IF($L$96="","",IF(ISNA(Processing!R306)=TRUE,"***",Processing!R306)) ->  | M102: =IF($L$96="","",IF(ISNA(Processing!S306)=TRUE,"***",Processing!S306)) ->  | N102: =IF($L$96="","",IF(ISNA(Processing!S306)=TRUE,"***",Processing!T306)) -> 
B103: =Processing!Y270 -> Renfrewshire | C103: =Processing!Z270 -> 10100 | D103: =Processing!AA270 -> 59.9 | E103: =Processing!AB270 -> 13.7 | G103: 2009/10 | I103: =IF(ISNA(Processing!H307)=TRUE,"***",Processing!H307) -> 340400 | J103: =IF(ISNA(Processing!I307)=TRUE,"***",Processing!I307) -> 55.3 | K103: =IF(ISNA(Processing!I307)=TRUE,"***",Processing!J307) -> 1.5 | L103: =IF($L$96="","",IF(ISNA(Processing!R307)=TRUE,"***",Processing!R307)) ->  | M103: =IF($L$96="","",IF(ISNA(Processing!S307)=TRUE,"***",Processing!S307)) ->  | N103: =IF($L$96="","",IF(ISNA(Processing!S307)=TRUE,"***",Processing!T307)) -> 
B104: =Processing!Y271 -> Falkirk | C104: =Processing!Z271 -> 9700 | D104: =Processing!AA271 -> 57.3 | E104: =Processing!AB271 -> 14.8 | G104: 2010/11 | I104: =IF(ISNA(Processing!H308)=TRUE,"***",Processing!H308) -> 344700 | J104: =IF(ISNA(Processing!I308)=TRUE,"***",Processing!I308) -> 55.4 | K104: =IF(ISNA(Processing!I308)=TRUE,"***",Processing!J308) -> 1.6 | L104: =IF($L$96="","",IF(ISNA(Processing!R308)=TRUE,"***",Processing!R308)) ->  | M104: =IF($L$96="","",IF(ISNA(Processing!S308)=TRUE,"***",Processing!S308)) ->  | N104: =IF($L$96="","",IF(ISNA(Processing!S308)=TRUE,"***",Processing!T308)) -> 
B105: =Processing!Y272 -> Aberdeenshire | C105: =Processing!Z272 -> 14200 | D105: =Processing!AA272 -> 56.6 | E105: =Processing!AB272 -> 13.6 | G105: 2011/12 | I105: =IF(ISNA(Processing!H309)=TRUE,"***",Processing!H309) -> 333300 | J105: =IF(ISNA(Processing!I309)=TRUE,"***",Processing!I309) -> 53.4 | K105: =IF(ISNA(Processing!I309)=TRUE,"***",Processing!J309) -> 1.6 | L105: =IF($L$96="","",IF(ISNA(Processing!R309)=TRUE,"***",Processing!R309)) ->  | M105: =IF($L$96="","",IF(ISNA(Processing!S309)=TRUE,"***",Processing!S309)) ->  | N105: =IF($L$96="","",IF(ISNA(Processing!S309)=TRUE,"***",Processing!T309)) -> 
B106: =Processing!Y273 -> Clackmannanshire | C106: =Processing!Z273 -> 2900 | D106: =Processing!AA273 -> 54.6 | E106: =Processing!AB273 -> 21.3 | G106: 2012/13 | I106: =IF(ISNA(Processing!H310)=TRUE,"***",Processing!H310) -> 330100 | J106: =IF(ISNA(Processing!I310)=TRUE,"***",Processing!I310) -> 53.2 | K106: =IF(ISNA(Processing!I310)=TRUE,"***",Processing!J310) -> 1.6 | L106: =IF($L$96="","",IF(ISNA(Processing!R310)=TRUE,"***",Processing!R310)) ->  | M106: =IF($L$96="","",IF(ISNA(Processing!S310)=TRUE,"***",Processing!S310)) ->  | N106: =IF($L$96="","",IF(ISNA(Processing!S310)=TRUE,"***",Processing!T310)) -> 
B107: =Processing!Y274 -> East Ayrshire | C107: =Processing!Z274 -> 7100 | D107: =Processing!AA274 -> 54.3 | E107: =Processing!AB274 -> 13.5 | G107: 2013/14 | I107: =IF(ISNA(Processing!H311)=TRUE,"***",Processing!H311) -> 321900 | J107: =IF(ISNA(Processing!I311)=TRUE,"***",Processing!I311) -> 52.3 | K107: =IF(ISNA(Processing!I311)=TRUE,"***",Processing!J311) -> 1.6 | L107: =IF($L$96="","",IF(ISNA(Processing!R311)=TRUE,"***",Processing!R311)) ->  | M107: =IF($L$96="","",IF(ISNA(Processing!S311)=TRUE,"***",Processing!S311)) ->  | N107: =IF($L$96="","",IF(ISNA(Processing!S311)=TRUE,"***",Processing!T311)) -> 
B108: =Processing!Y275 -> Midlothian | C108: =Processing!Z275 -> 4400 | D108: =Processing!AA275 -> 52.5 | E108: =Processing!AB275 -> 16.5 | G108: 2014/15 | I108: =IF(ISNA(Processing!H312)=TRUE,"***",Processing!H312) -> 336900 | J108: =IF(ISNA(Processing!I312)=TRUE,"***",Processing!I312) -> 55.1 | K108: =IF(ISNA(Processing!I312)=TRUE,"***",Processing!J312) -> 1.7 | L108: =IF($L$96="","",IF(ISNA(Processing!R312)=TRUE,"***",Processing!R312)) ->  | M108: =IF($L$96="","",IF(ISNA(Processing!S312)=TRUE,"***",Processing!S312)) ->  | N108: =IF($L$96="","",IF(ISNA(Processing!S312)=TRUE,"***",Processing!T312)) -> 
B109: =Processing!Y276 -> Na h-Eileanan Siar | C109: =Processing!Z276 -> 1300 | D109: =Processing!AA276 -> 52.3 | E109: =Processing!AB276 -> 22.5 | G109: 2015/16 | I109: =IF(ISNA(Processing!H313)=TRUE,"***",Processing!H313) -> 339800 | J109: =IF(ISNA(Processing!I313)=TRUE,"***",Processing!I313) -> 56.1 | K109: =IF(ISNA(Processing!I313)=TRUE,"***",Processing!J313) -> 1.8 | L109: =IF($L$96="","",IF(ISNA(Processing!R313)=TRUE,"***",Processing!R313)) ->  | M109: =IF($L$96="","",IF(ISNA(Processing!S313)=TRUE,"***",Processing!S313)) ->  | N109: =IF($L$96="","",IF(ISNA(Processing!S313)=TRUE,"***",Processing!T313)) -> 
B110: =Processing!Y277 -> Scottish Borders | C110: =Processing!Z277 -> 6500 | D110: =Processing!AA277 -> 52.3 | E110: =Processing!AB277 -> 14.3 | G110: 2016/17 | I110: =IF(ISNA(Processing!H314)=TRUE,"***",Processing!H314) -> 343000 | J110: =IF(ISNA(Processing!I314)=TRUE,"***",Processing!I314) -> 57.7 | K110: =IF(ISNA(Processing!I314)=TRUE,"***",Processing!J314) -> 1.9 | L110: =IF($L$96="","",IF(ISNA(Processing!R314)=TRUE,"***",Processing!R314)) ->  | M110: =IF($L$96="","",IF(ISNA(Processing!S314)=TRUE,"***",Processing!S314)) ->  | N110: =IF($L$96="","",IF(ISNA(Processing!S314)=TRUE,"***",Processing!T314)) -> 
B111: =Processing!Y278 -> Argyll and Bute | C111: =Processing!Z278 -> 2900 | D111: =Processing!AA278 -> 51.5 | E111: =Processing!AB278 -> 16.8 | G111: 2017/18 | I111: =IF(ISNA(Processing!H315)=TRUE,"***",Processing!H315) -> 342600 | J111: =IF(ISNA(Processing!I315)=TRUE,"***",Processing!I315) -> 58.8 | K111: =IF(ISNA(Processing!I315)=TRUE,"***",Processing!J315) -> 1.8 | L111: =IF($L$96="","",IF(ISNA(Processing!R315)=TRUE,"***",Processing!R315)) ->  | M111: =IF($L$96="","",IF(ISNA(Processing!S315)=TRUE,"***",Processing!S315)) ->  | N111: =IF($L$96="","",IF(ISNA(Processing!S315)=TRUE,"***",Processing!T315)) -> 
B112: =Processing!Y279 -> Dumfries and Galloway | C112: =Processing!Z279 -> 5200 | D112: =Processing!AA279 -> 49.5 | E112: =Processing!AB279 -> 15.9 | G112: 2018/19 | I112: =IF(ISNA(Processing!H316)=TRUE,"***",Processing!H316) -> 337700 | J112: =IF(ISNA(Processing!I316)=TRUE,"***",Processing!I316) -> 59.1 | K112: =IF(ISNA(Processing!I316)=TRUE,"***",Processing!J316) -> 1.9 | L112: =IF($L$96="","",IF(ISNA(Processing!R316)=TRUE,"***",Processing!R316)) ->  | M112: =IF($L$96="","",IF(ISNA(Processing!S316)=TRUE,"***",Processing!S316)) ->  | N112: =IF($L$96="","",IF(ISNA(Processing!S316)=TRUE,"***",Processing!T316)) -> 
B113: =Processing!Y280 -> Glasgow City | C113: =Processing!Z280 -> 37800 | D113: =Processing!AA280 -> 49.5 | E113: =Processing!AB280 -> 11.1 | G113: 2019/20 | I113: =IF(ISNA(Processing!H317)=TRUE,"***",Processing!H317) -> 298200 | J113: =IF(ISNA(Processing!I317)=TRUE,"***",Processing!I317) -> 53.1 | K113: =IF(ISNA(Processing!I317)=TRUE,"***",Processing!J317) -> 2.1 | L113: =IF($L$96="","",IF(ISNA(Processing!R317)=TRUE,"***",Processing!R317)) ->  | M113: =IF($L$96="","",IF(ISNA(Processing!S317)=TRUE,"***",Processing!S317)) ->  | N113: =IF($L$96="","",IF(ISNA(Processing!S317)=TRUE,"***",Processing!T317)) -> 
B114: =Processing!Y281 -> City of Edinburgh | C114: =Processing!Z281 -> 29500 | D114: =Processing!AA281 -> 49.1 | E114: =Processing!AB281 -> 11.5 | G114: 2020/21 | I114: =IF(ISNA(Processing!H318)=TRUE,"***",Processing!H318) -> 285700 | J114: =IF(ISNA(Processing!I318)=TRUE,"***",Processing!I318) -> 51.8 | K114: =IF(ISNA(Processing!I318)=TRUE,"***",Processing!J318) -> 2.6 | L114: =IF($L$96="","",IF(ISNA(Processing!R318)=TRUE,"***",Processing!R318)) ->  | M114: =IF($L$96="","",IF(ISNA(Processing!S318)=TRUE,"***",Processing!S318)) ->  | N114: =IF($L$96="","",IF(ISNA(Processing!S318)=TRUE,"***",Processing!T318)) -> 
B115: =Processing!Y282 -> Angus | C115: =Processing!Z282 -> 6300 | D115: =Processing!AA282 -> 48.7 | E115: =Processing!AB282 -> 12 | G115: Source: Annual Population Survey, Jul - Jun data, ONS
B116: =Processing!Y283 -> Fife | C116: =Processing!Z283 -> 16300 | D116: =Processing!AA283 -> 48.6 | E116: =Processing!AB283 -> 13.6 | G116: Shaded estimates are considered reasonably precise but should be used with caution.
B117: =Processing!Y284 -> South Ayrshire | C117: =Processing!Z284 -> 4900 | D117: =Processing!AA284 -> 48.4 | E117: =Processing!AB284 -> 15.1 | G117: # Estimates have been suppressed.
B118: =Processing!Y285 -> East Lothian | C118: =Processing!Z285 -> 4400 | D118: =Processing!AA285 -> 48.1 | E118: =Processing!AB285 -> 16.1 | G118: *** Estimates are considered unreliable for practical purposes
B119: =Processing!Y286 -> Inverclyde | C119: =Processing!Z286 -> 3600 | D119: =Processing!AA286 -> 47.9 | E119: =Processing!AB286 -> 14.6
B120: =Processing!Y287 -> West Lothian | C120: =Processing!Z287 -> 9500 | D120: =Processing!AA287 -> 47.9 | E120: =Processing!AB287 -> 13.7
B121: =Processing!Y288 -> Dundee City | C121: =Processing!Z288 -> 6800 | D121: =Processing!AA288 -> 47.8 | E121: =Processing!AB288 -> 13.3
B122: =Processing!Y289 -> North Ayrshire | C122: =Processing!Z289 -> 4300 | D122: =Processing!AA289 -> 43.7 | E122: =Processing!AB289 -> 16.4
B123: =Processing!Y290 -> West Dunbartonshire | C123: =Processing!Z290 -> 3400 | D123: =Processing!AA290 -> 42.5 | E123: =Processing!AB290 -> 15.7
B124: =Processing!Y291 -> Stirling | C124: =Processing!Z291 -> 4200 | D124: =Processing!AA291 -> 42 | E124: =Processing!AB291 -> 14.1
B125: =Processing!Y292 -> Perth and Kinross | C125: =Processing!Z292 -> 7800 | D125: =Processing!AA292 -> 41 | E125: =Processing!AB292 -> 11.9
B126: =Processing!Y293 -> East Renfrewshire | C126: =Processing!Z293 -> 3700 | D126: =Processing!AA293 -> 37.7 | E126: =Processing!AB293 -> 13.2
B127: =Processing!Y294 -> Aberdeen City | C127: =Processing!Z294 -> 6400 | D127: =Processing!AA294 -> 30 | E127: =Processing!AB294 -> 13.7
B128: =Processing!Y295 -> Orkney Islands | C128: =Processing!Z295 -> *** | D128: =Processing!AA295 -> *** | E128: =Processing!AB295 -> ***
B129: =Processing!Y296 -> Shetland Islands | C129: =Processing!Z296 -> *** | D129: =Processing!AA296 -> *** | E129: =Processing!AB296 -> ***
B131: =Processing!Y297 -> Scotland | C131: =Processing!Z297 -> 285700 | D131: =Processing!AA297 -> 51.8 | E131: =Processing!AB297 -> 2.6
B132: Source: Annual Population Survey, Jul 2020 - Jun 2021, ONS
B133: Shaded estimates are considered reasonably precise but should be used with caution.
B135: # Estimates have been suppressed.
B136: *** Estimates are considered unreliable for practical purposes
B139: =Processing!F16 -> G1. Claimant Count levels, Scotland, Oct 2019 to Oct 2021
C140: =Processing!H7 -> Oct 2019 | E140: =Processing!J7 -> Oct 2020 | F140: =Processing!K7 -> Nov 2020 | G140: =Processing!L7 -> Dec 2020 | H140: =Processing!M7 -> Jan 2021 | I140: =Processing!N7 -> Feb 2021 | J140: =Processing!O7 -> Mar 2021 | K140: =Processing!P7 -> Apr 2021 | L140: =Processing!Q7 -> May 2021 | M140: =Processing!R7 -> Jun 2021 | N140: =Processing!S7 -> Jul 2021 | O140: =Processing!T7 -> Aug 2021 | P140: =Processing!U7 -> Sep 2021 | Q140: =Processing!V7 -> Oct 2021 | R140: ="Change since "&TEXT(Processing!H4,"mmm yyyy") -> Change since Oct 2019
B141: =C7 -> Scotland | C141: =Processing!H5 -> 21095 | E141: =Processing!J5 -> 41090 | F141: =Processing!K5 -> 40065 | G141: =Processing!L5 -> 39220 | H141: =Processing!M5 -> 38965 | I141: =Processing!N5 -> 40050 | J141: =Processing!O5 -> 40665 | K141: =Processing!P5 -> 39760 | L141: =Processing!Q5 -> 36820 | M141: =Processing!R5 -> 34060 | N141: =Processing!S5 -> 33215 | O141: =Processing!T5 -> 31315 | P141: =Processing!U5 -> 27445 | Q141: =Processing!V5 -> 25480 | R141: =Processing!I11 -> 4385
B142: =IF(C7="Scotland","","Scotland") ->  | C142: =IF($B$142="","",Processing!H6) ->  | E142: =IF($B$142="","",Processing!J6) ->  | F142: =IF($B$142="","",Processing!K6) ->  | G142: =IF($B$142="","",Processing!L6) ->  | H142: =IF($B$142="","",Processing!M6) ->  | I142: =IF($B$142="","",Processing!N6) ->  | J142: =IF($B$142="","",Processing!O6) ->  | K142: =IF($B$142="","",Processing!P6) ->  | L142: =IF($B$142="","",Processing!Q6) ->  | M142: =IF($B$142="","",Processing!R6) ->  | N142: =IF($B$142="","",Processing!S6) ->  | O142: =IF($B$142="","",Processing!T6) ->  | P142: =IF($B$142="","",Processing!U6) ->  | Q142: =IF($B$142="","",Processing!V6) ->  | R142: =IF(B142="","",Processing!I12) -> 
B143: Source: Claimant Count (experimental), not seasonally adjusted.
B144: Rates are the proportion of the 16-24 year old population.
B146: =Processing!F17 -> G2. Claimant Count rates (per cent), Scotland, Oct 2019 to Oct 2021
C147: =Processing!H7 -> Oct 2019 | E147: =Processing!J7 -> Oct 2020 | F147: =Processing!K7 -> Nov 2020 | G147: =Processing!L7 -> Dec 2020 | H147: =Processing!M7 -> Jan 2021 | I147: =Processing!N7 -> Feb 2021 | J147: =Processing!O7 -> Mar 2021 | K147: =Processing!P7 -> Apr 2021 | L147: =Processing!Q7 -> May 2021 | M147: =Processing!R7 -> Jun 2021 | N147: =Processing!S7 -> Jul 2021 | O147: =Processing!T7 -> Aug 2021 | P147: =Processing!U7 -> Sep 2021 | Q147: =Processing!V7 -> Oct 2021 | R147: ="Change (p.p.) since "&TEXT(Processing!H4,"mmm yyyy") -> Change (p.p.) since Oct 2019
B148: =C7 -> Scotland | C148: =Processing!H8 -> 3.7 | E148: =Processing!J8 -> 7.2 | F148: =Processing!K8 -> 7.1 | G148: =Processing!L8 -> 6.9 | H148: =Processing!M8 -> 6.9 | I148: =Processing!N8 -> 7.1 | J148: =Processing!O8 -> 7.2 | K148: =Processing!P8 -> 7 | L148: =Processing!Q8 -> 6.5 | M148: =Processing!R8 -> 6 | N148: =Processing!S8 -> 5.9 | O148: =Processing!T8 -> 5.5 | P148: =Processing!U8 -> 4.8 | Q148: =Processing!V8 -> 4.5 | R148: =Processing!J11 -> 0.8
B149: =IF(C7="Scotland","","Scotland") ->  | C149: =IF($B$149="","",Processing!H9) ->  | E149: =IF($B$149="","",Processing!J9) ->  | F149: =IF($B$149="","",Processing!K9) ->  | G149: =IF($B$149="","",Processing!L9) ->  | H149: =IF($B$149="","",Processing!M9) ->  | I149: =IF($B$149="","",Processing!N9) ->  | J149: =IF($B$149="","",Processing!O9) ->  | K149: =IF($B$149="","",Processing!P9) ->  | L149: =IF($B$149="","",Processing!Q9) ->  | M149: =IF($B$149="","",Processing!R9) ->  | N149: =IF($B$149="","",Processing!S9) ->  | O149: =IF($B$149="","",Processing!T9) ->  | P149: =IF($B$149="","",Processing!U9) ->  | Q149: =IF($B$149="","",Processing!V9) ->  | R149: =IF(B149="","",Processing!J12) -> 
B150: Source: Claimant Count (experimental), not seasonally adjusted.
B151: Rates are the proportion of the 16-24 year old population.
B154: =Processing!F250 -> H. Proportion (per cent) of 16 to 19 year olds participating in employment, education, or training in Scotland, 2021
C156: Education | D156: Training and Development | F156: Employment | G156: Overall Participation | I156: Change on Year (p.p.)
B157: =C7 -> Scotland | C157: =Processing!G245 -> 74.8 | D157: =Processing!I245 -> 1.8 | F157: =Processing!H245 -> 15.5 | G157: =Processing!M245 -> 92.2 | I157: =Processing!M247 -> 0.0
B158: =IF(C7="Scotland","","Scotland") ->  | C158: =IF(B158="","",Processing!G246) ->  | D158: =IF(B158="","",Processing!I246) ->  | F158: =IF(B158="","",Processing!H246) ->  | G158: =IF(B158="","",Processing!N245) ->  | I158: =IF(B158="","",Processing!N247) -> 
B159: Source: Participation Measure, Skills Development Scotland, August 2021
B162: =Processing!E43 -> I. Median Gross Weekly Earnings for full-time employees, Scotland, 2021
C164: 16 to 24 | F164: 16 and over
C165: Median Pay | D165: Change since 2011 (per cent) | F165: Median Pay | G165: Change since 2011 (per cent)
B166: =C7 -> Scotland | C166: =IF(Processing!K37="***","***",Processing!G37) -> 429.4 | D166: =IF(OR(Processing!K37="***",Processing!K38="***"),"***",IF(Processing!G38=0,Processing!G39,Processing!G38)) -> 37.6 | F166: =IF(Processing!L37="***","***",Processing!H37) -> 622.4 | G166: =IF(OR(Processing!L37="***",Processing!L38="***"),"***",IF(Processing!H38=0,Processing!H39,Processing!H38)) -> 28.3
B167: =IF(C7="Scotland","","Scotland") ->  | C167: =IF(B167="","",IF(Processing!L53="***","***",Processing!J53)) ->  | D167: =IF(B167="","",IF(OR(Processing!L53="***",Processing!L54="***"),"***",Processing!J54)) ->  | F167: =IF(B167="","",IF(Processing!M53="***","***",Processing!K53)) ->  | G167: =IF(B167="","",IF(OR(Processing!M53="***",Processing!M54="***"),"***",Processing!K54)) -> 
B168: Source: Annual Survey of Hours and Earnings 2011 & 2021, ONS, Gross median weekly earnings for Full-Time employees (workplace based analysis).
B170: Lighter shaded estimates are considered reasonably precise but should be used with caution
B171: Darker shaded estimates are considered acceptable but should be used with caution
B172: *** Estimates are considered unreliable for practical purposes

Sheet Background Note
B2: Background Note
B4: There are various information sources relating to young people in the labour market shown in this dashboard for local authorities in Scotland. Further methodological information is shown below with regard to the time period they currently refer to, frequency and timing of next update.
B6: The Scottish Government publish a report on young people in the labour market each quarter using the latest data from the Annual Population Survey. The most recent report can be viewed on the Scottish Government website.
O8: Time Period | P8: Next Update
B9: Annual Population Survey 3-Year Pooled Data Source: Office for National Statistics Area Profile: Tables, Charts 1, and 2 Underlying Data: Tables A, B1, B2, C, and D Sourced from the Annual Population Survey (APS) 3 year pooled data set, this produces a larger sample size over a longer period currently for 2018 to 2020. This create a sample more than double the size of the annual APS data set. For Scotland overall, around 4,200 of those aged 16 to 24 years are included in the 3 year pooled data set compared with around 1,600 from the annual data set (Jan - Dec 2020). For the population of all ages, the sample size is around 56,600 in the 3 year pooled compared with around 26,300 for the annual data set. | O9: January 2018 to December 2020 | P9: Annual October 2022
B21: Annual Population Survey Annual Data Source: Office for National Statistics Area Profile: Charts 3 and 4 Underlying Data: Tables E and F The Annual Population Survey (APS) is the National Statistics source of employment, unemployment and economic inactivity by age for Regions of the UK. The APS has a boosted (larger) sample compared with the Labour Force Survey and therefore provides more robust estimates for local areas and smaller groups of the population (including those aged 16 to 24). | O21: July 2020 to June 2021 | P21: Quarterly December 2021
B32: Further information, including the latest Labour Market Statistics for Young People publication, can be found on the Scottish Government Labour Market Statistics website.
B35: Claimant Count Source: Office for National Statistics, Department for Work and Pensions Area Profile: Chart 5 Underlying Data: Table G1 and G2 The experimental claimant count includes claimants of job seekers allowance and also universal credit. The claimant count measure changed from one based solely on Jobseekers Allowance (JSA) to an experimental measure based on JSA claimants plus out-of-work Universal Credit (UC) claimants who were claiming it principally for the reason of being unemployed (those in the “searching for work” conditionality regime). Those claiming such benefits may be wholly unemployed and seeking work, or may be employed but with low income and/or low hours, that make them eligible for unemployment-related benefit support. Under UC a broader span of claimants became eligible for unemployment-related benefits than under the previous benefit regime. Note: Comparisons of pre-pandemic levels are with October 2019 as the data is not seasonally adjusted. | O35: 2021-10-01 | P35: Monthly December 2021
B52: Further information can be found on NOMIS
B54: Participation Measure Source: Skills Development Scotland (SDS) Area Profile: Chart 6 Underlying Data: Table H The participation measure combines data from a range of sources including local authorities, colleges, Department for Work and Pensions (DWP), and Student Awards Agency Scotland. The annual methodology takes account of all statuses for 16 to 19 year olds in Scotland over one calendar year. However, the closure of the economy caused by the pandemic is likely to have affected participation and the opportunities available to young adults and the choices they made. SDS have not received data from DWP about Universal Credit claimants which means it is not possible to comprehensively identify people who are unemployed and seeking work. | O54: 1 April 2020 to 31 March 2021 | P54: Annual August 2022
B69: Further information can be found on the Skill Development Scotland website.
B71: Annual Survey of Hours and Earnings Source: Office for National Statistics Area Profile: Chart 7 Underlying Data: Table I The Annual Survey of Hours and Earnings (ASHE) is based on a 1% sample of employee jobs taken from HM Revenue and Customs Pay As You Earn (PAYE) records. Information on earnings and hours is obtained from employers and treated confidentially. ASHE does not cover the self-employed nor does it cover employees not paid during the reference period. Estimates for employees on the PAYE system on adult rates whose pay for the survey pay-period was not affected by absence. Estimates for 2021 include employees who have been furloughed under the Coronavirus Job Retention Scheme. | O71: 2021 | P71: Annual October 2022
B86: Further information can be found on the Office for National Statistics website.

Sheet Contacts
B2: Correspondence and enquiries
B4: For enquiries or any feedback on the content of this publication please contact:
B5: Labour Market Analysis Unit
B6: Office of the Chief Economic Advisor
B8: e-mail: lmstats@gov.scot
B10: For general enquiries about Scottish Government statistics please contact:
B11: Office of the Chief Statistician
B13: e-mail: statistics.enquiries@gov.scot

Sheet Processing (hidden)
B2: Scotland | E2: Claimant Count
B3: Aberdeen City | E3: ='Area Profile'!D7 -> Scotland | H3: 2 | J3: 3 | K3: 4 | L3: 5 | M3: 6 | N3: 7 | O3: 8 | P3: 9 | Q3: 10 | R3: 11 | S3: 12 | T3: 13 | U3: 14 | V3: 15
B4: Aberdeenshire | G4: Levels | H4: ='Claimant Count'!B49 -> 2019-10-01 | J4: ='Claimant Count'!C49 -> 2020-10-01 | K4: ='Claimant Count'!D49 -> 2020-11-01 | L4: ='Claimant Count'!E49 -> 2020-12-01 | M4: ='Claimant Count'!F49 -> 2021-01-01 | N4: ='Claimant Count'!G49 -> 2021-02-01 | O4: ='Claimant Count'!H49 -> 2021-03-01 | P4: ='Claimant Count'!I49 -> 2021-04-01 | Q4: ='Claimant Count'!J49 -> 2021-05-01 | R4: ='Claimant Count'!K49 -> 2021-06-01 | S4: ='Claimant Count'!L49 -> 2021-07-01 | T4: ='Claimant Count'!M49 -> 2021-08-01 | U4: ='Claimant Count'!N49 -> 2021-09-01 | V4: ='Claimant Count'!O49 -> 2021-10-01
B5: Angus | E5: Series | G5: =E3 -> Scotland | H5: =VLOOKUP($G$5,'Claimant Count'!$A$8:$O$41,H3,FALSE) -> 21095 | J5: =VLOOKUP($G$5,'Claimant Count'!$A$8:$O$41,J3,FALSE) -> 41090 | K5: =VLOOKUP($G$5,'Claimant Count'!$A$8:$O$41,K3,FALSE) -> 40065 | L5: =VLOOKUP($G$5,'Claimant Count'!$A$8:$O$41,L3,FALSE) -> 39220 | M5: =VLOOKUP($G$5,'Claimant Count'!$A$8:$O$41,M3,FALSE) -> 38965 | N5: =VLOOKUP($G$5,'Claimant Count'!$A$8:$O$41,N3,FALSE) -> 40050 | O5: =VLOOKUP($G$5,'Claimant Count'!$A$8:$O$41,O3,FALSE) -> 40665 | P5: =VLOOKUP($G$5,'Claimant Count'!$A$8:$O$41,P3,FALSE) -> 39760 | Q5: =VLOOKUP($G$5,'Claimant Count'!$A$8:$O$41,Q3,FALSE) -> 36820 | R5: =VLOOKUP($G$5,'Claimant Count'!$A$8:$O$41,R3,FALSE) -> 34060 | S5: =VLOOKUP($G$5,'Claimant Count'!$A$8:$O$41,S3,FALSE) -> 33215 | T5: =VLOOKUP($G$5,'Claimant Count'!$A$8:$O$41,T3,FALSE) -> 31315 | U5: =VLOOKUP($G$5,'Claimant Count'!$A$8:$O$41,U3,FALSE) -> 27445 | V5: =VLOOKUP($G$5,'Claimant Count'!$A$8:$O$41,V3,FALSE) -> 25480
B6: Argyll and Bute | E6: =Processing!G5&" "&Processing!G4 -> Scotland Levels | G6: =IF($E$3="Scotland","","Scotland") ->  | H6: =IF($G$6="",-1,VLOOKUP($G$6,'Claimant Count'!$A$8:$O$41,H3,FALSE)) -> -1 | J6: =IF($G$6="",-1,VLOOKUP($G$6,'Claimant Count'!$A$8:$O$41,J3,FALSE)) -> -1 | K6: =IF($G$6="",-1,VLOOKUP($G$6,'Claimant Count'!$A$8:$O$41,K3,FALSE)) -> -1 | L6: =IF($G$6="",-1,VLOOKUP($G$6,'Claimant Count'!$A$8:$O$41,L3,FALSE)) -> -1 | M6: =IF($G$6="",-1,VLOOKUP($G$6,'Claimant Count'!$A$8:$O$41,M3,FALSE)) -> -1 | N6: =IF($G$6="",-1,VLOOKUP($G$6,'Claimant Count'!$A$8:$O$41,N3,FALSE)) -> -1 | O6: =IF($G$6="",-1,VLOOKUP($G$6,'Claimant Count'!$A$8:$O$41,O3,FALSE)) -> -1 | P6: =IF($G$6="",-1,VLOOKUP($G$6,'Claimant Count'!$A$8:$O$41,P3,FALSE)) -> -1 | Q6: =IF($G$6="",-1,VLOOKUP($G$6,'Claimant Count'!$A$8:$O$41,Q3,FALSE)) -> -1 | R6: =IF($G$6="",-1,VLOOKUP($G$6,'Claimant Count'!$A$8:$O$41,R3,FALSE)) -> -1 | S6: =IF($G$6="",-1,VLOOKUP($G$6,'Claimant Count'!$A$8:$O$41,S3,FALSE)) -> -1 | T6: =IF($G$6="",-1,VLOOKUP($G$6,'Claimant Count'!$A$8:$O$41,T3,FALSE)) -> -1 | U6: =IF($G$6="",-1,VLOOKUP($G$6,'Claimant Count'!$A$8:$O$41,U3,FALSE)) -> -1 | V6: =IF($G$6="",-1,VLOOKUP($G$6,'Claimant Count'!$A$8:$O$41,V3,FALSE)) -> -1
B7: City of Edinburgh | E7: =Processing!G8&" Rates" -> Scotland Rates | G7: Rates (per cent) | H7: =TEXT(H4,"mmm")&" "&TEXT(H4,"yyyy") -> Oct 2019 | J7: =TEXT(J4,"mmm")&" "&TEXT(J4,"yyyy") -> Oct 2020 | K7: Nov 2020 | L7: Dec 2020 | M7: Jan 2021 | N7: Feb 2021 | O7: Mar 2021 | P7: Apr 2021 | Q7: May 2021 | R7: Jun 2021 | S7: Jul 2021 | T7: Aug 2021 | U7: Sep 2021 | V7: Oct 2021
B8: Clackmannanshire | E8: =IF($E$3="Scotland","",Processing!G9&" Rates") ->  | G8: =E3 -> Scotland | H8: =ROUND(VLOOKUP($G$8,'Claimant Count'!$A$49:$O$82,H3,FALSE),1) -> 3.7 | J8: =ROUND(VLOOKUP($G$8,'Claimant Count'!$A$49:$O$82,J3,FALSE),1) -> 7.2 | K8: =ROUND(VLOOKUP($G$8,'Claimant Count'!$A$49:$O$82,K3,FALSE),1) -> 7.1 | L8: =ROUND(VLOOKUP($G$8,'Claimant Count'!$A$49:$O$82,L3,FALSE),1) -> 6.9 | M8: =ROUND(VLOOKUP($G$8,'Claimant Count'!$A$49:$O$82,M3,FALSE),1) -> 6.9 | N8: =ROUND(VLOOKUP($G$8,'Claimant Count'!$A$49:$O$82,N3,FALSE),1) -> 7.1 | O8: =ROUND(VLOOKUP($G$8,'Claimant Count'!$A$49:$O$82,O3,FALSE),1) -> 7.2 | P8: =ROUND(VLOOKUP($G$8,'Claimant Count'!$A$49:$O$82,P3,FALSE),1) -> 7 | Q8: =ROUND(VLOOKUP($G$8,'Claimant Count'!$A$49:$O$82,Q3,FALSE),1) -> 6.5 | R8: =ROUND(VLOOKUP($G$8,'Claimant Count'!$A$49:$O$82,R3,FALSE),1) -> 6 | S8: =ROUND(VLOOKUP($G$8,'Claimant Count'!$A$49:$O$82,S3,FALSE),1) -> 5.9 | T8: =ROUND(VLOOKUP($G$8,'Claimant Count'!$A$49:$O$82,T3,FALSE),1) -> 5.5 | U8: =ROUND(VLOOKUP($G$8,'Claimant Count'!$A$49:$O$82,U3,FALSE),1) -> 4.8 | V8: =ROUND(VLOOKUP($G$8,'Claimant Count'!$A$49:$O$82,V3,FALSE),1) -> 4.5
B9: Dumfries and Galloway | G9: =IF($E$3="Scotland","","Scotland") ->  | H9: =IF($E$3="Scotland",-1,ROUND('Claimant Count'!B82,1)) -> -1 | J9: =IF($E$3="Scotland",-1,ROUND('Claimant Count'!C82,1)) -> -1 | K9: =IF($E$3="Scotland",-1,ROUND('Claimant Count'!D82,1)) -> -1 | L9: =IF($E$3="Scotland",-1,ROUND('Claimant Count'!E82,1)) -> -1 | M9: =IF($E$3="Scotland",-1,ROUND('Claimant Count'!F82,1)) -> -1 | N9: =IF($E$3="Scotland",-1,ROUND('Claimant Count'!G82,1)) -> -1 | O9: =IF($E$3="Scotland",-1,ROUND('Claimant Count'!H82,1)) -> -1 | P9: =IF($E$3="Scotland",-1,ROUND('Claimant Count'!I82,1)) -> -1 | Q9: =IF($E$3="Scotland",-1,ROUND('Claimant Count'!J82,1)) -> -1 | R9: =IF($E$3="Scotland",-1,ROUND('Claimant Count'!K82,1)) -> -1 | S9: =IF($E$3="Scotland",-1,ROUND('Claimant Count'!L82,1)) -> -1 | T9: =IF($E$3="Scotland",-1,ROUND('Claimant Count'!M82,1)) -> -1 | U9: =IF($E$3="Scotland",-1,ROUND('Claimant Count'!N82,1)) -> -1 | V9: =IF($E$3="Scotland",-1,ROUND('Claimant Count'!O82,1)) -> -1
B10: Dundee City | E10: Rank
B11: East Ayrshire | E11: =IF($E$3="Scotland","",VLOOKUP(Processing!E3,'Claimant Count'!A50:Q81,17,FALSE)) ->  | H11: Change | I11: =V5-H5 -> 4385 | J11: =ROUND(VLOOKUP($G$8,'Claimant Count'!$A$49:$O$82,V3,FALSE)-VLOOKUP($G$8,'Claimant Count'!$A$49:$O$82,H3,FALSE),1) -> 0.8
B12: East Dunbartonshire | I12: =V6-H6 -> 0 | J12: =ROUND('Claimant Count'!O82-'Claimant Count'!B82,1) -> 0.8
B13: East Lothian | E13: Title
B14: East Renfrewshire | E14: =TEXT(H4,"mmm yyyy") -> Oct 2019 | F14: =TEXT(V4, "mmm yyyy") -> Oct 2021
B15: Falkirk | E15: Chart | F15: =IF($E$3="Scotland","5. Claimant Count levels and rates, "&E3&", "&E14&" to "&F14,"5. Claimant Count levels and rates, "&E3&" and Scotland, "&E14&" to "&F14) -> 5. Claimant Count levels and rates, Scotland, Oct 2019 to Oct 2021
B16: Fife | E16: Table 1 | F16: =IF(E3="Scotland","G1. Claimant Count levels, "&E3&", "&TEXT(H4,"mmm yyyy")&" to "&TEXT(V4,"mmm yyyy"),"G1. Claimant Count levels, "&E3&" and Scotland, "&TEXT(H4,"mmm yyyy")&" to "&TEXT(V4,"mmm yyyy")) -> G1. Claimant Count levels, Scotland, Oct 2019 to Oct 2021
B17: Glasgow City | E17: Table 2 | F17: =IF(E3="Scotland","G2. Claimant Count rates (per cent), "&E3&", "&TEXT(H4,"mmm yyyy")&" to "&TEXT(V4,"mmm yyyy"),"G2. Claimant Count rates (per cent), "&E3&" and Scotland, "&TEXT(H4,"mmm yyyy")&" to "&TEXT(V4,"mmm yyyy")) -> G2. Claimant Count rates (per cent), Scotland, Oct 2019 to Oct 2021
B18: Highland
B19: Inverclyde | E19: Text 1
B20: Midlothian | E20: =IF(Processing!V8-Processing!H8=0,"level",IF(Processing!V8-Processing!H8>0,"increased","decreased")) -> increased | F20: =IF(E20="level","remained at "&TEXT(ROUND(Processing!H8,1), "0.0"),TEXT(E20, "0.0")&" from "&TEXT(ROUND(Processing!H8,1),"0.0")&" per cent to "&TEXT(ROUND(Processing!V8,1),"0.0")) -> increased from 3.7 per cent to 4.5
B21: Moray | E21: =IF($E$3="Scotland","",IF(Processing!V9-Processing!H9=0,"level",IF(Processing!V9-Processing!H9>0,"increased","decreased"))) ->  | F21: =IF($E$3="Scotland","",IF(E21="level","remained at "&ROUND(ROUND(Processing!H9,1),"0.0"),TEXT(E21,"0.0")&" from "&TEXT(ROUND(Processing!H9,1),"0.0")&" per cent to "&TEXT(ROUND(Processing!V9,1),"0.0"))) -> 
B22: Na h-Eileanan Siar | E22: ="The Claimant Count Rate (16-24 yrs) in "&Processing!G5&" "&F20&" per cent between "&E14&" (pre pandemic) and "&F14&". "&IF($E$3="Scotland","","The Scotland rate "&F21&" per cent in the same period.") -> The Claimant Count Rate (16-24 yrs) in Scotland increased from 3.7 per cent to 4.5 per cent between Oct 2019 (pre pandemic) and Oct 2021.
B23: North Ayrshire
B24: North Lanarkshire | E24: Text 2
B25: Orkney Islands | E25: =IF(E11="","",IF(E11>16,33-E11,E11)) ->  | F25: =IF(OR(E25=21,E25=31),"st",IF(OR(E25=2,E25=22),"nd",IF(OR(E25=3,E25=23),"rd","th"))) -> th | G25: =IF(E11=1,"highest",IF(E11=32,"lowest",IF(E11<17,"highest","lowest"))) -> lowest
B26: Perth and Kinross | E26: =IF(OR(E25=1,E25=1),G25,E25&F25&" "&G25) -> th lowest
B27: Renfrewshire | E27: =IF($E$3="Scotland","",E3&" has the "&E26&" Claimant Count rate amongst Scottish Local Authorities.") -> 
B28: Scottish Borders
B29: Shetland Islands | E29: Footnote
B30: South Ayrshire | E30: Source: Claimant Count (experimental), not seasonally adjusted. Rates are the proportion of the 16-24 year old population.
B31: South Lanarkshire
B32: Stirling
B33: West Dunbartonshire
B34: West Lothian | E34: ASHE
E35: ='Area Profile'!D7 -> Scotland | G35: Data | I35: Labels | K35: SDC
G36: 16 to 24 | H36: 16 and over | I36: 16 to 24 | J36: 16 and over | K36: 16 to 24 | L36: 16 and over
F37: Median Pay | G37: =IF(K37="***",0,VLOOKUP(E35,ASHE!G:I,2,FALSE)) -> 429.4 | H37: =IF(L37="***",0,VLOOKUP(E35,ASHE!G:I,3,FALSE)) -> 622.4 | I37: =IF(K37="***","***",IF(K37="**","£"&TEXT(G37,"0.00")&"**",IF(K37="*","£"&TEXT(G37,"0.00")&"*","£"&TEXT(G37,"0.00")))) -> £429.40 | J37: =IF(L37="***","***",IF(L37="**","£"&TEXT(H37,"0.00")&"**",IF(L37="*","£"&TEXT(H37,"0.00")&"*","£"&TEXT(H37,"0.00")))) -> £622.40 | K37: =VLOOKUP(E35,ASHE!G:K,4,FALSE) -> 0 | L37: =VLOOKUP(E35,ASHE!G:K,5,FALSE) -> 0
F38: Change | G38: =IF(OR(K37="***",K38="***"),0,IF(VLOOKUP(Processing!E35,ASHE!M:O,2,FALSE)>=0,VLOOKUP(Processing!E35,ASHE!M:O,2,FALSE),0)) -> 37.6 | H38: =IF(OR(L37="***",L38="***"),0,IF(VLOOKUP(Processing!E35,ASHE!M:O,3,FALSE)>=0,VLOOKUP(Processing!E35,ASHE!M:O,3,FALSE),0)) -> 28.3 | I38: =IF(G38=0,IF(OR(K37="***",K38="***"),"***",IF(OR(K37="**",K38="**"),G39&"%**",IF(OR(K37="*",K38="*"),G39&"%*",G39&"%"))),IF(OR(K37="***",K38="***"),"***",IF(OR(K37="**",K38="**"),G38&"%**",IF(OR(K37="*",K38="*"),G38&"%*",G38&"%")))) -> 37.6% | J38: =IF(H38=0,IF(OR(L37="***",L38="***"),"***",IF(OR(L37="**",L38="**"),H39&"%**",IF(OR(L37="*",L38="*"),H39&"%*",H39&"%"))),IF(OR(L37="***",L38="***"),"***",IF(OR(L37="**",L38="**"),H38&"%**",IF(OR(L37="*",L38="*"),H38&"%*",H38&"%")))) -> 28.3% | K38: =VLOOKUP(E35,ASHE!A:E,4,FALSE) -> 0 | L38: =VLOOKUP(E35,ASHE!A:E,5,FALSE) -> 0
G39: =IF(OR(K37="***",K38="***"),0,IF(VLOOKUP(Processing!E35,ASHE!M:O,2,FALSE)<0,VLOOKUP(Processing!E35,ASHE!M:O,2,FALSE),0)) -> 0 | H39: =IF(OR(L37="***",L38="***"),0,IF(VLOOKUP(Processing!E35,ASHE!M:O,3,FALSE)<0,VLOOKUP(Processing!E35,ASHE!M:O,3,FALSE),0)) -> 0
E41: Title
E42: ="7. Median Gross Weekly Earnings for full-time employees, "&E35&", 2021" -> 7. Median Gross Weekly Earnings for full-time employees, Scotland, 2021
E43: =IF(E35="Scotland","I. Median Gross Weekly Earnings for full-time employees, "&E35&", 2021","I. Median Gross Weekly Earnings for full-time employees, "&E35&" and Scotland, 2021") -> I. Median Gross Weekly Earnings for full-time employees, Scotland, 2021
E45: Text
E46: =100*(G37-H37)/H37 -> -31.00899743 | F46: =IF(OR(K37="***",L37="***"),"***",IF(OR(K37="**",L37="**"),"**",IF(OR(K37="*",L37="*"),"*",""))) ->  | G46: =IF(E46=0," have the same median pay as ",IF(E46<0," have median pay "&TEXT(ROUND(ABS(E46),1),"0.0")&F46&" per cent less than the median pay of "," have median pay "&TEXT(ROUND(ABS(E46),1),"0.0")&F46&" per cent more than the median pay of ")) -> have median pay 31.0 per cent less than the median pay of
E47: =IF(OR(K37="***",L37="***"),"Estimates are considered unreliable for comparing the difference between young people and those aged 16 and over in "&E35&".","Young people who work in "&E35&G46&"those aged 16 and over.") -> Young people who work in Scotland have median pay 31.0 per cent less than the median pay of those aged 16 and over.
E49: Y-Axis
E50: Title (Top) | F50: Median Earnings 2021
E51: Title (Bottom) | F51: Change since 2011 | I51: =IF(E35="Scotland","","Scotland") ->  | J51: =IF(I51="","","Data") ->  | L51: =IF(I51="","","SDC") -> 
J52: =IF(I51="","","16 to 24") ->  | K52: =IF(I51="","","16 and over") ->  | L52: =IF(I51="","","16 to 24") ->  | M52: =IF(I51="","","16 and over") -> 
E53: Min Primary | F53: =-F54 -> -800 | G53: =setChartAxis("Area Profile","ASHE_Chart","Min","Y","Primary",F53) -> Y Primary Min: -800 | I53: =IF(I51="","","Median Pay") ->  | J53: =IF(I51="","",ASHE!H35) ->  | K53: =IF(I51="","",ASHE!I35) ->  | L53: =IF(I51="","",ASHE!J35) ->  | M53: =IF(I51="","",ASHE!K35) -> 
E54: Max Primary | F54: =ROUNDUP(MAX(G37,H37),-2)+100 -> 800 | G54: =setChartAxis("Area Profile","ASHE_Chart","Max","Y","Primary",F54) -> Y Primary Max: 800 | I54: =IF(I51="","","Change") ->  | J54: =IF(I51="","",ASHE!N35) ->  | K54: =IF(I51="","",ASHE!O35) ->  | L54: =IF(I51="","",ASHE!D35) ->  | M54: =IF(I51="","",ASHE!E35) -> 
E55: Min Secondary | F55: =-IF(AND(G39=0,H39=0), 0, IF(AND(G38=0,H38=0), (ROUNDUP(MAX(ABS(G38),ABS(H38),ABS(G39),ABS(H39)),1)+10), F56/3)) -> 0 | G55: =setChartAxis("Area Profile","ASHE_Chart","Min","Y","Secondary",F55) -> Y Secondary Min: 0
E56: Max Secondary | F56: =IF(AND(G39=0,H39=0), 2*(ROUNDUP(MAX(ABS(G38),ABS(H38),ABS(G39),ABS(H39)),1)+10), IF(AND(G38=0,H38=0), 80, 3*(ROUNDUP(MAX(ABS(G38),ABS(H38),ABS(G39),ABS(H39)),1)+10))) -> 95.2 | G56: =setChartAxis("Area Profile","ASHE_Chart","Max","Y","Secondary",F56) -> Y Secondary Max: 95.2
E58: Footnote
E59: Source: Annual Survey of Hours and Earnings 2011 & 2021, ONS, Gross median weekly earnings for Full-Time employees (workplace based analysis).
E63: SECTOR
E64: ='Area Profile'!D7 -> Scotland
E66: Rank | I66: Total | J66: Rate | K66: CI | L66: SDC | O66: Total | P66: Rate | Q66: CI | R66: SDC
E67: =_xlfn.RANK.EQ(J67,$J$67:$J$70)+COUNTIF($J$67:J67,J67)-1 -> 2 | F67: A - F: Production, Agriculture & Construction | G67: =$E$64&F67 -> ScotlandA - F: Production, Agriculture & Construction | H67: Production, Agriculture, and Construction | I67: =VLOOKUP(G67,Sector!A:G,4,FALSE) -> 53900 | J67: =VLOOKUP(G67,Sector!A:G,5,FALSE) -> 0.1 | K67: =IF(VLOOKUP(G67,Sector!A:G,6,FALSE)=".",NA(),VLOOKUP(G67,Sector!A:G,6,FALSE)) -> 0.008 | L67: =VLOOKUP(G67,Sector!A:G,7,FALSE) -> 0 | M67: Production, Agriculture, and Construction | N67: ="Scotland"&F67 -> ScotlandA - F: Production, Agriculture & Construction | O67: =VLOOKUP(N67,Sector!A:G,4,FALSE) -> 53900 | P67: =VLOOKUP(N67,Sector!A:G,5,FALSE) -> 0.1 | Q67: =IF(VLOOKUP(N67,Sector!A:G,6,FALSE)=".",NA(),VLOOKUP(N67,Sector!A:G,6,FALSE)) -> 0.008 | R67: =VLOOKUP(N67,Sector!A:G,7,FALSE) -> 0
E68: =_xlfn.RANK.EQ(J68,$J$67:$J$70)+COUNTIF($J$67:J68,J68)-1 -> 1 | F68: G, I: Distribution, Hotels & Restaurants | G68: =$E$64&F68 -> ScotlandG, I: Distribution, Hotels & Restaurants | H68: Distribution, Hotels, and Restaurants | I68: =VLOOKUP(G68,Sector!A:G,4,FALSE) -> 133900 | J68: =VLOOKUP(G68,Sector!A:G,5,FALSE) -> 0.278 | K68: =IF(VLOOKUP(G68,Sector!A:G,6,FALSE)=".",NA(),VLOOKUP(G68,Sector!A:G,6,FALSE)) -> 0.013 | L68: =VLOOKUP(G68,Sector!A:G,7,FALSE) -> 0 | M68: Distribution, Hotels, and Restaurants | N68: ="Scotland"&F68 -> ScotlandG, I: Distribution, Hotels & Restaurants | O68: =VLOOKUP(N68,Sector!A:G,4,FALSE) -> 133900 | P68: =VLOOKUP(N68,Sector!A:G,5,FALSE) -> 0.278 | Q68: =IF(VLOOKUP(N68,Sector!A:G,6,FALSE)=".",NA(),VLOOKUP(N68,Sector!A:G,6,FALSE)) -> 0.013 | R68: =VLOOKUP(N68,Sector!A:G,7,FALSE) -> 0
E69: =_xlfn.RANK.EQ(J69,$J$67:$J$70)+COUNTIF($J$67:J69,J69)-1 -> 3 | F69: H, J - N, R - U: Other Services | G69: =$E$64&F69 -> ScotlandH, J - N, R - U: Other Services | H69: Other Services | I69: =VLOOKUP(G69,Sector!A:G,4,FALSE) -> 71300 | J69: =VLOOKUP(G69,Sector!A:G,5,FALSE) -> 0.095 | K69: =IF(VLOOKUP(G69,Sector!A:G,6,FALSE)=".",NA(),VLOOKUP(G69,Sector!A:G,6,FALSE)) -> 0.007 | L69: =VLOOKUP(G69,Sector!A:G,7,FALSE) -> 0 | M69: Other Services | N69: ="Scotland"&F69 -> ScotlandH, J - N, R - U: Other Services | O69: =VLOOKUP(N69,Sector!A:G,4,FALSE) -> 71300 | P69: =VLOOKUP(N69,Sector!A:G,5,FALSE) -> 0.095 | Q69: =IF(VLOOKUP(N69,Sector!A:G,6,FALSE)=".",NA(),VLOOKUP(N69,Sector!A:G,6,FALSE)) -> 0.007 | R69: =VLOOKUP(N69,Sector!A:G,7,FALSE) -> 0
E70: =_xlfn.RANK.EQ(J70,$J$67:$J$70)+COUNTIF($J$67:J70,J70)-1 -> 4 | F70: O - Q: Public Admin, Education & Health | G70: =$E$64&F70 -> ScotlandO - Q: Public Admin, Education & Health | H70: Public Admin, Education, and Health | I70: =VLOOKUP(G70,Sector!A:G,4,FALSE) -> 54900 | J70: =VLOOKUP(G70,Sector!A:G,5,FALSE) -> 0.064 | K70: =IF(VLOOKUP(G70,Sector!A:G,6,FALSE)=".",NA(),VLOOKUP(G70,Sector!A:G,6,FALSE)) -> 0.005 | L70: =VLOOKUP(G70,Sector!A:G,7,FALSE) -> 0 | M70: Public Admin, Education, and Health | N70: ="Scotland"&F70 -> ScotlandO - Q: Public Admin, Education & Health | O70: =VLOOKUP(N70,Sector!A:G,4,FALSE) -> 54900 | P70: =VLOOKUP(N70,Sector!A:G,5,FALSE) -> 0.064 | Q70: =IF(VLOOKUP(N70,Sector!A:G,6,FALSE)=".",NA(),VLOOKUP(N70,Sector!A:G,6,FALSE)) -> 0.005 | R70: =VLOOKUP(N70,Sector!A:G,7,FALSE) -> 0
G72: =E64&" Data" -> Scotland Data | J72: =E64&" Labels" -> Scotland Labels | O72: Scotland Data | R72: Scotland Labels
G73: Total | H73: Rate | I73: CI | J73: SDC | K73: Total | L73: Rate | O73: Total | P73: Rate | Q73: CI | R73: SDC | S73: Total | T73: Rate
E74: 1 | F74: =VLOOKUP(E74,$E$67:$H$70,4,FALSE) -> Distribution, Hotels, and Restaurants | G74: =VLOOKUP(F74,$H$67:$L$70,2,FALSE) -> 133900 | H74: =VLOOKUP(F74,$H$67:$L$70,3,FALSE) -> 0.278 | I74: =IF(J74="***",NA(),VLOOKUP(F74,$H$67:$L$70,4,FALSE)) -> 0.013 | J74: =IF(VLOOKUP(F74,$H$67:$L$70,5,FALSE)=0,"",VLOOKUP(F74,$H$67:$L$70,5,FALSE)) ->  | K74: =IF(J74="",TEXT(G74,"#,##0"),IF(J74="*",TEXT(G74,"#,##0")&J74,"")) -> 133,900 | L74: =IF(J74="",TEXT(100*H74, "0.0")&"% ",IF(J74="*",TEXT(100*H74, "0.0")&"%"&J74&" ",J74)) -> 27.8% | N74: =F74 -> Distribution, Hotels, and Restaurants | O74: =VLOOKUP(N74,$H$67:$R$70,8,FALSE) -> 133900 | P74: =VLOOKUP(N74,$H$67:$R$70,9,FALSE) -> 0.278 | Q74: =VLOOKUP(N74,$H$67:$R$70,10,FALSE) -> 0.013 | R74: =IF(VLOOKUP(N74,$H$67:$R$70,11,FALSE)=0,"",VLOOKUP(N74,$H$67:$R$70,11,FALSE)) ->  | T74: =IF($E$64="Scotland","",IF(R74="",TEXT(100*P74, "0.0")&"%",IF(R74="*",TEXT(100*P74, "0.0")&"%"&R74,R74))) -> 
E75: 2 | F75: =VLOOKUP(E75,$E$67:$H$70,4,FALSE) -> Production, Agriculture, and Construction | G75: =VLOOKUP(F75,$H$67:$L$70,2,FALSE) -> 53900 | H75: =VLOOKUP(F75,$H$67:$L$70,3,FALSE) -> 0.1 | I75: =IF(J75="***",NA(),VLOOKUP(F75,$H$67:$L$70,4,FALSE)) -> 0.008 | J75: =IF(VLOOKUP(F75,$H$67:$L$70,5,FALSE)=0,"",VLOOKUP(F75,$H$67:$L$70,5,FALSE)) ->  | K75: =IF(J75="",TEXT(G75,"#,##0"),IF(J75="*",TEXT(G75,"#,##0")&J75,"")) -> 53,900 | L75: =IF(J75="",TEXT(100*H75, "0.0")&"% ",IF(J75="*",TEXT(100*H75, "0.0")&"%"&J75&" ",J75)) -> 10.0% | N75: =F75 -> Production, Agriculture, and Construction | O75: =VLOOKUP(N75,$H$67:$R$70,8,FALSE) -> 53900 | P75: =VLOOKUP(N75,$H$67:$R$70,9,FALSE) -> 0.1 | Q75: =VLOOKUP(N75,$H$67:$R$70,10,FALSE) -> 0.008 | R75: =IF(VLOOKUP(N75,$H$67:$R$70,11,FALSE)=0,"",VLOOKUP(N75,$H$67:$R$70,11,FALSE)) ->  | T75: =IF($E$64="Scotland","",IF(R75="",TEXT(100*P75, "0.0")&"%",IF(R75="*",TEXT(100*P75, "0.0")&"%"&R75,R75))) -> 
E76: 3 | F76: =VLOOKUP(E76,$E$67:$H$70,4,FALSE) -> Other Services | G76: =VLOOKUP(F76,$H$67:$L$70,2,FALSE) -> 71300 | H76: =VLOOKUP(F76,$H$67:$L$70,3,FALSE) -> 0.095 | I76: 0.007 | J76: =IF(VLOOKUP(F76,$H$67:$L$70,5,FALSE)=0,"",VLOOKUP(F76,$H$67:$L$70,5,FALSE)) ->  | K76: =IF(J76="",TEXT(G76,"#,##0"),IF(J76="*",TEXT(G76,"#,##0")&J76,"")) -> 71,300 | L76: =IF(J76="",TEXT(100*H76, "0.0")&"% ",IF(J76="*",TEXT(100*H76, "0.0")&"%"&J76&" ",J76)) -> 9.5% | N76: =F76 -> Other Services | O76: =VLOOKUP(N76,$H$67:$R$70,8,FALSE) -> 71300 | P76: =VLOOKUP(N76,$H$67:$R$70,9,FALSE) -> 0.095 | Q76: =VLOOKUP(N76,$H$67:$R$70,10,FALSE) -> 0.007 | R76: =IF(VLOOKUP(N76,$H$67:$R$70,11,FALSE)=0,"",VLOOKUP(N76,$H$67:$R$70,11,FALSE)) -> 
E77: 4 | F77: =VLOOKUP(E77,$E$67:$H$70,4,FALSE) -> Public Admin, Education, and Health | G77: =VLOOKUP(F77,$H$67:$L$70,2,FALSE) -> 54900 | H77: =VLOOKUP(F77,$H$67:$L$70,3,FALSE) -> 0.064 | I77: 0.005 | J77: =IF(VLOOKUP(F77,$H$67:$L$70,5,FALSE)=0,"",VLOOKUP(F77,$H$67:$L$70,5,FALSE)) ->  | K77: =IF(J77="",TEXT(G77,"#,##0"),IF(J77="*",TEXT(G77,"#,##0")&J77,"")) -> 54,900 | L77: =IF(J77="",TEXT(100*H77, "0.0")&"% ",IF(J77="*",TEXT(100*H77, "0.0")&"%"&J77&" ",J77)) -> 6.4% | N77: =F77 -> Public Admin, Education, and Health | O77: =VLOOKUP(N77,$H$67:$R$70,8,FALSE) -> 54900 | P77: =VLOOKUP(N77,$H$67:$R$70,9,FALSE) -> 0.064 | Q77: =VLOOKUP(N77,$H$67:$R$70,10,FALSE) -> 0.005 | R77: =IF(VLOOKUP(N77,$H$67:$R$70,11,FALSE)=0,"",VLOOKUP(N77,$H$67:$R$70,11,FALSE)) -> 
E79: Title
E80: Chart | F80: ="2. Level and proportion of young person's employment within broad Sectors, "&E64&", Jan 2018 to Dec 2020" -> 2. Level and proportion of young person's employment within broad Sectors, Scotland, Jan 2018 to Dec 2020
E81: Table | F81: =IF(E64="Scotland","D. Level and proportions of young person's employment within broad Sectors, "&E64&", Jan 2018 to Dec 2020","D. Level and proportions of young person's employment within broad Sectors, "&E64&" and Scotland, Jan 2018 to Dec 2020") -> D. Level and proportions of young person's employment within broad Sectors, Scotland, Jan 2018 to Dec 2020
E82: Scotland Series | F82: =IF($E$64="Scotland","","Scotland") -> 
E84: Text
E85: =IF(J74="***","Estimates for "&E64&" are considered unreliable for practical purposes.","People aged 16 to 24 make up "&TEXT(100*H74,"0.0")&J74&" per cent of the "&VLOOKUP(1,E67:R70,9,FALSE)&" sector in "&E64&".") -> People aged 16 to 24 make up 27.8 per cent of the Distribution, Hotels, and Restaurants sector in Scotland.
E87: Footnote
E88: Source: Annual Population Survey, 3-Year Pooled Data, January 2018 to December 2020, ONS
E90: X-Axis
E91: 0 | F91: =setChartAxis("Area Profile","SECTOR_Chart","Min","Y","Primary",E91) -> Y Primary Min: 0
E92: =ROUNDUP(MAX($H$74:$H$77)+MAX(IF(ISNUMBER($I$74:$I$77),$I$74:$I$77))+0.15,2) -> 0.45 | F92: =setChartAxis("Area Profile","SECTOR_Chart","Max","Y","Primary",E92) -> Y Primary Max: 0.45
E96: QUALIFICATIONS
E97: ='Area Profile'!D7 -> Scotland | H97: =E97 -> Scotland | P97: =IF(E97="Scotland","","Scotland") -> 
H98: Level | I98: Rate | J98: CI | K98: SDC | L98: Label 1 | M98: Label 2 | N98: Rank | Q98: Level | R98: Rate | S98: CI | T98: SDC | U98: Label
E99: Degree, Professional Qualification, HNC/HND or equivalent | F99: 1: SVQ Level 4 and 5 | G99: =$E$97&F99 -> Scotland1: SVQ Level 4 and 5 | H99: =IF(VLOOKUP(G99,Qualifications!A:G,4,FALSE)=".","#",VLOOKUP(G99,Qualifications!A:G,4,FALSE)) -> 109500 | I99: =IF(VLOOKUP(G99,Qualifications!A:G,5,FALSE)=".","#",VLOOKUP(G99,Qualifications!A:G,5,FALSE)) -> 0.756 | J99: =IF(VLOOKUP(G99,Qualifications!A:G,6,FALSE)=".",NA(),VLOOKUP(G99,Qualifications!A:G,6,FALSE)) -> 0.027 | K99: =IF(VLOOKUP(G99,Qualifications!A:G,7,FALSE)=0,"",VLOOKUP(G99,Qualifications!A:G,7,FALSE)) ->  | L99: =IF(K99="***","",IF(K99="*",TEXT(100*I99,"0.0")&"%*",IF(I99="#","",TEXT(100*I99,"0.0")&"%"))) -> 75.6% | M99: =IF(L99="",IF(K99="***","***","#"),"") ->  | N99: =_xlfn.RANK.EQ(I99,$I$99:$I$101) -> 1 | O99: Degree, Professional Qualification, HNC/HND or equivalent | P99: Degree, Professional Qualification, HNC/HND or equivalent | Q99: =IF($E$97="Scotland","",VLOOKUP("Scotland"&F99,Qualifications!A:G,4,FALSE)) ->  | R99: =IF($E$97="Scotland","",VLOOKUP("Scotland"&F99,Qualifications!A:G,5,FALSE)) ->  | S99: =IF($E$97="Scotland","",IF(VLOOKUP("Scotland"&F99,Qualifications!A:G,6,FALSE)=".",NA(),VLOOKUP("Scotland"&F99,Qualifications!A:G,6,FALSE))) ->  | T99: =IF(VLOOKUP("Scotland"&F99,Qualifications!A:G,7,FALSE)=0,"",VLOOKUP("Scotland"&F99,Qualifications!A:G,7,FALSE)) ->  | U99: =IF($E$97="Scotland","",IF(T99="***","***",IF(T99="*",TEXT(100*R99, "0.0")&"%*",TEXT(100*R99, "0.0")&"%"))) -> 
E100: Higher, A-Level or equivalent and National 5 grade or equivalent | F100: 2: SVQ Level 2 and 3 | G100: =$E$97&F100 -> Scotland2: SVQ Level 2 and 3 | H100: =IF(VLOOKUP(G100,Qualifications!A:G,4,FALSE)=".","#",VLOOKUP(G100,Qualifications!A:G,4,FALSE)) -> 170700 | I100: =IF(VLOOKUP(G100,Qualifications!A:G,5,FALSE)=".","#",VLOOKUP(G100,Qualifications!A:G,5,FALSE)) -> 0.516 | J100: =IF(VLOOKUP(G100,Qualifications!A:G,6,FALSE)=".",NA(),VLOOKUP(G100,Qualifications!A:G,6,FALSE)) -> 0.019 | K100: =IF(VLOOKUP(G100,Qualifications!A:G,7,FALSE)=0,"",VLOOKUP(G100,Qualifications!A:G,7,FALSE)) ->  | L100: =IF(K100="***","",IF(K100="*",TEXT(100*I100,"0.0")&"%*",IF(I100="#","",TEXT(100*I100,"0.0")&"%"))) -> 51.6% | M100: =IF(L100="",IF(K100="***","***","#"),"") ->  | N100: =_xlfn.RANK.EQ(I100,$I$99:$I$101) -> 2 | O100: Higher, A-Level or equivalent and National 5 grade or equivalent | P100: Higher, A-Level or equivalent and National 5 grade or equivalent | Q100: =IF($E$97="Scotland","",VLOOKUP("Scotland"&F100,Qualifications!A:G,4,FALSE)) ->  | R100: =IF($E$97="Scotland","",VLOOKUP("Scotland"&F100,Qualifications!A:G,5,FALSE)) ->  | S100: =IF($E$97="Scotland","",IF(VLOOKUP("Scotland"&F100,Qualifications!A:G,6,FALSE)=".",NA(),VLOOKUP("Scotland"&F100,Qualifications!A:G,6,FALSE))) ->  | T100: =IF(VLOOKUP("Scotland"&F100,Qualifications!A:G,7,FALSE)=0,"",VLOOKUP("Scotland"&F100,Qualifications!A:G,7,FALSE)) ->  | U100: =IF($E$97="Scotland","",IF(T100="***","***",IF(T100="*",TEXT(100*R100, "0.0")&"%*",TEXT(100*R100, "0.0")&"%"))) -> 
E101: National 4 Grade or equivalent and below¹ | F101: 3: SVQ Level 1 and None | G101: =$E$97&F101 -> Scotland3: SVQ Level 1 and None | H101: =IF(VLOOKUP(G101,Qualifications!A:G,4,FALSE)=".","#",VLOOKUP(G101,Qualifications!A:G,4,FALSE)) -> 18700 | I101: =IF(VLOOKUP(G101,Qualifications!A:G,5,FALSE)=".","#",VLOOKUP(G101,Qualifications!A:G,5,FALSE)) -> 0.327 | J101: =IF(VLOOKUP(G101,Qualifications!A:G,6,FALSE)=".",NA(),VLOOKUP(G101,Qualifications!A:G,6,FALSE)) -> 0.042 | K101: =IF(VLOOKUP(G101,Qualifications!A:G,7,FALSE)=0,"",VLOOKUP(G101,Qualifications!A:G,7,FALSE)) ->  | L101: =IF(K101="***","",IF(K101="*",TEXT(100*I101,"0.0")&"%*",IF(I101="#","",TEXT(100*I101,"0.0")&"%"))) -> 32.7% | N101: =_xlfn.RANK.EQ(I101,$I$99:$I$101) -> 3 | O101: National 4 Grade or equivalent and below¹ | P101: National 4 Grade or equivalent and below¹ | Q101: =IF($E$97="Scotland","",VLOOKUP("Scotland"&F101,Qualifications!A:G,4,FALSE)) ->  | R101: =IF($E$97="Scotland","",VLOOKUP("Scotland"&F101,Qualifications!A:G,5,FALSE)) ->  | S101: =IF($E$97="Scotland","",IF(VLOOKUP("Scotland"&F101,Qualifications!A:G,6,FALSE)=".",NA(),VLOOKUP("Scotland"&F101,Qualifications!A:G,6,FALSE))) ->  | T101: =IF(VLOOKUP("Scotland"&F101,Qualifications!A:G,7,FALSE)=0,"",VLOOKUP("Scotland"&F101,Qualifications!A:G,7,FALSE)) ->  | U101: =IF($E$97="Scotland","",IF(T101="***","***",IF(T101="*",TEXT(100*R101, "0.0")&"%*",TEXT(100*R101, "0.0")&"%"))) -> 
E103: Title | K103: =3-(IF(K99="***",1,0)+IF(K100="***",1,0)+IF(K101="***",1,0)) -> 3 | L103: =VLOOKUP(1,N99:O101,2,FALSE) -> Degree, Professional Qualification, HNC/HND or equivalent | N103: =COUNTIFS(N99:N101,1) -> 1
E104: Chart | F104: ="1. Young person's employment rate by qualification, "&E97&", Jan 2018 to Dec 2020" -> 1. Young person's employment rate by qualification, Scotland, Jan 2018 to Dec 2020 | L104: =100*VLOOKUP(L103,E99:I101,5,FALSE)&VLOOKUP(L103,E99:K101,7,FALSE) -> 75.6 | N104: =IF(OR(AND(K103=3,N103=1),AND(K103=2,N103=1)),"higher than",IF(AND(K103=1,N103=1),"only one",IF(OR(AND(K103=2,N103=2),AND(K103=3,N103,2)),"same as another",IF(AND(K103=3,N103=3),"same as all","N/A")))) -> higher than | O104: higher than | P104: , higher than those with alternative qualifications.
E105: Table | F105: =IF(E97="Scotland","C. Young person's employment rate by qualification, "&E97&", Jan 2018 to Dec 2020","C. Young person's employment rate by qualification, "&E97&" and Scotland, Jan 2018 to Dec 2020") -> C. Young person's employment rate by qualification, Scotland, Jan 2018 to Dec 2020 | O105: only one | P105: .
N106: =VLOOKUP(1,N99:P101,3,TRUE) -> Degree, Professional Qualification, HNC/HND or equivalent | O106: same as another | P106: =", the same as "&N106&"." -> , the same as Degree, Professional Qualification, HNC/HND or equivalent.
E107: Text | O107: same as all | P107: , the same as those with alternative qualifications.
E108: =VLOOKUP(1,N99:P101,3,FALSE) -> Degree, Professional Qualification, HNC/HND or equivalent
E109: =IF(N104="N/A","Data for "&E97&" is considered unreliable for estimating the proportion of young people with different qualifications.","The employment rate of "&E97&" for young people with "&E108&" qualifications was "&L104&" per cent"&VLOOKUP(N104,O104:P107,2,FALSE)) -> The employment rate of Scotland for young people with Degree, Professional Qualification, HNC/HND or equivalent qualifications was 75.6 per cent, higher than those with alternative qualifications.
E111: Footnote
E112: Source: Annual Population Survey, 3-Year Pooled Data, January 2018 to December 2020, ONS 1. Includes those with no qualifications # Estimates have been suppressed
E116: MAIN TABLE
E117: ='Area Profile'!D7 -> Scotland
E119: Area Values | J119: Area SDC | O119: Area CI | T119: Area Look-Up Columns
E120: =TEXT(VLOOKUP($E$117,'Main Table'!$A$2:$BX$37,T120,FALSE),"#,##0") -> 565,500 | J120: =IF(ISBLANK(VLOOKUP($E$117,'Main Table'!$A$39:$BX$74,T120,FALSE))=TRUE,"",VLOOKUP($E$117,'Main Table'!$A$39:$BX$74,T120,FALSE)) ->  | T120: 2
E121: ="16 to 24 year olds in "&$E$117 -> 16 to 24 year olds in Scotland | J121: ="16 to 24 year olds in "&$E$117 -> 16 to 24 year olds in Scotland | O121: ="16 to 24 year olds in "&$E$117 -> 16 to 24 year olds in Scotland | T121: ="16 to 24 year olds in "&$E$117 -> 16 to 24 year olds in Scotland
E122: FT Education | F122: PT Education | G122: Not in Education | H122: All Education | J122: FT Education | K122: PT Education | L122: Not in Education | M122: All Education | O122: FT Education | P122: PT Education | Q122: Not in Education | R122: All Education | T122: FT Education | U122: PT Education | V122: Not in Education | W122: All Education
E123: =TEXT(VLOOKUP($E$117,'Main Table'!$A$2:$BX$37,T123,FALSE),"#,##0") -> 254,900 | F123: =TEXT(VLOOKUP($E$117,'Main Table'!$A$2:$BX$37,U123,FALSE),"#,##0") -> 19,700 | G123: =TEXT(VLOOKUP($E$117,'Main Table'!$A$2:$BX$37,V123,FALSE),"#,##0") -> 287,400 | H123: =TEXT(VLOOKUP($E$117,'Main Table'!$A$2:$BX$37,W123,FALSE),"#,##0") -> 274,500 | J123: =IF(ISBLANK(VLOOKUP($E$117,'Main Table'!$A$39:$BX$74,T123,FALSE))=TRUE,"",VLOOKUP($E$117,'Main Table'!$A$39:$BX$74,T123,FALSE)) ->  | K123: =IF(ISBLANK(VLOOKUP($E$117,'Main Table'!$A$39:$BX$74,U123,FALSE))=TRUE,"",VLOOKUP($E$117,'Main Table'!$A$39:$BX$74,U123,FALSE)) ->  | L123: =IF(ISBLANK(VLOOKUP($E$117,'Main Table'!$A$39:$BX$74,V123,FALSE))=TRUE,"",VLOOKUP($E$117,'Main Table'!$A$39:$BX$74,V123,FALSE)) ->  | M123: =IF(ISBLANK(VLOOKUP($E$117,'Main Table'!$A$39:$BX$74,W123,FALSE))=TRUE,"",VLOOKUP($E$117,'Main Table'!$A$39:$BX$74,W123,FALSE)) ->  | T123: 8 | U123: 14 | V123: 11 | W123: 5
E124: =TEXT(100*VLOOKUP($E$117,'Main Table'!$A$2:$BX$37,T124,FALSE),"0.0") -> 45.1 | F124: =TEXT(100*VLOOKUP($E$117,'Main Table'!$A$2:$BX$37,U124,FALSE),"0.0") -> 3.5 | G124: =TEXT(100*VLOOKUP($E$117,'Main Table'!$A$2:$BX$37,V124,FALSE),"0.0") -> 50.8 | H124: =TEXT(100*VLOOKUP($E$117,'Main Table'!$A$2:$BX$37,W124,FALSE),"0.0") -> 48.5 | J124: =IF(ISBLANK(VLOOKUP($E$117,'Main Table'!$A$39:$BX$74,T124,FALSE))=TRUE,"",VLOOKUP($E$117,'Main Table'!$A$39:$BX$74,T124,FALSE)) ->  | K124: =IF(ISBLANK(VLOOKUP($E$117,'Main Table'!$A$39:$BX$74,U124,FALSE))=TRUE,"",VLOOKUP($E$117,'Main Table'!$A$39:$BX$74,U124,FALSE)) ->  | L124: =IF(ISBLANK(VLOOKUP($E$117,'Main Table'!$A$39:$BX$74,V124,FALSE))=TRUE,"",VLOOKUP($E$117,'Main Table'!$A$39:$BX$74,V124,FALSE)) ->  | M124: =IF(ISBLANK(VLOOKUP($E$117,'Main Table'!$A$39:$BX$74,W124,FALSE))=TRUE,"",VLOOKUP($E$117,'Main Table'!$A$39:$BX$74,W124,FALSE)) ->  | O124: =IF(VLOOKUP($E$117,'Main Table'!$A$2:$BX$37,T124+1,FALSE)=".","#",TEXT(100*VLOOKUP($E$117,'Main Table'!$A$2:$BX$37,T124+1,FALSE)," ± 0.0")) -> ± 1.5 | P124: =IF(VLOOKUP($E$117,'Main Table'!$A$2:$BX$37,U124+1,FALSE)=".","#",TEXT(100*VLOOKUP($E$117,'Main Table'!$A$2:$BX$37,U124+1,FALSE)," ± 0.0")) -> ± 0.6 | Q124: =IF(VLOOKUP($E$117,'Main Table'!$A$2:$BX$37,V124+1,FALSE)=".","#",TEXT(100*VLOOKUP($E$117,'Main Table'!$A$2:$BX$37,V124+1,FALSE)," ± 0.0")) -> ± 1.5 | R124: =IF(VLOOKUP($E$117,'Main Table'!$A$2:$BX$37,W124+1,FALSE)=".","#",TEXT(100*VLOOKUP($E$117,'Main Table'!$A$2:$BX$37,W124+1,FALSE)," ± 0.0")) -> ± 1.5 | T124: 9 | U124: 15 | V124: 12 | W124: 6
E125: =TEXT(VLOOKUP($E$117,'Main Table'!$A$2:$BX$37,T125,FALSE),"#,##0") -> 83,500 | F125: =TEXT(VLOOKUP($E$117,'Main Table'!$A$2:$BX$37,U125,FALSE),"#,##0") -> 15,200 | G125: =TEXT(VLOOKUP($E$117,'Main Table'!$A$2:$BX$37,V125,FALSE),"#,##0") -> 215,900 | H125: =TEXT(VLOOKUP($E$117,'Main Table'!$A$2:$BX$37,W125,FALSE),"#,##0") -> 98,700 | J125: =IF(ISBLANK(VLOOKUP($E$117,'Main Table'!$A$39:$BX$74,T125,FALSE))=TRUE,"",VLOOKUP($E$117,'Main Table'!$A$39:$BX$74,T125,FALSE)) ->  | K125: =IF(ISBLANK(VLOOKUP($E$117,'Main Table'!$A$39:$BX$74,U125,FALSE))=TRUE,"",VLOOKUP($E$117,'Main Table'!$A$39:$BX$74,U125,FALSE)) ->  | L125: =IF(ISBLANK(VLOOKUP($E$117,'Main Table'!$A$39:$BX$74,V125,FALSE))=TRUE,"",VLOOKUP($E$117,'Main Table'!$A$39:$BX$74,V125,FALSE)) ->  | M125: =IF(ISBLANK(VLOOKUP($E$117,'Main Table'!$A$39:$BX$74,W125,FALSE))=TRUE,"",VLOOKUP($E$117,'Main Table'!$A$39:$BX$74,W125,FALSE)) ->  | T125: 23 | U125: 29 | V125: 26 | W125: 20
E126: in employment | F126: in employment | G126: in employment | H126: in employment | J126: in employment | K126: in employment | L126: in employment | M126: in employment | O126: in employment | P126: in employment | Q126: in employment | R126: in employment
E127: =TEXT(100*VLOOKUP($E$117,'Main Table'!$A$2:$BX$37,T127,FALSE),"0.0") -> 14.8 | F127: =TEXT(100*VLOOKUP($E$117,'Main Table'!$A$2:$BX$37,U127,FALSE),"0.0") -> 2.7 | G127: =TEXT(100*VLOOKUP($E$117,'Main Table'!$A$2:$BX$37,V127,FALSE),"0.0") -> 38.2 | H127: =TEXT(100*VLOOKUP($E$117,'Main Table'!$A$2:$BX$37,W127,FALSE),"0.0") -> 17.5 | J127: =IF(ISBLANK(VLOOKUP($E$117,'Main Table'!$A$39:$BX$74,T127,FALSE))=TRUE,"",VLOOKUP($E$117,'Main Table'!$A$39:$BX$74,T127,FALSE)) ->  | K127: =IF(ISBLANK(VLOOKUP($E$117,'Main Table'!$A$39:$BX$74,U127,FALSE))=TRUE,"",VLOOKUP($E$117,'Main Table'!$A$39:$BX$74,U127,FALSE)) ->  | L127: =IF(ISBLANK(VLOOKUP($E$117,'Main Table'!$A$39:$BX$74,V127,FALSE))=TRUE,"",VLOOKUP($E$117,'Main Table'!$A$39:$BX$74,V127,FALSE)) ->  | M127: =IF(ISBLANK(VLOOKUP($E$117,'Main Table'!$A$39:$BX$74,W127,FALSE))=TRUE,"",VLOOKUP($E$117,'Main Table'!$A$39:$BX$74,W127,FALSE)) ->  | O127: =IF(VLOOKUP($E$117,'Main Table'!$A$2:$BX$37,T127+1,FALSE)=".","#",TEXT(100*VLOOKUP($E$117,'Main Table'!$A$2:$BX$37,T127+1,FALSE)," ± 0.0")) -> ± 1.1 | P127: =IF(VLOOKUP($E$117,'Main Table'!$A$2:$BX$37,U127+1,FALSE)=".","#",TEXT(100*VLOOKUP($E$117,'Main Table'!$A$2:$BX$37,U127+1,FALSE)," ± 0.0")) -> ± 0.5 | Q127: =IF(VLOOKUP($E$117,'Main Table'!$A$2:$BX$37,V127+1,FALSE)=".","#",TEXT(100*VLOOKUP($E$117,'Main Table'!$A$2:$BX$37,V127+1,FALSE)," ± 0.0")) -> ± 1.5 | R127: =IF(VLOOKUP($E$117,'Main Table'!$A$2:$BX$37,W127+1,FALSE)=".","#",TEXT(100*VLOOKUP($E$117,'Main Table'!$A$2:$BX$37,W127+1,FALSE)," ± 0.0")) -> ± 1.1 | T127: 24 | U127: 30 | V127: 27 | W127: 21
E128: =TEXT(VLOOKUP($E$117,'Main Table'!$A$2:$BX$37,T128,FALSE),"#,##0") -> 162,000 | F128: =TEXT(VLOOKUP($E$117,'Main Table'!$A$2:$BX$37,U128,FALSE),"#,##0") -> 3,800 | G128: =TEXT(VLOOKUP($E$117,'Main Table'!$A$2:$BX$37,V128,FALSE),"#,##0") -> 50,700 | H128: =TEXT(VLOOKUP($E$117,'Main Table'!$A$2:$BX$37,W128,FALSE),"#,##0") -> 165,800 | J128: =IF(ISBLANK(VLOOKUP($E$117,'Main Table'!$A$39:$BX$74,T128,FALSE))=TRUE,"",VLOOKUP($E$117,'Main Table'!$A$39:$BX$74,T128,FALSE)) ->  | K128: =IF(ISBLANK(VLOOKUP($E$117,'Main Table'!$A$39:$BX$74,U128,FALSE))=TRUE,"",VLOOKUP($E$117,'Main Table'!$A$39:$BX$74,U128,FALSE)) ->  | L128: =IF(ISBLANK(VLOOKUP($E$117,'Main Table'!$A$39:$BX$74,V128,FALSE))=TRUE,"",VLOOKUP($E$117,'Main Table'!$A$39:$BX$74,V128,FALSE)) ->  | M128: =IF(ISBLANK(VLOOKUP($E$117,'Main Table'!$A$39:$BX$74,W128,FALSE))=TRUE,"",VLOOKUP($E$117,'Main Table'!$A$39:$BX$74,W128,FALSE)) ->  | T128: 53 | U128: 59 | V128: 56 | W128: 50
E129: inactive | F129: inactive | G129: inactive | H129: inactive | J129: inactive | K129: inactive | L129: inactive | M129: inactive | O129: inactive | P129: inactive | Q129: inactive | R129: inactive
E130: =TEXT(100*VLOOKUP($E$117,'Main Table'!$A$2:$BX$37,T130,FALSE),"0.0") -> 28.7 | F130: =TEXT(100*VLOOKUP($E$117,'Main Table'!$A$2:$BX$37,U130,FALSE),"0.0") -> 0.7 | G130: =TEXT(100*VLOOKUP($E$117,'Main Table'!$A$2:$BX$37,V130,FALSE),"0.0") -> 9.0 | H130: =TEXT(100*VLOOKUP($E$117,'Main Table'!$A$2:$BX$37,W130,FALSE),"0.0") -> 29.3 | J130: =IF(ISBLANK(VLOOKUP($E$117,'Main Table'!$A$39:$BX$74,T130,FALSE))=TRUE,"",VLOOKUP($E$117,'Main Table'!$A$39:$BX$74,T130,FALSE)) ->  | K130: =IF(ISBLANK(VLOOKUP($E$117,'Main Table'!$A$39:$BX$74,U130,FALSE))=TRUE,"",VLOOKUP($E$117,'Main Table'!$A$39:$BX$74,U130,FALSE)) ->  | L130: =IF(ISBLANK(VLOOKUP($E$117,'Main Table'!$A$39:$BX$74,V130,FALSE))=TRUE,"",VLOOKUP($E$117,'Main Table'!$A$39:$BX$74,V130,FALSE)) ->  | M130: =IF(ISBLANK(VLOOKUP($E$117,'Main Table'!$A$39:$BX$74,W130,FALSE))=TRUE,"",VLOOKUP($E$117,'Main Table'!$A$39:$BX$74,W130,FALSE)) ->  | O130: =IF(VLOOKUP($E$117,'Main Table'!$A$2:$BX$37,T130+1,FALSE)=".","#",TEXT(100*VLOOKUP($E$117,'Main Table'!$A$2:$BX$37,T130+1,FALSE)," ± 0.0")) -> ± 1.4 | P130: =IF(VLOOKUP($E$117,'Main Table'!$A$2:$BX$37,U130+1,FALSE)=".","#",TEXT(100*VLOOKUP($E$117,'Main Table'!$A$2:$BX$37,U130+1,FALSE)," ± 0.0")) -> ± 0.2 | Q130: =IF(VLOOKUP($E$117,'Main Table'!$A$2:$BX$37,V130+1,FALSE)=".","#",TEXT(100*VLOOKUP($E$117,'Main Table'!$A$2:$BX$37,V130+1,FALSE)," ± 0.0")) -> ± 0.9 | R130: =IF(VLOOKUP($E$117,'Main Table'!$A$2:$BX$37,W130+1,FALSE)=".","#",TEXT(100*VLOOKUP($E$117,'Main Table'!$A$2:$BX$37,W130+1,FALSE)," ± 0.0")) -> ± 1.4 | T130: 54 | U130: 60 | V130: 57 | W130: 51
E131: =TEXT(VLOOKUP($E$117,'Main Table'!$A$2:$BX$37,T131,FALSE),"#,##0") -> 9,400 | F131: =TEXT(VLOOKUP($E$117,'Main Table'!$A$2:$BX$37,U131,FALSE),"#,##0") -> 700 | G131: =TEXT(VLOOKUP($E$117,'Main Table'!$A$2:$BX$37,V131,FALSE),"#,##0") -> 20,800 | H131: =TEXT(VLOOKUP($E$117,'Main Table'!$A$2:$BX$37,W131,FALSE),"#,##0") -> 10,000 | J131: =IF(ISBLANK(VLOOKUP($E$117,'Main Table'!$A$39:$BX$74,T131,FALSE))=TRUE,"",VLOOKUP($E$117,'Main Table'!$A$39:$BX$74,T131,FALSE)) ->  | K131: =IF(ISBLANK(VLOOKUP($E$117,'Main Table'!$A$39:$BX$74,U131,FALSE))=TRUE,"",VLOOKUP($E$117,'Main Table'!$A$39:$BX$74,U131,FALSE)) -> * | L131: =IF(ISBLANK(VLOOKUP($E$117,'Main Table'!$A$39:$BX$74,V131,FALSE))=TRUE,"",VLOOKUP($E$117,'Main Table'!$A$39:$BX$74,V131,FALSE)) ->  | M131: =IF(ISBLANK(VLOOKUP($E$117,'Main Table'!$A$39:$BX$74,W131,FALSE))=TRUE,"",VLOOKUP($E$117,'Main Table'!$A$39:$BX$74,W131,FALSE)) ->  | T131: 38 | U131: 44 | V131: 41 | W131: 35
E132: unemployed | F132: unemployed | G132: unemployed | H132: unemployed | J132: unemployed | K132: unemployed | L132: unemployed | M132: unemployed | O132: unemployed | P132: unemployed | Q132: unemployed | R132: unemployed
E133: =TEXT(100*VLOOKUP($E$117,'Main Table'!$A$2:$BX$37,T133,FALSE),"0.0") -> 1.7 | F133: =TEXT(100*VLOOKUP($E$117,'Main Table'!$A$2:$BX$37,U133,FALSE),"0.0") -> 0.1 | G133: =TEXT(100*VLOOKUP($E$117,'Main Table'!$A$2:$BX$37,V133,FALSE),"0.0") -> 3.7 | H133: =TEXT(100*VLOOKUP($E$117,'Main Table'!$A$2:$BX$37,W133,FALSE),"0.0") -> 1.8 | J133: =IF(ISBLANK(VLOOKUP($E$117,'Main Table'!$A$39:$BX$74,T133,FALSE))=TRUE,"",VLOOKUP($E$117,'Main Table'!$A$39:$BX$74,T133,FALSE)) ->  | K133: =IF(ISBLANK(VLOOKUP($E$117,'Main Table'!$A$39:$BX$74,U133,FALSE))=TRUE,"",VLOOKUP($E$117,'Main Table'!$A$39:$BX$74,U133,FALSE)) -> * | L133: =IF(ISBLANK(VLOOKUP($E$117,'Main Table'!$A$39:$BX$74,V133,FALSE))=TRUE,"",VLOOKUP($E$117,'Main Table'!$A$39:$BX$74,V133,FALSE)) ->  | M133: =IF(ISBLANK(VLOOKUP($E$117,'Main Table'!$A$39:$BX$74,W133,FALSE))=TRUE,"",VLOOKUP($E$117,'Main Table'!$A$39:$BX$74,W133,FALSE)) ->  | O133: =IF(VLOOKUP($E$117,'Main Table'!$A$2:$BX$37,T133+1,FALSE)=".","#",TEXT(100*VLOOKUP($E$117,'Main Table'!$A$2:$BX$37,T133+1,FALSE)," ± 0.0")) -> ± 0.4 | P133: =IF(VLOOKUP($E$117,'Main Table'!$A$2:$BX$37,U133+1,FALSE)=".","#",TEXT(100*VLOOKUP($E$117,'Main Table'!$A$2:$BX$37,U133+1,FALSE)," ± 0.0")) -> # | Q133: =IF(VLOOKUP($E$117,'Main Table'!$A$2:$BX$37,V133+1,FALSE)=".","#",TEXT(100*VLOOKUP($E$117,'Main Table'!$A$2:$BX$37,V133+1,FALSE)," ± 0.0")) -> ± 0.6 | R133: =IF(VLOOKUP($E$117,'Main Table'!$A$2:$BX$37,W133+1,FALSE)=".","#",TEXT(100*VLOOKUP($E$117,'Main Table'!$A$2:$BX$37,W133+1,FALSE)," ± 0.0")) -> ± 0.4 | T133: 39 | U133: 45 | V133: 42 | W133: 36
E135: =TEXT(VLOOKUP($E$117,'Main Table'!$A$2:$BX$37,T135,FALSE),"#,##0") -> 171,400 | F135: =TEXT(VLOOKUP($E$117,'Main Table'!$A$2:$BX$37,U135,FALSE),"#,##0") -> 4,400 | G135: =TEXT(VLOOKUP($E$117,'Main Table'!$A$2:$BX$37,V135,FALSE),"#,##0") -> 71,500 | H135: =TEXT(VLOOKUP($E$117,'Main Table'!$A$2:$BX$37,W135,FALSE),"#,##0") -> 175,800 | J135: =IF(ISBLANK(VLOOKUP($E$117,'Main Table'!$A$39:$BX$74,T135,FALSE))=TRUE,"",VLOOKUP($E$117,'Main Table'!$A$39:$BX$74,T135,FALSE)) ->  | K135: =IF(ISBLANK(VLOOKUP($E$117,'Main Table'!$A$39:$BX$74,U135,FALSE))=TRUE,"",VLOOKUP($E$117,'Main Table'!$A$39:$BX$74,U135,FALSE)) ->  | L135: =IF(ISBLANK(VLOOKUP($E$117,'Main Table'!$A$39:$BX$74,V135,FALSE))=TRUE,"",VLOOKUP($E$117,'Main Table'!$A$39:$BX$74,V135,FALSE)) ->  | M135: =IF(ISBLANK(VLOOKUP($E$117,'Main Table'!$A$39:$BX$74,W135,FALSE))=TRUE,"",VLOOKUP($E$117,'Main Table'!$A$39:$BX$74,W135,FALSE)) ->  | T135: 68 | U135: 74 | V135: 71 | W135: 65
E136: =TEXT(100*VLOOKUP($E$117,'Main Table'!$A$2:$BX$37,T136,FALSE),"0.0") -> 30.3 | F136: =TEXT(100*VLOOKUP($E$117,'Main Table'!$A$2:$BX$37,U136,FALSE),"0.0") -> 0.8 | G136: =TEXT(100*VLOOKUP($E$117,'Main Table'!$A$2:$BX$37,V136,FALSE),"0.0") -> 12.6 | H136: =TEXT(100*VLOOKUP($E$117,'Main Table'!$A$2:$BX$37,W136,FALSE),"0.0") -> 31.1 | J136: =IF(ISBLANK(VLOOKUP($E$117,'Main Table'!$A$39:$BX$74,T136,FALSE))=TRUE,"",VLOOKUP($E$117,'Main Table'!$A$39:$BX$74,T136,FALSE)) ->  | K136: =IF(ISBLANK(VLOOKUP($E$117,'Main Table'!$A$39:$BX$74,U136,FALSE))=TRUE,"",VLOOKUP($E$117,'Main Table'!$A$39:$BX$74,U136,FALSE)) ->  | L136: =IF(ISBLANK(VLOOKUP($E$117,'Main Table'!$A$39:$BX$74,V136,FALSE))=TRUE,"",VLOOKUP($E$117,'Main Table'!$A$39:$BX$74,V136,FALSE)) ->  | M136: =IF(ISBLANK(VLOOKUP($E$117,'Main Table'!$A$39:$BX$74,W136,FALSE))=TRUE,"",VLOOKUP($E$117,'Main Table'!$A$39:$BX$74,W136,FALSE)) ->  | O136: =IF(VLOOKUP($E$117,'Main Table'!$A$2:$BX$37,T136+1,FALSE)=".","#",TEXT(100*VLOOKUP($E$117,'Main Table'!$A$2:$BX$37,T136+1,FALSE)," ± 0.0")) -> ± 1.4 | P136: =IF(VLOOKUP($E$117,'Main Table'!$A$2:$BX$37,U136+1,FALSE)=".","#",TEXT(100*VLOOKUP($E$117,'Main Table'!$A$2:$BX$37,U136+1,FALSE)," ± 0.0")) -> ± 0.3 | Q136: =IF(VLOOKUP($E$117,'Main Table'!$A$2:$BX$37,V136+1,FALSE)=".","#",TEXT(100*VLOOKUP($E$117,'Main Table'!$A$2:$BX$37,V136+1,FALSE)," ± 0.0")) -> ± 1.0 | R136: =IF(VLOOKUP($E$117,'Main Table'!$A$2:$BX$37,W136+1,FALSE)=".","#",TEXT(100*VLOOKUP($E$117,'Main Table'!$A$2:$BX$37,W136+1,FALSE)," ± 0.0")) -> ± 1.4 | T136: 69 | U136: 75 | V136: 72 | W136: 66
E139: Scotland Values | J139: Scotland SDC | O139: Scotland CI | T139: Scotland Look-Up Columns
E140: =TEXT(VLOOKUP("Scotland",'Main Table'!$A$2:$BX$37,T140,FALSE),"#,##0") -> 565,500 | J140: =IF(ISBLANK(VLOOKUP("Scotland",'Main Table'!$A$39:$BX$74,T140,FALSE))=TRUE,"",VLOOKUP("Scotland",'Main Table'!$A$39:$BX$74,T140,FALSE)) ->  | T140: 2
E141: ="16 to 24 year olds in "&"Scotland" -> 16 to 24 year olds in Scotland | J141: ="16 to 24 year olds in "&"Scotland" -> 16 to 24 year olds in Scotland | O141: ="16 to 24 year olds in "&"Scotland" -> 16 to 24 year olds in Scotland | T141: ="16 to 24 year olds in "&"Scotland" -> 16 to 24 year olds in Scotland
E142: FT Education | F142: PT Education | G142: Not in Education | H142: All Education | J142: FT Education | K142: PT Education | L142: Not in Education | M142: All Education | O142: FT Education | P142: PT Education | Q142: Not in Education | R142: All Education | T142: FT Education | U142: PT Education | V142: Not in Education | W142: All Education
E143: =TEXT(VLOOKUP("Scotland",'Main Table'!$A$2:$BX$37,T143,FALSE),"#,##0") -> 254,900 | F143: =TEXT(VLOOKUP("Scotland",'Main Table'!$A$2:$BX$37,U143,FALSE),"#,##0") -> 19,700 | G143: =TEXT(VLOOKUP("Scotland",'Main Table'!$A$2:$BX$37,V143,FALSE),"#,##0") -> 287,400 | H143: =TEXT(VLOOKUP("Scotland",'Main Table'!$A$2:$BX$37,W143,FALSE),"#,##0") -> 274,500 | J143: =IF(ISBLANK(VLOOKUP("Scotland",'Main Table'!$A$39:$BX$74,T143,FALSE))=TRUE,"",VLOOKUP("Scotland",'Main Table'!$A$39:$BX$74,T143,FALSE)) ->  | K143: =IF(ISBLANK(VLOOKUP("Scotland",'Main Table'!$A$39:$BX$74,U143,FALSE))=TRUE,"",VLOOKUP("Scotland",'Main Table'!$A$39:$BX$74,U143,FALSE)) ->  | L143: =IF(ISBLANK(VLOOKUP("Scotland",'Main Table'!$A$39:$BX$74,V143,FALSE))=TRUE,"",VLOOKUP("Scotland",'Main Table'!$A$39:$BX$74,V143,FALSE)) ->  | M143: =IF(ISBLANK(VLOOKUP("Scotland",'Main Table'!$A$39:$BX$74,W143,FALSE))=TRUE,"",VLOOKUP("Scotland",'Main Table'!$A$39:$BX$74,W143,FALSE)) ->  | T143: =T123 -> 8 | U143: 14 | V143: 11 | W143: 5
E144: =TEXT(100*VLOOKUP("Scotland",'Main Table'!$A$2:$BX$37,T144,FALSE),"0.0") -> 45.1 | F144: =TEXT(100*VLOOKUP("Scotland",'Main Table'!$A$2:$BX$37,U144,FALSE),"0.0") -> 3.5 | G144: =TEXT(100*VLOOKUP("Scotland",'Main Table'!$A$2:$BX$37,V144,FALSE),"0.0") -> 50.8 | H144: =TEXT(100*VLOOKUP("Scotland",'Main Table'!$A$2:$BX$37,W144,FALSE),"0.0") -> 48.5 | J144: =IF(ISBLANK(VLOOKUP("Scotland",'Main Table'!$A$39:$BX$74,T144,FALSE))=TRUE,"",VLOOKUP("Scotland",'Main Table'!$A$39:$BX$74,T144,FALSE)) ->  | K144: =IF(ISBLANK(VLOOKUP("Scotland",'Main Table'!$A$39:$BX$74,U144,FALSE))=TRUE,"",VLOOKUP("Scotland",'Main Table'!$A$39:$BX$74,U144,FALSE)) ->  | L144: =IF(ISBLANK(VLOOKUP("Scotland",'Main Table'!$A$39:$BX$74,V144,FALSE))=TRUE,"",VLOOKUP("Scotland",'Main Table'!$A$39:$BX$74,V144,FALSE)) ->  | M144: =IF(ISBLANK(VLOOKUP("Scotland",'Main Table'!$A$39:$BX$74,W144,FALSE))=TRUE,"",VLOOKUP("Scotland",'Main Table'!$A$39:$BX$74,W144,FALSE)) ->  | O144: =IF(VLOOKUP("Scotland",'Main Table'!$A$2:$BX$37,T144+1,FALSE)=".","#",TEXT(100*VLOOKUP("Scotland",'Main Table'!$A$2:$BX$37,T144+1,FALSE)," ± 0.0")) -> ± 1.5 | P144: =IF(VLOOKUP("Scotland",'Main Table'!$A$2:$BX$37,U144+1,FALSE)=".","#",TEXT(100*VLOOKUP("Scotland",'Main Table'!$A$2:$BX$37,U144+1,FALSE)," ± 0.0")) -> ± 0.6 | Q144: =IF(VLOOKUP("Scotland",'Main Table'!$A$2:$BX$37,V144+1,FALSE)=".","#",TEXT(100*VLOOKUP("Scotland",'Main Table'!$A$2:$BX$37,V144+1,FALSE)," ± 0.0")) -> ± 1.5 | R144: =IF(VLOOKUP("Scotland",'Main Table'!$A$2:$BX$37,W144+1,FALSE)=".","#",TEXT(100*VLOOKUP("Scotland",'Main Table'!$A$2:$BX$37,W144+1,FALSE)," ± 0.0")) -> ± 1.5 | T144: 9 | U144: 15 | V144: 12 | W144: 6
E145: =TEXT(VLOOKUP("Scotland",'Main Table'!$A$2:$BX$37,T145,FALSE),"#,##0") -> 83,500 | F145: =TEXT(VLOOKUP("Scotland",'Main Table'!$A$2:$BX$37,U145,FALSE),"#,##0") -> 15,200 | G145: =TEXT(VLOOKUP("Scotland",'Main Table'!$A$2:$BX$37,V145,FALSE),"#,##0") -> 215,900 | H145: =TEXT(VLOOKUP("Scotland",'Main Table'!$A$2:$BX$37,W145,FALSE),"#,##0") -> 98,700 | J145: =IF(ISBLANK(VLOOKUP("Scotland",'Main Table'!$A$39:$BX$74,T145,FALSE))=TRUE,"",VLOOKUP("Scotland",'Main Table'!$A$39:$BX$74,T145,FALSE)) ->  | K145: =IF(ISBLANK(VLOOKUP("Scotland",'Main Table'!$A$39:$BX$74,U145,FALSE))=TRUE,"",VLOOKUP("Scotland",'Main Table'!$A$39:$BX$74,U145,FALSE)) ->  | L145: =IF(ISBLANK(VLOOKUP("Scotland",'Main Table'!$A$39:$BX$74,V145,FALSE))=TRUE,"",VLOOKUP("Scotland",'Main Table'!$A$39:$BX$74,V145,FALSE)) ->  | M145: =IF(ISBLANK(VLOOKUP("Scotland",'Main Table'!$A$39:$BX$74,W145,FALSE))=TRUE,"",VLOOKUP("Scotland",'Main Table'!$A$39:$BX$74,W145,FALSE)) ->  | T145: =T125 -> 23 | U145: =U125 -> 29 | V145: 26 | W145: 20
E146: in employment | F146: in employment | G146: in employment | H146: in employment | J146: in employment | K146: in employment | L146: in employment | M146: in employment | O146: in employment | P146: in employment | Q146: in employment | R146: in employment
E147: =TEXT(100*VLOOKUP("Scotland",'Main Table'!$A$2:$BX$37,T147,FALSE),"0.0") -> 14.8 | F147: =TEXT(100*VLOOKUP("Scotland",'Main Table'!$A$2:$BX$37,U147,FALSE),"0.0") -> 2.7 | G147: =TEXT(100*VLOOKUP("Scotland",'Main Table'!$A$2:$BX$37,V147,FALSE),"0.0") -> 38.2 | H147: =TEXT(100*VLOOKUP("Scotland",'Main Table'!$A$2:$BX$37,W147,FALSE),"0.0") -> 17.5 | J147: =IF(ISBLANK(VLOOKUP("Scotland",'Main Table'!$A$39:$BX$74,T147,FALSE))=TRUE,"",VLOOKUP("Scotland",'Main Table'!$A$39:$BX$74,T147,FALSE)) ->  | K147: =IF(ISBLANK(VLOOKUP("Scotland",'Main Table'!$A$39:$BX$74,U147,FALSE))=TRUE,"",VLOOKUP("Scotland",'Main Table'!$A$39:$BX$74,U147,FALSE)) ->  | L147: =IF(ISBLANK(VLOOKUP("Scotland",'Main Table'!$A$39:$BX$74,V147,FALSE))=TRUE,"",VLOOKUP("Scotland",'Main Table'!$A$39:$BX$74,V147,FALSE)) ->  | M147: =IF(ISBLANK(VLOOKUP("Scotland",'Main Table'!$A$39:$BX$74,W147,FALSE))=TRUE,"",VLOOKUP("Scotland",'Main Table'!$A$39:$BX$74,W147,FALSE)) ->  | O147: =IF(VLOOKUP("Scotland",'Main Table'!$A$2:$BX$37,T147+1,FALSE)=".","#",TEXT(100*VLOOKUP("Scotland",'Main Table'!$A$2:$BX$37,T147+1,FALSE)," ± 0.0")) -> ± 1.1 | P147: =IF(VLOOKUP("Scotland",'Main Table'!$A$2:$BX$37,U147+1,FALSE)=".","#",TEXT(100*VLOOKUP("Scotland",'Main Table'!$A$2:$BX$37,U147+1,FALSE)," ± 0.0")) -> ± 0.5 | Q147: =IF(VLOOKUP("Scotland",'Main Table'!$A$2:$BX$37,V147+1,FALSE)=".","#",TEXT(100*VLOOKUP("Scotland",'Main Table'!$A$2:$BX$37,V147+1,FALSE)," ± 0.0")) -> ± 1.5 | R147: =IF(VLOOKUP("Scotland",'Main Table'!$A$2:$BX$37,W147+1,FALSE)=".","#",TEXT(100*VLOOKUP("Scotland",'Main Table'!$A$2:$BX$37,W147+1,FALSE)," ± 0.0")) -> ± 1.1 | T147: =T127 -> 24 | U147: 30 | V147: 27 | W147: 21
E148: =TEXT(VLOOKUP("Scotland",'Main Table'!$A$2:$BX$37,T148,FALSE),"#,##0") -> 162,000 | F148: =TEXT(VLOOKUP("Scotland",'Main Table'!$A$2:$BX$37,U148,FALSE),"#,##0") -> 3,800 | G148: =TEXT(VLOOKUP("Scotland",'Main Table'!$A$2:$BX$37,V148,FALSE),"#,##0") -> 50,700 | H148: =TEXT(VLOOKUP("Scotland",'Main Table'!$A$2:$BX$37,W148,FALSE),"#,##0") -> 165,800 | J148: =IF(ISBLANK(VLOOKUP("Scotland",'Main Table'!$A$39:$BX$74,T148,FALSE))=TRUE,"",VLOOKUP("Scotland",'Main Table'!$A$39:$BX$74,T148,FALSE)) ->  | K148: =IF(ISBLANK(VLOOKUP("Scotland",'Main Table'!$A$39:$BX$74,U148,FALSE))=TRUE,"",VLOOKUP("Scotland",'Main Table'!$A$39:$BX$74,U148,FALSE)) ->  | L148: =IF(ISBLANK(VLOOKUP("Scotland",'Main Table'!$A$39:$BX$74,V148,FALSE))=TRUE,"",VLOOKUP("Scotland",'Main Table'!$A$39:$BX$74,V148,FALSE)) ->  | M148: =IF(ISBLANK(VLOOKUP("Scotland",'Main Table'!$A$39:$BX$74,W148,FALSE))=TRUE,"",VLOOKUP("Scotland",'Main Table'!$A$39:$BX$74,W148,FALSE)) ->  | T148: =T128 -> 53 | U148: 59 | V148: 56 | W148: 50
E149: inactive | F149: inactive | G149: inactive | H149: inactive | J149: inactive | K149: inactive | L149: inactive | M149: inactive | O149: inactive | P149: inactive | Q149: inactive | R149: inactive
E150: =TEXT(100*VLOOKUP("Scotland",'Main Table'!$A$2:$BX$37,T150,FALSE),"0.0") -> 28.7 | F150: =TEXT(100*VLOOKUP("Scotland",'Main Table'!$A$2:$BX$37,U150,FALSE),"0.0") -> 0.7 | G150: =TEXT(100*VLOOKUP("Scotland",'Main Table'!$A$2:$BX$37,V150,FALSE),"0.0") -> 9.0 | H150: =TEXT(100*VLOOKUP("Scotland",'Main Table'!$A$2:$BX$37,W150,FALSE),"0.0") -> 29.3 | J150: =IF(ISBLANK(VLOOKUP("Scotland",'Main Table'!$A$39:$BX$74,T150,FALSE))=TRUE,"",VLOOKUP("Scotland",'Main Table'!$A$39:$BX$74,T150,FALSE)) ->  | K150: =IF(ISBLANK(VLOOKUP("Scotland",'Main Table'!$A$39:$BX$74,U150,FALSE))=TRUE,"",VLOOKUP("Scotland",'Main Table'!$A$39:$BX$74,U150,FALSE)) ->  | L150: =IF(ISBLANK(VLOOKUP("Scotland",'Main Table'!$A$39:$BX$74,V150,FALSE))=TRUE,"",VLOOKUP("Scotland",'Main Table'!$A$39:$BX$74,V150,FALSE)) ->  | M150: =IF(ISBLANK(VLOOKUP("Scotland",'Main Table'!$A$39:$BX$74,W150,FALSE))=TRUE,"",VLOOKUP("Scotland",'Main Table'!$A$39:$BX$74,W150,FALSE)) ->  | O150: =IF(VLOOKUP("Scotland",'Main Table'!$A$2:$BX$37,T150+1,FALSE)=".","#",TEXT(100*VLOOKUP("Scotland",'Main Table'!$A$2:$BX$37,T150+1,FALSE)," ± 0.0")) -> ± 1.4 | P150: =IF(VLOOKUP("Scotland",'Main Table'!$A$2:$BX$37,U150+1,FALSE)=".","#",TEXT(100*VLOOKUP("Scotland",'Main Table'!$A$2:$BX$37,U150+1,FALSE)," ± 0.0")) -> ± 0.2 | Q150: =IF(VLOOKUP("Scotland",'Main Table'!$A$2:$BX$37,V150+1,FALSE)=".","#",TEXT(100*VLOOKUP("Scotland",'Main Table'!$A$2:$BX$37,V150+1,FALSE)," ± 0.0")) -> ± 0.9 | R150: =IF(VLOOKUP("Scotland",'Main Table'!$A$2:$BX$37,W150+1,FALSE)=".","#",TEXT(100*VLOOKUP("Scotland",'Main Table'!$A$2:$BX$37,W150+1,FALSE)," ± 0.0")) -> ± 1.4 | T150: =T130 -> 54 | U150: 60 | V150: 57 | W150: 51
E151: =TEXT(VLOOKUP("Scotland",'Main Table'!$A$2:$BX$37,T151,FALSE),"#,##0") -> 9,400 | F151: =TEXT(VLOOKUP("Scotland",'Main Table'!$A$2:$BX$37,U151,FALSE),"#,##0") -> 700 | G151: =TEXT(VLOOKUP("Scotland",'Main Table'!$A$2:$BX$37,V151,FALSE),"#,##0") -> 20,800 | H151: =TEXT(VLOOKUP("Scotland",'Main Table'!$A$2:$BX$37,W151,FALSE),"#,##0") -> 10,000 | J151: =IF(ISBLANK(VLOOKUP("Scotland",'Main Table'!$A$39:$BX$74,T151,FALSE))=TRUE,"",VLOOKUP("Scotland",'Main Table'!$A$39:$BX$74,T151,FALSE)) ->  | K151: =IF(ISBLANK(VLOOKUP("Scotland",'Main Table'!$A$39:$BX$74,U151,FALSE))=TRUE,"",VLOOKUP("Scotland",'Main Table'!$A$39:$BX$74,U151,FALSE)) -> * | L151: =IF(ISBLANK(VLOOKUP("Scotland",'Main Table'!$A$39:$BX$74,V151,FALSE))=TRUE,"",VLOOKUP("Scotland",'Main Table'!$A$39:$BX$74,V151,FALSE)) ->  | M151: =IF(ISBLANK(VLOOKUP("Scotland",'Main Table'!$A$39:$BX$74,W151,FALSE))=TRUE,"",VLOOKUP("Scotland",'Main Table'!$A$39:$BX$74,W151,FALSE)) ->  | T151: =T131 -> 38 | U151: 44 | V151: 41 | W151: 35
E152: unemployed | F152: unemployed | G152: unemployed | H152: unemployed | J152: unemployed | K152: unemployed | L152: unemployed | M152: unemployed | O152: unemployed | P152: unemployed | Q152: unemployed | R152: unemployed
E153: =TEXT(100*VLOOKUP("Scotland",'Main Table'!$A$2:$BX$37,T153,FALSE),"0.0") -> 1.7 | F153: =TEXT(100*VLOOKUP("Scotland",'Main Table'!$A$2:$BX$37,U153,FALSE),"0.0") -> 0.1 | G153: =TEXT(100*VLOOKUP("Scotland",'Main Table'!$A$2:$BX$37,V153,FALSE),"0.0") -> 3.7 | H153: =TEXT(100*VLOOKUP("Scotland",'Main Table'!$A$2:$BX$37,W153,FALSE),"0.0") -> 1.8 | J153: =IF(ISBLANK(VLOOKUP("Scotland",'Main Table'!$A$39:$BX$74,T153,FALSE))=TRUE,"",VLOOKUP("Scotland",'Main Table'!$A$39:$BX$74,T153,FALSE)) ->  | K153: =IF(ISBLANK(VLOOKUP("Scotland",'Main Table'!$A$39:$BX$74,U153,FALSE))=TRUE,"",VLOOKUP("Scotland",'Main Table'!$A$39:$BX$74,U153,FALSE)) -> * | L153: =IF(ISBLANK(VLOOKUP("Scotland",'Main Table'!$A$39:$BX$74,V153,FALSE))=TRUE,"",VLOOKUP("Scotland",'Main Table'!$A$39:$BX$74,V153,FALSE)) ->  | M153: =IF(ISBLANK(VLOOKUP("Scotland",'Main Table'!$A$39:$BX$74,W153,FALSE))=TRUE,"",VLOOKUP("Scotland",'Main Table'!$A$39:$BX$74,W153,FALSE)) ->  | O153: =IF(VLOOKUP("Scotland",'Main Table'!$A$2:$BX$37,T153+1,FALSE)=".","#",TEXT(100*VLOOKUP("Scotland",'Main Table'!$A$2:$BX$37,T153+1,FALSE)," ± 0.0")) -> ± 0.4 | P153: =IF(VLOOKUP("Scotland",'Main Table'!$A$2:$BX$37,U153+1,FALSE)=".","#",TEXT(100*VLOOKUP("Scotland",'Main Table'!$A$2:$BX$37,U153+1,FALSE)," ± 0.0")) -> # | Q153: =IF(VLOOKUP("Scotland",'Main Table'!$A$2:$BX$37,V153+1,FALSE)=".","#",TEXT(100*VLOOKUP("Scotland",'Main Table'!$A$2:$BX$37,V153+1,FALSE)," ± 0.0")) -> ± 0.6 | R153: =IF(VLOOKUP("Scotland",'Main Table'!$A$2:$BX$37,W153+1,FALSE)=".","#",TEXT(100*VLOOKUP("Scotland",'Main Table'!$A$2:$BX$37,W153+1,FALSE)," ± 0.0")) -> ± 0.4 | T153: =T133 -> 39 | U153: 45 | V153: 42 | W153: 36
E155: =TEXT(VLOOKUP("Scotland",'Main Table'!$A$2:$BX$37,T155,FALSE),"#,##0") -> 171,400 | F155: =TEXT(VLOOKUP("Scotland",'Main Table'!$A$2:$BX$37,U155,FALSE),"#,##0") -> 4,400 | G155: =TEXT(VLOOKUP("Scotland",'Main Table'!$A$2:$BX$37,V155,FALSE),"#,##0") -> 71,500 | H155: =TEXT(VLOOKUP("Scotland",'Main Table'!$A$2:$BX$37,W155,FALSE),"#,##0") -> 175,800 | J155: =IF(ISBLANK(VLOOKUP("Scotland",'Main Table'!$A$39:$BX$74,T155,FALSE))=TRUE,"",VLOOKUP("Scotland",'Main Table'!$A$39:$BX$74,T155,FALSE)) ->  | K155: =IF(ISBLANK(VLOOKUP("Scotland",'Main Table'!$A$39:$BX$74,U155,FALSE))=TRUE,"",VLOOKUP("Scotland",'Main Table'!$A$39:$BX$74,U155,FALSE)) ->  | L155: =IF(ISBLANK(VLOOKUP("Scotland",'Main Table'!$A$39:$BX$74,V155,FALSE))=TRUE,"",VLOOKUP("Scotland",'Main Table'!$A$39:$BX$74,V155,FALSE)) ->  | M155: =IF(ISBLANK(VLOOKUP("Scotland",'Main Table'!$A$39:$BX$74,W155,FALSE))=TRUE,"",VLOOKUP("Scotland",'Main Table'!$A$39:$BX$74,W155,FALSE)) ->  | T155: =T135 -> 68 | U155: 74 | V155: 71 | W155: 65
E156: =TEXT(100*VLOOKUP("Scotland",'Main Table'!$A$2:$BX$37,T156,FALSE),"0.0") -> 30.3 | F156: =TEXT(100*VLOOKUP("Scotland",'Main Table'!$A$2:$BX$37,U156,FALSE),"0.0") -> 0.8 | G156: =TEXT(100*VLOOKUP("Scotland",'Main Table'!$A$2:$BX$37,V156,FALSE),"0.0") -> 12.6 | H156: =TEXT(100*VLOOKUP("Scotland",'Main Table'!$A$2:$BX$37,W156,FALSE),"0.0") -> 31.1 | J156: =IF(ISBLANK(VLOOKUP("Scotland",'Main Table'!$A$39:$BX$74,T156,FALSE))=TRUE,"",VLOOKUP("Scotland",'Main Table'!$A$39:$BX$74,T156,FALSE)) ->  | K156: =IF(ISBLANK(VLOOKUP("Scotland",'Main Table'!$A$39:$BX$74,U156,FALSE))=TRUE,"",VLOOKUP("Scotland",'Main Table'!$A$39:$BX$74,U156,FALSE)) ->  | L156: =IF(ISBLANK(VLOOKUP("Scotland",'Main Table'!$A$39:$BX$74,V156,FALSE))=TRUE,"",VLOOKUP("Scotland",'Main Table'!$A$39:$BX$74,V156,FALSE)) ->  | M156: =IF(ISBLANK(VLOOKUP("Scotland",'Main Table'!$A$39:$BX$74,W156,FALSE))=TRUE,"",VLOOKUP("Scotland",'Main Table'!$A$39:$BX$74,W156,FALSE)) ->  | O156: =IF(VLOOKUP("Scotland",'Main Table'!$A$2:$BX$37,T156+1,FALSE)=".","#",TEXT(100*VLOOKUP("Scotland",'Main Table'!$A$2:$BX$37,T156+1,FALSE)," ± 0.0")) -> ± 1.4 | P156: =IF(VLOOKUP("Scotland",'Main Table'!$A$2:$BX$37,U156+1,FALSE)=".","#",TEXT(100*VLOOKUP("Scotland",'Main Table'!$A$2:$BX$37,U156+1,FALSE)," ± 0.0")) -> ± 0.3 | Q156: =IF(VLOOKUP("Scotland",'Main Table'!$A$2:$BX$37,V156+1,FALSE)=".","#",TEXT(100*VLOOKUP("Scotland",'Main Table'!$A$2:$BX$37,V156+1,FALSE)," ± 0.0")) -> ± 1.0 | R156: =IF(VLOOKUP("Scotland",'Main Table'!$A$2:$BX$37,W156+1,FALSE)=".","#",TEXT(100*VLOOKUP("Scotland",'Main Table'!$A$2:$BX$37,W156+1,FALSE)," ± 0.0")) -> ± 1.4 | T156: 69 | U156: 75 | V156: 72 | W156: 66
E159: =IF(J120="***", "", E120&J120) -> 565,500 | K159: All | N159: employment | Q159: unemployed | T159: inactive | W159: Unemployed & Inactive
E160: =IF(J120="***","","16 to 24 year olds in "&$E$117) -> 16 to 24 year olds in Scotland | I160: =E117 -> Scotland | K160: Level | L160: Prop | M160: CI | N160: Level | O160: Prop | P160: CI | Q160: Level | R160: Prop | S160: CI | T160: Level | U160: Prop | V160: CI | W160: Level | X160: Prop | Y160: CI
E161: =IF(J123="***",IF(M123="***","","In Education"),"FT Education") -> FT Education | F161: =IF(K123="***","","PT Education") -> PT Education | G161: Not in Education | J161: =H122 -> All Education | K161: =H123 -> 274,500 | L161: =H124 -> 48.5 | M161: =R124 -> ± 1.5 | N161: =H125 -> 98,700 | O161: =H127 -> 17.5 | P161: =R127 -> ± 1.1 | Q161: =H131 -> 10,000 | R161: =H133 -> 1.8 | S161: =R133 -> ± 0.4 | T161: =H128 -> 165,800 | U161: =H130 -> 29.3 | V161: =R130 -> ± 1.4 | W161: =H135 -> 175,800 | X161: =H136 -> 31.1 | Y161: =R136 -> ± 1.4
E162: =IF(J123="***", IF(M123="***","",H123&M123), E123&J123) -> 254,900 | F162: =IF(K123="***", "",F123&K123) -> 19,700 | G162: =IF(L123="***", "",G123&L123) -> 287,400 | J162: =E122 -> FT Education | K162: =E123 -> 254,900 | L162: =E124 -> 45.1 | M162: =O124 -> ± 1.5 | N162: =E125 -> 83,500 | O162: =E127 -> 14.8 | P162: =O127 -> ± 1.1 | Q162: =E131 -> 9,400 | R162: =E133 -> 1.7 | S162: =O133 -> ± 0.4 | T162: =E128 -> 162,000 | U162: =E130 -> 28.7 | V162: =O130 -> ± 1.4 | W162: =E135 -> 171,400 | X162: =E136 -> 30.3 | Y162: =O136 -> ± 1.4
E163: =IF(J124="***",IF(M124="***","","("&H124&M124&" per cent)"),"("&E124&J124&" per cent)") -> (45.1 per cent) | F163: =IF(K124="***","","("&F124&K124&" per cent)") -> (3.5 per cent) | G163: =IF(L124="***","","("&G124&L124&" per cent)") -> (50.8 per cent) | J163: =F122 -> PT Education | K163: =F123 -> 19,700 | L163: =F124 -> 3.5 | M163: =P124 -> ± 0.6 | N163: =F125 -> 15,200 | O163: =F127 -> 2.7 | P163: =P127 -> ± 0.5 | Q163: =F131 -> 700 | R163: =F133 -> 0.1 | S163: =P133 -> # | T163: =F128 -> 3,800 | U163: =F130 -> 0.7 | V163: =P130 -> ± 0.2 | W163: =F135 -> 4,400 | X163: =F136 -> 0.8 | Y163: =P136 -> ± 0.3
E164: =IF(J125="***", IF(M125="***","",H125&M125), E125&J125) -> 83,500 | F164: =IF(K125="***", "", F125&K125) -> 15,200 | G164: =IF(L125="***", "", G125&L125) -> 215,900 | J164: =G122 -> Not in Education | K164: =G123 -> 287,400 | L164: =G124 -> 50.8 | M164: =Q124 -> ± 1.5 | N164: =G125 -> 215,900 | O164: =G127 -> 38.2 | P164: =Q127 -> ± 1.5 | Q164: =G131 -> 20,800 | R164: =G133 -> 3.7 | S164: =Q133 -> ± 0.6 | T164: =G128 -> 50,700 | U164: =G130 -> 9.0 | V164: =Q130 -> ± 0.9 | W164: =G135 -> 71,500 | X164: =G136 -> 12.6 | Y164: =Q136 -> ± 1.0
E165: =IF(AND(J125="***",M125="***"), "", "in employment") -> in employment | F165: =IF(K125="***", "", "in employment") -> in employment | G165: =IF(L125="***", "", "in employment") -> in employment | J165: All | K165: =TEXT(VLOOKUP($E$117,'Main Table'!$A$2:$BX$37,K166,FALSE),"#,##0") -> 565,500
E166: =IF(J127="***",IF(M127="***","***","("&H127&M127&" per cent)"),"("&E127&J127&" per cent)") -> (14.8 per cent) | F166: =IF(K127="***","","("&F127&K127&" per cent)") -> (2.7 per cent) | G166: =IF(L127="***","","("&G127&L127&" per cent)") -> (38.2 per cent) | K166: 2 | L166: 3 | M166: 4 | N166: 17 | O166: 18 | P166: 19 | Q166: 32 | R166: 33 | S166: 34 | T166: 47 | U166: 48 | V166: 49 | W166: 62 | X166: 63 | Y166: 64
E167: =IF(J128="***", IF(J135="***",IF(M128="***", IF(M135="***","",H135&M135), H128&M128),E135&J135), E128&J128) -> 162,000 | F167: =IF(K128="***", IF(K135="***","",F135&K135), F128&K128) -> 3,800 | G167: =IF(L128="***", IF(L135="***","",G135&L135), G128&L128) -> 50,700 | I167: Scotland | J167: =J161 -> All Education | K167: =H143 -> 274,500 | L167: =H144 -> 48.5 | M167: =R144 -> ± 1.5 | N167: =H145 -> 98,700 | O167: =H147 -> 17.5 | P167: =R147 -> ± 1.1 | Q167: =H151 -> 10,000 | R167: =H153 -> 1.8 | S167: =R153 -> ± 0.4 | T167: =H148 -> 165,800 | U167: =H150 -> 29.3 | V167: =R150 -> ± 1.4 | W167: =H155 -> 175,800 | X167: =H156 -> 31.1 | Y167: =R156 -> ± 1.4
E168: =IF(J128="***", IF(J135="***",IF(M128="***", IF(M135="***","","inactive & unemployed"), "inactive"),"inactive & unemployed"), "inactive") -> inactive | F168: =IF(K128="***", IF(K135="***","","inactive & unemployed"), "inactive") -> inactive | G168: =IF(L128="***", IF(L135="***","","inactive & unemployed"), "inactive") -> inactive | J168: =J162 -> FT Education | K168: =E143 -> 254,900 | L168: =E144 -> 45.1 | M168: =O144 -> ± 1.5 | N168: =E145 -> 83,500 | O168: =E147 -> 14.8 | P168: =O147 -> ± 1.1 | Q168: =E151 -> 9,400 | R168: =E153 -> 1.7 | S168: =O153 -> ± 0.4 | T168: =E148 -> 162,000 | U168: =E150 -> 28.7 | V168: =O150 -> ± 1.4 | W168: =E155 -> 171,400 | X168: =E156 -> 30.3 | Y168: =O156 -> ± 1.4
E169: =IF(J130="***",IF(J136="***",IF(M130="***",IF(M136="***","","("&H136&M136&" per cent)"),"("&H130&M130&" per cent)"),"("&E136&J136&" per cent)"),"("&E130&J130&" per cent)") -> (28.7 per cent) | F169: =IF(K130="***",IF(K136="***","","("&F136&K136&" per cent)"),"("&F130&K130&" per cent)") -> (0.7 per cent) | G169: =IF(L130="***",IF(L136="***","","("&G136&L136&" per cent)"),"("&G130&L130&" per cent)") -> (9.0 per cent) | J169: =J163 -> PT Education | K169: =F143 -> 19,700 | L169: =F144 -> 3.5 | M169: =P144 -> ± 0.6 | N169: =F145 -> 15,200 | O169: =F147 -> 2.7 | P169: =P147 -> ± 0.5 | Q169: =F151 -> 700 | R169: =F153 -> 0.1 | S169: =P153 -> # | T169: =F148 -> 3,800 | U169: =F150 -> 0.7 | V169: =P150 -> ± 0.2 | W169: =F155 -> 4,400 | X169: =F156 -> 0.8 | Y169: =P156 -> ± 0.3
E170: =IF(J131="***", IF(J135="***",IF(M131="***", "", H131&M131),""), E131&J131) -> 9,400 | F170: =IF(K131="***", "", F131&K131) -> 700* | G170: =IF(L131="***", "", G131&L131) -> 20,800 | J170: =J164 -> Not in Education | K170: =G143 -> 287,400 | L170: =G144 -> 50.8 | M170: =Q144 -> ± 1.5 | N170: =G145 -> 215,900 | O170: =G147 -> 38.2 | P170: =Q147 -> ± 1.5 | Q170: =G151 -> 20,800 | R170: =G153 -> 3.7 | S170: =Q153 -> ± 0.6 | T170: =G148 -> 50,700 | U170: =G150 -> 9.0 | V170: =Q150 -> ± 0.9 | W170: =G155 -> 71,500 | X170: =G156 -> 12.6 | Y170: =Q156 -> ± 1.0
E171: =IF(J131="***", IF(J135="***",IF(M131="***", "", "unemployed"),""), "unemployed") -> unemployed | F171: =IF(K131="***","","unemployed") -> unemployed | G171: =IF(L131="***","","unemployed") -> unemployed | J171: =J165 -> All | K171: =TEXT(VLOOKUP("Scotland",'Main Table'!$A$2:$BX$37,K166,FALSE),"#,##0") -> 565,500
E172: =IF(J133="***",IF(J136="***",IF(M133="***","","("&H133&M133&" per cent)"),""),"("&E133&J133&" per cent)") -> (1.7 per cent) | F172: =IF(K133="***","","("&F133&K133&" per cent)") -> (0.1* per cent) | G172: =IF(L133="***","","("&G133&L133&" per cent)") -> (3.7 per cent)
K173: All | N173: employment | Q173: unemployed | T173: inactive | W173: Unemployed & Inactive
I174: =I160 -> Scotland | K174: Level | L174: Prop | M174: CI | N174: Level | O174: Prop | P174: CI | Q174: Level | R174: Prop | S174: CI | T174: Level | U174: Prop | V174: CI | W174: Level | X174: Prop | Y174: CI
J175: =J161 -> All Education | K175: =IF(OR(K176<>"***",K177<>"***"),"***",M123) -> *** | L175: =IF(OR(L176<>"***",L177<>"***"),"***",M124) -> *** | M175: =L175 -> *** | N175: =IF(OR(N176<>"***",N177<>"***"),"***",M125) -> *** | O175: =IF(OR(O176<>"***",O177<>"***"),"***",M127) -> *** | P175: =O175 -> *** | Q175: =IF(OR(Q176<>"***",Q177<>"***",W176<>"***",W177<>"***"),"***",M131) -> *** | R175: =IF(OR(R176<>"***",R177<>"***",X176<>"***",X177<>"***"),"***",M133) -> *** | S175: =R175 -> *** | T175: =IF(OR(T176<>"***",T177<>"***",W176<>"***",W177<>"***"),"***",M128) -> *** | U175: =IF(OR(U176<>"***",U177<>"***",X176<>"***",X177<>"***"),"***",M130) -> *** | V175: =U175 -> *** | W175: =IF(OR(Q175<>"***",T175<>"***",Q176<>"***",T176<>"***",Q177<>"***",T177<>"***",W176<>"***",W177<>"***"),"***",M135) -> *** | X175: =IF(OR(R175<>"***",U175<>"***",R176<>"***",U176<>"***",R177<>"***",U177<>"***",X176<>"***",X177<>"***"),"***",M136) -> *** | Y175: =X175 -> ***
J176: =J162 -> FT Education | K176: =J123 ->  | L176: =J124 ->  | M176: =L176 ->  | N176: =J125 ->  | O176: =J127 ->  | P176: =O176 ->  | Q176: =J131 ->  | R176: =J133 ->  | S176: =R176 ->  | T176: =J128 ->  | U176: =J130 ->  | V176: =U176 ->  | W176: =IF(OR(Q176<>"***",T176<>"***"),"***",J135) -> *** | X176: =IF(OR(R176<>"***",U176<>"***"),"***",J136) -> *** | Y176: =X176 -> ***
J177: =J163 -> PT Education | K177: =K123 ->  | L177: =K124 ->  | M177: =L177 ->  | N177: =K125 ->  | O177: =K127 ->  | P177: =O177 ->  | Q177: =K131 -> * | R177: =K133 -> * | S177: =R177 -> * | T177: =K128 ->  | U177: =K130 ->  | V177: =U177 ->  | W177: =IF(OR(Q177<>"***",T177<>"***"),"***",K135) -> *** | X177: =IF(OR(R177<>"***",U177<>"***"),"***",K136) -> *** | Y177: =X177 -> ***
J178: =J164 -> Not in Education | K178: =L123 ->  | L178: =L124 ->  | M178: =L178 ->  | N178: =L125 ->  | O178: =L127 ->  | P178: =O178 ->  | Q178: =L131 ->  | R178: =L133 ->  | S178: =R178 ->  | T178: =L128 ->  | U178: =L130 ->  | V178: =U178 ->  | W178: =IF(Q178<>"***","***",L135) -> *** | X178: =IF(R178<>"***","***",L136) -> *** | Y178: =X178 -> ***
J179: =J165 -> All | K179: =IF(ISBLANK(VLOOKUP($E$117,'Main Table'!$A$39:$BX$74,K180,FALSE))=TRUE,"",VLOOKUP($E$117,'Main Table'!$A$39:$BX$74,K180,FALSE)) -> 
K180: 2 | L180: 3 | M180: 4 | N180: 17 | O180: 18 | P180: 19 | Q180: 32 | R180: 33 | S180: 34 | T180: 47 | U180: 48 | V180: 49 | W180: 62 | X180: 63 | Y180: 64
I181: Scotland | J181: =J175 -> All Education | K181: =IF(K175="***","***",M143) -> *** | L181: =IF(L175="***","***",M144) -> *** | M181: =L181 -> *** | N181: =IF(N175="***","***",M145) -> *** | O181: =IF(O175="***","***",M147) -> *** | P181: =O181 -> *** | Q181: =IF(Q175="***","***",M151) -> *** | R181: =IF(R175="***","***",M153) -> *** | S181: =R181 -> *** | T181: =IF(T175="***","***",M148) -> *** | U181: =IF(U175="***","***",M150) -> *** | V181: =U181 -> *** | W181: =IF(W175="***","***",M155) -> *** | X181: =IF(X175="***","***",M156) -> *** | Y181: =X181 -> ***
J182: =J176 -> FT Education | K182: =IF(K176="***","***",J143) ->  | L182: =IF(L176="***","***",J144) ->  | M182: =L182 ->  | N182: =IF(N176="***","***",J145) ->  | O182: =IF(O176="***","***",J147) ->  | P182: =O182 ->  | Q182: =IF(Q176="***","***",J151) ->  | R182: =IF(R176="***","***",J153) ->  | S182: =R182 ->  | T182: =IF(T176="***","***",J148) ->  | U182: =IF(U176="***","***",J150) ->  | V182: =U182 ->  | W182: =IF(W176="***","***",J155) -> *** | X182: =IF(X176="***","***",J156) -> *** | Y182: =X182 -> ***
J183: =J177 -> PT Education | K183: =IF(K177="***","***",K143) ->  | L183: =IF(L177="***","***",K144) ->  | M183: =L183 ->  | N183: =IF(N177="***","***",K145) ->  | O183: =IF(O177="***","***",K147) ->  | P183: =O183 ->  | Q183: =IF(Q177="***","***",K151) -> * | R183: =IF(R177="***","***",K153) -> * | S183: =R183 -> * | T183: =IF(T177="***","***",K148) ->  | U183: =IF(U177="***","***",K150) ->  | V183: =U183 ->  | W183: =IF(W177="***","***",K155) -> *** | X183: =IF(X177="***","***",K156) -> *** | Y183: =X183 -> ***
J184: =J178 -> Not in Education | K184: =IF(K178="***","***",L143) ->  | L184: =IF(L178="***","***",L144) ->  | M184: =L184 ->  | N184: =IF(N178="***","***",L145) ->  | O184: =IF(O178="***","***",L147) ->  | P184: =O184 ->  | Q184: =IF(Q178="***","***",L151) ->  | R184: =IF(R178="***","***",L153) ->  | S184: =R184 ->  | T184: =IF(T178="***","***",L148) ->  | U184: =IF(U178="***","***",L150) ->  | V184: =U184 ->  | W184: =IF(W178="***","***",L155) -> *** | X184: =IF(X178="***","***",L156) -> *** | Y184: =X184 -> ***
E185: Title | J185: =J179 -> All | K185: =IF(K179="***","***",IF(ISBLANK(VLOOKUP("Scotland",'Main Table'!$A$39:$BX$74,K180,FALSE))=TRUE,"",VLOOKUP("Scotland",'Main Table'!$A$39:$BX$74,K180,FALSE))) -> 
E186: ="A. Levels and proportions of economic activity for young people by education status, "&E117&", Jan 2018 to Dec 2020" -> A. Levels and proportions of economic activity for young people by education status, Scotland, Jan 2018 to Dec 2020
E189: EDUCATION
E190: ='Area Profile'!D7 -> Scotland
E192: All | K192: Not Full-Time Education
E194: Level | H194: Lookup | I194: 5 | K194: Level
G195: Employed | H195: Inactive | I195: ILO Unemployed | M195: Employed | N195: Inactive | O195: ILO Unemployed
E196: =E190 -> Scotland | G196: =TEXT(VLOOKUP(E196&G195&$E$192,Education!A:H,I194,FALSE),"#,##0") -> 315,900 | H196: =TEXT(VLOOKUP(E196&H195&E192,Education!A:H,I194,FALSE),"#,##0") -> 218,800 | I196: =TEXT(VLOOKUP(E196&I195&E192,Education!A:H,I194,FALSE),"#,##0") -> 30,900 | K196: =E190 -> Scotland | M196: =TEXT(VLOOKUP(K196&M195&K192,Education!A:H,I194,FALSE),"#,##0") -> 232,400 | N196: =TEXT(VLOOKUP(K196&N195&K192,Education!A:H,I194,FALSE),"#,##0") -> 55,300 | O196: =TEXT(VLOOKUP(K196&O195&K192,Education!A:H,I194,FALSE),"#,##0") -> 21,500
E197: Scotland | G197: =TEXT(VLOOKUP(E197&G195&E192,Education!A:H,I194,FALSE),"#,##0") -> 315,900 | H197: =TEXT(VLOOKUP(E197&H195&E192,Education!A:H,I194,FALSE),"#,##0") -> 218,800 | I197: =TEXT(VLOOKUP(E197&I195&E192,Education!A:H,I194,FALSE),"#,##0") -> 30,900 | K197: Scotland | M197: =TEXT(VLOOKUP(K197&M195&K192,Education!A:H,I194,FALSE),"#,##0") -> 232,400 | N197: =TEXT(VLOOKUP(K197&N195&K192,Education!A:H,I194,FALSE),"#,##0") -> 55,300 | O197: =TEXT(VLOOKUP(K197&O195&K192,Education!A:H,I194,FALSE),"#,##0") -> 21,500
E199: Rate | H199: Lookup | I199: 6 | K199: Rate
G200: Employed | H200: Inactive | I200: ILO Unemployed | M200: Employed | N200: Inactive | O200: ILO Unemployed
E201: =E190 -> Scotland | G201: =TEXT(100*VLOOKUP(E201&G200&$E$192,Education!A:H,I199,FALSE),"0.0") -> 55.9 | H201: =TEXT(100*VLOOKUP(E201&H200&E192,Education!A:H,I199,FALSE),"0.0") -> 38.7 | I201: =TEXT(100*VLOOKUP(E201&I200&E192,Education!A:H,I199,FALSE),"0.0") -> 8.9 | K201: =E190 -> Scotland | M201: =TEXT(100*VLOOKUP(K201&M200&K192,Education!A:H,I199,FALSE),"0.0") -> 75.2 | N201: =TEXT(100*VLOOKUP(K201&N200&K192,Education!A:H,I199,FALSE),"0.0") -> 17.9 | O201: =TEXT(100*VLOOKUP(K201&O200&K192,Education!A:H,I199,FALSE),"0.0") -> 8.5
E202: Scotland | G202: =TEXT(100*VLOOKUP(E202&G200&E192,Education!A:H,I199,FALSE),"0.0") -> 55.9 | H202: =TEXT(100*VLOOKUP(E202&H200&E192,Education!A:H,I199,FALSE),"0.0") -> 38.7 | I202: =TEXT(100*VLOOKUP(E202&I200&E192,Education!A:H,I199,FALSE),"0.0") -> 8.9 | K202: Scotland | M202: =TEXT(100*VLOOKUP(K202&M200&K192,Education!A:H,I199,FALSE),"0.0") -> 75.2 | N202: =TEXT(100*VLOOKUP(K202&N200&K192,Education!A:H,I199,FALSE),"0.0") -> 17.9 | O202: =TEXT(100*VLOOKUP(K202&O200&K192,Education!A:H,I199,FALSE),"0.0") -> 8.5
E204: CI | H204: Lookup | I204: 7 | K204: CI
G205: Employed | H205: Inactive | I205: ILO Unemployed | M205: Employed | N205: Inactive | O205: ILO Unemployed
E206: =E190 -> Scotland | G206: =IF(VLOOKUP(E206&G205&E192,Education!A:H,I204,FALSE)=".","#",TEXT(100*VLOOKUP(E206&G205&E192,Education!A:H,I204,FALSE)," ± 0.0")) -> ± 1.5 | H206: =IF(VLOOKUP(E206&H205&E192,Education!A:H,I204,FALSE)=".","#",TEXT(100*VLOOKUP(E206&H205&E192,Education!A:H,I204,FALSE)," ± 0.0")) -> ± 1.5 | I206: =IF(VLOOKUP(E206&I205&E192,Education!A:H,I204,FALSE)=".","#",TEXT(100*VLOOKUP(E206&I205&E192,Education!A:H,I204,FALSE)," ± 0.0")) -> ± 1.1 | K206: =E190 -> Scotland | M206: =IF(VLOOKUP(K206&M205&K192,Education!A:H,I204,FALSE)=".","#",TEXT(100*VLOOKUP(K206&M205&K192,Education!A:H,I204,FALSE)," ± 0.0")) -> ± 1.8 | N206: =IF(VLOOKUP(K206&N205&K192,Education!A:H,I204,FALSE)=".","#",TEXT(100*VLOOKUP(K206&N205&K192,Education!A:H,I204,FALSE)," ± 0.0")) -> ± 1.6 | O206: =IF(VLOOKUP(K206&O205&K192,Education!A:H,I204,FALSE)=".","#",TEXT(100*VLOOKUP(K206&O205&K192,Education!A:H,I204,FALSE)," ± 0.0")) -> ± 1.3
E207: Scotland | G207: =IF(VLOOKUP(E207&G205&E192,Education!A:H,I204,FALSE)=".","#",TEXT(100*VLOOKUP(E207&G205&E192,Education!A:H,I204,FALSE)," ± 0.0")) -> ± 1.5 | H207: =IF(VLOOKUP(E207&H205&E192,Education!A:H,I204,FALSE)=".","#",TEXT(100*VLOOKUP(E207&H205&E192,Education!A:H,I204,FALSE)," ± 0.0")) -> ± 1.5 | I207: =IF(VLOOKUP(E207&I205&E192,Education!A:H,I204,FALSE)=".","#",TEXT(100*VLOOKUP(E207&I205&E192,Education!A:H,I204,FALSE)," ± 0.0")) -> ± 1.1 | K207: Scotland | M207: =IF(VLOOKUP(K207&M205&K192,Education!A:H,I204,FALSE)=".","#",TEXT(100*VLOOKUP(K207&M205&K192,Education!A:H,I204,FALSE)," ± 0.0")) -> ± 1.8 | N207: =IF(VLOOKUP(K207&N205&K192,Education!A:H,I204,FALSE)=".","#",TEXT(100*VLOOKUP(K207&N205&K192,Education!A:H,I204,FALSE)," ± 0.0")) -> ± 1.6 | O207: =IF(VLOOKUP(K207&O205&K192,Education!A:H,I204,FALSE)=".","#",TEXT(100*VLOOKUP(K207&O205&K192,Education!A:H,I204,FALSE)," ± 0.0")) -> ± 1.3
E209: SDC | H209: Lookup | I209: 8 | K209: SDC
G210: Employed | H210: Inactive | I210: ILO Unemployed | M210: Employed | N210: Inactive | O210: ILO Unemployed
E211: =E190 -> Scotland | G211: =IF(ISBLANK(VLOOKUP(E211&G210&E192,Education!A:H,I209,FALSE))=TRUE,"",VLOOKUP(E211&G210&E192,Education!A:H,I209,FALSE)) ->  | H211: =IF(ISBLANK(VLOOKUP(E211&H210&E192,Education!A:H,I209,FALSE))=TRUE,"",VLOOKUP(E211&H210&E192,Education!A:H,I209,FALSE)) ->  | I211: =IF(ISBLANK(VLOOKUP(E211&I210&E192,Education!A:H,I209,FALSE))=TRUE,"",VLOOKUP(E211&I210&E192,Education!A:H,I209,FALSE)) ->  | K211: =E190 -> Scotland | M211: =IF(ISBLANK(VLOOKUP(K211&M210&K192,Education!A:H,I209,FALSE))=TRUE,"",VLOOKUP(K211&M210&K192,Education!A:H,I209,FALSE)) ->  | N211: =IF(ISBLANK(VLOOKUP(K211&N210&K192,Education!A:H,I209,FALSE))=TRUE,"",VLOOKUP(K211&N210&K192,Education!A:H,I209,FALSE)) ->  | O211: =IF(ISBLANK(VLOOKUP(K211&O210&K192,Education!A:H,I209,FALSE))=TRUE,"",VLOOKUP(K211&O210&K192,Education!A:H,I209,FALSE)) -> 
E212: Scotland | G212: =IF(ISBLANK(VLOOKUP(E212&G210&E192,Education!A:H,I209,FALSE))=TRUE,"",VLOOKUP(E212&G210&E192,Education!A:H,I209,FALSE)) ->  | H212: =IF(ISBLANK(VLOOKUP(E212&H210&E192,Education!A:H,I209,FALSE))=TRUE,"",VLOOKUP(E212&H210&E192,Education!A:H,I209,FALSE)) ->  | I212: =IF(ISBLANK(VLOOKUP(E212&I210&E192,Education!A:H,I209,FALSE))=TRUE,"",VLOOKUP(E212&I210&E192,Education!A:H,I209,FALSE)) ->  | K212: Scotland | M212: =IF(ISBLANK(VLOOKUP(K212&M210&K192,Education!A:H,I209,FALSE))=TRUE,"",VLOOKUP(K212&M210&K192,Education!A:H,I209,FALSE)) ->  | N212: =IF(ISBLANK(VLOOKUP(K212&N210&K192,Education!A:H,I209,FALSE))=TRUE,"",VLOOKUP(K212&N210&K192,Education!A:H,I209,FALSE)) ->  | O212: =IF(ISBLANK(VLOOKUP(K212&O210&K192,Education!A:H,I209,FALSE))=TRUE,"",VLOOKUP(K212&O210&K192,Education!A:H,I209,FALSE)) -> 
E214: Area | K214: Area
G215: Employment | H215: Inactivity | I215: Unemployment | M215: Employment | N215: Inactivity | O215: Unemployment
E216: =E190 -> Scotland | G216: =IF(G211="***","",G201&G211) -> 55.9 | H216: =IF(H211="***","",H201&H211) -> 38.7 | I216: 8.9 | K216: =E190 -> Scotland | M216: =IF(M211="***","",M201&M211) -> 75.2 | N216: =IF(N211="***","",N201&N211) -> 17.9 | O216: 8.5
E217: =IF($E$190="Scotland","","Scotland") ->  | G217: =IF(E217="","",IF(G212="***","",G202&G212)) ->  | H217: =IF(E217="","",IF(H212="***","",H202&H212)) ->  | I217: =IF(E217="","",IF(I212="***","",I202&I212)) ->  | K217: =IF($E$190="Scotland","","Scotland") ->  | M217: =IF(K217="","",IF(M212="***","",M202&M212)) ->  | N217: =IF(K217="","",IF(N212="***","",N202&N212)) ->  | O217: =IF(K217="","",IF(O212="***","",O202&O212)) -> 
E219: Text | K219: Text
E220: Employment | F220: =IF(VALUE(G201)<VALUE(G202)," a lower ",IF(VALUE(G201)>VALUE(G202)," a higher "," the same ")) -> the same | G220: =IF(F220=F221," but"," and") -> but | K220: Employment | L220: =IF(VALUE(M201)<VALUE(M202)," a lower ",IF(VALUE(M201)>VALUE(M202)," a higher "," the same ")) -> the same | M220: =IF(L220=L221," but"," and") -> but
E221: Unemployment | F221: =IF(VALUE(I201)<VALUE(I202)," a lower ",IF(VALUE(I201)>VALUE(I202)," a higher "," the same ")) -> the same | K221: Unemployment | L221: =IF(VALUE(O201)<VALUE(O202)," a lower ",IF(VALUE(O201)>VALUE(O202)," a higher "," the same ")) -> the same
E223: Employment SDC | F223: =IF(G211="***",IF(G212="***",0,0),IF(G212="***",0,1)) -> 1 | G223: Unemployment SDC | H223: =IF(I211="***",IF(I212="***",0,0),IF(I212="***",0,1)) -> 1 | K223: Employment SDC | L223: =IF(M211="***",IF(M212="***",0,0),IF(M212="***",0,1)) -> 1 | M223: Unemployment SDC | N223: =IF(O211="***",IF(O212="***",0,0),IF(O212="***",0,1)) -> 1
E224: Indicators | F224: =IF(F220=F221,1,0) -> 1 | G224: Combined | H224: =F223&H223&F224 -> 111 | K224: Indicators | L224: =IF(L220=L221,1,0) -> 1 | M224: Combined | N224: =L223&N223&L224 -> 111
E226: =F220&"employment rate compared to Scotland" -> the same employment rate compared to Scotland | K226: =L220&"employment rate compared to Scotland" -> the same employment rate compared to Scotland
E227: =F221&"unemployment rate compared to Scotland" -> the same unemployment rate compared to Scotland | K227: =L221&"unemployment rate compared to Scotland" -> the same unemployment rate compared to Scotland
G229: ="Data for the period 2018 to 2020 is considered unreliable for comparing the employment and unemployment rates between "&E190&" and Scotland." -> Data for the period 2018 to 2020 is considered unreliable for comparing the employment and unemployment rates between Scotland and Scotland.
E231: =IF(OR(H224="110",H224="111")," has"&E226&G220&E227,IF(OR(H224="101",H224="100")=TRUE," has"&E226,IF(OR(H224="011",H224="010")=TRUE," has"&E227,G229))) -> has the same employment rate compared to Scotland but the same unemployment rate compared to Scotland
K232: =IF(OR(N224="110",N224="111")," has"&K226&M220&K227,IF(OR(N224="101",N224="100")=TRUE," has"&K226,IF(OR(N224="011",N224="010")=TRUE," has"&K227,M229))) -> has the same employment rate compared to Scotland but the same unemployment rate compared to Scotland
E233: =IF(OR(H224="001",H224="000")=TRUE,E231,E190&E231&".") -> Scotland has the same employment rate compared to Scotland but the same unemployment rate compared to Scotland.
K234: =IF(OR(N224="001",N224="000")=TRUE,K232,E190&K232&".") -> Scotland has the same employment rate compared to Scotland but the same unemployment rate compared to Scotland.
E235: =IF($E$190="Scotland","Scotland employment, inactivity, and unemployment rates",E233) -> Scotland employment, inactivity, and unemployment rates
K236: =IF($E$190="Scotland","Scotland employment, inactivity, and unemployment rates",K234) -> Scotland employment, inactivity, and unemployment rates
E237: Title
E238: =IF(E190="Scotland","B1. Levels and proportions of economic activity for young people including those in full-time education, "&E190&", Jan 2018 to Dec 2020","B1. Levels and proportions of economic activity for young people including those in full-time education, "&E190&" and Scotland, Jan 2018 to Dec 2020") -> B1. Levels and proportions of economic activity for young people including those in full-time education, Scotland, Jan 2018 to Dec 2020
K239: =IF(E190="Scotland","B2. Levels and proportions of economic activity for young people excluding those in full-time education, "&E190&", Jan 2018 to Dec 2020","B2. Levels and proportions of economic activity for young people excluding those in full-time education, "&E190&" and Scotland, Jan 2018 to Dec 2020") -> B2. Levels and proportions of economic activity for young people excluding those in full-time education, Scotland, Jan 2018 to Dec 2020
E241: PARTICIPATION
E242: ='Area Profile'!D7 -> Scotland
F244: Remaining | G244: Education | H244: Employment | I244: Training and Development | K244: Year | L244: =E242 -> Scotland | M244: Text | N244: =IF(E242="Scotland","","Scotland") -> 
... 87 more rows

Sheet Claimant Count (hidden)
A1: Claimant count by sex and age
A2: ONS Crown Copyright Reserved [from Nomis]
A4: gender | B4: Total
A5: age | B5: Aged 16-24
A6: measure | B6: Claimant count
A7: Levels
A8: local authority: district / unitary | B8: 2019-10-01 | C8: 2020-10-01 | D8: 2020-11-01 | E8: 2020-12-01 | F8: 2021-01-01 | G8: 2021-02-01 | H8: 2021-03-01 | I8: 2021-04-01 | J8: 2021-05-01 | K8: 2021-06-01 | L8: 2021-07-01 | M8: 2021-08-01 | N8: 2021-09-01 | O8: 2021-10-01 | R8: Population 2019 | S8: Population Current
A9: Aberdeen City | B9: 725 | C9: 1725 | D9: 1670 | E9: 1650 | F9: 1680 | G9: 1695 | H9: 1735 | I9: 1680 | J9: 1575 | K9: 1495 | L9: 1450 | M9: 1330 | N9: 1235 | O9: 1140 | Q9: Aberdeen City | R9: 26964 | S9: 26343
A10: Aberdeenshire | B10: 670 | C10: 1260 | D10: 1225 | E10: 1210 | F10: 1270 | G10: 1305 | H10: 1330 | I10: 1320 | J10: 1220 | K10: 1145 | L10: 1115 | M10: 1040 | N10: 915 | O10: 855 | Q10: Aberdeenshire | R10: 22752 | S10: 22420
A11: Angus | B11: 465 | C11: 785 | D11: 780 | E11: 765 | F11: 775 | G11: 790 | H11: 775 | I11: 755 | J11: 705 | K11: 660 | L11: 660 | M11: 660 | N11: 605 | O11: 545 | Q11: Angus | R11: 10717 | S11: 10612
A12: Argyll and Bute | B12: 210 | C12: 485 | D12: 495 | E12: 480 | F12: 465 | G12: 495 | H12: 495 | I12: 485 | J12: 435 | K12: 415 | L12: 385 | M12: 360 | N12: 325 | O12: 325 | Q12: Argyll and Bute | R12: 8181 | S12: 8121
A13: City of Edinburgh | B13: 1005 | C13: 2915 | D13: 2940 | E13: 2850 | F13: 2785 | G13: 2915 | H13: 2925 | I13: 2915 | J13: 2650 | K13: 2380 | L13: 2290 | M13: 2120 | N13: 1830 | O13: 1705 | Q13: City of Edinburgh | R13: 64964 | S13: 64473
A14: Clackmannanshire | B14: 325 | C14: 510 | D14: 475 | E14: 480 | F14: 460 | G14: 455 | H14: 460 | I14: 455 | J14: 435 | K14: 375 | L14: 355 | M14: 355 | N14: 310 | O14: 280 | Q14: Clackmannanshire | R14: 5097 | S14: 4965
A15: Dumfries and Galloway | B15: 550 | C15: 860 | D15: 855 | E15: 840 | F15: 840 | G15: 855 | H15: 870 | I15: 835 | J15: 755 | K15: 670 | L15: 645 | M15: 615 | N15: 545 | O15: 525 | Q15: Dumfries and Galloway | R15: 13169 | S15: 12791
A16: Dundee City | B16: 970 | C16: 1550 | D16: 1495 | E16: 1440 | F16: 1435 | G16: 1495 | H16: 1495 | I16: 1450 | J16: 1390 | K16: 1325 | L16: 1385 | M16: 1335 | N16: 1165 | O16: 1040 | Q16: Dundee City | R16: 20881 | S16: 20568
A17: East Ayrshire | B17: 755 | C17: 1185 | D17: 1175 | E17: 1135 | F17: 1170 | G17: 1175 | H17: 1165 | I17: 1155 | J17: 1075 | K17: 1000 | L17: 975 | M17: 945 | N17: 840 | O17: 780 | Q17: East Ayrshire | R17: 11779 | S17: 11548
A18: East Dunbartonshire | B18: 235 | C18: 565 | D18: 505 | E18: 500 | F18: 455 | G18: 485 | H18: 490 | I18: 445 | J18: 415 | K18: 390 | L18: 400 | M18: 365 | N18: 340 | O18: 315 | Q18: East Dunbartonshire | R18: 10263 | S18: 10112
A19: East Lothian | B19: 290 | C19: 630 | D19: 625 | E19: 620 | F19: 650 | G19: 710 | H19: 705 | I19: 685 | J19: 620 | K19: 545 | L19: 520 | M19: 495 | N19: 440 | O19: 410 | Q19: East Lothian | R19: 9729 | S19: 9559
A20: East Renfrewshire | B20: 185 | C20: 475 | D20: 445 | E20: 440 | F20: 435 | G20: 430 | H20: 425 | I20: 410 | J20: 370 | K20: 345 | L20: 340 | M20: 300 | N20: 270 | O20: 240 | Q20: East Renfrewshire | R20: 9562 | S20: 9583
A21: Falkirk | B21: 680 | C21: 1230 | D21: 1255 | E21: 1240 | F21: 1230 | G21: 1235 | H21: 1255 | I21: 1245 | J21: 1135 | K21: 1075 | L21: 1030 | M21: 965 | N21: 860 | O21: 835 | Q21: Falkirk | R21: 15575 | S21: 15413
A22: Fife | B22: 1765 | C22: 3085 | D22: 2945 | E22: 2830 | F22: 2880 | G22: 3005 | H22: 3065 | I22: 2995 | J22: 2860 | K22: 2695 | L22: 2630 | M22: 2505 | N22: 2160 | O22: 2015 | Q22: Fife | R22: 40061 | S22: 39787
A23: Glasgow City | B23: 3250 | C23: 6515 | D23: 6435 | E23: 6235 | F23: 6040 | G23: 6130 | H23: 6210 | I23: 6085 | J23: 5745 | K23: 5415 | L23: 5355 | M23: 5145 | N23: 4530 | O23: 4250 | Q23: Glasgow City | R23: 79760 | S23: 78893
A24: Highland | B24: 585 | C24: 1440 | D24: 1380 | E24: 1360 | F24: 1385 | G24: 1430 | H24: 1485 | I24: 1435 | J24: 1280 | K24: 1145 | L24: 985 | M24: 880 | N24: 745 | O24: 690 | Q24: Highland | R24: 21239 | S24: 20937
A25: Inverclyde | B25: 465 | C25: 615 | D25: 585 | E25: 540 | F25: 515 | G25: 545 | H25: 570 | I25: 620 | J25: 565 | K25: 510 | L25: 545 | M25: 520 | N25: 440 | O25: 425 | Q25: Inverclyde | R25: 7607 | S25: 7420
A26: Midlothian | B26: 310 | C26: 650 | D26: 660 | E26: 670 | F26: 645 | G26: 655 | H26: 680 | I26: 650 | J26: 610 | K26: 570 | L26: 515 | M26: 480 | N26: 385 | O26: 365 | Q26: Midlothian | R26: 8547 | S26: 8494
A27: Moray | B27: 290 | C27: 545 | D27: 535 | E27: 535 | F27: 570 | G27: 650 | H27: 660 | I27: 595 | J27: 565 | K27: 515 | L27: 480 | M27: 445 | N27: 390 | O27: 370 | Q27: Moray | R27: 9272 | S27: 9019
A28: Na h-Eileanan Siar | B28: 45 | C28: 130 | D28: 115 | E28: 115 | F28: 120 | G28: 125 | H28: 120 | I28: 120 | J28: 105 | K28: 90 | L28: 80 | M28: 80 | N28: 60 | O28: 60 | Q28: Na h-Eileanan Siar | R28: 2083 | S28: 2087
A29: North Ayrshire | B29: 860 | C29: 1385 | D29: 1370 | E29: 1365 | F29: 1325 | G29: 1380 | H29: 1390 | I29: 1340 | J29: 1235 | K29: 1115 | L29: 1130 | M29: 1070 | N29: 900 | O29: 855 | Q29: North Ayrshire | R29: 13456 | S29: 13130
A30: North Lanarkshire | B30: 1595 | C30: 2990 | D30: 2885 | E30: 2800 | F30: 2750 | G30: 2850 | H30: 2900 | I30: 2815 | J30: 2610 | K30: 2415 | L30: 2445 | M30: 2280 | N30: 2020 | O30: 1855 | Q30: North Lanarkshire | R30: 35916 | S30: 35816
A31: Orkney Islands | B31: 40 | C31: 75 | D31: 80 | E31: 80 | F31: 80 | G31: 80 | H31: 95 | I31: 90 | J31: 75 | K31: 65 | L31: 55 | M31: 50 | N31: 55 | O31: 55 | Q31: Orkney Islands | R31: 1847 | S31: 1793
A32: Perth and Kinross | B32: 355 | C32: 865 | D32: 855 | E32: 830 | F32: 835 | G32: 850 | H32: 860 | I32: 840 | J32: 745 | K32: 695 | L32: 670 | M32: 650 | N32: 550 | O32: 480 | Q32: Perth and Kinross | R32: 13744 | S32: 13644
A33: Renfrewshire | B33: 700 | C33: 1395 | D33: 1350 | E33: 1330 | F33: 1320 | G33: 1350 | H33: 1385 | I33: 1340 | J33: 1215 | K33: 1080 | L33: 1105 | M33: 1010 | N33: 840 | O33: 770 | Q33: Renfrewshire | R33: 18058 | S33: 17820
A34: Scottish Borders | B34: 370 | C34: 790 | D34: 780 | E34: 775 | F34: 780 | G34: 805 | H34: 780 | I34: 770 | J34: 695 | K34: 660 | L34: 615 | M34: 585 | N34: 520 | O34: 475 | Q34: Scottish Borders | R34: 10111 | S34: 10030
A35: Shetland Islands | B35: 55 | C35: 105 | D35: 100 | E35: 100 | F35: 105 | G35: 100 | H35: 105 | I35: 105 | J35: 85 | K35: 85 | L35: 80 | M35: 75 | N35: 65 | O35: 75 | Q35: Shetland Islands | R35: 2082 | S35: 2068
A36: South Ayrshire | B36: 525 | C36: 960 | D36: 915 | E36: 945 | F36: 950 | G36: 960 | H36: 965 | I36: 940 | J36: 855 | K36: 775 | L36: 730 | M36: 665 | N36: 555 | O36: 520 | Q36: South Ayrshire | R36: 10302 | S36: 10118
A37: South Lanarkshire | B37: 1305 | C37: 2495 | D37: 2365 | E37: 2315 | F37: 2260 | G37: 2290 | H37: 2390 | I37: 2315 | J37: 2145 | K37: 1965 | L37: 1925 | M37: 1835 | N37: 1580 | O37: 1455 | Q37: South Lanarkshire | R37: 30800 | S37: 30514
A38: Stirling | B38: 295 | C38: 575 | D38: 545 | E38: 555 | F38: 560 | G38: 570 | H38: 590 | I38: 580 | J38: 510 | K38: 470 | L38: 435 | M38: 395 | N38: 365 | O38: 335 | Q38: Stirling | R38: 12313 | S38: 12156
A39: West Dunbartonshire | B39: 510 | C39: 905 | D39: 880 | E39: 870 | F39: 875 | G39: 870 | H39: 875 | I39: 870 | J39: 835 | K39: 765 | L39: 730 | M39: 700 | N39: 650 | O39: 585 | Q39: West Dunbartonshire | R39: 8712 | S39: 8540
A40: West Lothian | B40: 720 | C40: 1400 | D40: 1350 | E40: 1320 | F40: 1320 | G40: 1365 | H40: 1435 | I40: 1430 | J40: 1305 | K40: 1210 | L40: 1150 | M40: 1060 | N40: 950 | O40: 850 | Q40: West Lothian | R40: 18179 | S40: 18108
A41: Scotland | B41: 21095 | C41: 41090 | D41: 40065 | E41: 39220 | F41: 38965 | G41: 40050 | H41: 40665 | I41: 39760 | J41: 36820 | K41: 34060 | L41: 33215 | M41: 31315 | N41: 27445 | O41: 25480 | Q41: Scotland | R41: 573722 | S41: 566882
A43: This datas may be affected by a geographical definition issue. For further information see https://www.nomisweb.co.uk/articles/1199.aspx.
A44: Under Universal Credit a broader span of claimants are required to look for work than under Jobseeker's Allowance. As Universal Credit Full Service is rolled out in particular areas, the number of people recorded as being on the Claimant Count is therefore likely to rise.
A45: This dataset only includes claimant records with information to sufficiently classify them within the dataset. Totals from this dataset may not tally with the total number of claim records shown elsewhere as a small number of records do not have this information.
A46: All data are rounded to the nearest 5 and may not precisely add to the sum of the number of people claiming JSA, published on Nomis, and the number of people claiming Universal Credit required to seek work, published by DWP, due to independent rounding.
A48: Rates
A49: local authority: district / unitary | B49: =B8 -> 2019-10-01 | C49: =C8 -> 2020-10-01 | D49: =D8 -> 2020-11-01 | E49: 2020-12-01 | F49: 2021-01-01 | G49: 2021-02-01 | H49: 2021-03-01 | I49: 2021-04-01 | J49: 2021-05-01 | K49: 2021-06-01 | L49: 2021-07-01 | M49: 2021-08-01 | N49: 2021-09-01 | O49: 2021-10-01 | Q49: Rank
A50: Aberdeen City | B50: =100*B9/$R9 -> 2.688770212 | C50: =100*C9/$S9 -> 6.548229131 | D50: =100*D9/$S9 -> 6.339445014 | E50: 6.263523517 | F50: 6.377405762 | G50: 6.434346885 | H50: 6.58618988 | I50: 6.377405762 | J50: 5.978817902 | K50: 5.675131914 | L50: 5.504308545 | M50: 5.048779562 | N50: 4.68815245 | O50: 4.327525339 | Q50: =_xlfn.RANK.EQ(O50,$O$50:$O$81)+COUNTIF($O$50:O50,O50)-1 -> 16
A51: Aberdeenshire | B51: =100*B10/$R10 -> 2.944796062 | C51: =100*C10/$S10 -> 5.619982159 | D51: 5.463871543 | E51: 5.396966994 | F51: 5.664585192 | G51: 5.820695807 | H51: 5.93220339 | I51: 5.887600357 | J51: 5.441570027 | K51: 5.107047279 | L51: 4.97323818 | M51: 4.638715433 | N51: 4.08117752 | O51: 3.813559322 | Q51: =_xlfn.RANK.EQ(O51,$O$50:$O$81)+COUNTIF($O$50:O51,O51)-1 -> 23
A52: Angus | B52: =100*B11/$R11 -> 4.338900812 | C52: 7.397286091 | D52: 7.350169619 | E52: 7.208820204 | F52: 7.303053147 | G52: 7.444402563 | H52: 7.303053147 | I52: 7.11458726 | J52: 6.643422541 | K52: 6.219374293 | L52: 6.219374293 | M52: 6.219374293 | N52: 5.701093102 | O52: 5.135695439 | Q52: =_xlfn.RANK.EQ(O52,$O$50:$O$81)+COUNTIF($O$50:O52,O52)-1 -> 10
A53: Argyll and Bute | B53: =100*B12/$R12 -> 2.566923359 | C53: 5.972170915 | D53: 6.09530846 | E53: 5.910602143 | F53: 5.725895826 | G53: 6.09530846 | H53: 6.09530846 | I53: 5.972170915 | J53: 5.356483192 | K53: 5.110208102 | L53: 4.740795469 | M53: 4.432951607 | N53: 4.001970201 | O53: 4.001970201 | Q53: =_xlfn.RANK.EQ(O53,$O$50:$O$81)+COUNTIF($O$50:O53,O53)-1 -> 22
A54: City of Edinburgh | B54: =100*B13/$R13 -> 1.547010652 | C54: 4.521272471 | D54: 4.560048392 | E54: 4.420455074 | F54: 4.319637678 | G54: 4.521272471 | H54: 4.536782839 | I54: 4.521272471 | J54: 4.110247701 | K54: 3.691467746 | L54: 3.551874428 | M54: 3.28819816 | N54: 2.838397469 | O54: 2.64451786 | Q54: =_xlfn.RANK.EQ(O54,$O$50:$O$81)+COUNTIF($O$50:O54,O54)-1 -> 31
A55: Clackmannanshire | B55: =100*B14/$R14 -> 6.376299784 | C55: 10.27190332 | D55: 9.566968781 | E55: 9.667673716 | F55: 9.264853978 | G55: 9.164149043 | H55: 9.264853978 | I55: 9.164149043 | J55: 8.761329305 | K55: 7.552870091 | L55: 7.150050352 | M55: 7.150050352 | N55: 6.243705942 | O55: 5.639476334 | Q55: =_xlfn.RANK.EQ(O55,$O$50:$O$81)+COUNTIF($O$50:O55,O55)-1 -> 5
A56: Dumfries and Galloway | B56: =100*B15/$R15 -> 4.176475055 | C56: 6.723477445 | D56: 6.68438746 | E56: 6.567117504 | F56: 6.567117504 | G56: 6.68438746 | H56: 6.801657415 | I56: 6.528027519 | J56: 5.902587757 | K56: 5.23805801 | L56: 5.042608084 | M56: 4.808068173 | N56: 4.260808381 | O56: 4.10444844 | Q56: =_xlfn.RANK.EQ(O56,$O$50:$O$81)+COUNTIF($O$50:O56,O56)-1 -> 20
A57: Dundee City | B57: =100*B16/$R16 -> 4.64537139 | C57: 7.535978219 | D57: 7.26857254 | E57: 7.001166861 | F57: 6.976857254 | G57: 7.26857254 | H57: 7.26857254 | I57: 7.049786075 | J57: 6.75807079 | K57: 6.442045897 | L57: 6.733761182 | M57: 6.490665111 | N57: 5.664138468 | O57: 5.056398289 | Q57: =_xlfn.RANK.EQ(O57,$O$50:$O$81)+COUNTIF($O$50:O57,O57)-1 -> 12
A58: East Ayrshire | B58: =100*B17/$R17 -> 6.4097122 | C58: 10.26151715 | D58: 10.17492206 | E58: 9.828541739 | F58: 10.13162452 | G58: 10.17492206 | H58: 10.08832698 | I58: 10.0017319 | J58: 9.30897125 | K58: 8.65950814 | L58: 8.443020436 | M58: 8.183235192 | N58: 7.273986838 | O58: 6.754416349 | Q58: =_xlfn.RANK.EQ(O58,$O$50:$O$81)+COUNTIF($O$50:O58,O58)-1 -> 2
A59: East Dunbartonshire | B59: =100*B18/$R18 -> 2.289778817 | C59: 5.587420886 | D59: 4.994066456 | E59: 4.944620253 | F59: 4.49960443 | G59: 4.796281646 | H59: 4.845727848 | I59: 4.400712025 | J59: 4.10403481 | K59: 3.856803797 | L59: 3.955696203 | M59: 3.609572785 | N59: 3.362341772 | O59: 3.115110759 | Q59: =_xlfn.RANK.EQ(O59,$O$50:$O$81)+COUNTIF($O$50:O59,O59)-1 -> 27
A60: East Lothian | B60: =100*B19/$R19 -> 2.980779114 | C60: 6.590647557 | D60: 6.538340831 | E60: 6.486034104 | F60: 6.799874464 | G60: 7.427555184 | H60: 7.375248457 | I60: 7.16602155 | J60: 6.486034104 | K60: 5.701433204 | L60: 5.439899571 | M60: 5.178365938 | N60: 4.602991945 | O60: 4.289151585 | Q60: =_xlfn.RANK.EQ(O60,$O$50:$O$81)+COUNTIF($O$50:O60,O60)-1 -> 19
A61: East Renfrewshire | B61: =100*B20/$R20 -> 1.934741686 | C61: 4.956694146 | D61: 4.643639779 | E61: 4.591464051 | F61: 4.539288323 | G61: 4.487112595 | H61: 4.434936867 | I61: 4.278409684 | J61: 3.861003861 | K61: 3.600125222 | L61: 3.547949494 | M61: 3.130543671 | N61: 2.817489304 | O61: 2.504434937 | Q61: =_xlfn.RANK.EQ(O61,$O$50:$O$81)+COUNTIF($O$50:O61,O61)-1 -> 32
A62: Falkirk | B62: =100*B21/$R21 -> 4.365971108 | C62: 7.98027639 | D62: 8.14247713 | E62: 8.045156686 | F62: 7.98027639 | G62: 8.012716538 | H62: 8.14247713 | I62: 8.077596834 | J62: 7.363913579 | K62: 6.974631804 | L62: 6.682670473 | M62: 6.26094855 | N62: 5.579705443 | O62: 5.417504704 | Q62: =_xlfn.RANK.EQ(O62,$O$50:$O$81)+COUNTIF($O$50:O62,O62)-1 -> 6
A63: Fife | B63: =100*B22/$R22 -> 4.405781184 | C63: 7.753788926 | D63: 7.401915198 | E63: 7.112876065 | F63: 7.238545253 | G63: 7.552718225 | H63: 7.703521251 | I63: 7.527584387 | J63: 7.188277578 | K63: 6.773569256 | L63: 6.610199311 | M63: 6.29602634 | N63: 5.42890894 | O63: 5.064468294 | Q63: =_xlfn.RANK.EQ(O63,$O$50:$O$81)+COUNTIF($O$50:O63,O63)-1 -> 11
A64: Glasgow City | B64: =100*B23/$R23 -> 4.074724173 | C64: 8.258020357 | D64: 8.15661719 | E64: 7.903109275 | F64: 7.655939057 | G64: 7.770017619 | H64: 7.871420785 | I64: 7.712978338 | J64: 7.282014881 | K64: 6.86372682 | L64: 6.787674445 | M64: 6.521491134 | N64: 5.741954293 | O64: 5.38704321 | Q64: =_xlfn.RANK.EQ(O64,$O$50:$O$81)+COUNTIF($O$50:O64,O64)-1 -> 7
A65: Highland | B65: =100*B24/$R24 -> 2.754366966 | C65: 6.877776186 | D65: 6.591202178 | E65: 6.495677509 | F65: 6.615083345 | G65: 6.830013851 | H65: 7.092706692 | I65: 6.853895018 | J65: 6.113578832 | K65: 5.468787314 | L65: 4.70458996 | M65: 4.203085447 | N65: 3.558293929 | O65: 3.295601089 | Q65: =_xlfn.RANK.EQ(O65,$O$50:$O$81)+COUNTIF($O$50:O65,O65)-1 -> 26
A66: Inverclyde | B66: =100*B25/$R25 -> 6.112790851 | C66: 8.288409704 | D66: 7.884097035 | E66: 7.277628032 | F66: 6.940700809 | G66: 7.345013477 | H66: 7.681940701 | I66: 8.355795148 | J66: 7.614555256 | K66: 6.873315364 | L66: 7.345013477 | M66: 7.008086253 | N66: 5.929919137 | O66: 5.727762803 | Q66: =_xlfn.RANK.EQ(O66,$O$50:$O$81)+COUNTIF($O$50:O66,O66)-1 -> 4
A67: Midlothian | B67: =100*B26/$R26 -> 3.627003627 | C67: 7.65246056 | D67: 7.770190723 | E67: 7.887920885 | F67: 7.593595479 | G67: 7.711325642 | H67: 8.005651048 | I67: 7.65246056 | J67: 7.181539911 | K67: 6.710619261 | L67: 6.063103367 | M67: 5.651047798 | N67: 4.532611255 | O67: 4.29715093 | Q67: =_xlfn.RANK.EQ(O67,$O$50:$O$81)+COUNTIF($O$50:O67,O67)-1 -> 18
A68: Moray | B68: =100*B27/$R27 -> 3.12769629 | C68: 6.042798536 | D68: 5.931921499 | E68: 5.931921499 | F68: 6.31999113 | G68: 7.207007429 | H68: 7.317884466 | I68: 6.597183723 | J68: 6.264552611 | K68: 5.710167424 | L68: 5.322097794 | M68: 4.934028163 | N68: 4.324204457 | O68: 4.102450383 | Q68: =_xlfn.RANK.EQ(O68,$O$50:$O$81)+COUNTIF($O$50:O68,O68)-1 -> 21
A69: Na h-Eileanan Siar | B69: =100*B28/$R28 -> 2.160345655 | C69: 6.229036895 | D69: 5.510301869 | E69: 5.510301869 | F69: 5.749880211 | G69: 5.989458553 | H69: 5.749880211 | I69: 5.749880211 | J69: 5.031145184 | K69: =100*K28/$S28 -> 4.312410158 | L69: 3.833253474 | M69: 3.833253474 | N69: 2.874940105 | O69: 2.874940105 | Q69: =_xlfn.RANK.EQ(O69,$O$50:$O$81)+COUNTIF($O$50:O69,O69)-1 -> 29
A70: North Ayrshire | B70: =100*B29/$R29 -> 6.391200951 | C70: 10.54836253 | D70: 10.43412034 | E70: 10.3960396 | F70: 10.09139375 | G70: 10.5102818 | H70: 10.58644326 | I70: 10.20563595 | J70: 9.405940594 | K70: 8.492003046 | L70: 8.60624524 | M70: 8.149276466 | N70: 6.854531607 | O70: 6.511805027 | Q70: =_xlfn.RANK.EQ(O70,$O$50:$O$81)+COUNTIF($O$50:O70,O70)-1 -> 3
A71: North Lanarkshire | B71: =100*B30/$R30 -> 4.440917697 | C71: 8.348224257 | D71: 8.055059191 | E71: 7.81773509 | F71: 7.678132678 | G71: 7.957337503 | H71: 8.096939915 | I71: 7.859615814 | J71: 7.287245924 | K71: 6.742796516 | L71: 6.826557963 | M71: 6.365870002 | N71: 5.639937458 | O71: 5.179249497 | Q71: =_xlfn.RANK.EQ(O71,$O$50:$O$81)+COUNTIF($O$50:O71,O71)-1 -> 8
A72: Orkney Islands | B72: =100*B31/$R31 -> 2.165674066 | C72: 4.182933631 | D72: 4.461795873 | E72: 4.461795873 | F72: 4.461795873 | G72: 4.461795873 | H72: 5.298382599 | I72: 5.019520357 | J72: 4.182933631 | K72: 3.625209147 | L72: 3.067484663 | M72: 2.788622421 | N72: 3.067484663 | O72: 3.067484663 | Q72: =_xlfn.RANK.EQ(O72,$O$50:$O$81)+COUNTIF($O$50:O72,O72)-1 -> 28
A73: Perth and Kinross | B73: =100*B32/$R32 -> 2.582945285 | C73: 6.339783055 | D73: 6.266490765 | E73: 6.083260041 | F73: 6.119906186 | G73: 6.22984462 | H73: 6.30313691 | I73: 6.156552331 | J73: 5.460275579 | K73: 5.093814131 | L73: 4.910583407 | M73: 4.763998827 | N73: 4.031075931 | O73: 3.518029903 | Q73: =_xlfn.RANK.EQ(O73,$O$50:$O$81)+COUNTIF($O$50:O73,O73)-1 -> 25
A74: Renfrewshire | B74: =100*B33/$R33 -> 3.876398272 | C74: 7.828282828 | D74: 7.575757576 | E74: 7.46352413 | F74: 7.407407407 | G74: 7.575757576 | H74: 7.772166105 | I74: 7.519640853 | J74: 6.818181818 | K74: 6.060606061 | L74: 6.200897868 | M74: 5.667789001 | N74: 4.713804714 | O74: 4.320987654 | Q74: =_xlfn.RANK.EQ(O74,$O$50:$O$81)+COUNTIF($O$50:O74,O74)-1 -> 17
A75: Scottish Borders | B75: =100*B34/$R34 -> 3.659380872 | C75: 7.876370887 | D75: 7.77666999 | E75: 7.726819541 | F75: 7.77666999 | G75: 8.025922233 | H75: 7.77666999 | I75: 7.676969093 | J75: 6.929212363 | K75: 6.580259222 | L75: 6.131605184 | M75: 5.832502493 | N75: 5.18444666 | O75: 4.735792622 | Q75: =_xlfn.RANK.EQ(O75,$O$50:$O$81)+COUNTIF($O$50:O75,O75)-1 -> 14
A76: Shetland Islands | B76: =100*B35/$R35 -> 2.641690682 | C76: 5.077369439 | D76: 4.835589942 | E76: 4.835589942 | F76: 5.077369439 | G76: 4.835589942 | H76: 5.077369439 | I76: 5.077369439 | J76: 4.110251451 | K76: 4.110251451 | L76: 3.868471954 | M76: 3.626692456 | N76: 3.143133462 | O76: 3.626692456 | Q76: =_xlfn.RANK.EQ(O76,$O$50:$O$81)+COUNTIF($O$50:O76,O76)-1 -> 24
A77: South Ayrshire | B77: =100*B36/$R36 -> 5.096097845 | C77: 9.488041115 | D77: 9.043289188 | E77: 9.339790472 | F77: 9.389207353 | G77: 9.488041115 | H77: 9.537457996 | I77: 9.290373592 | J77: 8.450286618 | K77: 7.659616525 | L77: 7.214864598 | M77: 6.572445147 | N77: 5.48527377 | O77: 5.139355604 | Q77: =_xlfn.RANK.EQ(O77,$O$50:$O$81)+COUNTIF($O$50:O77,O77)-1 -> 9
A78: South Lanarkshire | B78: =100*B37/$R37 -> 4.237012987 | C78: 8.176574687 | D78: 7.750540735 | E78: 7.586681523 | F78: 7.40643639 | G78: 7.504751917 | H78: 7.832470341 | I78: 7.586681523 | J78: 7.029560202 | K78: 6.439667038 | L78: 6.308579668 | M78: 6.013633086 | N78: 5.177951104 | O78: 4.768303074 | Q78: =_xlfn.RANK.EQ(O78,$O$50:$O$81)+COUNTIF($O$50:O78,O78)-1 -> 13
A79: Stirling | B79: =100*B38/$R38 -> 2.395841793 | C79: 4.730174399 | D79: 4.483382692 | E79: 4.565646594 | F79: 4.606778546 | G79: 4.689042448 | H79: 4.853570253 | I79: 4.771306351 | J79: 4.195459033 | K79: 3.866403422 | L79: 3.578479763 | M79: 3.249424153 | N79: 3.002632445 | O79: 2.755840737 | Q79: =_xlfn.RANK.EQ(O79,$O$50:$O$81)+COUNTIF($O$50:O79,O79)-1 -> 30
A80: West Dunbartonshire | B80: =100*B39/$R39 -> 5.85399449 | C80: 10.5971897 | D80: 10.30444965 | E80: 10.18735363 | F80: 10.24590164 | G80: 10.18735363 | H80: 10.24590164 | I80: 10.18735363 | J80: 9.777517564 | K80: 8.957845433 | L80: 8.548009368 | M80: 8.196721311 | N80: 7.611241218 | O80: 6.850117096 | Q80: =_xlfn.RANK.EQ(O80,$O$50:$O$81)+COUNTIF($O$50:O80,O80)-1 -> 1
A81: West Lothian | B81: =100*B40/$R40 -> 3.960613895 | C81: 7.731389441 | D81: 7.45526839 | E81: 7.289595759 | F81: 7.289595759 | G81: 7.538104705 | H81: 7.924674177 | I81: 7.897062072 | J81: 7.206759443 | K81: 6.682129446 | L81: 6.350784184 | M81: 5.853766291 | N81: 5.246299978 | O81: 4.694057875 | Q81: =_xlfn.RANK.EQ(O81,$O$50:$O$81)+COUNTIF($O$50:O81,O81)-1 -> 15
A82: Scotland | B82: =100*B41/$R41 -> 3.676867891 | C82: 7.24842207 | D82: 7.067608426 | E82: 6.918547423 | F82: 6.873564516 | G82: 7.064962373 | H82: 7.173450559 | I82: 7.013805342 | J82: 6.495178891 | K82: 6.008305079 | L82: 5.859244075 | M82: 5.524077321 | N82: 4.841395564 | O82: 4.494762578

Sheet Participation (hidden)
D1: Participating Status Grouped
A2: Year | B2: Local Authority | C2: Total Cohort (16-19) | D2: Participating (16-19) | E2: Participating in Education (16-19) | F2: Participating in Employment (16-19) | G2: Participating in Other Training & Development (16-19)
A3: 2021 | B3: Aberdeen City | C3: 6375 | D3: 89.44313725 | E3: 74.80784314 | F3: 13.00392157 | G3: 1.631372549
A4: 2021 | B4: Aberdeenshire | C4: 10608 | D4: 92.21342383 | E4: 75.37707391 | F4: 15.78996983 | G4: 1.04638009
A5: 2021 | B5: Angus | C5: 4792 | D5: 92.4457429 | E5: 75.52170284 | F5: 15.63021703 | G5: 1.293823038
A6: 2021 | B6: Argyll and Bute | C6: 3168 | D6: 93.5290404 | E6: 70.54924242 | F6: 21.875 | G6: 1.10479798
A7: 2021 | B7: Clackmannanshire | C7: 1943 | D7: 89.96397324 | E7: 67.37004632 | F7: 18.373649 | G7: 4.220277921
A8: 2021 | B8: Dumfries and Galloway | C8: 5830 | D8: 93.10463122 | E8: 73.46483705 | F8: 18.49056604 | G8: 1.14922813
A9: 2021 | B9: Dundee City | C9: 5529 | D9: 89.90775909 | E9: 73.37674082 | F9: 13.61909929 | G9: 2.911918973
A10: 2021 | B10: East Ayrshire | C10: 4956 | D10: 91.0008071 | E10: 76.17029863 | F10: 12.57062147 | G10: 2.259887006
A11: 2021 | B11: East Dunbartonshire | C11: 5086 | D11: 96.65749115 | E11: 86.90523004 | F11: 8.808493905 | G11: 0.9437672041
A12: 2021 | B12: East Lothian | C12: 4160 | D12: 94.01442308 | E12: 71.63461538 | F12: 20.04807692 | G12: 2.331730769
A13: 2021 | B13: East Renfrewshire | C13: 5206 | D13: 97.1955436 | E13: 88.35958509 | F13: 8.02919708 | G13: 0.8067614291
A14: 2021 | B14: City of Edinburgh | C14: 13468 | D14: 92.52301752 | E14: 76.12860113 | F14: 14.56786457 | G14: 1.826551827
A15: 2021 | B15: Na h-Eileanan Siar | C15: 1052 | D15: 95.62737643 | E15: 70.15209125 | F15: 22.90874525 | G15: 2.566539924
A16: 2021 | B16: Falkirk | C16: 6431 | D16: 91.82086767 | E16: 71.73067952 | F16: 17.94433214 | G16: 2.14585601
A17: 2021 | B17: Fife | C17: 14995 | D17: 91.03034345 | E17: 73.09103034 | F17: 16.11203735 | G17: 1.827275759
A18: 2021 | B18: Glasgow City | C18: 20073 | D18: 90.54451253 | E18: 75.34499078 | F18: 12.52428635 | G18: 2.675235391
A19: 2021 | B19: Highland | C19: 9570 | D19: 92.64367816 | E19: 70.32392894 | F19: 20.58516196 | G19: 1.734587252
A20: 2021 | B20: Inverclyde | C20: 3051 | D20: 93.31366765 | E20: 81.15372009 | F20: 10.78334972 | G20: 1.376597837
A21: 2021 | B21: Midlothian | C21: 3690 | D21: 93.71273713 | E21: 67.69647696 | F21: 24.44444444 | G21: 1.571815718
A22: 2021 | B22: Moray | C22: 3572 | D22: 91.76931691 | E22: 70.10078387 | F22: 20.01679731 | G22: 1.651735722
A23: 2021 | B23: North Ayrshire | C23: 5730 | D23: 90.12216405 | E23: 75.32286213 | F23: 13.2460733 | G23: 1.553228621
A24: 2021 | B24: North Lanarkshire | C24: 15194 | D24: 91.45715414 | E24: 73.45662762 | F24: 16.34855864 | G24: 1.651967882
A25: 2021 | B25: Orkney Islands | C25: 829 | D25: 93.3655006 | E25: 67.79252111 | F25: 24.6079614 | G25: 0.9650180941
A26: 2021 | B26: Perth and Kinross | C26: 5454 | D26: 93.60102677 | E26: 75.92592593 | F26: 16.11661166 | G26: 1.558489182
A27: 2021 | B27: Renfrewshire | C27: 7126 | D27: 92.99747404 | E27: 78.30479933 | F27: 13.41566096 | G27: 1.277013752
A28: 2021 | B28: Scottish Borders | C28: 4677 | D28: 93.79944409 | E28: 74.10733376 | F28: 18.30233055 | G28: 1.389779773
A29: 2021 | B29: Shetland Islands | C29: 983 | D29: 97.04984741 | E29: 70.39674466 | F29: 22.99084435 | G29: 3.662258393
A30: 2021 | B30: South Ayrshire | C30: 4360 | D30: 91.78899083 | E30: 76.28440367 | F30: 12.6146789 | G30: 2.889908257
A31: 2021 | B31: South Lanarkshire | C31: 13530 | D31: 92.79379157 | E31: 75.38802661 | F31: 15.00369549 | G31: 2.402069475
A32: 2021 | B32: Stirling | C32: 4041 | D32: 93.71442712 | E32: 77.28285078 | F32: 14.9715417 | G32: 1.460034645
A33: 2021 | B33: West Dunbartonshire | C33: 3814 | D33: 90.79706345 | E33: 73.07288936 | F33: 15.78395385 | G33: 1.940220241
A34: 2021 | B34: West Lothian | C34: 8236 | D34: 91.28217581 | E34: 72.07382224 | F34: 17.26566294 | G34: 1.942690627
A35: 2021 | B35: Scotland | C35: 207529 | D35: 92.17940625 | E35: 74.79870283 | F35: 15.53180519 | G35: 1.848898226
A36: 2020 | B36: Aberdeen City | C36: 6378 | D36: 89.87143305 | E36: 72.18563813 | F36: 16.33740985 | G36: 1.348385074
A37: 2020 | B37: Aberdeenshire | C37: 10567 | D37: 92.28730955 | E37: 72.92514432 | F37: 18.32118861 | G37: 1.040976625
A38: 2020 | B38: Angus | C38: 4762 | D38: 91.43217136 | E38: 73.14153717 | F38: 17.11465771 | G38: 1.17597648
A39: 2020 | B39: Argyll and Bute | C39: 3185 | D39: 94.06593407 | E39: 70.29827316 | F39: 22.63736264 | G39: 1.130298273
A40: 2020 | B40: Clackmannanshire | C40: 1949 | D40: 89.32786044 | E40: 64.95638789 | F40: 21.6521293 | G40: 2.719343253
A41: 2020 | B41: Dumfries and Galloway | C41: 5728 | D41: 91.89944134 | E41: 69.30865922 | F41: 20.75768156 | G41: 1.833100559
A42: 2020 | B42: Dundee City | C42: 5397 | D42: 90.03149898 | E42: 69.89068001 | F42: 17.00944969 | G42: 3.131369279
A43: 2020 | B43: East Ayrshire | C43: 4909 | D43: 89.97759218 | E43: 72.3568955 | F43: 15.19657771 | G43: 2.424118965
A44: 2020 | B44: East Dunbartonshire | C44: 5036 | D44: 96.1477363 | E44: 84.47180302 | F44: 10.66322478 | G44: 1.012708499
A45: 2020 | B45: East Lothian | C45: 4082 | D45: 94.46349829 | E45: 68.29985301 | F45: 23.39539441 | G45: 2.768250857
A46: 2020 | B46: East Renfrewshire | C46: 5107 | D46: 96.74955943 | E46: 87.13530448 | F46: 8.791854318 | G46: 0.8224006266
A47: 2020 | B47: City of Edinburgh | C47: 13390 | D47: 92.39731143 | E47: 72.77072442 | F47: 17.40851382 | G47: 2.218073189
A48: 2020 | B48: Na h-Eileanan Siar | C48: 1068 | D48: 95.50561798 | E48: 69.85018727 | F48: 23.68913858 | G48: 1.966292135
A49: 2020 | B49: Falkirk | C49: 6375 | D49: 91.92156863 | E49: 68.8 | F49: 21.34901961 | G49: 1.77254902
A50: 2020 | B50: Fife | C50: 14728 | D50: 91.72324823 | E50: 70.78354155 | F50: 18.84166214 | G50: 2.098044541
A51: 2020 | B51: Glasgow City | C51: 19930 | D51: 89.5183141 | E51: 71.80632213 | F51: 15.53938786 | G51: 2.172604114
A52: 2020 | B52: Highland | C52: 9622 | D52: 93.58761172 | E52: 67.58470173 | F52: 23.59176886 | G52: 2.411141135
A53: 2020 | B53: Inverclyde | C53: 3037 | D53: 92.92064537 | E53: 78.86071781 | F53: 12.74283833 | G53: 1.317089233
A54: 2020 | B54: Midlothian | C54: 3708 | D54: 93.36569579 | E54: 61.67745415 | F54: 30.23193096 | G54: 1.45631068
A55: 2020 | B55: Moray | C55: 3592 | D55: 93.48552339 | E55: 67.90089087 | F55: 23.99777283 | G55: 1.586859688
A56: 2020 | B56: North Ayrshire | C56: 5711 | D56: 90.56207319 | E56: 73.99754859 | F56: 14.97110839 | G56: 1.593416214
A57: 2020 | B57: North Lanarkshire | C57: 15139 | D57: 90.71272871 | E57: 70.54627122 | F57: 18.77931171 | G57: 1.387145782
A58: 2020 | B58: Orkney Islands | C58: 831 | D58: 94.70517449 | E58: 66.18531889 | F58: 27.31648616 | G58: 1.203369434
A59: 2020 | B59: Perth and Kinross | C59: 5458 | D59: 94.75998534 | E59: 71.69292781 | F59: 21.08831074 | G59: 1.978746794
A60: 2020 | B60: Renfrewshire | C60: 7144 | D60: 92.3712206 | E60: 74.77603583 | F60: 16.25139978 | G60: 1.343784994
A61: 2020 | B61: Scottish Borders | C61: 4622 | D61: 94.5478148 | E61: 72.04673302 | F61: 21.0298572 | G61: 1.471224578
A62: 2020 | B62: Shetland Islands | C62: 977 | D62: 96.82702149 | E62: 66.63254862 | F62: 27.63561924 | G62: 2.558853634
A63: 2020 | B63: South Ayrshire | C63: 4402 | D63: 91.3675602 | E63: 74.8296229 | F63: 14.42526124 | G63: 2.112676056
A64: 2020 | B64: South Lanarkshire | C64: 13416 | D64: 92.70274299 | E64: 72.7340489 | F64: 17.47167561 | G64: 2.497018485
A65: 2020 | B65: Stirling | C65: 3991 | D65: 94.38737159 | E65: 75.04384866 | F65: 17.43923829 | G65: 1.90428464
A66: 2020 | B66: West Dunbartonshire | C66: 3707 | D66: 90.20771513 | E66: 70.65012139 | F66: 17.75020232 | G66: 1.807391422
A67: 2020 | B67: West Lothian | C67: 8033 | D67: 92.40632391 | E67: 70.6709822 | F67: 20.05477406 | G67: 1.680567658
A68: 2020 | B68: Scotland | C68: 205981 | D68: 92.13228405 | E68: 72.02363325 | F68: 18.25896563 | G68: 1.849685165

Sheet Employment (hidden)
A1: Lookup | B1: Year | C1: Area | D1: Level | E1: SDC | F1: Rate | G1: CI
A2: =B2&C2 -> 2005Aberdeen City | B2: 2005 | C2: Aberdeen City | D2: 19200 | F2: 0.629 | G2: 0.074
A3: =B3&C3 -> 2005Aberdeenshire | B3: 2005 | C3: Aberdeenshire | D3: 16100 | F3: 0.696 | G3: 0.076
A4: 2005Angus | B4: 2005 | C4: Angus | D4: 6800 | F4: 0.654 | G4: 0.075
A5: 2005Argyll and Bute | B5: 2005 | C5: Argyll and Bute | D5: 5100 | F5: 0.651 | G5: 0.074
A6: 2005City of Edinburgh | B6: 2005 | C6: City of Edinburgh | D6: 34600 | F6: 0.539 | G6: 0.071
A7: 2005Clackmannanshire | B7: 2005 | C7: Clackmannanshire | D7: 3200 | F7: 0.728 | G7: 0.106
A8: 2005Dumfries and Galloway | B8: 2005 | C8: Dumfries and Galloway | D8: 9000 | F8: 0.675 | G8: 0.069
A9: 2005Dundee City | B9: 2005 | C9: Dundee City | D9: 13200 | F9: 0.607 | G9: 0.059
A10: 2005East Ayrshire | B10: 2005 | C10: East Ayrshire | D10: 7900 | F10: 0.617 | G10: 0.064
A11: 2005East Dunbartonshire | B11: 2005 | C11: East Dunbartonshire | D11: 6900 | F11: 0.611 | G11: 0.067
A12: 2005East Lothian | B12: 2005 | C12: East Lothian | D12: 5400 | F12: 0.659 | G12: 0.084
A13: 2005East Renfrewshire | B13: 2005 | C13: East Renfrewshire | D13: 5900 | F13: 0.633 | G13: 0.072
A14: 2005Falkirk | B14: 2005 | C14: Falkirk | D14: 11600 | F14: 0.737 | G14: 0.071
A15: 2005Fife | B15: 2005 | C15: Fife | D15: 27200 | F15: 0.66 | G15: 0.07
A16: 2005Glasgow City | B16: 2005 | C16: Glasgow City | D16: 47800 | F16: 0.584 | G16: 0.066
A17: 2005Highland | B17: 2005 | C17: Highland | D17: 15000 | F17: 0.751 | G17: 0.074
A18: 2005Inverclyde | B18: 2005 | C18: Inverclyde | D18: 5300 | F18: 0.572 | G18: 0.07
A19: 2005Midlothian | B19: 2005 | C19: Midlothian | D19: 5900 | F19: 0.708 | G19: 0.078
A20: 2005Moray | B20: 2005 | C20: Moray | D20: 6400 | F20: 0.728 | G20: 0.07
A21: 2005Na h-Eileanan Siar | B21: 2005 | C21: Na h-Eileanan Siar | D21: 2100 | F21: 0.649 | G21: 0.141
A22: 2005North Ayrshire | B22: 2005 | C22: North Ayrshire | D22: 9200 | F22: 0.631 | G22: 0.064
A23: 2005North Lanarkshire | B23: 2005 | C23: North Lanarkshire | D23: 24600 | F23: 0.641 | G23: 0.061
A24: 2005Orkney Islands | B24: 2005 | C24: Orkney Islands | D24: 1300 | F24: 0.796 | G24: 0.132
A25: 2005Perth and Kinross | B25: 2005 | C25: Perth and Kinross | D25: 7500 | F25: 0.635 | G25: 0.084
A26: 2005Renfrewshire | B26: 2005 | C26: Renfrewshire | D26: 12600 | F26: 0.664 | G26: 0.061
A27: 2005Scotland | B27: 2005 | C27: Scotland | D27: 373400 | F27: 0.637 | G27: 0.013
A28: 2005Scottish Borders | B28: 2005 | C28: Scottish Borders | D28: 5600 | F28: 0.602 | G28: 0.079
A29: 2005Shetland Islands | B29: 2005 | C29: Shetland Islands | D29: 1700 | F29: 0.748 | G29: 0.136
A30: 2005South Ayrshire | B30: 2005 | C30: South Ayrshire | D30: 6300 | F30: 0.579 | G30: 0.075
A31: 2005South Lanarkshire | B31: 2005 | C31: South Lanarkshire | D31: 23300 | F31: 0.696 | G31: 0.069
A32: 2005Stirling | B32: 2005 | C32: Stirling | D32: 7300 | F32: 0.675 | G32: 0.085
A33: 2005West Dunbartonshire | B33: 2005 | C33: West Dunbartonshire | D33: 6500 | F33: 0.594 | G33: 0.064
A34: 2005West Lothian | B34: 2005 | C34: West Lothian | D34: 12900 | F34: 0.733 | G34: 0.073
A35: 2006Aberdeen City | B35: 2006 | C35: Aberdeen City | D35: 20600 | F35: 0.673 | G35: 0.071
A36: 2006Aberdeenshire | B36: 2006 | C36: Aberdeenshire | D36: 16500 | F36: 0.702 | G36: 0.076
A37: 2006Angus | B37: 2006 | C37: Angus | D37: 7300 | F37: 0.685 | G37: 0.069
A38: 2006Argyll and Bute | B38: 2006 | C38: Argyll and Bute | D38: 5400 | F38: 0.672 | G38: 0.079
A39: 2006City of Edinburgh | B39: 2006 | C39: City of Edinburgh | D39: 38300 | F39: 0.588 | G39: 0.069
A40: 2006Clackmannanshire | B40: 2006 | C40: Clackmannanshire | D40: 2600 | F40: 0.639 | G40: 0.12
A41: 2006Dumfries and Galloway | B41: 2006 | C41: Dumfries and Galloway | D41: 9600 | F41: 0.714 | G41: 0.069
A42: 2006Dundee City | B42: 2006 | C42: Dundee City | D42: 12800 | F42: 0.583 | G42: 0.063
A43: 2006East Ayrshire | B43: 2006 | C43: East Ayrshire | D43: 8800 | F43: 0.675 | G43: 0.067
A44: 2006East Dunbartonshire | B44: 2006 | C44: East Dunbartonshire | D44: 8200 | F44: 0.735 | G44: 0.063
A45: 2006East Lothian | B45: 2006 | C45: East Lothian | D45: 5500 | F45: 0.654 | G45: 0.076
A46: 2006East Renfrewshire | B46: 2006 | C46: East Renfrewshire | D46: 6100 | F46: 0.66 | G46: 0.074
A47: 2006Falkirk | B47: 2006 | C47: Falkirk | D47: 11300 | F47: 0.715 | G47: 0.07
A48: 2006Fife | B48: 2006 | C48: Fife | D48: 26800 | F48: 0.645 | G48: 0.071
A49: 2006Glasgow City | B49: 2006 | C49: Glasgow City | D49: 43400 | F49: 0.524 | G49: 0.069
A50: 2006Highland | B50: 2006 | C50: Highland | D50: 13800 | F50: 0.681 | G50: 0.089
A51: 2006Inverclyde | B51: 2006 | C51: Inverclyde | D51: 5200 | F51: 0.555 | G51: 0.074
A52: 2006Midlothian | B52: 2006 | C52: Midlothian | D52: 5800 | F52: 0.702 | G52: 0.084
A53: 2006Moray | B53: 2006 | C53: Moray | D53: 5900 | F53: 0.651 | G53: 0.071
A54: 2006Na h-Eileanan Siar | B54: 2006 | C54: Na h-Eileanan Siar | D54: 2200 | E54: * | F54: 0.707 | G54: 0.147
A55: 2006North Ayrshire | B55: 2006 | C55: North Ayrshire | D55: 8400 | F55: 0.579 | G55: 0.068
A56: 2006North Lanarkshire | B56: 2006 | C56: North Lanarkshire | D56: 22900 | F56: 0.599 | G56: 0.066
A57: 2006Orkney Islands | B57: 2006 | C57: Orkney Islands | D57: 1600 | E57: * | F57: 0.849 | G57: 0.128
A58: 2006Perth and Kinross | B58: 2006 | C58: Perth and Kinross | D58: 7600 | F58: 0.628 | G58: 0.079
A59: 2006Renfrewshire | B59: 2006 | C59: Renfrewshire | D59: 12200 | F59: 0.645 | G59: 0.068
A60: 2006Scotland | B60: 2006 | C60: Scotland | D60: 371500 | F60: 0.629 | G60: 0.014
A61: 2006Scottish Borders | B61: 2006 | C61: Scottish Borders | D61: 6100 | F61: 0.638 | G61: 0.085
A62: 2006Shetland Islands | B62: 2006 | C62: Shetland Islands | D62: 1900 | F62: 0.762 | G62: 0.129
A63: 2006South Ayrshire | B63: 2006 | C63: South Ayrshire | D63: 6400 | F63: 0.585 | G63: 0.067
A64: 2006South Lanarkshire | B64: 2006 | C64: South Lanarkshire | D64: 22300 | F64: 0.676 | G64: 0.074
A65: 2006Stirling | B65: 2006 | C65: Stirling | D65: 7200 | F65: 0.643 | G65: 0.086
A66: 2006West Dunbartonshire | B66: 2006 | C66: West Dunbartonshire | D66: 6700 | F66: 0.612 | G66: 0.065
A67: =B67&C67 -> 2006West Lothian | B67: 2006 | C67: West Lothian | D67: 12300 | F67: 0.689 | G67: 0.074
A68: 2007Aberdeen City | B68: 2007 | C68: Aberdeen City | D68: 23100 | F68: 0.742 | G68: 0.067
A69: 2007Aberdeenshire | B69: 2007 | C69: Aberdeenshire | D69: 18800 | F69: 0.784 | G69: 0.07
A70: 2007Angus | B70: 2007 | C70: Angus | D70: 7400 | F70: 0.692 | G70: 0.065
A71: 2007Argyll and Bute | B71: 2007 | C71: Argyll and Bute | D71: 6000 | F71: 0.733 | G71: 0.084
A72: 2007City of Edinburgh | B72: 2007 | C72: City of Edinburgh | D72: 38100 | F72: 0.582 | G72: 0.074
A73: 2007Clackmannanshire | B73: 2007 | C73: Clackmannanshire | D73: 2600 | F73: 0.641 | G73: 0.126
A74: 2007Dumfries and Galloway | B74: 2007 | C74: Dumfries and Galloway | D74: 8800 | F74: 0.642 | G74: 0.08
A75: 2007Dundee City | B75: 2007 | C75: Dundee City | D75: 13900 | F75: 0.631 | G75: 0.066
A76: 2007East Ayrshire | B76: 2007 | C76: East Ayrshire | D76: 7600 | F76: 0.58 | G76: 0.071
A77: 2007East Dunbartonshire | B77: 2007 | C77: East Dunbartonshire | D77: 7100 | F77: 0.643 | G77: 0.075
A78: 2007East Lothian | B78: 2007 | C78: East Lothian | D78: 5400 | F78: 0.618 | G78: 0.075
A79: 2007East Renfrewshire | B79: 2007 | C79: East Renfrewshire | D79: 6300 | F79: 0.682 | G79: 0.072
A80: 2007Falkirk | B80: 2007 | C80: Falkirk | D80: 11300 | F80: 0.715 | G80: 0.075
A81: 2007Fife | B81: 2007 | C81: Fife | D81: 24200 | F81: 0.584 | G81: 0.078
A82: 2007Glasgow City | B82: 2007 | C82: Glasgow City | D82: 42000 | F82: 0.503 | G82: 0.065
A83: 2007Highland | B83: 2007 | C83: Highland | D83: 14500 | F83: 0.701 | G83: 0.098
A84: 2007Inverclyde | B84: 2007 | C84: Inverclyde | D84: 5500 | F84: 0.591 | G84: 0.077
A85: 2007Midlothian | B85: 2007 | C85: Midlothian | D85: 5300 | F85: 0.628 | G85: 0.098
A86: 2007Moray | B86: 2007 | C86: Moray | D86: 6100 | F86: 0.666 | G86: 0.064
A87: 2007Na h-Eileanan Siar | B87: 2007 | C87: Na h-Eileanan Siar | D87: 1800 | E87: * | F87: 0.655 | G87: 0.16
A88: 2007North Ayrshire | B88: 2007 | C88: North Ayrshire | D88: 9100 | F88: 0.623 | G88: 0.069
A89: 2007North Lanarkshire | B89: 2007 | C89: North Lanarkshire | D89: 24700 | F89: 0.647 | G89: 0.067
A90: 2007Orkney Islands | B90: 2007 | C90: Orkney Islands | D90: 1600 | E90: * | F90: 0.677 | G90: 0.173
A91: 2007Perth and Kinross | B91: 2007 | C91: Perth and Kinross | D91: 8100 | F91: 0.648 | G91: 0.075
A92: 2007Renfrewshire | B92: 2007 | C92: Renfrewshire | D92: 12800 | F92: 0.674 | G92: 0.07
A93: 2007Scotland | B93: 2007 | C93: Scotland | D93: 377600 | F93: 0.634 | G93: 0.014
A94: 2007Scottish Borders | B94: 2007 | C94: Scottish Borders | D94: 6900 | F94: 0.713 | G94: 0.078
A95: 2007Shetland Islands | B95: 2007 | C95: Shetland Islands | D95: 2100 | F95: 0.804 | G95: 0.119
A96: 2007South Ayrshire | B96: 2007 | C96: South Ayrshire | D96: 7100 | F96: 0.644 | G96: 0.068
A97: 2007South Lanarkshire | B97: 2007 | C97: South Lanarkshire | D97: 22900 | F97: 0.696 | G97: 0.064
A98: 2007Stirling | B98: 2007 | C98: Stirling | D98: 7200 | F98: 0.623 | G98: 0.087
A99: 2007West Dunbartonshire | B99: 2007 | C99: West Dunbartonshire | D99: 6400 | F99: 0.589 | G99: 0.065
A100: 2007West Lothian | B100: 2007 | C100: West Lothian | D100: 12800 | F100: 0.706 | G100: 0.076
A101: 2008Aberdeen City | B101: 2008 | C101: Aberdeen City | D101: 23000 | F101: 0.725 | G101: 0.07
A102: 2008Aberdeenshire | B102: 2008 | C102: Aberdeenshire | D102: 16400 | F102: 0.677 | G102: 0.075
A103: 2008Angus | B103: 2008 | C103: Angus | D103: 7200 | F103: 0.656 | G103: 0.073
A104: 2008Argyll and Bute | B104: 2008 | C104: Argyll and Bute | D104: 5500 | F104: 0.659 | G104: 0.084
A105: 2008City of Edinburgh | B105: 2008 | C105: City of Edinburgh | D105: 38300 | F105: 0.58 | G105: 0.074
A106: 2008Clackmannanshire | B106: 2008 | C106: Clackmannanshire | D106: 2300 | E106: * | F106: 0.481 | G106: 0.148
A107: 2008Dumfries and Galloway | B107: 2008 | C107: Dumfries and Galloway | D107: 9700 | F107: 0.695 | G107: 0.081
A108: 2008Dundee City | B108: 2008 | C108: Dundee City | D108: 14000 | F108: 0.625 | G108: 0.063
A109: 2008East Ayrshire | B109: 2008 | C109: East Ayrshire | D109: 8300 | F109: 0.628 | G109: 0.068
A110: 2008East Dunbartonshire | B110: 2008 | C110: East Dunbartonshire | D110: 6200 | F110: 0.559 | G110: 0.08
A111: 2008East Lothian | B111: 2008 | C111: East Lothian | D111: 6500 | F111: 0.687 | G111: 0.076
A112: 2008East Renfrewshire | B112: 2008 | C112: East Renfrewshire | D112: 5300 | F112: 0.561 | G112: 0.074
A113: 2008Falkirk | B113: 2008 | C113: Falkirk | D113: 10700 | F113: 0.669 | G113: 0.075
A114: 2008Fife | B114: 2008 | C114: Fife | D114: 23000 | F114: 0.557 | G114: 0.088
A115: 2008Glasgow City | B115: 2008 | C115: Glasgow City | D115: 45700 | F115: 0.542 | G115: 0.058
A116: 2008Highland | B116: 2008 | C116: Highland | D116: 15000 | F116: 0.711 | G116: 0.083
A117: 2008Inverclyde | B117: 2008 | C117: Inverclyde | D117: 5500 | F117: 0.592 | G117: 0.079
A118: 2008Midlothian | B118: 2008 | C118: Midlothian | D118: 6200 | F118: 0.722 | G118: 0.087
A119: 2008Moray | B119: 2008 | C119: Moray | D119: 6200 | F119: 0.659 | G119: 0.068
A120: 2008Na h-Eileanan Siar | B120: 2008 | C120: Na h-Eileanan Siar | D120: 2300 | E120: * | F120: 0.683 | G120: 0.156
A121: 2008North Ayrshire | B121: 2008 | C121: North Ayrshire | D121: 7400 | F121: 0.505 | G121: 0.075
A122: 2008North Lanarkshire | B122: 2008 | C122: North Lanarkshire | D122: 25400 | F122: 0.664 | G122: 0.076
A123: 2008Orkney Islands | B123: 2008 | C123: Orkney Islands | D123: 1300 | E123: * | F123: 0.777 | G123: 0.166
A124: 2008Perth and Kinross | B124: 2008 | C124: Perth and Kinross | D124: 8000 | F124: 0.615 | G124: 0.077
A125: 2008Renfrewshire | B125: 2008 | C125: Renfrewshire | D125: 11900 | F125: 0.622 | G125: 0.069
A126: 2008Scotland | B126: 2008 | C126: Scotland | D126: 375300 | F126: 0.623 | G126: 0.014
A127: 2008Scottish Borders | B127: 2008 | C127: Scottish Borders | D127: 6500 | F127: 0.652 | G127: 0.083
A128: 2008Shetland Islands | B128: 2008 | C128: Shetland Islands | D128: 1700 | E128: * | F128: 0.78 | G128: 0.148
A129: 2008South Ayrshire | B129: 2008 | C129: South Ayrshire | D129: 6700 | F129: 0.602 | G129: 0.074
A130: 2008South Lanarkshire | B130: 2008 | C130: South Lanarkshire | D130: 23800 | F130: 0.718 | G130: 0.07
A131: =B131&C131 -> 2008Stirling | B131: 2008 | C131: Stirling | D131: 6300 | F131: 0.539 | G131: 0.098
A132: 2008West Dunbartonshire | B132: 2008 | C132: West Dunbartonshire | D132: 6600 | F132: 0.611 | G132: 0.068
A133: 2008West Lothian | B133: 2008 | C133: West Lothian | D133: 12600 | F133: 0.682 | G133: 0.072
A134: 2009Aberdeen City | B134: 2009 | C134: Aberdeen City | D134: 23900 | F134: 0.735 | G134: 0.082
A135: 2009Aberdeenshire | B135: 2009 | C135: Aberdeenshire | D135: 18000 | F135: 0.737 | G135: 0.071
A136: 2009Angus | B136: 2009 | C136: Angus | D136: 8100 | F136: 0.726 | G136: 0.078
A137: 2009Argyll and Bute | B137: 2009 | C137: Argyll and Bute | D137: 4400 | F137: 0.531 | G137: 0.088
A138: 2009City of Edinburgh | B138: 2009 | C138: City of Edinburgh | D138: 37900 | F138: 0.569 | G138: 0.073
A139: 2009Clackmannanshire | B139: 2009 | C139: Clackmannanshire | D139: 2200 | E139: * | F139: 0.458 | G139: 0.144
A140: 2009Dumfries and Galloway | B140: 2009 | C140: Dumfries and Galloway | D140: 8700 | F140: 0.619 | G140: 0.082
A141: 2009Dundee City | B141: 2009 | C141: Dundee City | D141: 11200 | F141: 0.491 | G141: 0.07
A142: 2009East Ayrshire | B142: 2009 | C142: East Ayrshire | D142: 9100 | F142: 0.677 | G142: 0.073
A143: 2009East Dunbartonshire | B143: 2009 | C143: East Dunbartonshire | D143: 5600 | F143: 0.5 | G143: 0.087
A144: 2009East Lothian | B144: 2009 | C144: East Lothian | D144: 7000 | F144: 0.693 | G144: 0.076
A145: 2009East Renfrewshire | B145: 2009 | C145: East Renfrewshire | D145: 5100 | F145: 0.533 | G145: 0.078
A146: 2009Falkirk | B146: 2009 | C146: Falkirk | D146: 10700 | F146: 0.666 | G146: 0.076
A147: 2009Fife | B147: 2009 | C147: Fife | D147: 24100 | F147: 0.584 | G147: 0.093
A148: 2009Glasgow City | B148: 2009 | C148: Glasgow City | D148: 42300 | F148: 0.495 | G148: 0.055
A149: 2009Highland | B149: 2009 | C149: Highland | D149: 12600 | F149: 0.588 | G149: 0.095
A150: 2009Inverclyde | B150: 2009 | C150: Inverclyde | D150: 5000 | F150: 0.537 | G150: 0.087
A151: 2009Midlothian | B151: 2009 | C151: Midlothian | D151: 5000 | F151: 0.577 | G151: 0.101
A152: 2009Moray | B152: 2009 | C152: Moray | D152: 6400 | F152: 0.671 | G152: 0.078
A153: 2009Na h-Eileanan Siar | B153: 2009 | C153: Na h-Eileanan Siar | D153: 1300 | E153: * | F153: 0.468 | G153: 0.204
A154: 2009North Ayrshire | B154: 2009 | C154: North Ayrshire | D154: 8500 | F154: 0.576 | G154: 0.077
A155: 2009North Lanarkshire | B155: 2009 | C155: North Lanarkshire | D155: 24700 | F155: 0.644 | G155: 0.075
A156: 2009Orkney Islands | B156: 2009 | C156: Orkney Islands | D156: 1400 | E156: * | F156: 0.802 | G156: 0.15
A157: 2009Perth and Kinross | B157: 2009 | C157: Perth and Kinross | D157: 8400 | F157: 0.627 | G157: 0.087
A158: 2009Renfrewshire | B158: 2009 | C158: Renfrewshire | D158: 12900 | F158: 0.669 | G158: 0.071
A159: 2009Scotland | B159: 2009 | C159: Scotland | D159: 364500 | F159: 0.598 | G159: 0.015
A160: 2009Scottish Borders | B160: 2009 | C160: Scottish Borders | D160: 6300 | F160: 0.618 | G160: 0.086
A161: 2009Shetland Islands | B161: 2009 | C161: Shetland Islands | D161: 2100 | F161: 0.769 | G161: 0.127
A162: 2009South Ayrshire | B162: 2009 | C162: South Ayrshire | D162: 7000 | F162: 0.625 | G162: 0.072
A163: 2009South Lanarkshire | B163: 2009 | C163: South Lanarkshire | D163: 20100 | F163: 0.607 | G163: 0.081
A164: 2009Stirling | B164: 2009 | C164: Stirling | D164: 6800 | F164: 0.582 | G164: 0.093
A165: 2009West Dunbartonshire | B165: 2009 | C165: West Dunbartonshire | D165: 6200 | F165: 0.574 | G165: 0.075
A166: 2009West Lothian | B166: 2009 | C166: West Lothian | D166: 11700 | F166: 0.624 | G166: 0.082
A167: 2010Aberdeen City | B167: 2010 | C167: Aberdeen City | D167: 23800 | F167: 0.711 | G167: 0.073
A168: 2010Aberdeenshire | B168: 2010 | C168: Aberdeenshire | D168: 17000 | F168: 0.687 | G168: 0.083
A169: 2010Angus | B169: 2010 | C169: Angus | D169: 6200 | F169: 0.549 | G169: 0.088
A170: 2010Argyll and Bute | B170: 2010 | C170: Argyll and Bute | D170: 4800 | F170: 0.572 | G170: 0.089
A171: 2010City of Edinburgh | B171: 2010 | C171: City of Edinburgh | D171: 31600 | F171: 0.466 | G171: 0.074
A172: 2010Clackmannanshire | B172: 2010 | C172: Clackmannanshire | D172: 2700 | E172: * | F172: 0.62 | G172: 0.145
A173: 2010Dumfries and Galloway | B173: 2010 | C173: Dumfries and Galloway | D173: 8800 | F173: 0.625 | G173: 0.079
A174: 2010Dundee City | B174: 2010 | C174: Dundee City | D174: 12400 | F174: 0.536 | G174: 0.071
A175: 2010East Ayrshire | B175: 2010 | C175: East Ayrshire | D175: 7800 | F175: 0.573 | G175: 0.072
A176: 2010East Dunbartonshire | B176: 2010 | C176: East Dunbartonshire | D176: 6600 | F176: 0.58 | G176: 0.083
A177: 2010East Lothian | B177: 2010 | C177: East Lothian | D177: 5500 | F177: 0.533 | G177: 0.09
A178: 2010East Renfrewshire | B178: 2010 | C178: East Renfrewshire | D178: 4800 | F178: 0.495 | G178: 0.081
A179: 2010Falkirk | B179: 2010 | C179: Falkirk | D179: 9000 | F179: 0.561 | G179: 0.086
A180: 2010Fife | B180: 2010 | C180: Fife | D180: 23500 | F180: 0.569 | G180: 0.084
A181: 2010Glasgow City | B181: 2010 | C181: Glasgow City | D181: 40900 | F181: 0.472 | G181: 0.056
A182: 2010Highland | B182: 2010 | C182: Highland | D182: 13300 | F182: 0.616 | G182: 0.091
A183: 2010Inverclyde | B183: 2010 | C183: Inverclyde | D183: 4400 | F183: 0.481 | G183: 0.09
A184: 2010Midlothian | B184: 2010 | C184: Midlothian | D184: 5000 | F184: 0.573 | G184: 0.102
A185: 2010Moray | B185: 2010 | C185: Moray | D185: 6600 | F185: 0.68 | G185: 0.08
A186: 2010Na h-Eileanan Siar | B186: 2010 | C186: Na h-Eileanan Siar | D186: 0 | E186: *** | F186: 0 | G186: 0
A187: 2010North Ayrshire | B187: 2010 | C187: North Ayrshire | D187: 7700 | F187: 0.522 | G187: 0.078
A188: 2010North Lanarkshire | B188: 2010 | C188: North Lanarkshire | D188: 23500 | F188: 0.617 | G188: 0.08
A189: 2010Orkney Islands | B189: 2010 | C189: Orkney Islands | D189: 0 | E189: *** | F189: 0 | G189: 0
A190: 2010Perth and Kinross | B190: 2010 | C190: Perth and Kinross | D190: 7300 | F190: 0.529 | G190: 0.089
A191: 2010Renfrewshire | B191: 2010 | C191: Renfrewshire | D191: 9900 | F191: 0.508 | G191: 0.078
A192: 2010Scotland | B192: 2010 | C192: Scotland | D192: 340400 | F192: 0.553 | G192: 0.015
A193: 2010Scottish Borders | B193: 2010 | C193: Scottish Borders | D193: 5200 | F193: 0.511 | G193: 0.088
A194: 2010Shetland Islands | B194: 2010 | C194: Shetland Islands | D194: 2700 | F194: 0.804 | G194: 0.111
A195: =B195&C195 -> 2010South Ayrshire | B195: 2010 | C195: South Ayrshire | D195: 6900 | F195: 0.615 | G195: 0.08
A196: 2010South Lanarkshire | B196: 2010 | C196: South Lanarkshire | D196: 18600 | F196: 0.562 | G196: 0.075
A197: 2010Stirling | B197: 2010 | C197: Stirling | D197: 6100 | F197: 0.518 | G197: 0.083
A198: 2010West Dunbartonshire | B198: 2010 | C198: West Dunbartonshire | D198: 5400 | F198: 0.504 | G198: 0.074
A199: 2010West Lothian | B199: 2010 | C199: West Lothian | D199: 10000 | F199: 0.532 | G199: 0.087
A200: 2011Aberdeen City | B200: 2011 | C200: Aberdeen City | D200: 23200 | F200: 0.676 | G200: 0.078
... 362 more rows

Sheet ASHE (hidden)
A1: 2011 | G1: 2021 | M1: Difference
A2: Area | B2: 16 to 24 | C2: 16 and over | D2: SDC 16 to 24 | E2: SDC 16 and over | G2: Area | H2: 16 to 24 | I2: 16 and over | J2: SDC 16 to 24 | K2: SDC 16 and over | M2: Area | N2: 16 to 24 | O2: 16 and over
A3: Aberdeen City | B3: 345.8 | C3: 585.7 | D3: * | G3: Aberdeen City | H3: 469.6 | I3: 635.6 | J3: * | M3: Aberdeen City | N3: =IF(OR(H3="*",B3="*"),"*",ROUND(100*((H3-B3)/B3),1)) -> 35.8 | O3: =IF(OR(I3="*",C3="*"),"*",ROUND(100*((I3-C3)/C3),1)) -> 8.5
A4: Aberdeenshire | B4: 338.5 | C4: 481.1 | D4: ** | E4: * | G4: Aberdeenshire | H4: * | I4: 584.6 | J4: *** | K4: ** | M4: Aberdeenshire | N4: =IF(OR(H4="*",B4="*"),"*",ROUND(100*((H4-B4)/B4),1)) -> * | O4: =IF(OR(I4="*",C4="*"),"*",ROUND(100*((I4-C4)/C4),1)) -> 21.5
A5: Angus | B5: * | C5: 416.1 | D5: *** | E5: * | G5: Angus | H5: * | I5: 590.3 | J5: *** | K5: * | M5: Angus | N5: * | O5: 41.9
A6: Argyll and Bute | B6: * | C6: 495 | D6: *** | E6: * | G6: Argyll and Bute | H6: 422.7 | I6: 556 | J6: ** | K6: * | M6: Argyll and Bute | N6: * | O6: 12.3
A7: City of Edinburgh | B7: 307.5 | C7: 526.8 | D7: * | G7: City of Edinburgh | H7: 415.2 | I7: 639.3 | J7: * | M7: City of Edinburgh | N7: 35 | O7: 21.4
A8: Clackmannanshire | B8: 362.9 | C8: 512.6 | D8: ** | E8: ** | G8: Clackmannanshire | H8: * | I8: 554.7 | J8: *** | K8: * | M8: Clackmannanshire | N8: * | O8: 8.2
A9: Dumfries and Galloway | B9: 254.4 | C9: 420.1 | D9: ** | E9: * | G9: Dumfries and Galloway | H9: 516.3 | I9: 553 | J9: ** | K9: * | M9: Dumfries and Galloway | N9: 102.9 | O9: 31.6
A10: Dundee City | B10: 258.1 | C10: 467.3 | D10: ** | E10: * | G10: Dundee City | H10: 496.7 | I10: 614 | J10: ** | K10: * | M10: Dundee City | N10: 92.4 | O10: 31.4
A11: East Ayrshire | B11: 343.1 | C11: 482.5 | D11: ** | E11: * | G11: East Ayrshire | H11: * | I11: 721.7 | J11: *** | M11: East Ayrshire | N11: * | O11: 49.6
A12: East Dunbartonshire | B12: 274.2 | C12: 490.2 | D12: ** | E12: ** | G12: East Dunbartonshire | H12: * | I12: 544.7 | J12: *** | K12: ** | M12: East Dunbartonshire | N12: * | O12: 11.1
A13: East Lothian | B13: 302.1 | C13: 461.4 | D13: ** | E13: * | G13: East Lothian | H13: * | I13: 618.5 | J13: *** | K13: ** | M13: East Lothian | N13: * | O13: 34
A14: East Renfrewshire | B14: * | C14: 417 | D14: *** | E14: ** | G14: East Renfrewshire | H14: * | I14: 626.5 | J14: *** | K14: ** | M14: East Renfrewshire | N14: * | O14: 50.2
A15: Falkirk | B15: 335.1 | C15: 482.1 | D15: ** | E15: * | G15: Falkirk | H15: * | I15: 623.5 | J15: *** | K15: * | M15: Falkirk | N15: * | O15: 29.3
A16: Fife | B16: 267.8 | C16: 435.9 | D16: ** | G16: Fife | H16: 441.3 | I16: 599.2 | J16: ** | M16: Fife | N16: 64.8 | O16: 37.5
A17: Glasgow City | B17: 300 | C17: 486.4 | D17: * | G17: Glasgow City | H17: 412.9 | I17: 642 | J17: * | M17: Glasgow City | N17: 37.6 | O17: 32
A18: Highland | B18: 319.5 | C18: 451.5 | D18: ** | E18: * | G18: Highland | H18: 432.4 | I18: 596.4 | J18: ** | K18: * | M18: Highland | N18: 35.3 | O18: 32.1
A19: Inverclyde | B19: * | C19: 464.4 | D19: *** | E19: ** | G19: Inverclyde | H19: 360.1 | I19: 684.5 | J19: * | K19: ** | M19: Inverclyde | N19: * | O19: 47.4
A20: Midlothian | B20: * | C20: 487.1 | D20: *** | E20: * | G20: Midlothian | H20: 342.1 | I20: 524.4 | J20: ** | K20: * | M20: Midlothian | N20: * | O20: 7.7
A21: Moray | B21: * | C21: 455.6 | D21: *** | E21: * | G21: Moray | H21: * | I21: 579 | J21: *** | K21: * | M21: Moray | N21: * | O21: 27.1
A22: Na h-Eileanan Siar | B22: * | C22: 438.7 | D22: *** | E22: ** | G22: Na h-Eileanan Siar | H22: * | I22: 669.9 | J22: *** | K22: ** | M22: Na h-Eileanan Siar | N22: * | O22: 52.7
A23: North Ayrshire | B23: 307.4 | C23: 489.2 | D23: ** | E23: * | G23: North Ayrshire | H23: * | I23: 597.2 | J23: *** | K23: * | M23: North Ayrshire | N23: * | O23: 22.1
A24: North Lanarkshire | B24: 318.2 | C24: 475.5 | D24: * | G24: North Lanarkshire | H24: 392.3 | I24: 609.2 | J24: ** | K24: * | M24: North Lanarkshire | N24: 23.3 | O24: 28.1
A25: Orkney Islands | B25: * | C25: 413.3 | D25: *** | E25: ** | G25: Orkney Islands | H25: 379.9 | I25: 540.9 | J25: * | K25: ** | M25: Orkney Islands | N25: * | O25: 30.9
A26: Perth and Kinross | B26: 314.8 | C26: 444.8 | D26: ** | E26: * | G26: Perth and Kinross | H26: 393.7 | I26: 632.7 | J26: ** | K26: * | M26: Perth and Kinross | N26: 25.1 | O26: 42.2
A27: Renfrewshire | B27: * | C27: 520.1 | D27: *** | E27: * | G27: Renfrewshire | H27: * | I27: 613 | J27: *** | K27: * | M27: Renfrewshire | N27: * | O27: 17.9
A28: Scottish Borders | B28: 306.9 | C28: 397.6 | D28: ** | E28: * | G28: Scottish Borders | H28: 506.3 | I28: 526.5 | J28: ** | K28: * | M28: Scottish Borders | N28: 65 | O28: 32.4
A29: Shetland Islands | B29: * | C29: 545.6 | D29: *** | E29: ** | G29: Shetland Islands | H29: * | I29: 688.1 | J29: *** | K29: ** | M29: Shetland Islands | N29: * | O29: 26.1
A30: South Ayrshire | B30: 268.6 | C30: 514.4 | D30: ** | E30: * | G30: South Ayrshire | H30: 382.1 | I30: 616.9 | J30: ** | K30: * | M30: South Ayrshire | N30: 42.3 | O30: 19.9
A31: South Lanarkshire | B31: 287.5 | C31: 479.4 | D31: * | G31: South Lanarkshire | H31: 446 | I31: 618.5 | J31: ** | M31: South Lanarkshire | N31: 55.1 | O31: 29
A32: Stirling | B32: * | C32: 510.3 | D32: *** | E32: * | G32: Stirling | H32: 326.7 | I32: 649.3 | J32: ** | K32: * | M32: Stirling | N32: * | O32: 27.2
A33: West Dunbartonshire | B33: * | C33: 442.4 | D33: *** | E33: ** | G33: West Dunbartonshire | H33: 385.3 | I33: 574.6 | J33: ** | K33: ** | M33: West Dunbartonshire | N33: * | O33: 29.9
A34: West Lothian | B34: 309.3 | C34: 460.8 | D34: ** | E34: * | G34: West Lothian | H34: 409.5 | I34: 583.8 | J34: ** | K34: * | M34: West Lothian | N34: 32.4 | O34: 26.7
A35: Scotland | B35: 312 | C35: 485 | G35: Scotland | H35: 429.4 | I35: 622.4 | M35: Scotland | N35: 37.6 | O35: 28.3

Sheet Sector (hidden)
A1: Lookup | B1: Area | C1: Sector | D1: 16 to 24 | E1: Rate | F1: CI | G1: SDC
A2: =B2&C2 -> Aberdeen City0. All | B2: Aberdeen City | C2: 0. All | D2: 15400 | E2: 0.127 | F2: 0.023
A3: =B3&C3 -> Aberdeen CityA - F: Production, Agriculture & Construction | B3: Aberdeen City | C3: A - F: Production, Agriculture & Construction | D3: 1900 | E3: 0.059 | F3: 0.031 | G3: *
A4: Aberdeen CityG, I: Distribution, Hotels & Restaurants | B4: Aberdeen City | C4: G, I: Distribution, Hotels & Restaurants | D4: 8200 | E4: 0.322 | F4: 0.079
A5: Aberdeen CityH, J - N, R - U: Other Services | B5: Aberdeen City | C5: H, J - N, R - U: Other Services | D5: 3500 | E5: 0.11 | F5: 0.041 | G5: *
A6: Aberdeen CityO - Q: Public Admin, Education & Health | B6: Aberdeen City | C6: O - Q: Public Admin, Education & Health | D6: 1400 | E6: 0.045 | F6: 0.027 | G6: *
A7: Aberdeenshire0. All | B7: Aberdeenshire | C7: 0. All | D7: 15900 | E7: 0.114 | F7: 0.021
A8: AberdeenshireA - F: Production, Agriculture & Construction | B8: Aberdeenshire | C8: A - F: Production, Agriculture & Construction | D8: 5000 | E8: 0.096 | F8: 0.032
A9: AberdeenshireG, I: Distribution, Hotels & Restaurants | B9: Aberdeenshire | C9: G, I: Distribution, Hotels & Restaurants | D9: 6500 | E9: 0.291 | F9: 0.072
A10: AberdeenshireH, J - N, R - U: Other Services | B10: Aberdeenshire | C10: H, J - N, R - U: Other Services | D10: 1900 | E10: 0.062 | F10: 0.034 | G10: *
A11: AberdeenshireO - Q: Public Admin, Education & Health | B11: Aberdeenshire | C11: O - Q: Public Admin, Education & Health | D11: 2500 | E11: 0.074 | F11: 0.034 | G11: *
A12: Angus0. All | B12: Angus | C12: 0. All | D12: 5800 | E12: 0.108 | F12: 0.02
A13: AngusA - F: Production, Agriculture & Construction | B13: Angus | C13: A - F: Production, Agriculture & Construction | D13: 1800 | E13: 0.125 | F13: 0.041 | G13: *
A14: AngusG, I: Distribution, Hotels & Restaurants | B14: Angus | C14: G, I: Distribution, Hotels & Restaurants | D14: 2100 | E14: 0.246 | F14: 0.067
A15: AngusH, J - N, R - U: Other Services | B15: Angus | C15: H, J - N, R - U: Other Services | D15: 700 | E15: 0.055 | F15: 0.03 | G15: *
A16: AngusO - Q: Public Admin, Education & Health | B16: Angus | C16: O - Q: Public Admin, Education & Health | D16: 1100 | E16: 0.064 | F16: 0.027 | G16: *
A17: Argyll and Bute0. All | B17: Argyll and Bute | C17: 0. All | D17: 4500 | E17: 0.113 | F17: 0.021
A18: Argyll and ButeA - F: Production, Agriculture & Construction | B18: Argyll and Bute | C18: A - F: Production, Agriculture & Construction | D18: 600 | E18: 0.067 | F18: 0.039 | G18: *
A19: Argyll and ButeG, I: Distribution, Hotels & Restaurants | B19: Argyll and Bute | C19: G, I: Distribution, Hotels & Restaurants | D19: 1800 | E19: 0.268 | F19: 0.073
A20: Argyll and ButeH, J - N, R - U: Other Services | B20: Argyll and Bute | C20: H, J - N, R - U: Other Services | D20: 1000 | E20: 0.091 | F20: 0.036 | G20: *
A21: Argyll and ButeO - Q: Public Admin, Education & Health | B21: Argyll and Bute | C21: O - Q: Public Admin, Education & Health | D21: 1100 | E21: 0.081 | F21: 0.031 | G21: *
A22: City of Edinburgh0. All | B22: City of Edinburgh | C22: 0. All | D22: 33100 | E22: 0.12 | F22: 0.019
A23: City of EdinburghA - F: Production, Agriculture & Construction | B23: City of Edinburgh | C23: A - F: Production, Agriculture & Construction | D23: 1800 | E23: 0.065 | F23: 0.044 | G23: *
A24: City of EdinburghG, I: Distribution, Hotels & Restaurants | B24: City of Edinburgh | C24: G, I: Distribution, Hotels & Restaurants | D24: 17200 | E24: 0.35 | F24: 0.066
A25: City of EdinburghH, J - N, R - U: Other Services | B25: City of Edinburgh | C25: H, J - N, R - U: Other Services | D25: 7200 | E25: 0.07 | F25: 0.024 | G25: *
A26: City of EdinburghO - Q: Public Admin, Education & Health | B26: City of Edinburgh | C26: O - Q: Public Admin, Education & Health | D26: 6800 | E26: 0.071 | F26: 0.025 | G26: *
A27: Clackmannanshire0. All | B27: Clackmannanshire | C27: 0. All | D27: 2200 | E27: 0.092 | F27: 0.026
A28: ClackmannanshireA - F: Production, Agriculture & Construction | B28: Clackmannanshire | C28: A - F: Production, Agriculture & Construction | D28: 300 | E28: 0.057 | F28: 0.044 | G28: *
A29: ClackmannanshireG, I: Distribution, Hotels & Restaurants | B29: Clackmannanshire | C29: G, I: Distribution, Hotels & Restaurants | D29: 900 | E29: 0.233 | F29: 0.09 | G29: *
A30: ClackmannanshireH, J - N, R - U: Other Services | B30: Clackmannanshire | C30: H, J - N, R - U: Other Services | D30: 700 | E30: 0.096 | F30: 0.05 | G30: *
A31: ClackmannanshireO - Q: Public Admin, Education & Health | B31: Clackmannanshire | C31: O - Q: Public Admin, Education & Health | D31: 300 | E31: 0.045 | F31: 0.032 | G31: *
A32: Dumfries and Galloway0. All | B32: Dumfries and Galloway | C32: 0. All | D32: 6500 | E32: 0.099 | F32: 0.02
A33: Dumfries and GallowayA - F: Production, Agriculture & Construction | B33: Dumfries and Galloway | C33: A - F: Production, Agriculture & Construction | D33: 1300 | E33: 0.071 | F33: 0.034 | G33: *
A34: Dumfries and GallowayG, I: Distribution, Hotels & Restaurants | B34: Dumfries and Galloway | C34: G, I: Distribution, Hotels & Restaurants | D34: 2400 | E34: 0.181 | F34: 0.058 | G34: *
A35: Dumfries and GallowayH, J - N, R - U: Other Services | B35: Dumfries and Galloway | C35: H, J - N, R - U: Other Services | D35: 1700 | E35: 0.12 | F35: 0.047 | G35: *
A36: Dumfries and GallowayO - Q: Public Admin, Education & Health | B36: Dumfries and Galloway | C36: O - Q: Public Admin, Education & Health | D36: 1100 | E36: 0.055 | F36: 0.028 | G36: *
A37: Dundee City0. All | B37: Dundee City | C37: 0. All | D37: 10100 | E37: 0.148 | F37: 0.023
A38: Dundee CityA - F: Production, Agriculture & Construction | B38: Dundee City | C38: A - F: Production, Agriculture & Construction | D38: 900 | E38: 0.092 | F38: 0.049 | G38: *
A39: Dundee CityG, I: Distribution, Hotels & Restaurants | B39: Dundee City | C39: G, I: Distribution, Hotels & Restaurants | D39: 4700 | E39: 0.309 | F39: 0.065
A40: Dundee CityH, J - N, R - U: Other Services | B40: Dundee City | C40: H, J - N, R - U: Other Services | D40: 2100 | E40: 0.112 | F40: 0.039
A41: Dundee CityO - Q: Public Admin, Education & Health | B41: Dundee City | C41: O - Q: Public Admin, Education & Health | D41: 2300 | E41: 0.093 | F41: 0.031 | G41: *
A42: East Ayrshire0. All | B42: East Ayrshire | C42: 0. All | D42: 6500 | E42: 0.121 | F42: 0.024
A43: East AyrshireA - F: Production, Agriculture & Construction | B43: East Ayrshire | C43: A - F: Production, Agriculture & Construction | D43: 1100 | E43: 0.095 | F43: 0.046 | G43: *
A44: East AyrshireG, I: Distribution, Hotels & Restaurants | B44: East Ayrshire | C44: G, I: Distribution, Hotels & Restaurants | D44: 3200 | E44: 0.309 | F44: 0.08
A45: East AyrshireH, J - N, R - U: Other Services | B45: East Ayrshire | C45: H, J - N, R - U: Other Services | D45: 1300 | E45: 0.096 | F45: 0.044 | G45: *
A46: East AyrshireO - Q: Public Admin, Education & Health | B46: East Ayrshire | C46: O - Q: Public Admin, Education & Health | D46: 1000 | E46: 0.052 | F46: 0.027 | G46: *
A47: East Dunbartonshire0. All | B47: East Dunbartonshire | C47: 0. All | D47: 5300 | E47: 0.106 | F47: 0.019
A48: East DunbartonshireA - F: Production, Agriculture & Construction | B48: East Dunbartonshire | C48: A - F: Production, Agriculture & Construction | D48: 900 | E48: 0.123 | F48: 0.053 | G48: *
A49: East DunbartonshireG, I: Distribution, Hotels & Restaurants | B49: East Dunbartonshire | C49: G, I: Distribution, Hotels & Restaurants | D49: 1700 | E49: 0.271 | F49: 0.078
A50: East DunbartonshireH, J - N, R - U: Other Services | B50: East Dunbartonshire | C50: H, J - N, R - U: Other Services | D50: 1300 | E50: 0.078 | F50: 0.028
A51: East DunbartonshireO - Q: Public Admin, Education & Health | B51: East Dunbartonshire | C51: O - Q: Public Admin, Education & Health | D51: 1200 | E51: 0.066 | F51: 0.024 | G51: *
A52: East Lothian0. All | B52: East Lothian | C52: 0. All | D52: 5800 | E52: 0.111 | F52: 0.021
A53: East LothianA - F: Production, Agriculture & Construction | B53: East Lothian | C53: A - F: Production, Agriculture & Construction | D53: 1100 | E53: 0.116 | F53: 0.052 | G53: *
A54: East LothianG, I: Distribution, Hotels & Restaurants | B54: East Lothian | C54: G, I: Distribution, Hotels & Restaurants | D54: 1800 | E54: 0.204 | F54: 0.067
A55: East LothianH, J - N, R - U: Other Services | B55: East Lothian | C55: H, J - N, R - U: Other Services | D55: 1300 | E55: 0.08 | F55: 0.033 | G55: *
A56: East LothianO - Q: Public Admin, Education & Health | B56: East Lothian | C56: O - Q: Public Admin, Education & Health | D56: 1600 | E56: 0.089 | F56: 0.034 | G56: *
A57: East Renfrewshire0. All | B57: East Renfrewshire | C57: 0. All | D57: 3900 | E57: 0.087 | F57: 0.02
A58: East RenfrewshireA - F: Production, Agriculture & Construction | B58: East Renfrewshire | C58: A - F: Production, Agriculture & Construction | D58: 300 | E58: 0.04 | F58: 0.037 | G58: *
A59: East RenfrewshireG, I: Distribution, Hotels & Restaurants | B59: East Renfrewshire | C59: G, I: Distribution, Hotels & Restaurants | D59: 1600 | E59: 0.294 | F59: 0.095
A60: East RenfrewshireH, J - N, R - U: Other Services | B60: East Renfrewshire | C60: H, J - N, R - U: Other Services | D60: 1300 | E60: 0.09 | F60: 0.036 | G60: *
A61: East RenfrewshireO - Q: Public Admin, Education & Health | B61: East Renfrewshire | C61: O - Q: Public Admin, Education & Health | D61: 700 | E61: 0.042 | F61: 0.022 | G61: *
A62: Falkirk0. All | B62: Falkirk | C62: 0. All | D62: 8800 | E62: 0.115 | F62: 0.021
A63: FalkirkA - F: Production, Agriculture & Construction | B63: Falkirk | C63: A - F: Production, Agriculture & Construction | D63: 1000 | E63: 0.065 | F63: 0.036 | G63: *
A64: FalkirkG, I: Distribution, Hotels & Restaurants | B64: Falkirk | C64: G, I: Distribution, Hotels & Restaurants | D64: 4900 | E64: 0.314 | F64: 0.073
A65: FalkirkH, J - N, R - U: Other Services | B65: Falkirk | C65: H, J - N, R - U: Other Services | D65: 1800 | E65: 0.08 | F65: 0.033 | G65: *
A66: FalkirkO - Q: Public Admin, Education & Health | B66: Falkirk | C66: O - Q: Public Admin, Education & Health | D66: 1100 | E66: 0.045 | F66: 0.025 | G66: *
A67: =B67&C67 -> Fife0. All | B67: Fife | C67: 0. All | D67: 20100 | E67: 0.123 | F67: 0.021
A68: FifeA - F: Production, Agriculture & Construction | B68: Fife | C68: A - F: Production, Agriculture & Construction | D68: 4600 | E68: 0.136 | F68: 0.049 | G68: *
A69: FifeG, I: Distribution, Hotels & Restaurants | B69: Fife | C69: G, I: Distribution, Hotels & Restaurants | D69: 6300 | E69: 0.227 | F69: 0.065
A70: FifeH, J - N, R - U: Other Services | B70: Fife | C70: H, J - N, R - U: Other Services | D70: 4100 | E70: 0.102 | F70: 0.038 | G70: *
A71: FifeO - Q: Public Admin, Education & Health | B71: Fife | C71: O - Q: Public Admin, Education & Health | D71: 5100 | E71: 0.081 | F71: 0.029 | G71: *
A72: Glasgow City0. All | B72: Glasgow City | C72: 0. All | D72: 36200 | E72: 0.12 | F72: 0.019
A73: Glasgow CityA - F: Production, Agriculture & Construction | B73: Glasgow City | C73: A - F: Production, Agriculture & Construction | D73: 4400 | E73: 0.107 | F73: 0.049 | G73: *
A74: Glasgow CityG, I: Distribution, Hotels & Restaurants | B74: Glasgow City | C74: G, I: Distribution, Hotels & Restaurants | D74: 15700 | E74: 0.279 | F74: 0.059
A75: Glasgow CityH, J - N, R - U: Other Services | B75: Glasgow City | C75: H, J - N, R - U: Other Services | D75: 10500 | E75: 0.106 | F75: 0.031
A76: Glasgow CityO - Q: Public Admin, Education & Health | B76: Glasgow City | C76: O - Q: Public Admin, Education & Health | D76: 5600 | E76: 0.054 | F76: 0.023 | G76: *
A77: Highland0. All | B77: Highland | C77: 0. All | D77: 15000 | E77: 0.125 | F77: 0.025
A78: HighlandA - F: Production, Agriculture & Construction | B78: Highland | C78: A - F: Production, Agriculture & Construction | D78: 3600 | E78: 0.12 | F78: 0.051 | G78: *
A79: HighlandG, I: Distribution, Hotels & Restaurants | B79: Highland | C79: G, I: Distribution, Hotels & Restaurants | D79: 6000 | E79: 0.235 | F79: 0.073 | G79: *
A80: HighlandH, J - N, R - U: Other Services | B80: Highland | C80: H, J - N, R - U: Other Services | D80: 2800 | E80: 0.105 | F80: 0.048 | G80: *
A81: HighlandO - Q: Public Admin, Education & Health | B81: Highland | C81: O - Q: Public Admin, Education & Health | D81: 2600 | E81: 0.07 | F81: 0.034 | G81: *
A82: Inverclyde0. All | B82: Inverclyde | C82: 0. All | D82: 4000 | E82: 0.116 | F82: 0.024
A83: InverclydeA - F: Production, Agriculture & Construction | B83: Inverclyde | C83: A - F: Production, Agriculture & Construction | D83: 600 | E83: 0.112 | F83: 0.061 | G83: *
A84: InverclydeG, I: Distribution, Hotels & Restaurants | B84: Inverclyde | C84: G, I: Distribution, Hotels & Restaurants | D84: 1600 | E84: 0.27 | F84: 0.081 | G84: *
A85: InverclydeH, J - N, R - U: Other Services | B85: Inverclyde | C85: H, J - N, R - U: Other Services | D85: 1000 | E85: 0.09 | F85: 0.037 | G85: *
A86: InverclydeO - Q: Public Admin, Education & Health | B86: Inverclyde | C86: O - Q: Public Admin, Education & Health | D86: 700 | E86: 0.061 | F86: 0.03 | G86: *
A87: Midlothian0. All | B87: Midlothian | C87: 0. All | D87: 4700 | E87: 0.103 | F87: 0.022
A88: MidlothianA - F: Production, Agriculture & Construction | B88: Midlothian | C88: A - F: Production, Agriculture & Construction | D88: 800 | E88: 0.118 | F88: 0.058 | G88: *
A89: MidlothianG, I: Distribution, Hotels & Restaurants | B89: Midlothian | C89: G, I: Distribution, Hotels & Restaurants | D89: 1800 | E89: 0.228 | F89: 0.073 | G89: *
A90: MidlothianH, J - N, R - U: Other Services | B90: Midlothian | C90: H, J - N, R - U: Other Services | D90: 900 | E90: 0.066 | F90: 0.032 | G90: *
A91: MidlothianO - Q: Public Admin, Education & Health | B91: Midlothian | C91: O - Q: Public Admin, Education & Health | D91: 1100 | E91: 0.069 | F91: 0.031 | G91: *
A92: Moray0. All | B92: Moray | C92: 0. All | D92: 5700 | E92: 0.124 | F92: 0.023
A93: MorayA - F: Production, Agriculture & Construction | B93: Moray | C93: A - F: Production, Agriculture & Construction | D93: 900 | E93: 0.059 | F93: 0.029 | G93: *
A94: MorayG, I: Distribution, Hotels & Restaurants | B94: Moray | C94: G, I: Distribution, Hotels & Restaurants | D94: 3500 | E94: 0.383 | F94: 0.079
A95: MorayH, J - N, R - U: Other Services | B95: Moray | C95: H, J - N, R - U: Other Services | D95: 1000 | E95: 0.116 | F95: 0.051 | G95: *
A96: MorayO - Q: Public Admin, Education & Health | B96: Moray | C96: O - Q: Public Admin, Education & Health | D96: 300 | E96: 0.021 | F96: 0.019 | G96: *
A97: Na h-Eileanan Siar0. All | B97: Na h-Eileanan Siar | C97: 0. All | D97: 1600 | E97: 0.123 | F97: 0.031
A98: Na h-Eileanan SiarA - F: Production, Agriculture & Construction | B98: Na h-Eileanan Siar | C98: A - F: Production, Agriculture & Construction | D98: 400 | E98: 0.119 | F98: 0.061 | G98: *
A99: Na h-Eileanan SiarG, I: Distribution, Hotels & Restaurants | B99: Na h-Eileanan Siar | C99: G, I: Distribution, Hotels & Restaurants | D99: 800 | E99: 0.326 | F99: 0.109 | G99: *
A100: Na h-Eileanan SiarH, J - N, R - U: Other Services | B100: Na h-Eileanan Siar | C100: H, J - N, R - U: Other Services | D100: 200 | E100: 0.055 | F100: 0.045 | G100: *
A101: Na h-Eileanan SiarO - Q: Public Admin, Education & Health | B101: Na h-Eileanan Siar | C101: O - Q: Public Admin, Education & Health | D101: 300 | E101: 0.058 | F101: 0.037 | G101: *
A102: North Ayrshire0. All | B102: North Ayrshire | C102: 0. All | D102: 7300 | E102: 0.128 | F102: 0.024
A103: North AyrshireA - F: Production, Agriculture & Construction | B103: North Ayrshire | C103: A - F: Production, Agriculture & Construction | D103: 1800 | E103: 0.137 | F103: 0.052 | G103: *
A104: North AyrshireG, I: Distribution, Hotels & Restaurants | B104: North Ayrshire | C104: G, I: Distribution, Hotels & Restaurants | D104: 3300 | E104: 0.32 | F104: 0.081
A105: North AyrshireH, J - N, R - U: Other Services | B105: North Ayrshire | C105: H, J - N, R - U: Other Services | D105: 800 | E105: 0.061 | F105: 0.034 | G105: *
A106: North AyrshireO - Q: Public Admin, Education & Health | B106: North Ayrshire | C106: O - Q: Public Admin, Education & Health | D106: 1300 | E106: 0.064 | F106: 0.029 | G106: *
A107: North Lanarkshire0. All | B107: North Lanarkshire | C107: 0. All | D107: 21700 | E107: 0.134 | F107: 0.022
A108: North LanarkshireA - F: Production, Agriculture & Construction | B108: North Lanarkshire | C108: A - F: Production, Agriculture & Construction | D108: 3900 | E108: 0.101 | F108: 0.039 | G108: *
A109: North LanarkshireG, I: Distribution, Hotels & Restaurants | B109: North Lanarkshire | C109: G, I: Distribution, Hotels & Restaurants | D109: 8400 | E109: 0.291 | F109: 0.072
A110: North LanarkshireH, J - N, R - U: Other Services | B110: North Lanarkshire | C110: H, J - N, R - U: Other Services | D110: 5400 | E110: 0.126 | F110: 0.042 | G110: *
A111: North LanarkshireO - Q: Public Admin, Education & Health | B111: North Lanarkshire | C111: O - Q: Public Admin, Education & Health | D111: 4000 | E111: 0.078 | F111: 0.03 | G111: *
A112: Orkney Islands0. All | B112: Orkney Islands | C112: 0. All | D112: 1400 | E112: 0.118 | F112: 0.052 | G112: *
A113: Orkney IslandsA - F: Production, Agriculture & Construction | B113: Orkney Islands | C113: A - F: Production, Agriculture & Construction | D113: 500 | E113: 0.147 | F113: 0.111 | G113: *
A114: Orkney IslandsG, I: Distribution, Hotels & Restaurants | B114: Orkney Islands | C114: G, I: Distribution, Hotels & Restaurants | D114: 600 | E114: 0.281 | F114: 0.173 | G114: *
A115: Orkney IslandsH, J - N, R - U: Other Services | B115: Orkney Islands | C115: H, J - N, R - U: Other Services | D115: 0 | E115: 0 | F115: 0 | G115: ***
A116: Orkney IslandsO - Q: Public Admin, Education & Health | B116: Orkney Islands | C116: O - Q: Public Admin, Education & Health | D116: 0 | E116: 0 | F116: 0 | G116: ***
A117: Perth and Kinross0. All | B117: Perth and Kinross | C117: 0. All | D117: 9300 | E117: 0.122 | F117: 0.021
A118: Perth and KinrossA - F: Production, Agriculture & Construction | B118: Perth and Kinross | C118: A - F: Production, Agriculture & Construction | D118: 2000 | E118: 0.112 | F118: 0.041 | G118: *
A119: Perth and KinrossG, I: Distribution, Hotels & Restaurants | B119: Perth and Kinross | C119: G, I: Distribution, Hotels & Restaurants | D119: 4000 | E119: 0.248 | F119: 0.059
A120: Perth and KinrossH, J - N, R - U: Other Services | B120: Perth and Kinross | C120: H, J - N, R - U: Other Services | D120: 1400 | E120: 0.068 | F120: 0.031 | G120: *
A121: Perth and KinrossO - Q: Public Admin, Education & Health | B121: Perth and Kinross | C121: O - Q: Public Admin, Education & Health | D121: 2000 | E121: 0.089 | F121: 0.033 | G121: *
A122: Renfrewshire0. All | B122: Renfrewshire | C122: 0. All | D122: 10400 | E122: 0.12 | F122: 0.023
A123: RenfrewshireA - F: Production, Agriculture & Construction | B123: Renfrewshire | C123: A - F: Production, Agriculture & Construction | D123: 1100 | E123: 0.071 | F123: 0.043 | G123: *
A124: RenfrewshireG, I: Distribution, Hotels & Restaurants | B124: Renfrewshire | C124: G, I: Distribution, Hotels & Restaurants | D124: 4000 | E124: 0.234 | F124: 0.07
A125: RenfrewshireH, J - N, R - U: Other Services | B125: Renfrewshire | C125: H, J - N, R - U: Other Services | D125: 2800 | E125: 0.12 | F125: 0.044 | G125: *
A126: RenfrewshireO - Q: Public Admin, Education & Health | B126: Renfrewshire | C126: O - Q: Public Admin, Education & Health | D126: 2400 | E126: 0.077 | F126: 0.031 | G126: *
A127: Scotland0. All | B127: Scotland | C127: 0. All | D127: 315900 | E127: 0.12 | F127: 0.004
A128: ScotlandA - F: Production, Agriculture & Construction | B128: Scotland | C128: A - F: Production, Agriculture & Construction | D128: 53900 | E128: 0.1 | F128: 0.008
A129: ScotlandG, I: Distribution, Hotels & Restaurants | B129: Scotland | C129: G, I: Distribution, Hotels & Restaurants | D129: 133900 | E129: 0.278 | F129: 0.013
A130: ScotlandH, J - N, R - U: Other Services | B130: Scotland | C130: H, J - N, R - U: Other Services | D130: 71300 | E130: 0.095 | F130: 0.007
A131: =B131&C131 -> ScotlandO - Q: Public Admin, Education & Health | B131: Scotland | C131: O - Q: Public Admin, Education & Health | D131: 54900 | E131: 0.064 | F131: 0.005
A132: Scottish Borders0. All | B132: Scottish Borders | C132: 0. All | D132: 5700 | E132: 0.106 | F132: 0.021
A133: Scottish BordersA - F: Production, Agriculture & Construction | B133: Scottish Borders | C133: A - F: Production, Agriculture & Construction | D133: 1500 | E133: 0.112 | F133: 0.044 | G133: *
A134: Scottish BordersG, I: Distribution, Hotels & Restaurants | B134: Scottish Borders | C134: G, I: Distribution, Hotels & Restaurants | D134: 2600 | E134: 0.232 | F134: 0.064
A135: Scottish BordersH, J - N, R - U: Other Services | B135: Scottish Borders | C135: H, J - N, R - U: Other Services | D135: 1100 | E135: 0.077 | F135: 0.035 | G135: *
A136: Scottish BordersO - Q: Public Admin, Education & Health | B136: Scottish Borders | C136: O - Q: Public Admin, Education & Health | D136: 500 | E136: 0.034 | F136: 0.023 | G136: *
A137: Shetland Islands0. All | B137: Shetland Islands | C137: 0. All | D137: 1800 | E137: 0.143 | F137: 0.063 | G137: *
A138: Shetland IslandsA - F: Production, Agriculture & Construction | B138: Shetland Islands | C138: A - F: Production, Agriculture & Construction | D138: 600 | E138: 0.162 | F138: 0.117 | G138: *
A139: Shetland IslandsG, I: Distribution, Hotels & Restaurants | B139: Shetland Islands | C139: G, I: Distribution, Hotels & Restaurants | D139: 1000 | E139: 0.36 | F139: 0.243 | G139: *
A140: Shetland IslandsH, J - N, R - U: Other Services | B140: Shetland Islands | C140: H, J - N, R - U: Other Services | D140: 0 | E140: 0 | F140: 0 | G140: ***
A141: Shetland IslandsO - Q: Public Admin, Education & Health | B141: Shetland Islands | C141: O - Q: Public Admin, Education & Health | D141: 0 | E141: 0 | F141: 0 | G141: ***
A142: South Ayrshire0. All | B142: South Ayrshire | C142: 0. All | D142: 6500 | E142: 0.132 | F142: 0.024
A143: South AyrshireA - F: Production, Agriculture & Construction | B143: South Ayrshire | C143: A - F: Production, Agriculture & Construction | D143: 1700 | E143: 0.157 | F143: 0.056 | G143: *
A144: South AyrshireG, I: Distribution, Hotels & Restaurants | B144: South Ayrshire | C144: G, I: Distribution, Hotels & Restaurants | D144: 2700 | E144: 0.26 | F144: 0.077
A145: South AyrshireH, J - N, R - U: Other Services | B145: South Ayrshire | C145: H, J - N, R - U: Other Services | D145: 1100 | E145: 0.092 | F145: 0.042 | G145: *
A146: South AyrshireO - Q: Public Admin, Education & Health | B146: South Ayrshire | C146: O - Q: Public Admin, Education & Health | D146: 1100 | E146: 0.065 | F146: 0.029 | G146: *
A147: South Lanarkshire0. All | B147: South Lanarkshire | C147: 0. All | D147: 17600 | E147: 0.111 | F147: 0.02
A148: South LanarkshireA - F: Production, Agriculture & Construction | B148: South Lanarkshire | C148: A - F: Production, Agriculture & Construction | D148: 4300 | E148: 0.127 | F148: 0.045 | G148: *
A149: South LanarkshireG, I: Distribution, Hotels & Restaurants | B149: South Lanarkshire | C149: G, I: Distribution, Hotels & Restaurants | D149: 5200 | E149: 0.21 | F149: 0.067 | G149: *
A150: South LanarkshireH, J - N, R - U: Other Services | B150: South Lanarkshire | C150: H, J - N, R - U: Other Services | D150: 6400 | E150: 0.122 | F150: 0.037 | G150: *
A151: South LanarkshireO - Q: Public Admin, Education & Health | B151: South Lanarkshire | C151: O - Q: Public Admin, Education & Health | D151: 1600 | E151: 0.035 | F151: 0.021 | G151: *
A152: Stirling0. All | B152: Stirling | C152: 0. All | D152: 7500 | E152: 0.166 | F152: 0.026
A153: StirlingA - F: Production, Agriculture & Construction | B153: Stirling | C153: A - F: Production, Agriculture & Construction | D153: 600 | E153: 0.09 | F153: 0.048 | G153: *
A154: StirlingG, I: Distribution, Hotels & Restaurants | B154: Stirling | C154: G, I: Distribution, Hotels & Restaurants | D154: 4000 | E154: 0.364 | F154: 0.072
A155: StirlingH, J - N, R - U: Other Services | B155: Stirling | C155: H, J - N, R - U: Other Services | D155: 1800 | E155: 0.134 | F155: 0.043 | G155: *
A156: StirlingO - Q: Public Admin, Education & Health | B156: Stirling | C156: O - Q: Public Admin, Education & Health | D156: 900 | E156: 0.07 | F156: 0.031 | G156: *
A157: West Dunbartonshire0. All | B157: West Dunbartonshire | C157: 0. All | D157: 4900 | E157: 0.117 | F157: 0.02
A158: West DunbartonshireA - F: Production, Agriculture & Construction | B158: West Dunbartonshire | C158: A - F: Production, Agriculture & Construction | D158: 700 | E158: 0.09 | F158: 0.043 | G158: *
A159: West DunbartonshireG, I: Distribution, Hotels & Restaurants | B159: West Dunbartonshire | C159: G, I: Distribution, Hotels & Restaurants | D159: 2000 | E159: 0.322 | F159: 0.077
A160: West DunbartonshireH, J - N, R - U: Other Services | B160: West Dunbartonshire | C160: H, J - N, R - U: Other Services | D160: 1100 | E160: 0.095 | F160: 0.036 | G160: *
A161: West DunbartonshireO - Q: Public Admin, Education & Health | B161: West Dunbartonshire | C161: O - Q: Public Admin, Education & Health | D161: 1100 | E161: 0.067 | F161: 0.025 | G161: *
A162: West Lothian0. All | B162: West Lothian | C162: 0. All | D162: 10600 | E162: 0.118 | F162: 0.021
A163: West LothianA - F: Production, Agriculture & Construction | B163: West Lothian | C163: A - F: Production, Agriculture & Construction | D163: 2000 | E163: 0.112 | F163: 0.047 | G163: *
A164: West LothianG, I: Distribution, Hotels & Restaurants | B164: West Lothian | C164: G, I: Distribution, Hotels & Restaurants | D164: 3800 | E164: 0.228 | F164: 0.065
A165: West LothianH, J - N, R - U: Other Services | B165: West Lothian | C165: H, J - N, R - U: Other Services | D165: 2900 | E165: 0.095 | F165: 0.034 | G165: *
A166: West LothianO - Q: Public Admin, Education & Health | B166: West Lothian | C166: O - Q: Public Admin, Education & Health | D166: 1900 | E166: 0.075 | F166: 0.033 | G166: *

Sheet Qualifications (hidden)
A1: Lookup | B1: Area | C1: Qualification | D1: Level | E1: Rate | F1: CI | G1: SDC
A2: =B2&C2 -> Scotland1: SVQ Level 4 and 5 | B2: Scotland | C2: 1: SVQ Level 4 and 5 | D2: 109500 | E2: 0.756 | F2: 0.027
A3: Scotland2: SVQ Level 2 and 3 | B3: Scotland | C3: 2: SVQ Level 2 and 3 | D3: 170700 | E3: 0.516 | F3: 0.019
A4: Scotland3: SVQ Level 1 and None | B4: Scotland | C4: 3: SVQ Level 1 and None | D4: 18700 | E4: 0.327 | F4: 0.042
A5: Aberdeen City1: SVQ Level 4 and 5 | B5: Aberdeen City | C5: 1: SVQ Level 4 and 5 | D5: 7000 | E5: 0.802 | F5: 0.14 | G5: *
A6: Aberdeen City2: SVQ Level 2 and 3 | B6: Aberdeen City | C6: 2: SVQ Level 2 and 3 | D6: 6700 | E6: 0.431 | F6: 0.119
A7: Aberdeen City3: SVQ Level 1 and None | B7: Aberdeen City | C7: 3: SVQ Level 1 and None | D7: 800 | E7: 0.29 | F7: 0.222 | G7: *
A8: Aberdeenshire1: SVQ Level 4 and 5 | B8: Aberdeenshire | C8: 1: SVQ Level 4 and 5 | D8: 5300 | E8: 0.763 | F8: 0.145 | G8: *
A9: Aberdeenshire2: SVQ Level 2 and 3 | B9: Aberdeenshire | C9: 2: SVQ Level 2 and 3 | D9: 9300 | E9: 0.654 | F9: 0.105
A10: Aberdeenshire3: SVQ Level 1 and None | B10: Aberdeenshire | C10: 3: SVQ Level 1 and None | D10: 500 | E10: 0.443 | F10: 0.325 | G10: *
A11: Angus1: SVQ Level 4 and 5 | B11: Angus | C11: 1: SVQ Level 4 and 5 | D11: 1500 | E11: 0.648 | F11: 0.165 | G11: *
A12: Angus2: SVQ Level 2 and 3 | B12: Angus | C12: 2: SVQ Level 2 and 3 | D12: 3800 | E12: 0.583 | F12: 0.097
A13: Angus3: SVQ Level 1 and None | B13: Angus | C13: 3: SVQ Level 1 and None | D13: 400 | E13: 0.234 | F13: 0.154 | G13: *
A14: Argyll and Bute1: SVQ Level 4 and 5 | B14: Argyll and Bute | C14: 1: SVQ Level 4 and 5 | D14: 1200 | E14: 0.858 | F14: . | G14: *
A15: Argyll and Bute2: SVQ Level 2 and 3 | B15: Argyll and Bute | C15: 2: SVQ Level 2 and 3 | D15: 2700 | E15: 0.58 | F15: 0.116
A16: Argyll and Bute3: SVQ Level 1 and None | B16: Argyll and Bute | C16: 3: SVQ Level 1 and None | D16: 300 | E16: 0.273 | F16: 0.242 | G16: *
A17: City of Edinburgh1: SVQ Level 4 and 5 | B17: City of Edinburgh | C17: 1: SVQ Level 4 and 5 | D17: 16000 | E17: 0.78 | F17: 0.105
A18: City of Edinburgh2: SVQ Level 2 and 3 | B18: City of Edinburgh | C18: 2: SVQ Level 2 and 3 | D18: 14500 | E18: 0.402 | F18: 0.085
A19: City of Edinburgh3: SVQ Level 1 and None | B19: City of Edinburgh | C19: 3: SVQ Level 1 and None | D19: 1300 | E19: 0.388 | F19: 0.239 | G19: *
A20: Clackmannanshire1: SVQ Level 4 and 5 | B20: Clackmannanshire | C20: 1: SVQ Level 4 and 5 | D20: 300 | E20: 0.766 | F20: . | G20: *
A21: Clackmannanshire2: SVQ Level 2 and 3 | B21: Clackmannanshire | C21: 2: SVQ Level 2 and 3 | D21: 1600 | E21: 0.629 | F21: 0.12
A22: Clackmannanshire3: SVQ Level 1 and None | B22: Clackmannanshire | C22: 3: SVQ Level 1 and None | D22: 0 | E22: 0 | F22: 0 | G22: ***
A23: Dumfries and Galloway1: SVQ Level 4 and 5 | B23: Dumfries and Galloway | C23: 1: SVQ Level 4 and 5 | D23: 1200 | E23: 0.656 | F23: 0.249 | G23: *
A24: Dumfries and Galloway2: SVQ Level 2 and 3 | B24: Dumfries and Galloway | C24: 2: SVQ Level 2 and 3 | D24: 5100 | E24: 0.521 | F24: 0.106
A25: Dumfries and Galloway3: SVQ Level 1 and None | B25: Dumfries and Galloway | C25: 3: SVQ Level 1 and None | D25: 0 | E25: 0 | F25: 0 | G25: ***
A26: Dundee City1: SVQ Level 4 and 5 | B26: Dundee City | C26: 1: SVQ Level 4 and 5 | D26: 4000 | E26: 0.73 | F26: 0.111
A27: Dundee City2: SVQ Level 2 and 3 | B27: Dundee City | C27: 2: SVQ Level 2 and 3 | D27: 5300 | E27: 0.431 | F27: 0.083
A28: Dundee City3: SVQ Level 1 and None | B28: Dundee City | C28: 3: SVQ Level 1 and None | D28: 700 | E28: 0.44 | F28: 0.199 | G28: *
A29: East Ayrshire1: SVQ Level 4 and 5 | B29: East Ayrshire | C29: 1: SVQ Level 4 and 5 | D29: 1900 | E29: 0.86 | F29: 0.139 | G29: *
A30: East Ayrshire2: SVQ Level 2 and 3 | B30: East Ayrshire | C30: 2: SVQ Level 2 and 3 | D30: 3600 | E30: 0.568 | F30: 0.114
A31: East Ayrshire3: SVQ Level 1 and None | B31: East Ayrshire | C31: 3: SVQ Level 1 and None | D31: 300 | E31: 0.15 | F31: 0.143 | G31: *
A32: East Dunbartonshire1: SVQ Level 4 and 5 | B32: East Dunbartonshire | C32: 1: SVQ Level 4 and 5 | D32: 1900 | E32: 0.771 | F32: 0.123
A33: East Dunbartonshire2: SVQ Level 2 and 3 | B33: East Dunbartonshire | C33: 2: SVQ Level 2 and 3 | D33: 2800 | E33: 0.457 | F33: 0.091
A34: =B34&C34 -> East Dunbartonshire3: SVQ Level 1 and None | B34: East Dunbartonshire | C34: 3: SVQ Level 1 and None | D34: 300 | E34: 0.258 | F34: 0.202 | G34: *
A35: East Lothian1: SVQ Level 4 and 5 | B35: East Lothian | C35: 1: SVQ Level 4 and 5 | D35: 1900 | E35: 0.848 | F35: . | G35: *
A36: East Lothian2: SVQ Level 2 and 3 | B36: East Lothian | C36: 2: SVQ Level 2 and 3 | D36: 2900 | E36: 0.514 | F36: 0.114
A37: East Lothian3: SVQ Level 1 and None | B37: East Lothian | C37: 3: SVQ Level 1 and None | D37: 300 | E37: 0.279 | F37: 0.244 | G37: *
A38: East Renfrewshire1: SVQ Level 4 and 5 | B38: East Renfrewshire | C38: 1: SVQ Level 4 and 5 | D38: 1500 | E38: 0.689 | F38: 0.166 | G38: *
A39: East Renfrewshire2: SVQ Level 2 and 3 | B39: East Renfrewshire | C39: 2: SVQ Level 2 and 3 | D39: 2100 | E39: 0.324 | F39: 0.089
A40: East Renfrewshire3: SVQ Level 1 and None | B40: East Renfrewshire | C40: 3: SVQ Level 1 and None | D40: 0 | E40: 0 | F40: 0 | G40: ***
A41: Falkirk1: SVQ Level 4 and 5 | B41: Falkirk | C41: 1: SVQ Level 4 and 5 | D41: 2500 | E41: 0.97 | F41: . | G41: *
A42: Falkirk2: SVQ Level 2 and 3 | B42: Falkirk | C42: 2: SVQ Level 2 and 3 | D42: 4700 | E42: 0.548 | F42: 0.112
A43: Falkirk3: SVQ Level 1 and None | B43: Falkirk | C43: 3: SVQ Level 1 and None | D43: 700 | E43: 0.292 | F43: 0.186 | G43: *
A44: Fife1: SVQ Level 4 and 5 | B44: Fife | C44: 1: SVQ Level 4 and 5 | D44: 7600 | E44: 0.697 | F44: 0.144
A45: Fife2: SVQ Level 2 and 3 | B45: Fife | C45: 2: SVQ Level 2 and 3 | D45: 10600 | E45: 0.514 | F45: 0.104
A46: Fife3: SVQ Level 1 and None | B46: Fife | C46: 3: SVQ Level 1 and None | D46: 1800 | E46: 0.354 | F46: 0.204 | G46: *
A47: Glasgow City1: SVQ Level 4 and 5 | B47: Glasgow City | C47: 1: SVQ Level 4 and 5 | D47: 15300 | E47: 0.583 | F47: 0.101
A48: Glasgow City2: SVQ Level 2 and 3 | B48: Glasgow City | C48: 2: SVQ Level 2 and 3 | D48: 15600 | E48: 0.443 | F48: 0.081
A49: Glasgow City3: SVQ Level 1 and None | B49: Glasgow City | C49: 3: SVQ Level 1 and None | D49: 1600 | E49: 0.213 | F49: 0.147 | G49: *
A50: Highland1: SVQ Level 4 and 5 | B50: Highland | C50: 1: SVQ Level 4 and 5 | D50: . | E50: . | F50: .
A51: Highland2: SVQ Level 2 and 3 | B51: Highland | C51: 2: SVQ Level 2 and 3 | D51: 10300 | E51: 0.686 | F51: 0.129
A52: Highland3: SVQ Level 1 and None | B52: Highland | C52: 3: SVQ Level 1 and None | D52: 700 | E52: 0.432 | F52: 0.396 | G52: *
A53: Inverclyde1: SVQ Level 4 and 5 | B53: Inverclyde | C53: 1: SVQ Level 4 and 5 | D53: 500 | E53: 0.496 | F53: 0.245 | G53: *
A54: Inverclyde2: SVQ Level 2 and 3 | B54: Inverclyde | C54: 2: SVQ Level 2 and 3 | D54: 2600 | E54: 0.496 | F54: 0.113
A55: Inverclyde3: SVQ Level 1 and None | B55: Inverclyde | C55: 3: SVQ Level 1 and None | D55: 0 | E55: 0 | F55: 0 | G55: ***
A56: Midlothian1: SVQ Level 4 and 5 | B56: Midlothian | C56: 1: SVQ Level 4 and 5 | D56: 1200 | E56: 0.762 | F56: 0.216 | G56: *
A57: Midlothian2: SVQ Level 2 and 3 | B57: Midlothian | C57: 2: SVQ Level 2 and 3 | D57: 2800 | E57: 0.511 | F57: 0.119
A58: Midlothian3: SVQ Level 1 and None | B58: Midlothian | C58: 3: SVQ Level 1 and None | D58: 200 | E58: 0.272 | F58: . | G58: *
A59: Moray1: SVQ Level 4 and 5 | B59: Moray | C59: 1: SVQ Level 4 and 5 | D59: 1700 | E59: 0.731 | F59: 0.177 | G59: *
A60: Moray2: SVQ Level 2 and 3 | B60: Moray | C60: 2: SVQ Level 2 and 3 | D60: 3300 | E60: 0.618 | F60: 0.11
A61: Moray3: SVQ Level 1 and None | B61: Moray | C61: 3: SVQ Level 1 and None | D61: 500 | E61: 0.383 | F61: 0.238 | G61: *
A62: Na h-Eileanan Siar1: SVQ Level 4 and 5 | B62: Na h-Eileanan Siar | C62: 1: SVQ Level 4 and 5 | D62: 300 | E62: 0.713 | F62: . | G62: *
A63: Na h-Eileanan Siar2: SVQ Level 2 and 3 | B63: Na h-Eileanan Siar | C63: 2: SVQ Level 2 and 3 | D63: 1100 | E63: 0.678 | F63: 0.162 | G63: *
A64: Na h-Eileanan Siar3: SVQ Level 1 and None | B64: Na h-Eileanan Siar | C64: 3: SVQ Level 1 and None | D64: 100 | E64: 0.908 | F64: . | G64: *
A65: North Ayrshire1: SVQ Level 4 and 5 | B65: North Ayrshire | C65: 1: SVQ Level 4 and 5 | D65: 2200 | E65: 0.796 | F65: 0.152 | G65: *
A66: =B66&C66 -> North Ayrshire2: SVQ Level 2 and 3 | B66: North Ayrshire | C66: 2: SVQ Level 2 and 3 | D66: 4400 | E66: 0.538 | F66: 0.117
A67: North Ayrshire3: SVQ Level 1 and None | B67: North Ayrshire | C67: 3: SVQ Level 1 and None | D67: 500 | E67: 0.307 | F67: 0.234 | G67: *
A68: North Lanarkshire1: SVQ Level 4 and 5 | B68: North Lanarkshire | C68: 1: SVQ Level 4 and 5 | D68: 7000 | E68: 0.845 | F68: 0.107
A69: North Lanarkshire2: SVQ Level 2 and 3 | B69: North Lanarkshire | C69: 2: SVQ Level 2 and 3 | D69: 12700 | E69: 0.596 | F69: 0.094
A70: North Lanarkshire3: SVQ Level 1 and None | B70: North Lanarkshire | C70: 3: SVQ Level 1 and None | D70: 1700 | E70: 0.353 | F70: 0.195 | G70: *
A71: Orkney Islands1: SVQ Level 4 and 5 | B71: Orkney Islands | C71: 1: SVQ Level 4 and 5 | D71: 0 | E71: 0 | F71: 0 | G71: ***
A72: Orkney Islands2: SVQ Level 2 and 3 | B72: Orkney Islands | C72: 2: SVQ Level 2 and 3 | D72: 1000 | E72: 0.82 | F72: . | G72: *
A73: Orkney Islands3: SVQ Level 1 and None | B73: Orkney Islands | C73: 3: SVQ Level 1 and None | D73: 0 | E73: 0 | F73: 0 | G73: ***
A74: Perth and Kinross1: SVQ Level 4 and 5 | B74: Perth and Kinross | C74: 1: SVQ Level 4 and 5 | D74: 3300 | E74: 0.862 | F74: 0.101
A75: Perth and Kinross2: SVQ Level 2 and 3 | B75: Perth and Kinross | C75: 2: SVQ Level 2 and 3 | D75: 4900 | E75: 0.637 | F75: 0.097
A76: Perth and Kinross3: SVQ Level 1 and None | B76: Perth and Kinross | C76: 3: SVQ Level 1 and None | D76: 300 | E76: 0.205 | F76: 0.182 | G76: *
A77: Renfrewshire1: SVQ Level 4 and 5 | B77: Renfrewshire | C77: 1: SVQ Level 4 and 5 | D77: 3600 | E77: 0.885 | F77: 0.106
A78: Renfrewshire2: SVQ Level 2 and 3 | B78: Renfrewshire | C78: 2: SVQ Level 2 and 3 | D78: 5700 | E78: 0.498 | F78: 0.098
A79: Renfrewshire3: SVQ Level 1 and None | B79: Renfrewshire | C79: 3: SVQ Level 1 and None | D79: 300 | E79: 0.284 | F79: 0.255 | G79: *
A80: Scottish Borders1: SVQ Level 4 and 5 | B80: Scottish Borders | C80: 1: SVQ Level 4 and 5 | D80: 1500 | E80: 0.743 | F80: 0.179 | G80: *
A81: Scottish Borders2: SVQ Level 2 and 3 | B81: Scottish Borders | C81: 2: SVQ Level 2 and 3 | D81: 3600 | E81: 0.556 | F81: 0.104
A82: Scottish Borders3: SVQ Level 1 and None | B82: Scottish Borders | C82: 3: SVQ Level 1 and None | D82: 400 | E82: 0.344 | F82: 0.226 | G82: *
A83: Shetland Islands1: SVQ Level 4 and 5 | B83: Shetland Islands | C83: 1: SVQ Level 4 and 5 | D83: 0 | E83: 0 | F83: 0 | G83: ***
A84: Shetland Islands2: SVQ Level 2 and 3 | B84: Shetland Islands | C84: 2: SVQ Level 2 and 3 | D84: 1200 | E84: 0.586 | F84: 0.365 | G84: *
A85: Shetland Islands3: SVQ Level 1 and None | B85: Shetland Islands | C85: 3: SVQ Level 1 and None | D85: 0 | E85: 0 | F85: 0 | G85: ***
A86: South Ayrshire1: SVQ Level 4 and 5 | B86: South Ayrshire | C86: 1: SVQ Level 4 and 5 | D86: 2400 | E86: 0.821 | F86: 0.137 | G86: *
A87: South Ayrshire2: SVQ Level 2 and 3 | B87: South Ayrshire | C87: 2: SVQ Level 2 and 3 | D87: 3300 | E87: 0.548 | F87: 0.119
A88: South Ayrshire3: SVQ Level 1 and None | B88: South Ayrshire | C88: 3: SVQ Level 1 and None | D88: 500 | E88: 0.606 | F88: 0.339 | G88: *
A89: South Lanarkshire1: SVQ Level 4 and 5 | B89: South Lanarkshire | C89: 1: SVQ Level 4 and 5 | D89: 5000 | E89: 0.834 | F89: 0.146 | G89: *
A90: South Lanarkshire2: SVQ Level 2 and 3 | B90: South Lanarkshire | C90: 2: SVQ Level 2 and 3 | D90: 10200 | E90: 0.498 | F90: 0.099
A91: South Lanarkshire3: SVQ Level 1 and None | B91: South Lanarkshire | C91: 3: SVQ Level 1 and None | D91: 2000 | E91: 0.608 | F91: 0.256 | G91: *
A92: Stirling1: SVQ Level 4 and 5 | B92: Stirling | C92: 1: SVQ Level 4 and 5 | D92: 2800 | E92: 0.827 | F92: 0.131
A93: Stirling2: SVQ Level 2 and 3 | B93: Stirling | C93: 2: SVQ Level 2 and 3 | D93: 4400 | E93: 0.561 | F93: 0.106
A94: Stirling3: SVQ Level 1 and None | B94: Stirling | C94: 3: SVQ Level 1 and None | D94: 200 | E94: 0.276 | F94: 0.253 | G94: *
A95: West Dunbartonshire1: SVQ Level 4 and 5 | B95: West Dunbartonshire | C95: 1: SVQ Level 4 and 5 | D95: 2100 | E95: 0.788 | F95: 0.119
A96: West Dunbartonshire2: SVQ Level 2 and 3 | B96: West Dunbartonshire | C96: 2: SVQ Level 2 and 3 | D96: 2500 | E96: 0.556 | F96: 0.107
A97: West Dunbartonshire3: SVQ Level 1 and None | B97: West Dunbartonshire | C97: 3: SVQ Level 1 and None | D97: 0 | E97: 0 | F97: 0 | G97: ***
A98: =B98&C98 -> West Lothian1: SVQ Level 4 and 5 | B98: West Lothian | C98: 1: SVQ Level 4 and 5 | D98: 3400 | E98: 0.877 | F98: . | G98: *
A99: West Lothian2: SVQ Level 2 and 3 | B99: West Lothian | C99: 2: SVQ Level 2 and 3 | D99: 5300 | E99: 0.518 | F99: 0.104
A100: West Lothian3: SVQ Level 1 and None | B100: West Lothian | C100: 3: SVQ Level 1 and None | D100: 1300 | E100: 0.402 | F100: 0.185 | G100: *

Sheet Education (hidden)
A1: Lookup | B1: Area | C1: Status | D1: Education | E1: Level | F1: Rate | G1: CI | H1: SDC
A2: =B2&C2&D2 -> Aberdeen CityEmployedAll | B2: Aberdeen City | C2: Employed | D2: All | E2: 15400 | F2: 0.543 | G2: 0.09
A3: Aberdeen CityInactiveAll | B3: Aberdeen City | C3: Inactive | D3: All | E3: 10900 | F3: 0.383 | G3: 0.088
A4: Aberdeen CityILO UnemployedAll | B4: Aberdeen City | C4: ILO Unemployed | D4: All | E4: 2100 | F4: 0.12 | G4: 0.073 | H4: *
A5: Aberdeen CityILO UnemployedNot Full-Time Education | B5: Aberdeen City | C5: ILO Unemployed | D5: Not Full-Time Education | E5: 1100 | F5: 0.126 | G5: 0.097 | H5: *
A6: Aberdeen CityInactiveNot Full-Time Education | B6: Aberdeen City | C6: Inactive | D6: Not Full-Time Education | E6: 3200 | F6: 0.265 | G6: 0.114 | H6: *
A7: Aberdeen CityEmployedNot Full-Time Education | B7: Aberdeen City | C7: Employed | D7: Not Full-Time Education | E7: 7700 | F7: 0.642 | G7: 0.123
A8: AberdeenshireILO UnemployedAll | B8: Aberdeenshire | C8: ILO Unemployed | D8: All | E8: 700 | F8: 0.042 | G8: 0.041 | H8: *
A9: AberdeenshireEmployedAll | B9: Aberdeenshire | C9: Employed | D9: All | E9: 15900 | F9: 0.677 | G9: 0.08
A10: AberdeenshireInactiveAll | B10: Aberdeenshire | C10: Inactive | D10: All | E10: 6900 | F10: 0.294 | G10: 0.078
A11: AberdeenshireInactiveNot Full-Time Education | B11: Aberdeenshire | C11: Inactive | D11: Not Full-Time Education | E11: 700 | F11: 0.055 | G11: . | H11: *
A12: AberdeenshireEmployedNot Full-Time Education | B12: Aberdeenshire | C12: Employed | D12: Not Full-Time Education | E12: 11000 | F12: 0.889 | G12: 0.075
A13: AberdeenshireILO UnemployedNot Full-Time Education | B13: Aberdeenshire | C13: ILO Unemployed | D13: Not Full-Time Education | E13: 700 | F13: 0.059 | G13: . | H13: *
A14: AngusILO UnemployedAll | B14: Angus | C14: ILO Unemployed | D14: All | E14: 500 | F14: 0.082 | G14: 0.056 | H14: *
A15: AngusInactiveAll | B15: Angus | C15: Inactive | D15: All | E15: 4400 | F15: 0.41 | G15: 0.075
A16: AngusEmployedAll | B16: Angus | C16: Employed | D16: All | E16: 5800 | F16: 0.541 | G16: 0.076
A17: AngusEmployedNot Full-Time Education | B17: Angus | C17: Employed | D17: Not Full-Time Education | E17: 4200 | F17: 0.729 | G17: 0.096
A18: AngusILO UnemployedNot Full-Time Education | B18: Angus | C18: ILO Unemployed | D18: Not Full-Time Education | E18: 300 | F18: 0.063 | G18: 0.06 | H18: *
A19: AngusInactiveNot Full-Time Education | B19: Angus | C19: Inactive | D19: Not Full-Time Education | E19: 1300 | F19: 0.221 | G19: 0.09 | H19: *
A20: Argyll and ButeEmployedAll | B20: Argyll and Bute | C20: Employed | D20: All | E20: 4500 | F20: 0.593 | G20: 0.092
A21: Argyll and ButeInactiveAll | B21: Argyll and Bute | C21: Inactive | D21: All | E21: 2800 | F21: 0.376 | G21: 0.091
A22: Argyll and ButeILO UnemployedAll | B22: Argyll and Bute | C22: ILO Unemployed | D22: All | E22: 200 | F22: 0.05 | G22: . | H22: *
A23: Argyll and ButeInactiveNot Full-Time Education | B23: Argyll and Bute | C23: Inactive | D23: Not Full-Time Education | E23: 900 | F23: 0.199 | G23: 0.098 | H23: *
A24: Argyll and ButeILO UnemployedNot Full-Time Education | B24: Argyll and Bute | C24: ILO Unemployed | D24: Not Full-Time Education | E24: 200 | F24: 0.044 | G24: . | H24: *
A25: Argyll and ButeEmployedNot Full-Time Education | B25: Argyll and Bute | C25: Employed | D25: Not Full-Time Education | E25: 3600 | F25: 0.766 | G25: 0.104
A26: City of EdinburghILO UnemployedAll | B26: City of Edinburgh | C26: ILO Unemployed | D26: All | E26: 2700 | F26: 0.074 | G26: 0.049 | H26: *
A27: City of EdinburghInactiveAll | B27: City of Edinburgh | C27: Inactive | D27: All | E27: 26400 | F27: 0.424 | G27: 0.067
A28: City of EdinburghEmployedAll | B28: City of Edinburgh | C28: Employed | D28: All | E28: 33100 | F28: 0.533 | G28: 0.067
A29: City of EdinburghInactiveNot Full-Time Education | B29: City of Edinburgh | C29: Inactive | D29: Not Full-Time Education | E29: 5200 | F29: 0.189 | G29: 0.079 | H29: *
A30: City of EdinburghEmployedNot Full-Time Education | B30: City of Edinburgh | C30: Employed | D30: Not Full-Time Education | E30: 20900 | F30: 0.761 | G30: 0.086
A31: City of EdinburghILO UnemployedNot Full-Time Education | B31: City of Edinburgh | C31: ILO Unemployed | D31: Not Full-Time Education | E31: 1400 | F31: 0.062 | G31: 0.055 | H31: *
A32: ClackmannanshireInactiveAll | B32: Clackmannanshire | C32: Inactive | D32: All | E32: 1200 | F32: 0.326 | G32: 0.098
A33: ClackmannanshireILO UnemployedAll | B33: Clackmannanshire | C33: ILO Unemployed | D33: All | E33: 300 | F33: 0.112 | G33: 0.084 | H33: *
A34: =B34&C34&D34 -> ClackmannanshireEmployedAll | B34: Clackmannanshire | C34: Employed | D34: All | E34: 2200 | F34: 0.599 | G34: 0.102
A35: ClackmannanshireILO UnemployedNot Full-Time Education | B35: Clackmannanshire | C35: ILO Unemployed | D35: Not Full-Time Education | E35: 200 | F35: 0.127 | G35: 0.102 | H35: *
A36: ClackmannanshireEmployedNot Full-Time Education | B36: Clackmannanshire | C36: Employed | D36: Not Full-Time Education | E36: 1600 | F36: 0.774 | G36: 0.121
A37: ClackmannanshireInactiveNot Full-Time Education | B37: Clackmannanshire | C37: Inactive | D37: Not Full-Time Education | E37: 200 | F37: 0.113 | G37: 0.092 | H37: *
A38: Dumfries and GallowayInactiveAll | B38: Dumfries and Galloway | C38: Inactive | D38: All | E38: 5700 | F38: 0.44 | G38: 0.091
A39: Dumfries and GallowayEmployedAll | B39: Dumfries and Galloway | C39: Employed | D39: All | E39: 6500 | F39: 0.496 | G39: 0.092
A40: Dumfries and GallowayILO UnemployedAll | B40: Dumfries and Galloway | C40: ILO Unemployed | D40: All | E40: 800 | F40: 0.115 | G40: 0.079 | H40: *
A41: Dumfries and GallowayEmployedNot Full-Time Education | B41: Dumfries and Galloway | C41: Employed | D41: Not Full-Time Education | E41: 5400 | F41: 0.688 | G41: 0.113
A42: Dumfries and GallowayILO UnemployedNot Full-Time Education | B42: Dumfries and Galloway | C42: ILO Unemployed | D42: Not Full-Time Education | E42: 800 | F42: 0.134 | G42: 0.093 | H42: *
A43: Dumfries and GallowayInactiveNot Full-Time Education | B43: Dumfries and Galloway | C43: Inactive | D43: Not Full-Time Education | E43: 1600 | F43: 0.205 | G43: 0.098 | H43: *
A44: Dundee CityInactiveAll | B44: Dundee City | C44: Inactive | D44: All | E44: 8100 | F44: 0.406 | G44: 0.063
A45: Dundee CityILO UnemployedAll | B45: Dundee City | C45: ILO Unemployed | D45: All | E45: 1700 | F45: 0.144 | G45: 0.058 | H45: *
A46: Dundee CityEmployedAll | B46: Dundee City | C46: Employed | D46: All | E46: 10100 | F46: 0.508 | G46: 0.064
A47: Dundee CityInactiveNot Full-Time Education | B47: Dundee City | C47: Inactive | D47: Not Full-Time Education | E47: 900 | F47: 0.118 | G47: 0.065 | H47: *
A48: Dundee CityILO UnemployedNot Full-Time Education | B48: Dundee City | C48: ILO Unemployed | D48: Not Full-Time Education | E48: 600 | F48: 0.092 | G48: 0.062 | H48: *
A49: Dundee CityEmployedNot Full-Time Education | B49: Dundee City | C49: Employed | D49: Not Full-Time Education | E49: 6300 | F49: 0.801 | G49: 0.08
A50: East AyrshireEmployedAll | B50: East Ayrshire | C50: Employed | D50: All | E50: 6500 | F50: 0.56 | G50: 0.085
A51: East AyrshireILO UnemployedAll | B51: East Ayrshire | C51: ILO Unemployed | D51: All | E51: 900 | F51: 0.119 | G51: 0.07 | H51: *
A52: East AyrshireInactiveAll | B52: East Ayrshire | C52: Inactive | D52: All | E52: 4200 | F52: 0.364 | G52: 0.082
A53: East AyrshireEmployedNot Full-Time Education | B53: East Ayrshire | C53: Employed | D53: Not Full-Time Education | E53: 5300 | F53: 0.737 | G53: 0.098
A54: East AyrshireInactiveNot Full-Time Education | B54: East Ayrshire | C54: Inactive | D54: Not Full-Time Education | E54: 1100 | F54: 0.147 | G54: 0.079 | H54: *
A55: East AyrshireILO UnemployedNot Full-Time Education | B55: East Ayrshire | C55: ILO Unemployed | D55: Not Full-Time Education | E55: 800 | F55: 0.137 | G55: 0.083 | H55: *
A56: East DunbartonshireILO UnemployedAll | B56: East Dunbartonshire | C56: ILO Unemployed | D56: All | E56: 0 | F56: 0 | G56: 0 | H56: ***
A57: East DunbartonshireEmployedAll | B57: East Dunbartonshire | C57: Employed | D57: All | E57: 5300 | F57: 0.513 | G57: 0.071
A58: East DunbartonshireInactiveAll | B58: East Dunbartonshire | C58: Inactive | D58: All | E58: 5000 | F58: 0.482 | G58: 0.071
A59: East DunbartonshireInactiveNot Full-Time Education | B59: East Dunbartonshire | C59: Inactive | D59: Not Full-Time Education | E59: 1100 | F59: 0.229 | G59: 0.085 | H59: *
A60: East DunbartonshireILO UnemployedNot Full-Time Education | B60: East Dunbartonshire | C60: ILO Unemployed | D60: Not Full-Time Education | E60: 0 | F60: 0 | G60: 0 | H60: ***
A61: East DunbartonshireEmployedNot Full-Time Education | B61: East Dunbartonshire | C61: Employed | D61: Not Full-Time Education | E61: 3800 | F61: 0.771 | G61: 0.085
A62: East LothianILO UnemployedAll | B62: East Lothian | C62: ILO Unemployed | D62: All | E62: 600 | F62: 0.09 | G62: 0.065 | H62: *
A63: East LothianInactiveAll | B63: East Lothian | C63: Inactive | D63: All | E63: 3500 | F63: 0.357 | G63: 0.087
A64: East LothianEmployedAll | B64: East Lothian | C64: Employed | D64: All | E64: 5800 | F64: 0.585 | G64: 0.089
A65: East LothianInactiveNot Full-Time Education | B65: East Lothian | C65: Inactive | D65: Not Full-Time Education | E65: 1000 | F65: 0.19 | G65: 0.099 | H65: *
A66: =B66&C66&D66 -> East LothianILO UnemployedNot Full-Time Education | B66: East Lothian | C66: ILO Unemployed | D66: Not Full-Time Education | E66: 500 | F66: 0.102 | G66: 0.084 | H66: *
A67: East LothianEmployedNot Full-Time Education | B67: East Lothian | C67: Employed | D67: Not Full-Time Education | E67: 4000 | F67: 0.727 | G67: 0.113
A68: East RenfrewshireILO UnemployedAll | B68: East Renfrewshire | C68: ILO Unemployed | D68: All | E68: 400 | F68: 0.1 | G68: 0.072 | H68: *
A69: East RenfrewshireInactiveAll | B69: East Renfrewshire | C69: Inactive | D69: All | E69: 5300 | F69: 0.556 | G69: 0.078
A70: East RenfrewshireEmployedAll | B70: East Renfrewshire | C70: Employed | D70: All | E70: 3900 | F70: 0.4 | G70: 0.077
A71: East RenfrewshireInactiveNot Full-Time Education | B71: East Renfrewshire | C71: Inactive | D71: Not Full-Time Education | E71: 600 | F71: 0.182 | G71: 0.103 | H71: *
A72: East RenfrewshireILO UnemployedNot Full-Time Education | B72: East Renfrewshire | C72: ILO Unemployed | D72: Not Full-Time Education | E72: 300 | F72: 0.11 | G72: 0.095 | H72: *
A73: East RenfrewshireEmployedNot Full-Time Education | B73: East Renfrewshire | C73: Employed | D73: Not Full-Time Education | E73: 2600 | F73: 0.728 | G73: 0.119
A74: FalkirkInactiveAll | B74: Falkirk | C74: Inactive | D74: All | E74: 5200 | F74: 0.336 | G74: 0.08
A75: FalkirkEmployedAll | B75: Falkirk | C75: Employed | D75: All | E75: 8800 | F75: 0.573 | G75: 0.084
A76: FalkirkILO UnemployedAll | B76: Falkirk | C76: ILO Unemployed | D76: All | E76: 1400 | F76: 0.137 | G76: 0.074 | H76: *
A77: FalkirkEmployedNot Full-Time Education | B77: Falkirk | C77: Employed | D77: Not Full-Time Education | E77: 7400 | F77: 0.693 | G77: 0.101
A78: FalkirkInactiveNot Full-Time Education | B78: Falkirk | C78: Inactive | D78: Not Full-Time Education | E78: 2100 | F78: 0.193 | G78: 0.086 | H78: *
A79: FalkirkILO UnemployedNot Full-Time Education | B79: Falkirk | C79: ILO Unemployed | D79: Not Full-Time Education | E79: 1200 | F79: 0.141 | G79: 0.083 | H79: *
A80: FifeInactiveAll | B80: Fife | C80: Inactive | D80: All | E80: 17100 | F80: 0.436 | G80: 0.078
A81: FifeILO UnemployedAll | B81: Fife | C81: ILO Unemployed | D81: All | E81: 2100 | F81: 0.093 | G81: 0.06 | H81: *
A82: FifeEmployedAll | B82: Fife | C82: Employed | D82: All | E82: 20100 | F82: 0.512 | G82: 0.078
A83: FifeInactiveNot Full-Time Education | B83: Fife | C83: Inactive | D83: Not Full-Time Education | E83: 4100 | F83: 0.176 | G83: 0.079 | H83: *
A84: FifeILO UnemployedNot Full-Time Education | B84: Fife | C84: ILO Unemployed | D84: Not Full-Time Education | E84: 1900 | F84: 0.102 | G84: 0.068 | H84: *
A85: FifeEmployedNot Full-Time Education | B85: Fife | C85: Employed | D85: Not Full-Time Education | E85: 17200 | F85: 0.74 | G85: 0.091
A86: Glasgow CityInactiveAll | B86: Glasgow City | C86: Inactive | D86: All | E86: 36400 | F86: 0.475 | G86: 0.057
A87: Glasgow CityEmployedAll | B87: Glasgow City | C87: Employed | D87: All | E87: 36200 | F87: 0.473 | G87: 0.057
A88: Glasgow CityILO UnemployedAll | B88: Glasgow City | C88: ILO Unemployed | D88: All | E88: 3900 | F88: 0.098 | G88: 0.047 | H88: *
A89: Glasgow CityInactiveNot Full-Time Education | B89: Glasgow City | C89: Inactive | D89: Not Full-Time Education | E89: 12300 | F89: 0.309 | G89: 0.078
A90: Glasgow CityILO UnemployedNot Full-Time Education | B90: Glasgow City | C90: ILO Unemployed | D90: Not Full-Time Education | E90: 2100 | F90: 0.078 | G90: 0.053 | H90: *
A91: Glasgow CityEmployedNot Full-Time Education | B91: Glasgow City | C91: Employed | D91: Not Full-Time Education | E91: 25300 | F91: 0.637 | G91: 0.081
A92: HighlandInactiveAll | B92: Highland | C92: Inactive | D92: All | E92: 5700 | F92: 0.27 | G92: 0.105 | H92: *
A93: HighlandILO UnemployedAll | B93: Highland | C93: ILO Unemployed | D93: All | E93: 0 | F93: 0 | G93: 0 | H93: ***
A94: HighlandEmployedAll | B94: Highland | C94: Employed | D94: All | E94: 15000 | F94: 0.716 | G94: 0.106
A95: HighlandInactiveNot Full-Time Education | B95: Highland | C95: Inactive | D95: Not Full-Time Education | E95: 1200 | F95: 0.094 | G95: 0.088 | H95: *
A96: HighlandILO UnemployedNot Full-Time Education | B96: Highland | C96: ILO Unemployed | D96: Not Full-Time Education | E96: 0 | F96: 0 | G96: 0 | H96: ***
A97: HighlandEmployedNot Full-Time Education | B97: Highland | C97: Employed | D97: Not Full-Time Education | E97: 11800 | F97: 0.906 | G97: 0.088
A98: =B98&C98&D98 -> InverclydeInactiveAll | B98: Inverclyde | C98: Inactive | D98: All | E98: 3100 | F98: 0.414 | G98: 0.093
A99: InverclydeILO UnemployedAll | B99: Inverclyde | C99: ILO Unemployed | D99: All | E99: 500 | F99: 0.111 | G99: 0.076 | H99: *
A100: InverclydeEmployedAll | B100: Inverclyde | C100: Employed | D100: All | E100: 4000 | F100: 0.521 | G100: 0.095
A101: InverclydeInactiveNot Full-Time Education | B101: Inverclyde | C101: Inactive | D101: Not Full-Time Education | E101: 600 | F101: 0.152 | G101: 0.094 | H101: *
A102: InverclydeEmployedNot Full-Time Education | B102: Inverclyde | C102: Employed | D102: Not Full-Time Education | E102: 3000 | F102: 0.749 | G102: 0.113
A103: InverclydeILO UnemployedNot Full-Time Education | B103: Inverclyde | C103: ILO Unemployed | D103: Not Full-Time Education | E103: 400 | F103: 0.116 | G103: 0.091 | H103: *
A104: MidlothianInactiveAll | B104: Midlothian | C104: Inactive | D104: All | E104: 3200 | F104: 0.381 | G104: 0.096
A105: MidlothianILO UnemployedAll | B105: Midlothian | C105: ILO Unemployed | D105: All | E105: 600 | F105: 0.106 | G105: 0.077 | H105: *
A106: MidlothianEmployedAll | B106: Midlothian | C106: Employed | D106: All | E106: 4700 | F106: 0.554 | G106: 0.098
A107: MidlothianInactiveNot Full-Time Education | B107: Midlothian | C107: Inactive | D107: Not Full-Time Education | E107: 500 | F107: 0.126 | G107: 0.09 | H107: *
A108: MidlothianILO UnemployedNot Full-Time Education | B108: Midlothian | C108: ILO Unemployed | D108: Not Full-Time Education | E108: 200 | F108: 0.061 | G108: . | H108: *
A109: MidlothianEmployedNot Full-Time Education | B109: Midlothian | C109: Employed | D109: Not Full-Time Education | E109: 3500 | F109: 0.82 | G109: 0.104
A110: MorayInactiveAll | B110: Moray | C110: Inactive | D110: All | E110: 3000 | F110: 0.333 | G110: 0.085
A111: MorayILO UnemployedAll | B111: Moray | C111: ILO Unemployed | D111: All | E111: 400 | F111: 0.066 | G111: 0.056 | H111: *
A112: MorayEmployedAll | B112: Moray | C112: Employed | D112: All | E112: 5700 | F112: 0.624 | G112: 0.087
A113: MorayInactiveNot Full-Time Education | B113: Moray | C113: Inactive | D113: Not Full-Time Education | E113: 1300 | F113: 0.208 | G113: 0.093 | H113: *
A114: MorayILO UnemployedNot Full-Time Education | B114: Moray | C114: ILO Unemployed | D114: Not Full-Time Education | E114: 400 | F114: 0.08 | G114: 0.07 | H114: *
A115: MorayEmployedNot Full-Time Education | B115: Moray | C115: Employed | D115: Not Full-Time Education | E115: 4600 | F115: 0.729 | G115: 0.102
A116: Na h-Eileanan SiarInactiveAll | B116: Na h-Eileanan Siar | C116: Inactive | D116: All | E116: 600 | F116: 0.271 | G116: 0.131 | H116: *
A117: Na h-Eileanan SiarILO UnemployedAll | B117: Na h-Eileanan Siar | C117: ILO Unemployed | D117: All | E117: 0 | F117: 0 | G117: 0 | H117: ***
A118: Na h-Eileanan SiarEmployedAll | B118: Na h-Eileanan Siar | C118: Employed | D118: All | E118: 1600 | F118: 0.687 | G118: 0.137
A119: Na h-Eileanan SiarILO UnemployedNot Full-Time Education | B119: Na h-Eileanan Siar | C119: ILO Unemployed | D119: Not Full-Time Education | E119: 0 | F119: 0 | G119: 0 | H119: ***
A120: Na h-Eileanan SiarInactiveNot Full-Time Education | B120: Na h-Eileanan Siar | C120: Inactive | D120: Not Full-Time Education | E120: 100 | F120: 0.105 | G120: . | H120: *
A121: Na h-Eileanan SiarEmployedNot Full-Time Education | B121: Na h-Eileanan Siar | C121: Employed | D121: Not Full-Time Education | E121: 900 | F121: 0.802 | G121: 0.179 | H121: *
A122: North AyrshireInactiveAll | B122: North Ayrshire | C122: Inactive | D122: All | E122: 4600 | F122: 0.346 | G122: 0.085
A123: North AyrshireILO UnemployedAll | B123: North Ayrshire | C123: ILO Unemployed | D123: All | E123: 1300 | F123: 0.155 | G123: 0.081 | H123: *
A124: North AyrshireEmployedAll | B124: North Ayrshire | C124: Employed | D124: All | E124: 7300 | F124: 0.553 | G124: 0.089
A125: North AyrshireEmployedNot Full-Time Education | B125: North Ayrshire | C125: Employed | D125: Not Full-Time Education | E125: 5700 | F125: 0.714 | G125: 0.107
A126: North AyrshireInactiveNot Full-Time Education | B126: North Ayrshire | C126: Inactive | D126: Not Full-Time Education | E126: 1200 | F126: 0.153 | G126: 0.086 | H126: *
A127: North AyrshireILO UnemployedNot Full-Time Education | B127: North Ayrshire | C127: ILO Unemployed | D127: Not Full-Time Education | E127: 1100 | F127: 0.157 | G127: 0.094 | H127: *
A128: North LanarkshireInactiveAll | B128: North Lanarkshire | C128: Inactive | D128: All | E128: 11900 | F128: 0.336 | G128: 0.07
A129: North LanarkshireILO UnemployedAll | B129: North Lanarkshire | C129: ILO Unemployed | D129: All | E129: 1900 | F129: 0.081 | G129: 0.05 | H129: *
A130: =B130&C130&D130 -> North LanarkshireEmployedAll | B130: North Lanarkshire | C130: Employed | D130: All | E130: 21700 | F130: 0.611 | G130: 0.072
A131: North LanarkshireInactiveNot Full-Time Education | B131: North Lanarkshire | C131: Inactive | D131: Not Full-Time Education | E131: 3800 | F131: 0.168 | G131: 0.071 | H131: *
A132: North LanarkshireILO UnemployedNot Full-Time Education | B132: North Lanarkshire | C132: ILO Unemployed | D132: Not Full-Time Education | E132: 1800 | F132: 0.094 | G132: 0.06 | H132: *
A133: North LanarkshireEmployedNot Full-Time Education | B133: North Lanarkshire | C133: Employed | D133: Not Full-Time Education | E133: 17200 | F133: 0.754 | G133: 0.082
A134: Orkney IslandsInactiveAll | B134: Orkney Islands | C134: Inactive | D134: All | E134: 500 | F134: 0.265 | G134: 0.21 | H134: *
A135: Orkney IslandsILO UnemployedAll | B135: Orkney Islands | C135: ILO Unemployed | D135: All | E135: 0 | F135: 0 | G135: 0 | H135: ***
A136: Orkney IslandsEmployedAll | B136: Orkney Islands | C136: Employed | D136: All | E136: 1400 | F136: 0.735 | G136: 0.21 | H136: *
A137: Orkney IslandsInactiveNot Full-Time Education | B137: Orkney Islands | C137: Inactive | D137: Not Full-Time Education | E137: 0 | F137: 0 | G137: 0 | H137: ***
A138: Orkney IslandsILO UnemployedNot Full-Time Education | B138: Orkney Islands | C138: ILO Unemployed | D138: Not Full-Time Education | E138: 0 | F138: 0 | G138: 0 | H138: ***
A139: Orkney IslandsEmployedNot Full-Time Education | B139: Orkney Islands | C139: Employed | D139: Not Full-Time Education | E139: 1100 | F139: 0.801 | G139: . | H139: *
A140: Perth and KinrossInactiveAll | B140: Perth and Kinross | C140: Inactive | D140: All | E140: 3700 | F140: 0.271 | G140: 0.067
A141: Perth and KinrossILO UnemployedAll | B141: Perth and Kinross | C141: ILO Unemployed | D141: All | E141: 800 | F141: 0.077 | G141: 0.048 | H141: *
A142: Perth and KinrossEmployedAll | B142: Perth and Kinross | C142: Employed | D142: All | E142: 9300 | F142: 0.673 | G142: 0.071
A143: Perth and KinrossILO UnemployedNot Full-Time Education | B143: Perth and Kinross | C143: ILO Unemployed | D143: Not Full-Time Education | E143: 500 | F143: 0.067 | G143: 0.051 | H143: *
A144: Perth and KinrossInactiveNot Full-Time Education | B144: Perth and Kinross | C144: Inactive | D144: Not Full-Time Education | E144: 1100 | F144: 0.117 | G144: 0.062 | H144: *
A145: Perth and KinrossEmployedNot Full-Time Education | B145: Perth and Kinross | C145: Employed | D145: Not Full-Time Education | E145: 7600 | F145: 0.824 | G145: 0.073
A146: RenfrewshireInactiveAll | B146: Renfrewshire | C146: Inactive | D146: All | E146: 5900 | F146: 0.332 | G146: 0.075
A147: RenfrewshireILO UnemployedAll | B147: Renfrewshire | C147: ILO Unemployed | D147: All | E147: 1400 | F147: 0.122 | G147: 0.063 | H147: *
A148: RenfrewshireEmployedAll | B148: Renfrewshire | C148: Employed | D148: All | E148: 10400 | F148: 0.587 | G148: 0.078
A149: RenfrewshireInactiveNot Full-Time Education | B149: Renfrewshire | C149: Inactive | D149: Not Full-Time Education | E149: 1100 | F149: 0.12 | G149: 0.073 | H149: *
A150: RenfrewshireILO UnemployedNot Full-Time Education | B150: Renfrewshire | C150: ILO Unemployed | D150: Not Full-Time Education | E150: 700 | F150: 0.09 | G150: 0.069 | H150: *
A151: RenfrewshireEmployedNot Full-Time Education | B151: Renfrewshire | C151: Employed | D151: Not Full-Time Education | E151: 7100 | F151: 0.8 | G151: 0.09
A152: ScotlandEmployedAll | B152: Scotland | C152: Employed | D152: All | E152: 315900 | F152: 0.559 | G152: 0.015
A153: ScotlandILO UnemployedAll | B153: Scotland | C153: ILO Unemployed | D153: All | E153: 30900 | F153: 0.089 | G153: 0.011
A154: ScotlandInactiveAll | B154: Scotland | C154: Inactive | D154: All | E154: 218800 | F154: 0.387 | G154: 0.015
A155: ScotlandInactiveNot Full-Time Education | B155: Scotland | C155: Inactive | D155: Not Full-Time Education | E155: 55300 | F155: 0.179 | G155: 0.016
A156: ScotlandILO UnemployedNot Full-Time Education | B156: Scotland | C156: ILO Unemployed | D156: Not Full-Time Education | E156: 21500 | F156: 0.085 | G156: 0.013
A157: ScotlandEmployedNot Full-Time Education | B157: Scotland | C157: Employed | D157: Not Full-Time Education | E157: 232400 | F157: 0.752 | G157: 0.018
A158: Scottish BordersInactiveAll | B158: Scottish Borders | C158: Inactive | D158: All | E158: 3800 | F158: 0.38 | G158: 0.082
A159: Scottish BordersILO UnemployedAll | B159: Scottish Borders | C159: ILO Unemployed | D159: All | E159: 500 | F159: 0.074 | G159: 0.057 | H159: *
A160: Scottish BordersEmployedAll | B160: Scottish Borders | C160: Employed | D160: All | E160: 5700 | F160: 0.574 | G160: 0.083
A161: Scottish BordersILO UnemployedNot Full-Time Education | B161: Scottish Borders | C161: ILO Unemployed | D161: Not Full-Time Education | E161: 500 | F161: 0.085 | G161: 0.066 | H161: *
A162: =B162&C162&D162 -> Scottish BordersInactiveNot Full-Time Education | B162: Scottish Borders | C162: Inactive | D162: Not Full-Time Education | E162: 1100 | F162: 0.166 | G162: 0.081 | H162: *
A163: Scottish BordersEmployedNot Full-Time Education | B163: Scottish Borders | C163: Employed | D163: Not Full-Time Education | E163: 4900 | F163: 0.763 | G163: 0.093
A164: Shetland IslandsInactiveAll | B164: Shetland Islands | C164: Inactive | D164: All | E164: 1100 | F164: 0.355 | G164: 0.271 | H164: *
A165: Shetland IslandsILO UnemployedAll | B165: Shetland Islands | C165: ILO Unemployed | D165: All | E165: 0 | F165: 0 | G165: 0 | H165: ***
A166: Shetland IslandsEmployedAll | B166: Shetland Islands | C166: Employed | D166: All | E166: 1800 | F166: 0.567 | G166: 0.28 | H166: *
A167: Shetland IslandsInactiveNot Full-Time Education | B167: Shetland Islands | C167: Inactive | D167: Not Full-Time Education | E167: 0 | F167: 0 | G167: 0 | H167: ***
A168: Shetland IslandsILO UnemployedNot Full-Time Education | B168: Shetland Islands | C168: ILO Unemployed | D168: Not Full-Time Education | E168: 0 | F168: 0 | G168: 0 | H168: ***
A169: Shetland IslandsEmployedNot Full-Time Education | B169: Shetland Islands | C169: Employed | D169: Not Full-Time Education | E169: 800 | F169: 0.768 | G169: . | H169: *
A170: South AyrshireInactiveAll | B170: South Ayrshire | C170: Inactive | D170: All | E170: 3100 | F170: 0.298 | G170: 0.085
A171: South AyrshireILO UnemployedAll | B171: South Ayrshire | C171: ILO Unemployed | D171: All | E171: 700 | F171: 0.091 | G171: 0.065 | H171: *
A172: South AyrshireEmployedAll | B172: South Ayrshire | C172: Employed | D172: All | E172: 6500 | F172: 0.638 | G172: 0.089
A173: South AyrshireILO UnemployedNot Full-Time Education | B173: South Ayrshire | C173: ILO Unemployed | D173: Not Full-Time Education | E173: 400 | F173: 0.068 | G173: 0.067 | H173: *
A174: South AyrshireInactiveNot Full-Time Education | B174: South Ayrshire | C174: Inactive | D174: Not Full-Time Education | E174: 500 | F174: 0.084 | G174: 0.071 | H174: *
A175: South AyrshireEmployedNot Full-Time Education | B175: South Ayrshire | C175: Employed | D175: Not Full-Time Education | E175: 4800 | F175: 0.854 | G175: 0.09
A176: South LanarkshireInactiveAll | B176: South Lanarkshire | C176: Inactive | D176: All | E176: 11300 | F176: 0.37 | G176: 0.08
A177: South LanarkshireILO UnemployedAll | B177: South Lanarkshire | C177: ILO Unemployed | D177: All | E177: 1600 | F177: 0.081 | G177: 0.059 | H177: *
A178: South LanarkshireEmployedAll | B178: South Lanarkshire | C178: Employed | D178: All | E178: 17600 | F178: 0.579 | G178: 0.082
A179: South LanarkshireInactiveNot Full-Time Education | B179: South Lanarkshire | C179: Inactive | D179: Not Full-Time Education | E179: 2800 | F179: 0.141 | G179: 0.074 | H179: *
A180: South LanarkshireILO UnemployedNot Full-Time Education | B180: South Lanarkshire | C180: ILO Unemployed | D180: Not Full-Time Education | E180: 1400 | F180: 0.084 | G180: 0.064 | H180: *
A181: South LanarkshireEmployedNot Full-Time Education | B181: South Lanarkshire | C181: Employed | D181: Not Full-Time Education | E181: 15500 | F181: 0.787 | G181: 0.087
A182: StirlingInactiveAll | B182: Stirling | C182: Inactive | D182: All | E182: 4600 | F182: 0.368 | G182: 0.082
A183: StirlingILO UnemployedAll | B183: Stirling | C183: ILO Unemployed | D183: All | E183: 400 | F183: 0.056 | G183: 0.05 | H183: *
A184: StirlingEmployedAll | B184: Stirling | C184: Employed | D184: All | E184: 7500 | F184: 0.597 | G184: 0.083
A185: StirlingInactiveNot Full-Time Education | B185: Stirling | C185: Inactive | D185: Not Full-Time Education | E185: 700 | F185: 0.12 | G185: 0.08 | H185: *
A186: StirlingILO UnemployedNot Full-Time Education | B186: Stirling | C186: ILO Unemployed | D186: Not Full-Time Education | E186: 200 | F186: 0.046 | G186: . | H186: *
A187: StirlingEmployedNot Full-Time Education | B187: Stirling | C187: Employed | D187: Not Full-Time Education | E187: 4800 | F187: 0.84 | G187: 0.09
A188: West DunbartonshireInactiveAll | B188: West Dunbartonshire | C188: Inactive | D188: All | E188: 3000 | F188: 0.337 | G188: 0.074
A189: West DunbartonshireILO UnemployedAll | B189: West Dunbartonshire | C189: ILO Unemployed | D189: All | E189: 900 | F189: 0.15 | G189: 0.069 | H189: *
A190: West DunbartonshireEmployedAll | B190: West Dunbartonshire | C190: Employed | D190: All | E190: 4900 | F190: 0.563 | G190: 0.078
A191: West DunbartonshireInactiveNot Full-Time Education | B191: West Dunbartonshire | C191: Inactive | D191: Not Full-Time Education | E191: 900 | F191: 0.163 | G191: 0.073 | H191: *
A192: West DunbartonshireILO UnemployedNot Full-Time Education | B192: West Dunbartonshire | C192: ILO Unemployed | D192: Not Full-Time Education | E192: 600 | F192: 0.133 | G192: 0.073 | H192: *
A193: West DunbartonshireEmployedNot Full-Time Education | B193: West Dunbartonshire | C193: Employed | D193: Not Full-Time Education | E193: 4100 | F193: 0.726 | G193: 0.088
A194: =B194&C194&D194 -> West LothianInactiveAll | B194: West Lothian | C194: Inactive | D194: All | E194: 6600 | F194: 0.36 | G194: 0.077
A195: West LothianILO UnemployedAll | B195: West Lothian | C195: ILO Unemployed | D195: All | E195: 1000 | F195: 0.086 | G195: 0.057 | H195: *
A196: West LothianEmployedAll | B196: West Lothian | C196: Employed | D196: All | E196: 10600 | F196: 0.585 | G196: 0.079
A197: West LothianInactiveNot Full-Time Education | B197: West Lothian | C197: Inactive | D197: Not Full-Time Education | E197: 1700 | F197: 0.156 | G197: 0.078 | H197: *
A198: West LothianILO UnemployedNot Full-Time Education | B198: West Lothian | C198: ILO Unemployed | D198: Not Full-Time Education | E198: 700 | F198: 0.078 | G198: 0.063 | H198: *
A199: West LothianEmployedNot Full-Time Education | B199: West Lothian | C199: Employed | D199: Not Full-Time Education | E199: 8700 | F199: 0.778 | G199: 0.089

Sheet Main Table (hidden)
B1: 2 | C1: 3 | D1: 4 | E1: 5 | F1: 6 | G1: 7 | H1: 8 | I1: 9 | J1: 10 | K1: 11 | L1: 12 | M1: 13 | N1: 14 | O1: 15 | P1: 16 | Q1: 17 | R1: 18 | S1: 19 | T1: 20 | U1: 21 | V1: 22 | W1: 23 | X1: 24 | Y1: 25 | Z1: 26 | AA1: 27 | AB1: 28 | AC1: 29 | AD1: 30 | AE1: 31 | AF1: 32 | AG1: 33 | AH1: 34 | AI1: 35 | AJ1: 36 | AK1: 37 | AL1: 38 | AM1: 39 | AN1: 40 | AO1: 41 | AP1: 42 | AQ1: 43 | AR1: 44 | AS1: 45 | AT1: 46 | AU1: 47 | AV1: 48 | AW1: 49 | AX1: 50 | AY1: 51 | AZ1: 52 | BA1: 53 | BB1: 54 | BC1: 55 | BD1: 56 | BE1: 57 | BF1: 58 | BG1: 59 | BH1: 60 | BI1: 61 | BJ1: 62 | BK1: 63 | BL1: 64 | BM1: 65 | BN1: 66 | BO1: 67 | BP1: 68 | BQ1: 69 | BR1: 70 | BS1: 71 | BT1: 72 | BU1: 73 | BV1: 74 | BW1: 75 | BX1: 76
B2: All | C2: All | D2: All | E2: All | F2: All | G2: All | H2: All | I2: All | J2: All | K2: All | L2: All | M2: All | N2: All | O2: All | P2: All | Q2: Employed | R2: Employed | S2: Employed | T2: Employed | U2: Employed | V2: Employed | W2: Employed | X2: Employed | Y2: Employed | Z2: Employed | AA2: Employed | AB2: Employed | AC2: Employed | AD2: Employed | AE2: Employed | AF2: ILO Unemployed | AG2: ILO Unemployed | AH2: ILO Unemployed | AI2: ILO Unemployed | AJ2: ILO Unemployed | AK2: ILO Unemployed | AL2: ILO Unemployed | AM2: ILO Unemployed | AN2: ILO Unemployed | AO2: ILO Unemployed | AP2: ILO Unemployed | AQ2: ILO Unemployed | AR2: ILO Unemployed | AS2: ILO Unemployed | AT2: ILO Unemployed | AU2: Inactive | AV2: Inactive | AW2: Inactive | AX2: Inactive | AY2: Inactive | AZ2: Inactive | BA2: Inactive | BB2: Inactive | BC2: Inactive | BD2: Inactive | BE2: Inactive | BF2: Inactive | BG2: Inactive | BH2: Inactive | BI2: Inactive | BJ2: Out of Work | BK2: Out of Work | BL2: Out of Work | BM2: Out of Work | BN2: Out of Work | BO2: Out of Work | BP2: Out of Work | BQ2: Out of Work | BR2: Out of Work | BS2: Out of Work | BT2: Out of Work | BU2: Out of Work | BV2: Out of Work | BW2: Out of Work | BX2: Out of Work
B3: All | C3: All | D3: All | E3: All Education | F3: All Education | G3: All Education | H3: Full-Time Education | I3: Full-Time Education | J3: Full-Time Education | K3: Not Enrolled | L3: Not Enrolled | M3: Not Enrolled | N3: Not Full-Time Education | O3: Not Full-Time Education | P3: Not Full-Time Education | Q3: All | R3: All | S3: All | T3: All Education | U3: All Education | V3: All Education | W3: Full-Time Education | X3: Full-Time Education | Y3: Full-Time Education | Z3: Not Enrolled | AA3: Not Enrolled | AB3: Not Enrolled | AC3: Not Full-Time Education | AD3: Not Full-Time Education | AE3: Not Full-Time Education | AF3: All | AG3: All | AH3: All | AI3: All Education | AJ3: All Education | AK3: All Education | AL3: Full-Time Education | AM3: Full-Time Education | AN3: Full-Time Education | AO3: Not Enrolled | AP3: Not Enrolled | AQ3: Not Enrolled | AR3: Not Full-Time Education | AS3: Not Full-Time Education | AT3: Not Full-Time Education | AU3: All | AV3: All | AW3: All | AX3: All Education | AY3: All Education | AZ3: All Education | BA3: Full-Time Education | BB3: Full-Time Education | BC3: Full-Time Education | BD3: Not Enrolled | BE3: Not Enrolled | BF3: Not Enrolled | BG3: Not Full-Time Education | BH3: Not Full-Time Education | BI3: Not Full-Time Education | BJ3: All | BK3: All | BL3: All | BM3: All Education | BN3: All Education | BO3: All Education | BP3: Full-Time Education | BQ3: Full-Time Education | BR3: Full-Time Education | BS3: Not Enrolled | BT3: Not Enrolled | BU3: Not Enrolled | BV3: Not Full-Time Education | BW3: Not Full-Time Education | BX3: Not Full-Time Education
B4: Level | C4: Rate | D4: CI | E4: Level | F4: Rate | G4: CI | H4: Level | I4: Rate | J4: CI | K4: Level | L4: Rate | M4: CI | N4: Level | O4: Rate | P4: CI | Q4: Level | R4: Rate | S4: CI | T4: Level | U4: Rate | V4: CI | W4: Level | X4: Rate | Y4: CI | Z4: Level | AA4: Rate | AB4: CI | AC4: Level | AD4: Rate | AE4: CI | AF4: Level | AG4: Rate | AH4: CI | AI4: Level | AJ4: Rate | AK4: CI | AL4: Level | AM4: Rate | AN4: CI | AO4: Level | AP4: Rate | AQ4: CI | AR4: Level | AS4: Rate | AT4: CI | AU4: Level | AV4: Rate | AW4: CI | AX4: Level | AY4: Rate | AZ4: CI | BA4: Level | BB4: Rate | BC4: CI | BD4: Level | BE4: Rate | BF4: CI | BG4: Level | BH4: Rate | BI4: CI | BJ4: Level | BK4: Rate | BL4: CI | BM4: Level | BN4: Rate | BO4: CI | BP4: Level | BQ4: Rate | BR4: CI | BS4: Level | BT4: Rate | BU4: CI | BV4: Level | BW4: Rate | BX4: CI
A5: Aberdeen City | B5: 28400 | C5: 1 | D5: 0 | E5: 16700 | F5: 0.589 | G5: 0.089 | H5: 0 | I5: 0 | J5: 0 | K5: 11700 | L5: 0.411 | M5: 0.089 | N5: 0 | O5: 0 | P5: 0 | T5: 7900 | U5: 0.278 | V5: 0.081 | W5: 0 | X5: 0 | Y5: 0 | Z5: 7500 | AA5: 0.265 | AB5: 0.08 | AC5: 0 | AD5: 0 | AE5: 0 | AI5: 1000 | AJ5: 0.035 | AK5: 0.033 | AL5: 0 | AM5: 0 | AN5: 0 | AO5: 1100 | AP5: 0.039 | AQ5: 0.035 | AR5: 0 | AS5: 0 | AT5: 0 | AX5: 7800 | AY5: 0.276 | AZ5: 0.081 | BA5: 0 | BB5: 0 | BC5: 0 | BD5: 3000 | BE5: 0.106 | BF5: 0.056 | BG5: 0 | BH5: 0 | BI5: 0 | BM5: 8800 | BN5: 0.311 | BO5: 0.084 | BP5: 0 | BQ5: 0 | BR5: 0 | BS5: 4100 | BT5: 0.146 | BU5: 0.064 | BV5: 0 | BW5: 0 | BX5: 0
A6: Aberdeenshire | B6: 23500 | C6: 1 | D6: 0 | E6: 12800 | F6: 0.547 | G6: 0.086 | H6: 11000 | I6: 0.469 | J6: 0.086 | K6: 10500 | L6: 0.447 | M6: 0.085 | N6: 1800 | O6: 0.079 | P6: 0.046 | T6: 6800 | U6: 0.289 | V6: 0.078 | W6: 4900 | X6: 0.21 | Y6: 0.07 | Z6: 9100 | AA6: 0.389 | AB6: 0.084 | AC6: 1800 | AD6: 0.079 | AE6: 0.046 | AI6: 0 | AJ6: 0 | AK6: 0 | AL6: 0 | AM6: 0 | AN6: 0 | AO6: 700 | AP6: 0.029 | AQ6: . | AR6: 0 | AS6: 0 | AT6: 0 | AX6: 0 | AY6: 0 | AZ6: 0 | BA6: 0 | BB6: 0 | BC6: 0 | BD6: 700 | BE6: 0.029 | BF6: . | BG6: 0 | BH6: 0 | BI6: 0 | BM6: 6100 | BN6: 0.259 | BO6: 0.075 | BP6: 6100 | BQ6: 0.259 | BR6: 0.075 | BS6: 1400 | BT6: 0.058 | BU6: 0.04 | BV6: 0 | BW6: 0 | BX6: 0
A7: Angus | B7: 10700 | C7: 1 | D7: 0 | E7: 5700 | F7: 0.528 | G7: 0.076 | H7: 4800 | I7: 0.45 | J7: 0.076 | K7: 4900 | L7: 0.462 | M7: 0.076 | N7: 800 | O7: 0.079 | P7: 0.041 | T7: 2400 | U7: 0.221 | V7: 0.064 | W7: 1600 | X7: 0.147 | Y7: 0.054 | Z7: 3400 | AA7: 0.32 | AB7: 0.071 | AC7: 800 | AD7: 0.074 | AE7: 0.04 | AI7: 200 | AJ7: 0.022 | AK7: . | AL7: 200 | AM7: 0.022 | AN7: . | AO7: 300 | AP7: 0.027 | AQ7: 0.025 | AR7: 0 | AS7: 0 | AT7: 0 | AX7: 3100 | AY7: 0.285 | AZ7: 0.069 | BA7: 3000 | BB7: 0.281 | BC7: 0.069 | BD7: 1200 | BE7: 0.115 | BF7: 0.049 | BG7: 0 | BH7: 0 | BI7: 0 | BM7: 3300 | BN7: 0.307 | BO7: 0.071 | BP7: 3200 | BQ7: 0.303 | BR7: 0.07 | BS7: 1500 | BT7: 0.142 | BU7: 0.053 | BV7: 0 | BW7: 0 | BX7: 0
A8: Argyll and Bute | B8: 7600 | C8: 1 | D8: 0 | E8: 3300 | F8: 0.433 | G8: 0.093 | H8: 2800 | I8: 0.372 | J8: 0.091 | K8: 4200 | L8: 0.559 | M8: 0.093 | N8: 500 | O8: 0.061 | P8: 0.045 | T8: 1300 | U8: 0.168 | V8: 0.07 | W8: 900 | X8: 0.113 | Y8: 0.059 | Z8: 3200 | AA8: 0.418 | AB8: 0.093 | AC8: 400 | AD8: 0.055 | AE8: 0.043 | AI8: 0 | AJ8: 0 | AK8: 0 | AL8: 0 | AM8: 0 | AN8: 0 | AO8: 200 | AP8: 0.022 | AQ8: . | AR8: 0 | AS8: 0 | AT8: 0 | AX8: 0 | AY8: 0 | AZ8: 0 | BA8: 0 | BB8: 0 | BC8: 0 | BD8: 900 | BE8: 0.119 | BF8: 0.061 | BG8: 0 | BH8: 0 | BI8: 0 | BM8: 2000 | BN8: 0.266 | BO8: 0.083 | BP8: 2000 | BQ8: 0.26 | BR8: 0.082 | BS8: 1100 | BT8: 0.141 | BU8: 0.065 | BV8: 0 | BW8: 0 | BX8: 0
A9: City of Edinburgh | B9: 62100 | C9: 1 | D9: 0 | E9: 36200 | F9: 0.583 | G9: 0.066 | H9: 34500 | I9: 0.556 | J9: 0.067 | K9: 25600 | L9: 0.412 | M9: 0.066 | N9: 1700 | O9: 0.028 | P9: 0.022 | T9: 13600 | U9: 0.22 | V9: 0.056 | W9: 12300 | X9: 0.197 | Y9: 0.054 | Z9: 19300 | AA9: 0.311 | AB9: 0.062 | AC9: 1400 | AD9: 0.022 | AE9: 0.02 | AI9: 1300 | AJ9: 0.02 | AK9: 0.019 | AL9: 1300 | AM9: 0.02 | AN9: 0.019 | AO9: 1400 | AP9: 0.022 | AQ9: 0.02 | AR9: 0 | AS9: 0 | AT9: 0 | AX9: 21300 | AY9: 0.343 | AZ9: 0.064 | BA9: 21000 | BB9: 0.338 | BC9: 0.064 | BD9: 4800 | BE9: 0.078 | BF9: 0.036 | BG9: 0 | BH9: 0 | BI9: 0 | BM9: 22600 | BN9: 0.364 | BO9: 0.065 | BP9: 22300 | BQ9: 0.358 | BR9: 0.065 | BS9: 6200 | BT9: 0.1 | BU9: 0.04 | BV9: 0 | BW9: 0 | BX9: 0
A10: Clackmannanshire | B10: 3700 | C10: 1 | D10: 0 | E10: 1600 | F10: 0.445 | G10: 0.104 | H10: 0 | I10: 0 | J10: 0 | K10: 2000 | L10: 0.555 | M10: 0.104 | N10: 0 | O10: 0 | P10: 0 | T10: 600 | U10: 0.174 | V10: 0.079 | W10: 0 | X10: 0 | Y10: 0 | Z10: 1600 | AA10: 0.425 | AB10: 0.103 | AC10: 0 | AD10: 0 | AE10: 0 | AI10: 0 | AJ10: 0 | AK10: 0 | AL10: 0 | AM10: 0 | AN10: 0 | AO10: 200 | AP10: 0.065 | AQ10: 0.051 | AR10: 0 | AS10: 0 | AT10: 0 | AX10: 0 | AY10: 0 | AZ10: 0 | BA10: 0 | BB10: 0 | BC10: 0 | BD10: 200 | BE10: 0.065 | BF10: 0.052 | BG10: 0 | BH10: 0 | BI10: 0 | BM10: 1000 | BN10: 0.271 | BO10: 0.093 | BP10: 0 | BQ10: 0 | BR10: 0 | BS10: 500 | BT10: 0.13 | BU10: 0.07 | BV10: 0 | BW10: 0 | BX10: 0
A11: Dumfries and Galloway | B11: 13000 | C11: 1 | D11: 0 | E11: 6000 | F11: 0.457 | G11: 0.091 | H11: 5100 | I11: 0.39 | J11: 0.09 | K11: 7000 | L11: 0.537 | M11: 0.092 | N11: 900 | O11: 0.067 | P11: 0.046 | T11: 1500 | U11: 0.118 | V11: 0.059 | W11: 1000 | X11: 0.08 | Y11: 0.05 | Z11: 4900 | AA11: 0.378 | AB11: 0.089 | AC11: 500 | AD11: 0.037 | AE11: 0.035 | AI11: 0 | AJ11: 0 | AK11: 0 | AL11: 0 | AM11: 0 | AN11: 0 | AO11: 800 | AP11: 0.064 | AQ11: 0.045 | AR11: 0 | AS11: 0 | AT11: 0 | AX11: 0 | AY11: 0 | AZ11: 0 | BA11: 0 | BB11: 0 | BC11: 0 | BD11: 1200 | BE11: 0.094 | BF11: 0.054 | BG11: 0 | BH11: 0 | BI11: 0 | BM11: 4400 | BN11: 0.339 | BO11: 0.087 | BP11: 4000 | BQ11: 0.31 | BR11: 0.085 | BS11: 2100 | BT11: 0.159 | BU11: 0.067 | BV11: 400 | BW11: 0.029 | BX11: .
A12: Dundee City | B12: 19900 | C12: 1 | D12: 0 | E12: 12800 | F12: 0.644 | G12: 0.062 | H12: 12100 | I12: 0.608 | J12: 0.063 | K12: 7000 | L12: 0.35 | M12: 0.061 | N12: 700 | O12: 0.036 | P12: 0.024 | T12: 4400 | U12: 0.219 | V12: 0.053 | W12: 3900 | X12: 0.194 | Y12: 0.051 | Z12: 5600 | AA12: 0.283 | AB12: 0.058 | AC12: 500 | AD12: 0.025 | AE12: 0.02 | AI12: 1100 | AJ12: 0.054 | AK12: 0.029 | AL12: 1100 | AM12: 0.054 | AN12: 0.029 | AO12: 600 | AP12: 0.032 | AQ12: 0.023 | AR12: 0 | AS12: 0 | AT12: 0 | AX12: 7400 | AY12: 0.371 | AZ12: 0.062 | BA12: 7200 | BB12: 0.36 | BC12: 0.062 | BD12: 700 | BE12: 0.035 | BF12: 0.024 | BG12: 0 | BH12: 0 | BI12: 0 | BM12: 8500 | BN12: 0.425 | BO12: 0.064 | BP12: 8300 | BQ12: 0.414 | BR12: 0.063 | BS12: 1300 | BT12: 0.067 | BU12: 0.032 | BV12: 200 | BW12: 0.011 | BX12: .
A13: East Ayrshire | B13: 11600 | C13: 1 | D13: 0 | E13: 4600 | F13: 0.391 | G13: 0.083 | H13: 4300 | I13: 0.37 | J13: 0.082 | K13: 6900 | L13: 0.591 | M13: 0.084 | N13: 200 | O13: 0.021 | P13: 0.024 | T13: 1400 | U13: 0.123 | V13: 0.056 | W13: 1200 | X13: 0.102 | Y13: 0.052 | Z13: 5100 | AA13: 0.438 | AB13: 0.085 | AC13: 200 | AD13: 0.021 | AE13: . | AI13: 0 | AJ13: 0 | AK13: 0 | AL13: 0 | AM13: 0 | AN13: 0 | AO13: 800 | AP13: 0.073 | AQ13: 0.044 | AR13: 0 | AS13: 0 | AT13: 0 | AX13: 0 | AY13: 0 | AZ13: 0 | BA13: 0 | BB13: 0 | BC13: 0 | BD13: 900 | BE13: 0.081 | BF13: 0.047 | BG13: 0 | BH13: 0 | BI13: 0 | BM13: 3100 | BN13: 0.269 | BO13: 0.076 | BP13: 3100 | BQ13: 0.269 | BR13: 0.076 | BS13: 1800 | BT13: 0.154 | BU13: 0.062 | BV13: 0 | BW13: 0 | BX13: 0
A14: East Dunbartonshire | B14: 10300 | C14: 1 | D14: 0 | E14: 5700 | F14: 0.557 | G14: 0.071 | H14: 5300 | I14: 0.516 | J14: 0.071 | K14: 4500 | L14: 0.44 | M14: 0.071 | N14: 400 | O14: 0.041 | P14: 0.028 | T14: 1700 | U14: 0.163 | V14: 0.053 | W14: 1500 | X14: 0.143 | Y14: 0.05 | Z14: 3600 | AA14: 0.351 | AB14: 0.068 | AC14: 200 | AD14: 0.02 | AE14: . | AI14: 0 | AJ14: 0 | AK14: 0 | AL14: 0 | AM14: 0 | AN14: 0 | AO14: 0 | AP14: 0 | AQ14: 0 | AR14: 0 | AS14: 0 | AT14: 0 | AX14: 0 | AY14: 0 | AZ14: 0 | BA14: 0 | BB14: 0 | BC14: 0 | BD14: 0 | BE14: 0 | BF14: 0 | BG14: 0 | BH14: 0 | BI14: 0 | BM14: 4100 | BN14: 0.395 | BO14: 0.07 | BP14: 3800 | BQ14: 0.373 | BR14: 0.069 | BS14: 900 | BT14: 0.089 | BU14: 0.041 | BV14: 200 | BW14: 0.021 | BX14: 0.02
A15: East Lothian | B15: 9900 | C15: 1 | D15: 0 | E15: 4900 | F15: 0.491 | G15: 0.091 | H15: 4400 | I15: 0.44 | J15: 0.09 | K15: 5000 | L15: 0.503 | M15: 0.091 | N15: 500 | O15: 0.051 | P15: 0.04 | T15: 2300 | U15: 0.233 | V15: 0.077 | W15: 1800 | X15: 0.183 | Y15: 0.07 | Z15: 3500 | AA15: 0.352 | AB15: 0.087 | AC15: 500 | AD15: 0.051 | AE15: 0.04 | AI15: 0 | AJ15: 0 | AK15: 0 | AL15: 0 | AM15: 0 | AN15: 0 | AO15: 500 | AP15: 0.046 | AQ15: 0.038 | AR15: 0 | AS15: 0 | AT15: 0 | AX15: 0 | AY15: 0 | AZ15: 0 | BA15: 0 | BB15: 0 | BC15: 0 | BD15: 1000 | BE15: 0.105 | BF15: 0.056 | BG15: 0 | BH15: 0 | BI15: 0 | BM15: 2600 | BN15: 0.258 | BO15: 0.079 | BP15: 2600 | BQ15: 0.258 | BR15: 0.079 | BS15: 1500 | BT15: 0.151 | BU15: 0.065 | BV15: 0 | BW15: 0 | BX15: 0
A16: East Renfrewshire | B16: 9600 | C16: 1 | D16: 0 | E16: 6300 | F16: 0.659 | G16: 0.075 | H16: 6100 | I16: 0.635 | J16: 0.076 | K16: 3300 | L16: 0.341 | M16: 0.075 | N16: 200 | O16: 0.025 | P16: 0.025 | T16: 1500 | U16: 0.152 | V16: 0.057 | W16: 1300 | X16: 0.134 | Y16: 0.054 | Z16: 2400 | AA16: 0.248 | AB16: 0.068 | AC16: 0 | AD16: 0 | AE16: 0 | AI16: 0 | AJ16: 0 | AK16: 0 | AL16: 0 | AM16: 0 | AN16: 0 | AO16: 300 | AP16: 0.033 | AQ16: 0.028 | AR16: 0 | AS16: 0 | AT16: 0 | AX16: 0 | AY16: 0 | AZ16: 0 | BA16: 0 | BB16: 0 | BC16: 0 | BD16: 600 | BE16: 0.06 | BF16: 0.037 | BG16: 0 | BH16: 0 | BI16: 0 | BM16: 4900 | BN16: 0.507 | BO16: 0.079 | BP16: 4800 | BQ16: 0.501 | BR16: 0.079 | BS16: 900 | BT16: 0.093 | BU16: 0.046 | BV16: 0 | BW16: 0 | BX16: 0
A17: Falkirk | B17: 15400 | C17: 1 | D17: 0 | E17: 5100 | F17: 0.334 | G17: 0.08 | H17: 4700 | I17: 0.306 | J17: 0.078 | K17: 10200 | L17: 0.662 | M17: 0.08 | N17: 400 | O17: 0.027 | P17: 0.028 | T17: 1900 | U17: 0.123 | V17: 0.056 | W17: 1500 | X17: 0.096 | Y17: 0.05 | Z17: 6900 | AA17: 0.45 | AB17: 0.085 | AC17: 400 | AD17: 0.027 | AE17: . | AI17: 0 | AJ17: 0 | AK17: 0 | AL17: 0 | AM17: 0 | AN17: 0 | AO17: 1200 | AP17: 0.079 | AQ17: 0.046 | AR17: 0 | AS17: 0 | AT17: 0 | AX17: 0 | AY17: 0 | AZ17: 0 | BA17: 0 | BB17: 0 | BC17: 0 | BD17: 2100 | BE17: 0.133 | BF17: 0.058 | BG17: 0 | BH17: 0 | BI17: 0 | BM17: 3200 | BN17: 0.211 | BO17: 0.069 | BP17: 3200 | BQ17: 0.211 | BR17: 0.069 | BS17: 3300 | BT17: 0.212 | BU17: 0.069 | BV17: 0 | BW17: 0 | BX17: 0
A18: Fife | B18: 39300 | C18: 1 | D18: 0 | E18: 18800 | F18: 0.479 | G18: 0.078 | H18: 16100 | I18: 0.41 | J18: 0.077 | K18: 20000 | L18: 0.509 | M18: 0.078 | N18: 2700 | O18: 0.069 | P18: 0.04 | T18: 5400 | U18: 0.137 | V18: 0.054 | W18: 3000 | X18: 0.075 | Y18: 0.041 | Z18: 14300 | AA18: 0.363 | AB18: 0.075 | AC18: 2400 | AD18: 0.062 | AE18: 0.038 | AI18: 0 | AJ18: 0 | AK18: 0 | AL18: 0 | AM18: 0 | AN18: 0 | AO18: 1900 | AP18: 0.049 | AQ18: 0.034 | AR18: 0 | AS18: 0 | AT18: 0 | AX18: 0 | AY18: 0 | AZ18: 0 | BA18: 0 | BB18: 0 | BC18: 0 | BD18: 3800 | BE18: 0.097 | BF18: 0.046 | BG18: 0 | BH18: 0 | BI18: 0 | BM18: 13400 | BN18: 0.342 | BO18: 0.074 | BP18: 13200 | BQ18: 0.335 | BR18: 0.074 | BS18: 5700 | BT18: 0.146 | BU18: 0.055 | BV18: 0 | BW18: 0 | BX18: 0
A19: Glasgow City | B19: 76500 | C19: 1 | D19: 0 | E19: 38600 | F19: 0.504 | G19: 0.057 | H19: 36800 | I19: 0.481 | J19: 0.057 | K19: 37800 | L19: 0.494 | M19: 0.057 | N19: 1800 | O19: 0.023 | P19: 0.017 | T19: 11600 | U19: 0.152 | V19: 0.041 | W19: 10900 | X19: 0.142 | Y19: 0.04 | Z19: 24400 | AA19: 0.32 | AB19: 0.053 | AC19: 700 | AD19: 0.009 | AE19: . | AI19: 2300 | AJ19: 0.03 | AK19: 0.02 | AL19: 1800 | AM19: 0.023 | AN19: 0.017 | AO19: 1600 | AP19: 0.022 | AQ19: 0.017 | AR19: 0 | AS19: 0 | AT19: 0 | AX19: 24700 | AY19: 0.323 | AZ19: 0.054 | BA19: 24100 | BB19: 0.315 | BC19: 0.053 | BD19: 11700 | BE19: 0.153 | BF19: 0.041 | BG19: 0 | BH19: 0 | BI19: 0 | BM19: 27000 | BN19: 0.352 | BO19: 0.055 | BP19: 25900 | BQ19: 0.338 | BR19: 0.054 | BS19: 13300 | BT19: 0.174 | BU19: 0.044 | BV19: 1100 | BW19: 0.014 | BX19: 0.013
A20: Highland | B20: 20900 | C20: 1 | D20: 0 | E20: 7900 | F20: 0.376 | G20: 0.114 | H20: 0 | I20: 0 | J20: 0 | K20: 12900 | L20: 0.617 | M20: 0.115 | N20: 0 | O20: 0 | P20: 0 | T20: 3200 | U20: 0.15 | V20: 0.084 | W20: 0 | X20: 0 | Y20: 0 | Z20: 11700 | AA20: 0.558 | AB20: 0.117 | AC20: 0 | AD20: 0 | AE20: 0 | AI20: 0 | AJ20: 0 | AK20: 0 | AL20: 0 | AM20: 0 | AN20: 0 | AO20: 0 | AP20: 0 | AQ20: 0 | AR20: 0 | AS20: 0 | AT20: 0 | AX20: 0 | AY20: 0 | AZ20: 0 | BA20: 0 | BB20: 0 | BC20: 0 | BD20: 0 | BE20: 0 | BF20: 0 | BG20: 0 | BH20: 0 | BI20: 0 | BM20: 4700 | BN20: 0.225 | BO20: 0.099 | BP20: 0 | BQ20: 0 | BR20: 0 | BS20: 1200 | BT20: 0.059 | BU20: 0.056 | BV20: 0 | BW20: 0 | BX20: 0
A21: Inverclyde | B21: 7600 | C21: 1 | D21: 0 | E21: 3900 | F21: 0.512 | G21: 0.095 | H21: 3600 | I21: 0.476 | J21: 0.095 | K21: 3600 | L21: 0.477 | M21: 0.095 | N21: 300 | O21: 0.036 | P21: 0.035 | T21: 1200 | U21: 0.154 | V21: 0.068 | W21: 1000 | X21: 0.128 | Y21: 0.063 | Z21: 2800 | AA21: 0.368 | AB21: 0.091 | AC21: 200 | AD21: 0.025 | AE21: . | AI21: 0 | AJ21: 0 | AK21: 0 | AL21: 0 | AM21: 0 | AN21: 0 | AO21: 400 | AP21: 0.052 | AQ21: 0.042 | AR21: 0 | AS21: 0 | AT21: 0 | AX21: 0 | AY21: 0 | AZ21: 0 | BA21: 0 | BB21: 0 | BC21: 0 | BD21: 400 | BE21: 0.058 | BF21: 0.044 | BG21: 0 | BH21: 0 | BI21: 0 | BM21: 2700 | BN21: 0.358 | BO21: 0.091 | BP21: 2600 | BQ21: 0.348 | BR21: 0.09 | BS21: 800 | BT21: 0.11 | BU21: 0.059 | BV21: 0 | BW21: 0 | BX21: 0
A22: Midlothian | B22: 8400 | C22: 1 | D22: 0 | E22: 4500 | F22: 0.528 | G22: 0.099 | H22: 4200 | I22: 0.497 | J22: 0.099 | K22: 3900 | L22: 0.459 | M22: 0.099 | N22: 300 | O22: 0.031 | P22: 0.034 | T22: 1500 | U22: 0.173 | V22: 0.075 | W22: 1200 | X22: 0.141 | Y22: 0.069 | Z22: 3200 | AA22: 0.381 | AB22: 0.096 | AC22: 300 | AD22: 0.031 | AE22: . | AI22: 300 | AJ22: 0.039 | AK22: 0.038 | AL22: 300 | AM22: 0.039 | AN22: 0.038 | AO22: 200 | AP22: 0.027 | AQ22: . | AR22: 0 | AS22: 0 | AT22: 0 | AX22: 2700 | AY22: 0.317 | AZ22: 0.092 | BA22: 2700 | BB22: 0.317 | BC22: 0.092 | BD22: 400 | BE22: 0.05 | BF22: 0.043 | BG22: 0 | BH22: 0 | BI22: 0 | BM22: 3000 | BN22: 0.356 | BO22: 0.095 | BP22: 3000 | BQ22: 0.356 | BR22: 0.095 | BS22: 700 | BT22: 0.077 | BU22: 0.053 | BV22: 0 | BW22: 0 | BX22: 0
A23: Moray | B23: 9100 | C23: 1 | D23: 0 | E23: 3100 | F23: 0.346 | G23: 0.086 | H23: 2800 | I23: 0.31 | J23: 0.083 | K23: 5800 | L23: 0.644 | M23: 0.086 | N23: 300 | O23: 0.036 | P23: 0.034 | T23: 1200 | U23: 0.132 | V23: 0.061 | W23: 1100 | X23: 0.121 | Y23: 0.059 | Z23: 4500 | AA23: 0.492 | AB23: 0.09 | AC23: 0 | AD23: 0 | AE23: 0 | AI23: 0 | AJ23: 0 | AK23: 0 | AL23: 0 | AM23: 0 | AN23: 0 | AO23: 400 | AP23: 0.044 | AQ23: 0.037 | AR23: 0 | AS23: 0 | AT23: 0 | AX23: 0 | AY23: 0 | AZ23: 0 | BA23: 0 | BB23: 0 | BC23: 0 | BD23: 1000 | BE23: 0.108 | BF23: 0.056 | BG23: 0 | BH23: 0 | BI23: 0 | BM23: 1900 | BN23: 0.214 | BO23: 0.074 | BP23: 1700 | BQ23: 0.189 | BR23: 0.071 | BS23: 1400 | BT23: 0.152 | BU23: 0.065 | BV23: 0 | BW23: 0 | BX23: 0
A24: Na h-Eileanan Siar | B24: 2300 | C24: 1 | D24: 0 | E24: 1500 | F24: 0.648 | G24: 0.141 | H24: 1300 | I24: 0.545 | J24: 0.147 | K24: 800 | L24: 0.352 | M24: 0.141 | N24: 200 | O24: 0.103 | P24: 0.09 | T24: 900 | U24: 0.388 | V24: 0.144 | W24: 800 | X24: 0.323 | Y24: 0.138 | Z24: 700 | AA24: 0.3 | AB24: 0.135 | AC24: 200 | AD24: 0.065 | AE24: . | AI24: 0 | AJ24: 0 | AK24: 0 | AL24: 0 | AM24: 0 | AN24: 0 | AO24: 0 | AP24: 0 | AQ24: 0 | AR24: 0 | AS24: 0 | AT24: 0 | AX24: 0 | AY24: 0 | AZ24: 0 | BA24: 0 | BB24: 0 | BC24: 0 | BD24: 0 | BE24: 0 | BF24: 0 | BG24: 0 | BH24: 0 | BI24: 0 | BM24: 600 | BN24: 0.261 | BO24: 0.13 | BP24: 500 | BQ24: 0.223 | BR24: 0.123 | BS24: 0 | BT24: 0 | BU24: 0 | BV24: 0 | BW24: 0 | BX24: 0
A25: North Ayrshire | B25: 13200 | C25: 1 | D25: 0 | E25: 5900 | F25: 0.446 | G25: 0.089 | H25: 5100 | I25: 0.382 | J25: 0.087 | K25: 7000 | L25: 0.529 | M25: 0.089 | N25: 800 | O25: 0.064 | P25: 0.044 | T25: 2200 | U25: 0.169 | V25: 0.067 | W25: 1700 | X25: 0.126 | Y25: 0.059 | Z25: 5000 | AA25: 0.378 | AB25: 0.087 | AC25: 600 | AD25: 0.044 | AE25: 0.037 | AI25: 400 | AJ25: 0.028 | AK25: . | AL25: 0 | AM25: 0 | AN25: 0 | AO25: 1000 | AP25: 0.073 | AQ25: 0.047 | AR25: 0 | AS25: 0 | AT25: 0 | AX25: 3300 | AY25: 0.249 | AZ25: 0.077 | BA25: 0 | BB25: 0 | BC25: 0 | BD25: 1000 | BE25: 0.077 | BF25: 0.048 | BG25: 0 | BH25: 0 | BI25: 0 | BM25: 3700 | BN25: 0.277 | BO25: 0.08 | BP25: 3400 | BQ25: 0.257 | BR25: 0.078 | BS25: 2000 | BT25: 0.151 | BU25: 0.064 | BV25: 300 | BW25: 0.02 | BX25: .
A26: North Lanarkshire | B26: 35500 | C26: 1 | D26: 0 | E26: 13800 | F26: 0.389 | G26: 0.072 | H26: 12700 | I26: 0.358 | J26: 0.071 | K26: 21700 | L26: 0.611 | M26: 0.072 | N26: 1100 | O26: 0.031 | P26: 0.026 | T26: 5600 | U26: 0.157 | V26: 0.054 | W26: 4500 | X26: 0.127 | Y26: 0.049 | Z26: 16100 | AA26: 0.453 | AB26: 0.074 | AC26: 1100 | AD26: 0.031 | AE26: 0.026 | AI26: 0 | AJ26: 0 | AK26: 0 | AL26: 0 | AM26: 0 | AN26: 0 | AO26: 1800 | AP26: 0.05 | AQ26: 0.032 | AR26: 0 | AS26: 0 | AT26: 0 | AX26: 0 | AY26: 0 | AZ26: 0 | BA26: 0 | BB26: 0 | BC26: 0 | BD26: 3800 | BE26: 0.108 | BF26: 0.046 | BG26: 0 | BH26: 0 | BI26: 0 | BM26: 8200 | BN26: 0.231 | BO26: 0.062 | BP26: 8200 | BQ26: 0.231 | BR26: 0.062 | BS26: 5600 | BT26: 0.158 | BU26: 0.054 | BV26: 0 | BW26: 0 | BX26: 0
A27: Orkney Islands | B27: 1900 | C27: 1 | D27: 0 | E27: 600 | F27: 0.323 | G27: 0.222 | H27: 0 | I27: 0 | J27: 0 | K27: 1000 | L27: 0.533 | M27: 0.237 | N27: 0 | O27: 0 | P27: 0 | T27: 400 | U27: 0.202 | V27: 0.191 | W27: 0 | X27: 0 | Y27: 0 | Z27: 1000 | AA27: 0.533 | AB27: 0.237 | AC27: 0 | AD27: 0 | AE27: 0 | AI27: 0 | AJ27: 0 | AK27: 0 | AL27: 0 | AM27: 0 | AN27: 0 | AO27: 0 | AP27: 0 | AQ27: 0 | AR27: 0 | AS27: 0 | AT27: 0 | AX27: 0 | AY27: 0 | AZ27: 0 | BA27: 0 | BB27: 0 | BC27: 0 | BD27: 0 | BE27: 0 | BF27: 0 | BG27: 0 | BH27: 0 | BI27: 0 | BM27: 0 | BN27: 0 | BO27: 0 | BP27: 0 | BQ27: 0 | BR27: 0 | BS27: 0 | BT27: 0 | BU27: 0 | BV27: 0 | BW27: 0 | BX27: 0
A28: Perth and Kinross | B28: 13800 | C28: 1 | D28: 0 | E28: 5300 | F28: 0.386 | G28: 0.073 | H28: 4600 | I28: 0.335 | J28: 0.071 | K28: 8500 | L28: 0.614 | M28: 0.073 | N28: 700 | O28: 0.05 | P28: 0.033 | T28: 2100 | U28: 0.155 | V28: 0.055 | W28: 1700 | X28: 0.125 | Y28: 0.05 | Z28: 7200 | AA28: 0.518 | AB28: 0.075 | AC28: 400 | AD28: 0.03 | AE28: 0.026 | AI28: 200 | AJ28: 0.017 | AK28: . | AL28: 200 | AM28: 0.017 | AN28: . | AO28: 500 | AP28: 0.039 | AQ28: 0.029 | AR28: 0 | AS28: 0 | AT28: 0 | AX28: 3000 | AY28: 0.214 | AZ28: 0.062 | BA28: 2700 | BB28: 0.193 | BC28: 0.06 | BD28: 800 | BE28: 0.057 | BF28: 0.035 | BG28: 0 | BH28: 0 | BI28: 0 | BM28: 3200 | BN28: 0.23 | BO28: 0.063 | BP28: 2900 | BQ28: 0.21 | BR28: 0.061 | BS28: 1300 | BT28: 0.096 | BU28: 0.044 | BV28: 0 | BW28: 0 | BX28: 0
A29: Renfrewshire | B29: 17700 | C29: 1 | D29: 0 | E29: 9500 | F29: 0.535 | G29: 0.079 | H29: 8700 | I29: 0.494 | J29: 0.079 | K29: 8200 | L29: 0.462 | M29: 0.079 | N29: 700 | O29: 0.041 | P29: 0.031 | T29: 3900 | U29: 0.219 | V29: 0.066 | W29: 3300 | X29: 0.184 | Y29: 0.061 | Z29: 6500 | AA29: 0.368 | AB29: 0.076 | AC29: 600 | AD29: 0.035 | AE29: 0.029 | AI29: 800 | AJ29: 0.048 | AK29: 0.034 | AL29: 700 | AM29: 0.042 | AN29: 0.032 | AO29: 600 | AP29: 0.034 | AQ29: 0.029 | AR29: 0 | AS29: 0 | AT29: 0 | AX29: 4700 | AY29: 0.268 | AZ29: 0.07 | BA29: 4700 | BB29: 0.268 | BC29: 0.07 | BD29: 1100 | BE29: 0.06 | BF29: 0.038 | BG29: 0 | BH29: 0 | BI29: 0 | BM29: 5600 | BN29: 0.316 | BO29: 0.074 | BP29: 5500 | BQ29: 0.31 | BR29: 0.073 | BS29: 1700 | BT29: 0.094 | BU29: 0.046 | BV29: 0 | BW29: 0 | BX29: 0
A30: Scotland | B30: 565500 | C30: 1 | D30: 0 | E30: 274500 | F30: 0.485 | G30: 0.015 | H30: 254900 | I30: 0.451 | J30: 0.015 | K30: 287400 | L30: 0.508 | M30: 0.015 | N30: 19700 | O30: 0.035 | P30: 0.006 | T30: 98700 | U30: 0.175 | V30: 0.011 | W30: 83500 | X30: 0.148 | Y30: 0.011 | Z30: 215900 | AA30: 0.382 | AB30: 0.015 | AC30: 15200 | AD30: 0.027 | AE30: 0.005 | AI30: 10000 | AJ30: 0.018 | AK30: 0.004 | AL30: 9400 | AM30: 0.017 | AN30: 0.004 | AO30: 20800 | AP30: 0.037 | AQ30: 0.006 | AR30: 700 | AS30: 0.001 | AT30: . | AX30: 165800 | AY30: 0.293 | AZ30: 0.014 | BA30: 162000 | BB30: 0.287 | BC30: 0.014 | BD30: 50700 | BE30: 0.09 | BF30: 0.009 | BG30: 3800 | BH30: 0.007 | BI30: 0.002 | BM30: 175800 | BN30: 0.311 | BO30: 0.014 | BP30: 171400 | BQ30: 0.303 | BR30: 0.014 | BS30: 71500 | BT30: 0.126 | BU30: 0.01 | BV30: 4400 | BW30: 0.008 | BX30: 0.003
A31: Scottish Borders | B31: 9900 | C31: 1 | D31: 0 | E31: 3900 | F31: 0.39 | G31: 0.082 | H31: 3500 | I31: 0.353 | J31: 0.081 | K31: 6000 | L31: 0.605 | M31: 0.082 | N31: 400 | O31: 0.037 | P31: 0.032 | T31: 1100 | U31: 0.106 | V31: 0.052 | W31: 800 | X31: 0.081 | Y31: 0.046 | Z31: 4600 | AA31: 0.468 | AB31: 0.084 | AC31: 300 | AD31: 0.025 | AE31: . | AI31: 0 | AJ31: 0 | AK31: 0 | AL31: 0 | AM31: 0 | AN31: 0 | AO31: 500 | AP31: 0.046 | AQ31: 0.035 | AR31: 0 | AS31: 0 | AT31: 0 | AX31: 0 | AY31: 0 | AZ31: 0 | BA31: 0 | BB31: 0 | BC31: 0 | BD31: 900 | BE31: 0.091 | BF31: 0.049 | BG31: 0 | BH31: 0 | BI31: 0 | BM31: 2800 | BN31: 0.284 | BO31: 0.076 | BP31: 2700 | BQ31: 0.273 | BR31: 0.075 | BS31: 1400 | BT31: 0.137 | BU31: 0.058 | BV31: 0 | BW31: 0 | BX31: 0
A32: Shetland Islands | B32: 3100 | C32: 1 | D32: 0 | E32: 1800 | F32: 0.585 | G32: 0.279 | H32: 0 | I32: 0 | J32: 0 | K32: 1100 | L32: 0.334 | M32: 0.267 | N32: 0 | O32: 0 | P32: 0 | T32: 1000 | U32: 0.311 | V32: 0.262 | W32: 0 | X32: 0 | Y32: 0 | Z32: 800 | AA32: 0.256 | AB32: 0.247 | AC32: 0 | AD32: 0 | AE32: 0 | AI32: 0 | AJ32: 0 | AK32: 0 | AL32: 0 | AM32: 0 | AN32: 0 | AO32: 0 | AP32: 0 | AQ32: 0 | AR32: 0 | AS32: 0 | AT32: 0 | AX32: 0 | AY32: 0 | AZ32: 0 | BA32: 0 | BB32: 0 | BC32: 0 | BD32: 0 | BE32: 0 | BF32: 0 | BG32: 0 | BH32: 0 | BI32: 0 | BM32: 900 | BN32: 0.274 | BO32: 0.252 | BP32: 0 | BQ32: 0 | BR32: 0 | BS32: 0 | BT32: 0 | BU32: 0 | BV32: 0 | BW32: 0 | BX32: 0
A33: South Ayrshire | B33: 10200 | C33: 1 | D33: 0 | E33: 4600 | F33: 0.447 | G33: 0.092 | H33: 0 | I33: 0 | J33: 0 | K33: 5700 | L33: 0.553 | M33: 0.092 | N33: 0 | O33: 0 | P33: 0 | T33: 1700 | U33: 0.165 | V33: 0.069 | W33: 0 | X33: 0 | Y33: 0 | Z33: 4800 | AA33: 0.473 | AB33: 0.093 | AC33: 0 | AD33: 0 | AE33: 0 | AI33: 300 | AJ33: 0.03 | AK33: . | AL33: 0 | AM33: 0 | AN33: 0 | AO33: 400 | AP33: 0.034 | AQ33: . | AR33: 0 | AS33: 0 | AT33: 0 | AX33: 2600 | AY33: 0.252 | AZ33: 0.081 | BA33: 0 | BB33: 0 | BC33: 0 | BD33: 500 | BE33: 0.046 | BF33: 0.039 | BG33: 0 | BH33: 0 | BI33: 0 | BM33: 2900 | BN33: 0.281 | BO33: 0.084 | BP33: 0 | BQ33: 0 | BR33: 0 | BS33: 800 | BT33: 0.081 | BU33: 0.051 | BV33: 0 | BW33: 0 | BX33: 0
A34: South Lanarkshire | B34: 30400 | C34: 1 | D34: 0 | E34: 11300 | F34: 0.372 | G34: 0.08 | H34: 0 | I34: 0 | J34: 0 | K34: 19100 | L34: 0.628 | M34: 0.08 | N34: 0 | O34: 0 | P34: 0 | T34: 2500 | U34: 0.081 | V34: 0.045 | W34: 0 | X34: 0 | Y34: 0 | Z34: 15100 | AA34: 0.498 | AB34: 0.083 | AC34: 0 | AD34: 0 | AE34: 0 | AI34: 0 | AJ34: 0 | AK34: 0 | AL34: 0 | AM34: 0 | AN34: 0 | AO34: 1400 | AP34: 0.046 | AQ34: 0.035 | AR34: 0 | AS34: 0 | AT34: 0 | AX34: 0 | AY34: 0 | AZ34: 0 | BA34: 0 | BB34: 0 | BC34: 0 | BD34: 2500 | BE34: 0.084 | BF34: 0.046 | BG34: 0 | BH34: 0 | BI34: 0 | BM34: 8900 | BN34: 0.291 | BO34: 0.075 | BP34: 0 | BQ34: 0 | BR34: 0 | BS34: 4000 | BT34: 0.13 | BU34: 0.056 | BV34: 0 | BW34: 0 | BX34: 0
A35: Stirling | B35: 12600 | C35: 1 | D35: 0 | E35: 7200 | F35: 0.569 | G35: 0.084 | H35: 6700 | I35: 0.535 | J35: 0.084 | K35: 5200 | L35: 0.411 | M35: 0.083 | N35: 400 | O35: 0.035 | P35: 0.031 | T35: 3000 | U35: 0.236 | V35: 0.072 | W35: 2700 | X35: 0.214 | Y35: 0.069 | Z35: 4500 | AA35: 0.36 | AB35: 0.081 | AC35: 300 | AD35: 0.022 | AE35: . | AI35: 200 | AJ35: 0.017 | AK35: . | AL35: 200 | AM35: 0.017 | AN35: . | AO35: 200 | AP35: 0.018 | AQ35: . | AR35: 0 | AS35: 0 | AT35: 0 | AX35: 4000 | AY35: 0.316 | AZ35: 0.079 | BA35: 3800 | BB35: 0.303 | BC35: 0.078 | BD35: 400 | BE35: 0.033 | BF35: 0.03 | BG35: 0 | BH35: 0 | BI35: 0 | BM35: 4200 | BN35: 0.333 | BO35: 0.08 | BP35: 4000 | BQ35: 0.32 | BR35: 0.079 | BS35: 600 | BT35: 0.051 | BU35: 0.037 | BV35: 0 | BW35: 0 | BX35: 0
A36: West Dunbartonshire | B36: 8800 | C36: 1 | D36: 0 | E36: 3200 | F36: 0.369 | G36: 0.076 | H36: 3100 | I36: 0.35 | J36: 0.075 | K36: 5500 | L36: 0.626 | M36: 0.076 | N36: 200 | O36: 0.019 | P36: 0.021 | T36: 900 | U36: 0.104 | V36: 0.048 | W36: 800 | X36: 0.09 | Y36: 0.045 | Z36: 4000 | AA36: 0.454 | AB36: 0.078 | AC36: 0 | AD36: 0 | AE36: 0 | AI36: 0 | AJ36: 0 | AK36: 0 | AL36: 0 | AM36: 0 | AN36: 0 | AO36: 600 | AP36: 0.072 | AQ36: 0.04 | AR36: 0 | AS36: 0 | AT36: 0 | AX36: 0 | AY36: 0 | AZ36: 0 | BA36: 0 | BB36: 0 | BC36: 0 | BD36: 900 | BE36: 0.1 | BF36: 0.047 | BG36: 0 | BH36: 0 | BI36: 0 | BM36: 2300 | BN36: 0.264 | BO36: 0.069 | BP36: 2300 | BQ36: 0.26 | BR36: 0.069 | BS36: 1500 | BT36: 0.172 | BU36: 0.059 | BV36: 0 | BW36: 0 | BX36: 0
A37: West Lothian | B37: 18200 | C37: 1 | D37: 0 | E37: 7300 | F37: 0.4 | G37: 0.079 | H37: 7000 | I37: 0.383 | J37: 0.078 | K37: 10800 | L37: 0.597 | M37: 0.079 | N37: 300 | O37: 0.017 | P37: 0.021 | T37: 2200 | U37: 0.121 | V37: 0.052 | W37: 1900 | X37: 0.104 | Y37: 0.049 | Z37: 8400 | AA37: 0.46 | AB37: 0.08 | AC37: 300 | AD37: 0.017 | AE37: . | AI37: 300 | AJ37: 0.014 | AK37: . | AL37: 300 | AM37: 0.014 | AN37: . | AO37: 700 | AP37: 0.041 | AQ37: 0.032 | AR37: 0 | AS37: 0 | AT37: 0 | AX37: 4800 | AY37: 0.264 | AZ37: 0.071 | BA37: 4800 | BB37: 0.264 | BC37: 0.071 | BD37: 1700 | BE37: 0.096 | BF37: 0.047 | BG37: 0 | BH37: 0 | BI37: 0 | BM37: 5100 | BN37: 0.278 | BO37: 0.072 | BP37: 5100 | BQ37: 0.278 | BR37: 0.072 | BS37: 2500 | BT37: 0.137 | BU37: 0.055 | BV37: 0 | BW37: 0 | BX37: 0
B39: All | C39: All | D39: All | E39: All | F39: All | G39: All | H39: All | I39: All | J39: All | K39: All | L39: All | M39: All | N39: All | O39: All | P39: All | Q39: Employed | R39: Employed | S39: Employed | T39: Employed | U39: Employed | V39: Employed | W39: Employed | X39: Employed | Y39: Employed | Z39: Employed | AA39: Employed | AB39: Employed | AC39: Employed | AD39: Employed | AE39: Employed | AF39: ILO Unemployed | AG39: ILO Unemployed | AH39: ILO Unemployed | AI39: ILO Unemployed | AJ39: ILO Unemployed | AK39: ILO Unemployed | AL39: ILO Unemployed | AM39: ILO Unemployed | AN39: ILO Unemployed | AO39: ILO Unemployed | AP39: ILO Unemployed | AQ39: ILO Unemployed | AR39: ILO Unemployed | AS39: ILO Unemployed | AT39: ILO Unemployed | AU39: Inactive | AV39: Inactive | AW39: Inactive | AX39: Inactive | AY39: Inactive | AZ39: Inactive | BA39: Inactive | BB39: Inactive | BC39: Inactive | BD39: Inactive | BE39: Inactive | BF39: Inactive | BG39: Inactive | BH39: Inactive | BI39: Inactive | BJ39: Out of Work | BK39: Out of Work | BL39: Out of Work | BM39: Out of Work | BN39: Out of Work | BO39: Out of Work | BP39: Out of Work | BQ39: Out of Work | BR39: Out of Work | BS39: Out of Work | BT39: Out of Work | BU39: Out of Work | BV39: Out of Work | BW39: Out of Work | BX39: Out of Work
B40: All | C40: All | D40: All | E40: All Education | F40: All Education | G40: All Education | H40: Full-Time Education | I40: Full-Time Education | J40: Full-Time Education | K40: Not Enrolled | L40: Not Enrolled | M40: Not Enrolled | N40: Not Full-Time Education | O40: Not Full-Time Education | P40: Not Full-Time Education | Q40: All | R40: All | S40: All | T40: All Education | U40: All Education | V40: All Education | W40: Full-Time Education | X40: Full-Time Education | Y40: Full-Time Education | Z40: Not Enrolled | AA40: Not Enrolled | AB40: Not Enrolled | AC40: Not Full-Time Education | AD40: Not Full-Time Education | AE40: Not Full-Time Education | AF40: All | AG40: All | AH40: All | AI40: All Education | AJ40: All Education | AK40: All Education | AL40: Full-Time Education | AM40: Full-Time Education | AN40: Full-Time Education | AO40: Not Enrolled | AP40: Not Enrolled | AQ40: Not Enrolled | AR40: Not Full-Time Education | AS40: Not Full-Time Education | AT40: Not Full-Time Education | AU40: All | AV40: All | AW40: All | AX40: All Education | AY40: All Education | AZ40: All Education | BA40: Full-Time Education | BB40: Full-Time Education | BC40: Full-Time Education | BD40: Not Enrolled | BE40: Not Enrolled | BF40: Not Enrolled | BG40: Not Full-Time Education | BH40: Not Full-Time Education | BI40: Not Full-Time Education | BJ40: All | BK40: All | BL40: All | BM40: All Education | BN40: All Education | BO40: All Education | BP40: Full-Time Education | BQ40: Full-Time Education | BR40: Full-Time Education | BS40: Not Enrolled | BT40: Not Enrolled | BU40: Not Enrolled | BV40: Not Full-Time Education | BW40: Not Full-Time Education | BX40: Not Full-Time Education
B41: Level | C41: Rate | D41: CI | E41: Level | F41: Rate | G41: CI | H41: Level | I41: Rate | J41: CI | K41: Level | L41: Rate | M41: CI | N41: Level | O41: Rate | P41: CI | Q41: Level | R41: Rate | S41: CI | T41: Level | U41: Rate | V41: CI | W41: Level | X41: Rate | Y41: CI | Z41: Level | AA41: Rate | AB41: CI | AC41: Level | AD41: Rate | AE41: CI | AF41: Level | AG41: Rate | AH41: CI | AI41: Level | AJ41: Rate | AK41: CI | AL41: Level | AM41: Rate | AN41: CI | AO41: Level | AP41: Rate | AQ41: CI | AR41: Level | AS41: Rate | AT41: CI | AU41: Level | AV41: Rate | AW41: CI | AX41: Level | AY41: Rate | AZ41: CI | BA41: Level | BB41: Rate | BC41: CI | BD41: Level | BE41: Rate | BF41: CI | BG41: Level | BH41: Rate | BI41: CI | BJ41: Level | BK41: Rate | BL41: CI | BM41: Level | BN41: Rate | BO41: CI | BP41: Level | BQ41: Rate | BR41: CI | BS41: Level | BT41: Rate | BU41: CI | BV41: Level | BW41: Rate | BX41: CI
A42: Aberdeen City | H42: *** | I42: *** | J42: *** | N42: *** | O42: *** | P42: *** | W42: *** | X42: *** | Y42: *** | AC42: *** | AD42: *** | AE42: *** | AI42: * | AJ42: * | AK42: * | AL42: *** | AM42: *** | AN42: *** | AO42: * | AP42: * | AQ42: * | AR42: *** | AS42: *** | AT42: *** | BA42: *** | BB42: *** | BC42: *** | BD42: * | BE42: * | BF42: * | BG42: *** | BH42: *** | BI42: *** | BP42: *** | BQ42: *** | BR42: *** | BS42: * | BT42: * | BU42: * | BV42: *** | BW42: *** | BX42: ***
A43: Aberdeenshire | N43: * | O43: * | P43: * | AC43: * | AD43: * | AE43: * | AI43: *** | AJ43: *** | AK43: *** | AL43: *** | AM43: *** | AN43: *** | AO43: * | AP43: * | AQ43: * | AR43: *** | AS43: *** | AT43: *** | AX43: *** | AY43: *** | AZ43: *** | BA43: *** | BB43: *** | BC43: *** | BD43: * | BE43: * | BF43: * | BG43: *** | BH43: *** | BI43: *** | BS43: * | BT43: * | BU43: * | BV43: *** | BW43: *** | BX43: ***
A44: Angus | N44: * | O44: * | P44: * | W44: * | X44: * | Y44: * | AC44: * | AD44: * | AE44: * | AI44: * | AJ44: * | AK44: * | AL44: * | AM44: * | AN44: * | AO44: * | AP44: * | AQ44: * | AR44: *** | AS44: *** | AT44: *** | BD44: * | BE44: * | BF44: * | BG44: *** | BH44: *** | BI44: *** | BS44: * | BT44: * | BU44: * | BV44: *** | BW44: *** | BX44: ***
A45: Argyll and Bute | N45: * | O45: * | P45: * | T45: * | U45: * | V45: * | W45: * | X45: * | Y45: * | AC45: * | AD45: * | AE45: * | AI45: *** | AJ45: *** | AK45: *** | AL45: *** | AM45: *** | AN45: *** | AO45: * | AP45: * | AQ45: * | AR45: *** | AS45: *** | AT45: *** | AX45: *** | AY45: *** | AZ45: *** | BA45: *** | BB45: *** | BC45: *** | BD45: * | BE45: * | BF45: * | BG45: *** | BH45: *** | BI45: *** | BS45: * | BT45: * | BU45: * | BV45: *** | BW45: *** | BX45: ***
A46: City of Edinburgh | N46: * | O46: * | P46: * | AC46: * | AD46: * | AE46: * | AI46: * | AJ46: * | AK46: * | AL46: * | AM46: * | AN46: * | AO46: * | AP46: * | AQ46: * | AR46: *** | AS46: *** | AT46: *** | BD46: * | BE46: * | BF46: * | BG46: *** | BH46: *** | BI46: *** | BS46: * | BT46: * | BU46: * | BV46: *** | BW46: *** | BX46: ***
A47: Clackmannanshire | H47: *** | I47: *** | J47: *** | N47: *** | O47: *** | P47: *** | T47: * | U47: * | V47: * | W47: *** | X47: *** | Y47: *** | AC47: *** | AD47: *** | AE47: *** | AI47: *** | AJ47: *** | AK47: *** | AL47: *** | AM47: *** | AN47: *** | AO47: * | AP47: * | AQ47: * | AR47: *** | AS47: *** | AT47: *** | AX47: *** | AY47: *** | AZ47: *** | BA47: *** | BB47: *** | BC47: *** | BD47: * | BE47: * | BF47: * | BG47: *** | BH47: *** | BI47: *** | BP47: *** | BQ47: *** | BR47: *** | BS47: * | BT47: * | BU47: * | BV47: *** | BW47: *** | BX47: ***
A48: Dumfries and Galloway | N48: * | O48: * | P48: * | T48: * | U48: * | V48: * | W48: * | X48: * | Y48: * | AC48: * | AD48: * | AE48: * | AI48: *** | AJ48: *** | AK48: *** | AL48: *** | AM48: *** | AN48: *** | AO48: * | AP48: * | AQ48: * | AR48: *** | AS48: *** | AT48: *** | AX48: *** | AY48: *** | AZ48: *** | BA48: *** | BB48: *** | BC48: *** | BD48: * | BE48: * | BF48: * | BG48: *** | BH48: *** | BI48: *** | BS48: * | BT48: * | BU48: * | BV48: * | BW48: * | BX48: *
A49: Dundee City | N49: * | O49: * | P49: * | AC49: * | AD49: * | AE49: * | AI49: * | AJ49: * | AK49: * | AL49: * | AM49: * | AN49: * | AO49: * | AP49: * | AQ49: * | AR49: *** | AS49: *** | AT49: *** | BD49: * | BE49: * | BF49: * | BG49: *** | BH49: *** | BI49: *** | BS49: * | BT49: * | BU49: * | BV49: * | BW49: * | BX49: *
A50: East Ayrshire | N50: * | O50: * | P50: * | T50: * | U50: * | V50: * | W50: * | X50: * | Y50: * | AC50: * | AD50: * | AE50: * | AI50: *** | AJ50: *** | AK50: *** | AL50: *** | AM50: *** | AN50: *** | AO50: * | AP50: * | AQ50: * | AR50: *** | AS50: *** | AT50: *** | AX50: *** | AY50: *** | AZ50: *** | BA50: *** | BB50: *** | BC50: *** | BD50: * | BE50: * | BF50: * | BG50: *** | BH50: *** | BI50: *** | BS50: * | BT50: * | BU50: * | BV50: *** | BW50: *** | BX50: ***
A51: East Dunbartonshire | N51: * | O51: * | P51: * | W51: * | X51: * | Y51: * | AC51: * | AD51: * | AE51: * | AI51: *** | AJ51: *** | AK51: *** | AL51: *** | AM51: *** | AN51: *** | AO51: *** | AP51: *** | AQ51: *** | AR51: *** | AS51: *** | AT51: *** | AX51: *** | AY51: *** | AZ51: *** | BA51: *** | BB51: *** | BC51: *** | BD51: *** | BE51: *** | BF51: *** | BG51: *** | BH51: *** | BI51: *** | BS51: * | BT51: * | BU51: * | BV51: * | BW51: * | BX51: *
A52: East Lothian | N52: * | O52: * | P52: * | W52: * | X52: * | Y52: * | AC52: * | AD52: * | AE52: * | AI52: *** | AJ52: *** | AK52: *** | AL52: *** | AM52: *** | AN52: *** | AO52: * | AP52: * | AQ52: * | AR52: *** | AS52: *** | AT52: *** | AX52: *** | AY52: *** | AZ52: *** | BA52: *** | BB52: *** | BC52: *** | BD52: * | BE52: * | BF52: * | BG52: *** | BH52: *** | BI52: *** | BS52: * | BT52: * | BU52: * | BV52: *** | BW52: *** | BX52: ***
A53: East Renfrewshire | N53: * | O53: * | P53: * | T53: * | U53: * | V53: * | W53: * | X53: * | Y53: * | AC53: *** | AD53: *** | AE53: *** | AI53: *** | AJ53: *** | AK53: *** | AL53: *** | AM53: *** | AN53: *** | AO53: * | AP53: * | AQ53: * | AR53: *** | AS53: *** | AT53: *** | AX53: *** | AY53: *** | AZ53: *** | BA53: *** | BB53: *** | BC53: *** | BD53: * | BE53: * | BF53: * | BG53: *** | BH53: *** | BI53: *** | BS53: * | BT53: * | BU53: * | BV53: *** | BW53: *** | BX53: ***
A54: Falkirk | N54: * | O54: * | P54: * | T54: * | U54: * | V54: * | W54: * | X54: * | Y54: * | AC54: * | AD54: * | AE54: * | AI54: *** | AJ54: *** | AK54: *** | AL54: *** | AM54: *** | AN54: *** | AO54: * | AP54: * | AQ54: * | AR54: *** | AS54: *** | AT54: *** | AX54: *** | AY54: *** | AZ54: *** | BA54: *** | BB54: *** | BC54: *** | BD54: * | BE54: * | BF54: * | BG54: *** | BH54: *** | BI54: *** | BS54: * | BT54: * | BU54: * | BV54: *** | BW54: *** | BX54: ***
A55: Fife | N55: * | O55: * | P55: * | T55: * | U55: * | V55: * | W55: * | X55: * | Y55: * | AC55: * | AD55: * | AE55: * | AI55: *** | AJ55: *** | AK55: *** | AL55: *** | AM55: *** | AN55: *** | AO55: * | AP55: * | AQ55: * | AR55: *** | AS55: *** | AT55: *** | AX55: *** | AY55: *** | AZ55: *** | BA55: *** | BB55: *** | BC55: *** | BD55: * | BE55: * | BF55: * | BG55: *** | BH55: *** | BI55: *** | BS55: * | BT55: * | BU55: * | BV55: *** | BW55: *** | BX55: ***
A56: Glasgow City | N56: * | O56: * | P56: * | AC56: * | AD56: * | AE56: * | AI56: * | AJ56: * | AK56: * | AL56: * | AM56: * | AN56: * | AO56: * | AP56: * | AQ56: * | AR56: *** | AS56: *** | AT56: *** | BG56: *** | BH56: *** | BI56: *** | BV56: * | BW56: * | BX56: *
A57: Highland | H57: *** | I57: *** | J57: *** | N57: *** | O57: *** | P57: *** | T57: * | U57: * | V57: * | W57: *** | X57: *** | Y57: *** | AC57: *** | AD57: *** | AE57: *** | AI57: *** | AJ57: *** | AK57: *** | AL57: *** | AM57: *** | AN57: *** | AO57: *** | AP57: *** | AQ57: *** | AR57: *** | AS57: *** | AT57: *** | AX57: *** | AY57: *** | AZ57: *** | BA57: *** | BB57: *** | BC57: *** | BD57: *** | BE57: *** | BF57: *** | BG57: *** | BH57: *** | BI57: *** | BM57: * | BN57: * | BO57: * | BP57: *** | BQ57: *** | BR57: *** | BS57: * | BT57: * | BU57: * | BV57: *** | BW57: *** | BX57: ***
A58: Inverclyde | N58: * | O58: * | P58: * | T58: * | U58: * | V58: * | W58: * | X58: * | Y58: * | AC58: * | AD58: * | AE58: * | AI58: *** | AJ58: *** | AK58: *** | AL58: *** | AM58: *** | AN58: *** | AO58: * | AP58: * | AQ58: * | AR58: *** | AS58: *** | AT58: *** | AX58: *** | AY58: *** | AZ58: *** | BA58: *** | BB58: *** | BC58: *** | BD58: * | BE58: * | BF58: * | BG58: *** | BH58: *** | BI58: *** | BS58: * | BT58: * | BU58: * | BV58: *** | BW58: *** | BX58: ***
A59: Midlothian | N59: * | O59: * | P59: * | T59: * | U59: * | V59: * | W59: * | X59: * | Y59: * | AC59: * | AD59: * | AE59: * | AI59: * | AJ59: * | AK59: * | AL59: * | AM59: * | AN59: * | AO59: * | AP59: * | AQ59: * | AR59: *** | AS59: *** | AT59: *** | BD59: * | BE59: * | BF59: * | BG59: *** | BH59: *** | BI59: *** | BS59: * | BT59: * | BU59: * | BV59: *** | BW59: *** | BX59: ***
A60: Moray | N60: * | O60: * | P60: * | T60: * | U60: * | V60: * | W60: * | X60: * | Y60: * | AC60: *** | AD60: *** | AE60: *** | AI60: *** | AJ60: *** | AK60: *** | AL60: *** | AM60: *** | AN60: *** | AO60: * | AP60: * | AQ60: * | AR60: *** | AS60: *** | AT60: *** | AX60: *** | AY60: *** | AZ60: *** | BA60: *** | BB60: *** | BC60: *** | BD60: * | BE60: * | BF60: * | BG60: *** | BH60: *** | BI60: *** | BS60: * | BT60: * | BU60: * | BV60: *** | BW60: *** | BX60: ***
A61: Na h-Eileanan Siar | H61: * | I61: * | J61: * | K61: * | L61: * | M61: * | N61: * | O61: * | P61: * | T61: * | U61: * | V61: * | W61: * | X61: * | Y61: * | Z61: * | AA61: * | AB61: * | AC61: * | AD61: * | AE61: * | AI61: *** | AJ61: *** | AK61: *** | AL61: *** | AM61: *** | AN61: *** | AO61: *** | AP61: *** | AQ61: *** | AR61: *** | AS61: *** | AT61: *** | AX61: *** | AY61: *** | AZ61: *** | BA61: *** | BB61: *** | BC61: *** | BD61: *** | BE61: *** | BF61: *** | BG61: *** | BH61: *** | BI61: *** | BM61: * | BN61: * | BO61: * | BP61: * | BQ61: * | BR61: * | BS61: *** | BT61: *** | BU61: *** | BV61: *** | BW61: *** | BX61: ***
A62: North Ayrshire | N62: * | O62: * | P62: * | T62: * | U62: * | V62: * | W62: * | X62: * | Y62: * | AC62: * | AD62: * | AE62: * | AI62: * | AJ62: * | AK62: * | AL62: *** | AM62: *** | AN62: *** | AO62: * | AP62: * | AQ62: * | AR62: *** | AS62: *** | AT62: *** | BA62: *** | BB62: *** | BC62: *** | BD62: * | BE62: * | BF62: * | BG62: *** | BH62: *** | BI62: *** | BS62: * | BT62: * | BU62: * | BV62: * | BW62: * | BX62: *
